{"text_format":"1","workbook":"xlsx","n_sheets":18,"sheets":["Cover","Documentation >>","User Guide","ToC","Style Guide","Inputs >>","Time","WINEP_Inputs","InpActive","Calcs >>","WINEP_Schemes","WINEP_Allowance","Outputs >>","Annual_Outputs","F_Outputs","QA >>","Track","Check"],"not_rendered":{"charts":0,"images":1,"macros":1,"external_links":1,"defined_names":63,"comments":0,"pivot_tables":0},"unopened":[],"bounds":{"document_bytes":16777216,"sheet_cells":100000,"rows_first":2000,"rows_last":500,"rows_between":2000,"halvings":0,"cell_chars":16384,"cell_head_chars":4096},"cells_cut":0,"cells_raw":0,"read":"whole","date_system":"1900"}

{"sheet":"Cover","index":0,"n_rows":38,"n_cols":7,"rows_kept":38,"cut":false,"hidden":false,"merged":[[27,3,27,4],[22,3,22,4],[21,3,21,4],[9,3,9,6],[10,3,10,6],[11,3,11,6],[12,3,12,6],[13,3,13,6],[24,3,24,4],[25,3,25,4],[23,3,23,4],[26,3,26,4],[18,3,18,6]]}
[{"$f":" RIGHT(CELL(\"filename\", $A$1), LEN(CELL(\"filename\", $A$1)) - SEARCH(\"]\", CELL(\"filename\", $A$1)))","v":"Cover"}]
[]
[null,null,"Model name:","WINEP Reconciliation Model"]
[null,null,"Version number:","DD v1"]
[null,null,"Filename:","PR24PD11-PR19 WINEP recon model-YKY"]
[null,null,"Date:","July 2024"]
[null,null,"Author:","Ofwat"]
[null,null,"Contact:","PR24@ofwat.gov.uk"]
[]
[null,null,"Summary of model:","This illustrative model is designed to show how we will account for the impact of ministerial decisions on the scale of companies’ environmental enhancement programmes where this differs from our assumptions made at FD. Please note that, for brevity, the term 'WINEP' is used throughout. However, it should be taken to include both the WINEP in England and the NEP in Wales. "]
[null,null,null,"On sheet \"WINEP_Allowance\" we set out the adjustments we will make for each scheme in the company's WINEP programme that at the time of the final determination was unconfirmed. We show what will happen to adjust allowed totex for cost sharing, whether the scheme is confirmed as required or confirmed not required for the period 2020-25. For some companies there will be schemes listed that were not included in our enhancement allowance when we made our final determinations. We will make an opposite adjustment for these."]
[null,null,null,"On sheet \"WINEP_Schemes\" we convert the units used for each company’s unit cost mechanism as set out in the Cost Efficiency appendix to the company summary document of our Final Determinations. This is a bespoke conversion required for each company and the units shown are for illustration. Not all units shown will be relevant to every company."]
[null,null,null,"For most schemes the proportion confirmed will be either 100% or 0%. We have included a 'Proportion Confirmed' column to allow for the possibility that a scheme is partially confirmed. For example, if a scheme involves work on all reservoirs in a region but some reservoirs are subsequently sold then a reconciliation will be made to recover a proportion of the scheme's costs.\n\nFor the PR24 determination, on the \"WINEP_Inputs\" tab we have added some additional columns from column CY onwards. In all company models Column CY is for 'Water company comments'. This has been populated by the company, during the submission of the model with PR24 plans and in the following period where updated versions of the model may have been returned due to query responses. Column CZ is for 'Ofwat review and/or amend comment', it is populated where Ofwat have made amendments during the review of PR24 submitted models, to provide explanation. Explanation is provided in this column for any amendments and the relevant cell is highlighted lilac. In some company models there are additional columns, as required, to ensure company allowances can be calculated.\n\nIn the \"WINEP_Inputs\" tab column DA details the Funding clawback category for all relevant actions.\n\n\n\n"]
[null,null,null,"Where schemes have been partially removed the company must present evidence that the proportion remaining has been signed off by the Environment Agency or Natural Resources Wales."]
[]
[null,null,null,"NB - The model price base is 'CPIH Financial year average 2017/18', unless otherwise stated. "]
[]
[]
[null,null,"Company Specific Detail (only Ofwat populated if required):","Yorkshire Water:\nIn the draft determination model actions are reverted to the original groupings within the groupings in the Final Determination as the allowed totex rate cannot be altered. \nAny additional actions that were included in the company submitted model have been removed as the PR19 WINEP reconciliation is only for actions detailed in the Final Determination as being within the uncertainty mechanism. \n\nThe PR19 Final Determination (Table 6) contains a list of sites which are sludge treatment centres that would receive increased bioresources from some satellite sites due to PR19 phosphorus removal. The table specifies the adjustments that would have been made should there be a reduction in the need for bioresources handling and dewatering facilities resulting from WINEP ‘amber’ schemes not going ahead. As all the phosphorus schemes at the satellite sites are still within PR19 there was no funding clawback required.  \n\nUpon finalising the PR19 WINEP reconciliation models for publication at draft determination, we identified that Yorkshire Water's Weighted Average Cost of Capital (WACC) has not been updated to reflect the Competition Market Authority's (CMA) PR19 redetermination decision on WACC. This was identified after allowances were finalised for the draft determination, so is not accounted for. We will correct it within the Final Determination.  "]
[]
[null,null,"Change Log (prior to PR19 FD model issue):","Sheet(s) in current model",null,"Description of change(s) made","Model link(s)"]
[null,null,null,"Track",null,"Linked to correct cells in model. Previously this was incorrectly linked to blank cells. Added some additional tracking lines.",{"$f":"Track!A1","v":"Track"}]
[null,null,null,"User Guide",null,"Expanded the description of how to load the WINEP input data.",{"$f":"'User Guide'!D13","v":"INITIAL SET UP"}]
[null,null,null,"WINEP_Schemes",null,"Relabelled \"Quantity\" as \"Quantity in PR19 FD\"",{"$f":" WINEP_Schemes!J9","v":"Quantity in PR19 FD"}]
[null,null,null,"WINEP_Schemes",null,"Added new column \"Quantity Delivered\" and changed the input \"Proportion confirmed\" to be a calculation of \"Quantity Delivered\" divided by \"Quantity in PR19 FD\".",{"$f":" WINEP_Schemes!K9","v":"Quantity Delivered"}]
[null,null,null,"WINEP_Schemes",null,"Changed all Inputs to be brought forward from the WINEP_Inputs sheet. This affects \"Unit\", \"Unit Conversion\", \"Quantity\" and \"Price Control\"",{"$f":" WINEP_Schemes!F9","v":"Unit"}]
[null,null,null,"WINEP_Inputs",null,"Columns CR to CX now contain the WINEP inputs that need to be manually entered. The columns have been re-labelled for clarity.",{"$f":" WINEP_Inputs!CR3","v":"WINEP model inputs"}]
[null,null,null,"Annual_Outputs",null,"Relabelled the WINEP reconciliation outputs and added additional text for clarity. ",{"$f":" Annual_Outputs!E26","v":"WINEP Reconciliation, water resources - without adjustment for time value of money"}]
[]
[null,null,"Instructions:","A model 'User guide' is present in the model to help the user in operating the model."]
[null,null,null,"Follow link >>","Goto User Guide"]
[]
[null,null,"Error check status:",{"$f":"Check!$F$2","v":0},{"$f":" IF(D33 = 0, \"No error checks\", \"Error checks active\")","v":"No error checks"}]
[null,null,null,{"$f":"Check!$F$3","v":5},{"$f":" IF(D34 = 0, \"No output changes\", \"Output changes\")","v":"Output changes"}]
[]
[]
[]
["End of sheet"]

{"sheet":"Documentation >>","index":1,"n_rows":0,"n_cols":0,"rows_kept":0,"cut":false,"hidden":false,"merged":[]}

{"sheet":"User Guide","index":2,"n_rows":85,"n_cols":5,"rows_kept":85,"cut":false,"hidden":false,"merged":[]}
[{"$f":" RIGHT(CELL(\"filename\", $A$1), LEN(CELL(\"filename\", $A$1)) - SEARCH(\"]\", CELL(\"filename\", $A$1)))","v":"User Guide"}]
[]
[null,"INTRODUCTION"]
[]
[null,null,null,null,"This model will calculate the WINEP reconciliation adjustment in £m."]
[]
[null,null,null,"NAVIGATION"]
[null,null,null,null,"In order to navigate through the model the following key strokes will prove useful:"]
[null,null,null,null,"- To go to a sheet or row select a blue font cell and then either press CTRL+ [ or double click"]
[null,null,null,null,"- To return to the last position press F5 + Enter"]
[null,null,null,null,"- In accordance with best practice, the model is saved with a \"Manual Calculation\" setting. To ensure a full recalculation press: Ctrl + Alt + F9"]
[]
[null,null,null,"INITIAL SET UP"]
[null,null,null,null,"On first use of the model the WINEP_inputs sheet needs to be updated from the 2019 WINEP spreadsheet. You must use the list of WINEP sites as at Final Determination. "]
[]
[null,null,null,"1)","The WINEP_Inputs sheet needs to be setup so that the correct information is loaded onto the WINEP_Schemes sheet. Since all companies have used different units the procedure for doing this will vary. Most companies will be able to follow the steps below:"]
[null,null,null,"Step 1 - ","In the WINEP workbook identify all schemes that were Amber in the PR19 Final Determination WINEP workbook."]
[null,null,null,"Step 2 - ","Copy the schemes to cell C5 of WINEP_Inputs maintaining the column layout of the PR19 Final Determination WINEP spreadsheet."]
[null,null,null,"Step 3 - ","Complete column CR for all rows, 'Allowed totex unit rate'. This feeds through to the WINEP_Schemes sheet and should be copied directly from the tables in the Cost Efficiency appendix to the company summary document of our Final Determinations."]
[null,null,null,"Step 4 - ","Complete column CS for all rows, 'Quantity proposed in PR19 FD. This feeds through to the WINEP_Schemes sheet and is the amount to be delivered as stated in the Cost Efficiency appendix to the company summary document of our Final Determinations. This should be entered in the appropriate units e.g. £m per benefit point, £ per km LORI, £ per kgP/day removed, etc"]
[null,null,null,"Step 5 - ","Complete column CT for all rows, 'Quantity Delivered'. This feeds through to the WINEP_Schemes sheet and is the actual amount delivered. The proportion confirmed is then calculated from the inputs in columns CS and CT."]
[null,null,null,"Step 6 - ","Complete column CU for all rows with a 1 if the scheme was costed in the FD or a 0 if the scheme was not costed"]
[null,null,null,"Step 7 - ","In column CV select for all rows the price control that the WINEP adjustment will be applied to"]
[null,null,null,"Step 8 - ","Enter the units into column CW and a conversion factor into column CX to convert into £m."]
[]
[null,null,null,"2)","InpTime sheet : This is the sheet where all the Inputs related to dates and timelines are set up:"]
[null,null,null,null,{"$f":"Time!A1","v":"Time"}]
[]
[null,null,null,"3)","InpAct sheet : This is the sheet where all the Inputs used in the model calculations are present, all the inputs flow from this sheet into the model calculations:"]
[null,null,null,null,{"$f":"InpActive!A1","v":"InpActive"}]
[null,null,null,null,"Update all Input cells as required."]
[]
[null,null,null,null,"Recalculate the model once all the sheets are updated. Press Ctrl + Alt + F9"]
[]
[]
[]
[null,"HOW TO SAVE A PDF COPY OF ANY SHEET"]
[]
[null,null,null,"Step 1 - ","To save a sheet in PDF format, press button \"Save as PDF\""]
[]
[]
[]
[null,null,null,"Step 2 - ","In the dialog box, \"Enter sheet name\", type the name of the sheet you want to save"]
[]
[null,null,null,"Step 3 - ","In the dialog box, \"Save As\" change the file name if required"]
[]
[null,null,null,"Step 4 - ","Press \"Save\" to save a Pdf copy of the sheet"]
[]
[]
[]
[null,"HOW TO STORE TRACK IN TRACK SHEET"]
[]
[null,null,null,"USING MACRO"]
[null,null,null,null,"To store Track in the Track sheet using the macro, follow the steps below:"]
[]
[null,null,null,"Step 1 - ","Go to the Track sheet and press the \"Store Track\" button to save the track for a new case"]
[null,null,null,null,"Store Track"]
[]
[null,null,null,"Step 2 - ","A dialog box \"Enter the label for the new track column\" will appear, type the new track label (for example: \"version 17r\"), the label will appear in row 6"]
[]
[null,null,null,"Step 3 - ","A dialog box \"Enter the comment for the new track\" will appear, write a brief description of the change. The description will be appear at the bottom of the track column"]
[]
[null,null,null,"Step 4 - ","Press enter, a new track column will appear before the last stored track"]
[]
[null,null,null,"Step 5 - ","Review the difference between stored cases and active case (col H) by selecting the stored case in cell H6."]
[]
[null,null,null,"MANUAL METHOD"]
[]
[null,null,null,null,"To store Track in the Track sheet manually, follow the steps below:"]
[]
[null,null,null,"Step 1 - ","Select the column by pressing Ctrl + Spacebar and Copy (Ctrl + C). Then insert a new column after the last stored column by pressing Alt, I, E"]
[]
[null,null,null,"Step 2 - ","Select the newly inserted column (Ctrl + Spacebar) and delete the previously stored values from this column by pressing Delete button"]
[]
[null,null,null,"Step 3 - ","Go to active track column (H column). Select the range from H6 till 'do not delete row - range end' row and Copy (Ctrl + C)"]
[]
[null,null,null,"Step 4 - ","Paste the selected values (Alt E, S, V) in newly inserted column"]
[]
[null,null,null,"Step 5 - ","Update 'New track name' in row 6 of newly inserted column. Then select 'New track name' from the dropdown list present in H6."]
[]
[null,null,null,"Step 6 - ","Review the difference between stored cases and active case (col H) by selecting the stored case in cell H6."]
[]
[]
[]
["End of sheet"]

{"sheet":"ToC","index":3,"n_rows":25,"n_cols":26,"rows_kept":25,"cut":false,"hidden":false,"merged":[]}
[{"$f":" RIGHT(CELL(\"filename\", $A$1), LEN(CELL(\"filename\", $A$1)) - SEARCH(\"]\", CELL(\"filename\", $A$1)))","v":"ToC"}]
[]
["GENERIC MODEL DESIGN"]
[]
[null,null,null,null,null,"Table of Contents"]
[]
[]
[null,null,null,null,null,null,null,"DOCUMENTATION",null,null,null,"MODEL INPUTS",null,null,null,null,"MODEL CALCULATIONS",null,null,null,null,"MODEL OUTPUTS",null,null,null,"MODEL QA"]
[]
[null,null,null,null,null,null,null,"Cover",null,null,null,"WINEP_Inputs",null,null,null,null,"WINEP_Schemes",null,null,null,null,"Annual_Outputs",null,null,null,"Check"]
[null,null,null,null,null,null,null,"Model cover sheet",null,null,null,"WINEP inputs from business plans",null,null,null,null,"List of WINEP Amber schemes",null,null,null,null,"Annual profile of WINEP reconciliation",null,null,null,"Checks"]
[]
[null,null,null,null,null,null,null,"User Guide",null,null,null,"Time",null,null,null,null,"WINEP_Allowance",null,null,null,null,"F_Outputs",null,null,null,"Track"]
[null,null,null,null,null,null,null,"Explanation of setup and macros",null,null,null,"Dates and timelines",null,null,null,null,"Calculation of allowed cost",null,null,null,null,"Outputs to be uploaded to Fountain",null,null,null,"Model changes and track records"]
[]
[null,null,null,null,null,null,null,"ToC",null,null,null,"InpActive"]
[null,null,null,null,null,null,null,"Table of contents",null,null,null,"All inputs to be flowed into model"]
[]
[null,null,null,null,null,null,null,"Style Guide"]
[null,null,null,null,null,null,null,"Explanation of different formatting types"]
[]
[]
[]
[]
["End of sheet"]

{"sheet":"Style Guide","index":4,"n_rows":52,"n_cols":10,"rows_kept":52,"cut":false,"hidden":false,"merged":[]}
[{"$f":" RIGHT(CELL(\"filename\", $A$1), LEN(CELL(\"filename\", $A$1)) - SEARCH(\"]\", CELL(\"filename\", $A$1)))","v":"Style Guide"}]
[]
["SHEET TABS"]
[]
[null,null,null,null,null,null,null,"Light Yellow",null,"Input sheets"]
[]
[null,null,null,null,null,null,null,"No colour (default Excel tab colour)",null,"Calculation and documentation sheets"]
[]
[null,null,null,null,null,null,null,"Pale Blue",null,"Key output sheets"]
[]
[null,null,null,null,null,null,null,"Turquoise",null,"Quality control sheets"]
[]
[null,null,null,null,null,null,null,"Yellow",null,"To be completed, temporary, restructured, or deleted"]
[]
[]
["COLOUR"]
[]
[null,"Font colour only"]
[null,null,null,null,null,null,null,"Blue font",null,"Imported from another sheet"]
[]
[null,null,null,null,null,null,null,"Red font ",null,"Exported to another sheet (except from Input sheets)"]
[]
[null,null,null,null,null,null,null,"Black font",null,"Within sheet link or calculation"]
[]
[null,"Font + shade combinations"]
[null,null,null,null,null,null,null,"Black font + Light Yellow shade",null,"Inputs"]
[]
[null,null,null,null,null,null,null,"Black font + Light Yellow shade with grey stripe",null,"Inputs that are not expected to be changed"]
[]
[null,null,null,null,null,null,null,"Black font + Light Grey shade on entire row",null,"Within-worksheet counter-flow "]
[]
[null,null,null,null,null,null,null,"Blue font + Light Grey shade on entire row",null,"Between-worksheet counter-flow "]
[]
[null,null,null,null,null,null,null,"Empty Cell with Light Grey shade",null,"Empty cells being deliberately referenced"]
[]
[null,"Other"]
[null,null,null,null,null,null,null,"Black font + Pale Blue shade on entire row",null,"Section separator"]
[]
[null,null,null,null,null,null,null,"Light Turquoise shade",null,"Stored/dead/hard coded outputs"]
[]
[null,null,null,null,null,null,null,"Tan shade",null,"Pre-model time line actuals"]
[]
[null,null,null,null,null,null,null,"Yellow shade",null,"Work in progress / temporary"]
[]
[null,null,null,null,null,null,null,"Lime shade",null,"Values or logic to be reviewed"]
[]
[null,"Error checks"]
[null,null,null,null,null,null,null,"Green shade",null,"OK"]
[]
[null,null,null,null,null,null,null,"Red shade",null,"Error"]
[]
["End of sheet"]

{"sheet":"Inputs >>","index":5,"n_rows":0,"n_cols":0,"rows_kept":0,"cut":false,"hidden":false,"merged":[]}

{"sheet":"Time","index":6,"n_rows":133,"n_cols":20,"rows_kept":133,"cut":false,"hidden":false,"merged":[]}
[{"$f":" RIGHT(CELL(\"filename\", $A$1), LEN(CELL(\"filename\", $A$1)) - SEARCH(\"]\", CELL(\"filename\", $A$1)))","v":"Time"}]
[null,null,null,null,{"$f":" Time!E$25","v":"Model period ending"},null,null,null,null,{"$f":" Time!J$25","v":"2019-03-31"},{"$f":" Time!K$25","v":"2020-03-31"},{"$f":" Time!L$25","v":"2021-03-31"},{"$f":" Time!M$25","v":"2022-03-31"},{"$f":" Time!N$25","v":"2023-03-31"},{"$f":" Time!O$25","v":"2024-03-31"},{"$f":" Time!P$25","v":"2025-03-31"},{"$f":" Time!Q$25","v":"2026-03-31"},{"$f":" Time!R$25","v":"2027-03-31"},{"$f":" Time!S$25","v":"2028-03-31"},{"$f":" Time!T$25","v":"2029-03-31"}]
[null,null,null,null,{"$f":" Time!E$107","v":"Timeline label"},null,null,null,null,{"$f":" Time!J$107","v":"Pre-Fcst"},{"$f":" Time!K$107","v":"Pre-Fcst"},{"$f":" Time!L$107","v":"Forecast"},{"$f":" Time!M$107","v":"Forecast"},{"$f":" Time!N$107","v":"Forecast"},{"$f":" Time!O$107","v":"Forecast"},{"$f":" Time!P$107","v":"Forecast"},{"$f":" Time!Q$107","v":"Post-Fcst"},{"$f":" Time!R$107","v":"Post-Fcst"},{"$f":" Time!S$107","v":"Post-Fcst"},{"$f":" Time!T$107","v":"Post-Fcst"}]
[null,null,null,null,{"$f":" Time!E$130","v":"Financial year ending"},null,null,null,null,{"$f":" Time!J$130","v":2019},{"$f":" Time!K$130","v":2020},{"$f":" Time!L$130","v":2021},{"$f":" Time!M$130","v":2022},{"$f":" Time!N$130","v":2023},{"$f":" Time!O$130","v":2024},{"$f":" Time!P$130","v":2025},{"$f":" Time!Q$130","v":2026},{"$f":" Time!R$130","v":2027},{"$f":" Time!S$130","v":2028},{"$f":" Time!T$130","v":2029}]
[null,null,null,null,{"$f":" Time!E$10","v":"Model column counter"},"Constant","Unit","Total",null,{"$f":" Time!J$10","v":1},{"$f":" Time!K$10","v":2},{"$f":" Time!L$10","v":3},{"$f":" Time!M$10","v":4},{"$f":" Time!N$10","v":5},{"$f":" Time!O$10","v":6},{"$f":" Time!P$10","v":7},{"$f":" Time!Q$10","v":8},{"$f":" Time!R$10","v":9},{"$f":" Time!S$10","v":10},{"$f":" Time!T$10","v":11}]
[]
["MODEL PERIOD"]
[]
[null,"Model column counter "]
[null,null,null,null,"Model column counter",null,"counter",null,null,{"$f":" I10 + 1","v":1},{"$f":" J10 + 1","v":2},{"$f":" K10 + 1","v":3},{"$f":" L10 + 1","v":4},5,6,{"$f":" O10 + 1","v":7},{"$f":" P10 + 1","v":8},{"$f":" Q10 + 1","v":9},{"$f":" R10 + 1","v":10},11]
[null,null,null,null,"Model column total",{"$f":" MAX(J10:T10)","v":11},"columns"]
[]
[null,null,null,null,{"$f":" E$10","v":"Model column counter"},0,"counter",{"$f":" H$10","v":0},0,{"$f":" J$10","v":1},2,3,4,5,6,7,8,9,10,11]
[null,null,null,null,"1st model column flag",null,"flag",{"$f":" SUM(J14:T14)","v":1},null,{"$f":" IF(J13 = 1, 1, 0)","v":1},{"$f":" IF(K13 = 1, 1, 0)","v":0},0,{"$f":" IF(M13 = 1, 1, 0)","v":0},{"$f":" IF(N13 = 1, 1, 0)","v":0},0,{"$f":" IF(P13 = 1, 1, 0)","v":0},{"$f":" IF(Q13 = 1, 1, 0)","v":0},{"$f":" IF(R13 = 1, 1, 0)","v":0},{"$f":" IF(S13 = 1, 1, 0)","v":0},0]
[]
[null,"Model period beginning"]
[null,null,null,null,{"$f":"InpActive!E12","v":"1st model column start date"},{"$f":"InpActive!F12","v":"2018-04-01"},{"$f":"InpActive!G12","v":"date"}]
[null,null,null,null,{"$f":"InpActive!E$39","v":"Months per model period"},{"$f":"InpActive!F$39","v":12},{"$f":"InpActive!G$39","v":"months"}]
[null,null,null,null,{"$f":" E$14","v":"1st model column flag"},0,"flag",{"$f":" H$14","v":1},0,{"$f":" J$14","v":1},0,0,0,0,0,0,0,0,0,0]
[null,null,null,null,"Model period beginning",null,"date",null,null,{"$f":" IF(J19 = 1, $F17, DATE(YEAR(I20), MONTH(I20) + $F18, DAY(1)))","v":"2018-04-01"},{"$f":" IF(K19 = 1, $F17, DATE(YEAR(J20), MONTH(J20) + $F18, DAY(1)))","v":"2019-04-01"},{"$f":" IF(L19 = 1, $F17, DATE(YEAR(K20), MONTH(K20) + $F18, DAY(1)))","v":"2020-04-01"},{"$f":" IF(M19 = 1, $F17, DATE(YEAR(L20), MONTH(L20) + $F18, DAY(1)))","v":"2021-04-01"},{"$f":" IF(N19 = 1, $F17, DATE(YEAR(M20), MONTH(M20) + $F18, DAY(1)))","v":"2022-04-01"},"2023-04-01",{"$f":" IF(P19 = 1, $F17, DATE(YEAR(O20), MONTH(O20) + $F18, DAY(1)))","v":"2024-04-01"},{"$f":" IF(Q19 = 1, $F17, DATE(YEAR(P20), MONTH(P20) + $F18, DAY(1)))","v":"2025-04-01"},{"$f":" IF(R19 = 1, $F17, DATE(YEAR(Q20), MONTH(Q20) + $F18, DAY(1)))","v":"2026-04-01"},{"$f":" IF(S19 = 1, $F17, DATE(YEAR(R20), MONTH(R20) + $F18, DAY(1)))","v":"2027-04-01"},"2028-04-01"]
[]
[null,"Model period ending"]
[null,null,null,null,{"$f":"InpActive!E$39","v":"Months per model period"},{"$f":"InpActive!F$39","v":12},{"$f":"InpActive!G$39","v":"months"}]
[null,null,null,null,{"$f":" E$20","v":"Model period beginning"},"00:00:00","date","00:00:00","00:00:00","2018-04-01","2019-04-01","2020-04-01","2021-04-01","2022-04-01","2023-04-01","2024-04-01","2025-04-01","2026-04-01","2027-04-01","2028-04-01"]
[null,null,null,null,"Model period ending",null,"date",null,null,{"$f":" DATE(YEAR(J24), MONTH(J24) + $F23, DAY(J24) - 1)","v":"2019-03-31"},{"$f":" DATE(YEAR(K24), MONTH(K24) + $F23, DAY(K24) - 1)","v":"2020-03-31"},"2021-03-31","2022-03-31","2023-03-31","2024-03-31",{"$f":" DATE(YEAR(P24), MONTH(P24) + $F23, DAY(P24) - 1)","v":"2025-03-31"},{"$f":" DATE(YEAR(Q24), MONTH(Q24) + $F23, DAY(Q24) - 1)","v":"2026-03-31"},{"$f":" DATE(YEAR(R24), MONTH(R24) + $F23, DAY(R24) - 1)","v":"2027-03-31"},{"$f":" DATE(YEAR(S24), MONTH(S24) + $F23, DAY(S24) - 1)","v":"2028-03-31"},"2029-03-31"]
[]
[null,null,null,null,{"$f":" E$25","v":"Model period ending"},"00:00:00","date","00:00:00","00:00:00","2019-03-31","2020-03-31","2021-03-31","2022-03-31","2023-03-31","2024-03-31","2025-03-31","2026-03-31","2027-03-31","2028-03-31","2029-03-31"]
[null,null,null,null,{"$f":" E$20","v":"Model period beginning"},"00:00:00","date","00:00:00","00:00:00","2018-04-01","2019-04-01","2020-04-01","2021-04-01","2022-04-01","2023-04-01","2024-04-01","2025-04-01","2026-04-01","2027-04-01","2028-04-01"]
[null,null,null,null,"Days in a year",null,"days",null,null,{"$f":" J27 - J28 + 1","v":365},{"$f":" K27 - K28 + 1","v":366},365,365,365,366,365,365,365,{"$f":" S27 - S28 + 1","v":366},365]
[]
[]
["FORECAST PERIOD"]
[]
[null,"Forecast start period flag"]
[null,null,null,null,{"$f":"InpActive!E$25","v":"Forecast start date"},{"$f":"InpActive!F$25","v":"2020-04-01"},{"$f":"InpActive!G$25","v":"date"}]
[null,null,null,null,{"$f":" E$20","v":"Model period beginning"},"00:00:00","date","00:00:00","00:00:00","2018-04-01","2019-04-01","2020-04-01","2021-04-01","2022-04-01","2023-04-01","2024-04-01","2025-04-01","2026-04-01","2027-04-01","2028-04-01"]
[null,null,null,null,{"$f":" E$25","v":"Model period ending"},"00:00:00","date","00:00:00","00:00:00","2019-03-31","2020-03-31","2021-03-31","2022-03-31","2023-03-31","2024-03-31","2025-03-31","2026-03-31","2027-03-31","2028-03-31","2029-03-31"]
[null,null,null,null,"Forecast start period flag",null,"flag",{"$f":" SUM(J38:T38)","v":1},null,{"$f":" IF(AND($F35 >= J36, $F35 <= J37), 1, 0)","v":0},{"$f":" IF(AND($F35 >= K36, $F35 <= K37), 1, 0)","v":0},1,0,0,0,{"$f":" IF(AND($F35 >= P36, $F35 <= P37), 1, 0)","v":0},{"$f":" IF(AND($F35 >= Q36, $F35 <= Q37), 1, 0)","v":0},{"$f":" IF(AND($F35 >= R36, $F35 <= R37), 1, 0)","v":0},{"$f":" IF(AND($F35 >= S36, $F35 <= S37), 1, 0)","v":0},0]
[]
[null,"Forecast end period flag"]
[null,null,null,null,{"$f":"InpActive!E$25","v":"Forecast start date"},{"$f":"InpActive!F$25","v":"2020-04-01"},{"$f":"InpActive!G$25","v":"date"}]
[null,null,null,null,{"$f":"InpActive!E26","v":"Forecast duration"},{"$f":"InpActive!F26","v":5},{"$f":"InpActive!G26","v":"years"}]
[null,null,null,null,"Forecast end date",{"$f":" DATE(YEAR(F41) + F42, MONTH(F41), DAY(F41) - 1)","v":"2025-03-31"},"date"]
[]
[null,null,null,null,{"$f":" E$43","v":"Forecast end date"},{"$f":" F$43","v":"2025-03-31"},{"$f":" G$43","v":"date"}]
[null,null,null,null,{"$f":" E$20","v":"Model period beginning"},"00:00:00","date","00:00:00","00:00:00","2018-04-01","2019-04-01","2020-04-01","2021-04-01","2022-04-01","2023-04-01","2024-04-01","2025-04-01","2026-04-01","2027-04-01","2028-04-01"]
[null,null,null,null,{"$f":" E$25","v":"Model period ending"},"00:00:00","date","00:00:00","00:00:00","2019-03-31","2020-03-31","2021-03-31","2022-03-31","2023-03-31","2024-03-31","2025-03-31","2026-03-31","2027-03-31","2028-03-31","2029-03-31"]
[null,null,null,null,"Forecast end period flag",null,"flag",{"$f":" SUM(J48:T48)","v":1},null,{"$f":" IF(AND($F45 >= J46, $F45 <= J47), 1, 0)","v":0},{"$f":" IF(AND($F45 >= K46, $F45 <= K47), 1, 0)","v":0},{"$f":" IF(AND($F45 >= L46, $F45 <= L47), 1, 0)","v":0},{"$f":" IF(AND($F45 >= M46, $F45 <= M47), 1, 0)","v":0},0,0,1,0,0,{"$f":" IF(AND($F45 >= S46, $F45 <= S47), 1, 0)","v":0},0]
[]
[null,"Forecast period flag"]
[null,null,null,null,{"$f":" E$38","v":"Forecast start period flag"},{"$f":" F$38","v":0},"flag",{"$f":" H$38","v":1},0,0,0,1,0,0,0,0,0,0,0,0]
[null,null,null,null,{"$f":" E$48","v":"Forecast end period flag"},{"$f":" F$48","v":0},"flag",{"$f":" H$48","v":1},0,0,0,0,0,0,0,1,0,0,0,0]
[null,null,null,null,"Forecast period flag",null,"flag",{"$f":" SUM(J53:T53)","v":5},null,{"$f":" J51 + I53 - I52","v":0},{"$f":" K51 + J53 - J52","v":0},{"$f":" L51 + K53 - K52","v":1},{"$f":" M51 + L53 - L52","v":1},1,1,{"$f":" P51 + O53 - O52","v":1},{"$f":" Q51 + P53 - P52","v":0},{"$f":" R51 + Q53 - Q52","v":0},{"$f":" S51 + R53 - R52","v":0},0]
[null,null,null,null,"Total number of forecast periods ",{"$f":" SUM(J53:R53)","v":5},"periods"]
[]
[null,"Forecast period counter"]
[null,null,null,null,{"$f":"E38","v":"Forecast start period flag"},{"$f":"F38","v":0},"flag",1,0,0,{"$f":"K38","v":0},1,0,0,0,0,0,0,0,0]
[null,null,null,null,{"$f":"E53","v":"Forecast period flag"},{"$f":"F53","v":0},"flag",5,0,0,{"$f":"K53","v":0},1,1,1,1,1,0,0,0,0]
[null,null,null,null,{"$f":"E48","v":"Forecast end period flag"},{"$f":"F48","v":0},"flag",1,0,{"$f":"J48","v":0},{"$f":"K48","v":0},{"$f":"L48","v":0},0,0,0,1,0,0,0,0]
[null,null,null,null,"Forecast period counter",null,"counter",null,null,{"$f":" IF(J57 = 1, 1, I60 + J58 - I59) * J58","v":0},{"$f":" IF(K57 = 1, 1, J60 + K58 - J59) * K58","v":0},{"$f":" IF(L57 = 1, 1, K60 + L58 - K59) * L58","v":1},{"$f":" IF(M57 = 1, 1, L60 + M58 - L59) * M58","v":2},{"$f":" IF(N57 = 1, 1, M60 + N58 - M59) * N58","v":3},4,5,0,0,0,0]
[]
[null,"Pre-forecast period flag"]
[null,null,null,null,{"$f":" E$14","v":"1st model column flag"},{"$f":" F$14","v":0},"flag",1,0,1,0,0,0,0,0,0,0,0,0,0]
[null,null,null,null,{"$f":" E$38","v":"Forecast start period flag"},{"$f":" F$38","v":0},"flag",1,0,0,0,1,0,0,0,0,0,0,0,0]
[null,null,null,null,"Pre-forecast period flag",null,"flag",{"$f":" SUM(J65:T65)","v":2},null,{"$f":" J63 + I65 - J64","v":1},{"$f":" K63 + J65 - K64","v":1},{"$f":" L63 + K65 - L64","v":0},{"$f":" M63 + L65 - M64","v":0},0,0,{"$f":" P63 + O65 - P64","v":0},{"$f":" Q63 + P65 - Q64","v":0},{"$f":" R63 + Q65 - R64","v":0},{"$f":" S63 + R65 - S64","v":0},0]
[null,null,null,null,"Pre-forecast period flag - total",{"$f":" SUM(J65:T65)","v":2},"periods"]
[]
[null,null,null,null,{"$f":" E$38","v":"Forecast start period flag"},{"$f":" F$38","v":0},"flag",1,0,{"$f":" J$38","v":0},0,1,0,0,0,0,0,0,0,0]
[null,null,null,null,"Last pre-forecast period flag",null,"flag",{"$f":" SUM(J69:T69)","v":{"$error":"#REF!"}},null,{"$f":" K68","v":0},{"$f":" L68","v":1},{"$f":" M68","v":0},{"$f":" N68","v":0},0,0,{"$f":" Q68","v":0},{"$f":" R68","v":0},{"$f":" S68","v":0},{"$f":" T68","v":0},{"$f":"#REF!","v":{"$error":"#REF!"}}]
[]
[null,"First post-forecast period flag"]
[null,null,null,null,{"$f":" E$48","v":"Forecast end period flag"},{"$f":" F$48","v":0},"flag",1,0,{"$f":" J$48","v":0},0,0,0,0,0,1,0,0,0,0]
[null,null,null,null,"First post-forecast period flag",null,"flag",{"$f":" SUM(J73:T73)","v":1},null,{"$f":" I72","v":0},{"$f":" J72","v":0},{"$f":" K72","v":0},{"$f":" L72","v":0},0,0,{"$f":" O72","v":0},{"$f":" P72","v":1},{"$f":" Q72","v":0},{"$f":" R72","v":0},0]
[]
[null,"Post-forecast period flag"]
[null,null,null,null,{"$f":" E$73","v":"First post-forecast period flag"},0,"flag",1,0,0,0,0,0,0,0,0,1,0,0,0]
[null,null,null,null,"Post-forecast period flag",null,"flag",{"$f":" SUM(J77:T77)","v":4},null,{"$f":" J76 + I77","v":0},{"$f":" K76 + J77","v":0},{"$f":" L76 + K77","v":0},{"$f":" M76 + L77","v":0},0,0,{"$f":" P76 + O77","v":0},{"$f":" Q76 + P77","v":1},{"$f":" R76 + Q77","v":1},{"$f":" S76 + R77","v":1},1]
[null,null,null,null,"Post-forecast period - total",{"$f":" SUM(J77:T77)","v":4},"periods"]
[]
[null,"Model period flag"]
[null,null,null,null,{"$f":" E$53","v":"Forecast period flag"},{"$f":" F$53","v":0},"flag",5,0,0,0,1,1,1,1,1,0,0,0,0]
[null,null,null,null,{"$f":" E$65","v":"Pre-forecast period flag"},{"$f":" F$65","v":0},"flag",2,0,1,1,0,0,0,0,0,0,0,0,0]
[null,null,null,null,"Model period flag",null,"flag",{"$f":" SUM(J83:T83)","v":7},null,{"$f":" MAX(J81:J82)","v":1},{"$f":" MAX(K81:K82)","v":1},1,1,1,1,1,0,0,{"$f":" MAX(S81:S82)","v":0},0]
[]
[null,"Forecast year"]
[null,null,null,null,{"$f":" E$130","v":"Financial year ending"},{"$f":" F$130","v":0},"year #",0,0,2019,2020,2021,2022,2023,2024,2025,2026,2027,2028,2029]
[null,null,null,null,{"$f":" E$38","v":"Forecast start period flag"},{"$f":" F$38","v":0},"flag",1,0,0,0,1,0,0,0,0,0,0,0,0]
[null,null,null,null,"Forecast year 1",{"$f":" SUMPRODUCT(J87:T87, J86:T86)","v":2021},"year #"]
[]
[null,"Forecast year"]
[null,null,null,null,{"$f":" InpActive!E$29","v":"Forecast period reconcilation is profiled from"},{"$f":" InpActive!F$29","v":3},{"$f":" InpActive!G$29","v":"year"}]
[null,null,null,null,{"$f":"E60","v":"Forecast period counter"},0,"counter",0,0,0,0,1,2,3,4,5,0,0,0,0]
[null,null,null,null,"Start of adjustment profiling flag",null,"counter",{"$f":" SUM(J93:T93)","v":3},null,{"$f":" IF(J92 >= $F91, 1, 0)","v":0},{"$f":" IF(K92 >= $F91, 1, 0)","v":0},0,0,1,1,1,0,0,0,0]
[]
["MODEL TIMELINE"]
[]
[null,"Timeline label"]
[null,null,null,null,{"$f":" E$14","v":"1st model column flag"},0,"flag",1,0,1,0,0,0,0,0,0,0,0,0,0]
[null,null,null,null,{"$f":" E$38","v":"Forecast start period flag"},{"$f":" F$38","v":0},"flag",1,0,0,0,1,0,0,0,0,0,0,0,0]
[null,null,null,null,{"$f":" E$73","v":"First post-forecast period flag"},0,"flag",1,0,0,0,0,0,0,0,0,1,0,0,0]
[null,null,null,null,"Timeline label counter",null,"counter",null,null,{"$f":" I101 + SUM(J98:J100)","v":1},{"$f":" J101 + SUM(K98:K100)","v":1},{"$f":" K101 + SUM(L98:L100)","v":2},{"$f":" L101 + SUM(M98:M100)","v":2},2,2,{"$f":" O101 + SUM(P98:P100)","v":2},{"$f":" P101 + SUM(Q98:Q100)","v":3},{"$f":" Q101 + SUM(R98:R100)","v":3},{"$f":" R101 + SUM(S98:S100)","v":3},3]
[]
[null,null,null,null,{"$f":"InpActive!E19","v":"Pre - forecast period"},{"$f":"InpActive!F19","v":"Pre-Fcst"},{"$f":"InpActive!G19","v":"label"}]
[null,null,null,null,{"$f":"InpActive!E20","v":"Forecast period"},{"$f":"InpActive!F20","v":"Forecast"},{"$f":"InpActive!G20","v":"label"}]
[null,null,null,null,{"$f":"InpActive!E21","v":"Post - forecast period"},{"$f":"InpActive!F21","v":"Post-Fcst"},{"$f":"InpActive!G21","v":"label"}]
[null,null,null,null,{"$f":" E$101","v":"Timeline label counter"},0,"counter",0,0,1,1,2,2,2,2,2,3,3,3,3]
[null,null,null,null,"Timeline label",null,"label",null,null,{"$f":" INDEX($F103:$F105, J106)","v":"Pre-Fcst"},{"$f":" INDEX($F103:$F105, K106)","v":"Pre-Fcst"},{"$f":" INDEX($F103:$F105, L106)","v":"Forecast"},{"$f":" INDEX($F103:$F105, M106)","v":"Forecast"},{"$f":" INDEX($F103:$F105, N106)","v":"Forecast"},{"$f":" INDEX($F103:$F105, O106)","v":"Forecast"},{"$f":" INDEX($F103:$F105, P106)","v":"Forecast"},{"$f":" INDEX($F103:$F105, Q106)","v":"Post-Fcst"},{"$f":" INDEX($F103:$F105, R106)","v":"Post-Fcst"},{"$f":" INDEX($F103:$F105, S106)","v":"Post-Fcst"},"Post-Fcst"]
[]
[null,"Modelling period check"]
[null,null,null,null,{"$f":" E$65","v":"Pre-forecast period flag"},{"$f":" F$65","v":0},"flag",2,0,1,1,0,0,0,0,0,0,0,0,0]
[null,null,null,null,{"$f":" E$53","v":"Forecast period flag"},{"$f":" F$53","v":0},"flag",5,0,0,0,1,1,1,1,1,0,0,0,0]
[null,null,null,null,{"$f":" E$77","v":"Post-forecast period flag"},0,"flag",4,0,0,0,0,0,0,0,0,1,1,1,1]
[null,null,null,null,"No. of overlapping in flags",null,"#",{"$f":" SUM(J113:T113)","v":0},null,{"$f":" MAX(0, SUM(J110:J112) - 1)","v":0},{"$f":" MAX(0, SUM(K110:K112) - 1)","v":0},{"$f":" MAX(0, SUM(L110:L112) - 1)","v":0},{"$f":" MAX(0, SUM(M110:M112) - 1)","v":0},{"$f":" MAX(0, SUM(N110:N112) - 1)","v":0},0,{"$f":" MAX(0, SUM(P110:P112) - 1)","v":0},{"$f":" MAX(0, SUM(Q110:Q112) - 1)","v":0},{"$f":" MAX(0, SUM(R110:R112) - 1)","v":0},{"$f":" MAX(0, SUM(S110:S112) - 1)","v":0},0]
[null,null,null,null,"Overlapping in periods - total",{"$f":" SUM(J113:T113)","v":0},"periods"]
[]
[null,null,null,null,{"$f":" E$11","v":"Model column total"},{"$f":" F$11","v":11},{"$f":" G$11","v":"columns"}]
[null,null,null,null,{"$f":" E$114","v":"Overlapping in periods - total"},{"$f":" F$114","v":0},{"$f":" G$114","v":"periods"}]
[null,null,null,null,{"$f":" E$66","v":"Pre-forecast period flag - total"},{"$f":" F$66","v":2},{"$f":" G$66","v":"periods"}]
[null,null,null,null,{"$f":" E$54","v":"Total number of forecast periods "},{"$f":" F$54","v":5},{"$f":" G$54","v":"periods"}]
[null,null,null,null,{"$f":" E$78","v":"Post-forecast period - total"},{"$f":" F$78","v":4},{"$f":" G$78","v":"periods"}]
[null,null,null,null,"Modelling period check",{"$f":" IF(SUM(F116:F117) - SUM(F118:F120) <> 0, 1, 0)","v":0},"check"]
[]
[]
["FINANCIAL YEAR"]
[]
[null,null,null,null,{"$f":"InpActive!E15","v":"First modelling column financial year #"},{"$f":"InpActive!F15","v":2019},{"$f":"InpActive!G15","v":"year #"}]
[null,null,null,null,{"$f":"InpActive!E16","v":"Financial year end month number #"},{"$f":"InpActive!F16","v":3},{"$f":"InpActive!G16","v":"month #"}]
[null,null,null,null,{"$f":" E$25","v":"Model period ending"},"00:00:00","date","00:00:00","00:00:00","2019-03-31","2020-03-31","2021-03-31","2022-03-31","2023-03-31","2024-03-31","2025-03-31","2026-03-31","2027-03-31","2028-03-31","2029-03-31"]
[null,null,null,null,{"$f":" E$14","v":"1st model column flag"},0,"flag",1,0,1,0,0,0,0,0,0,0,0,0,0]
[null,null,null,null,"Financial year ending",null,"year #",null,null,{"$f":" IF(J129 = 1, $F126, IF(J128 > (DATE(I130, $F127 + 1, 1) - 1), I130 + 1, I130))","v":2019},{"$f":" IF(K129 = 1, $F126, IF(K128 > (DATE(J130, $F127 + 1, 1) - 1), J130 + 1, J130))","v":2020},{"$f":" IF(L129 = 1, $F126, IF(L128 > (DATE(K130, $F127 + 1, 1) - 1), K130 + 1, K130))","v":2021},{"$f":" IF(M129 = 1, $F126, IF(M128 > (DATE(L130, $F127 + 1, 1) - 1), L130 + 1, L130))","v":2022},2023,2024,{"$f":" IF(P129 = 1, $F126, IF(P128 > (DATE(O130, $F127 + 1, 1) - 1), O130 + 1, O130))","v":2025},{"$f":" IF(Q129 = 1, $F126, IF(Q128 > (DATE(P130, $F127 + 1, 1) - 1), P130 + 1, P130))","v":2026},{"$f":" IF(R129 = 1, $F126, IF(R128 > (DATE(Q130, $F127 + 1, 1) - 1), Q130 + 1, Q130))","v":2027},{"$f":" IF(S129 = 1, $F126, IF(S128 > (DATE(R130, $F127 + 1, 1) - 1), R130 + 1, R130))","v":2028},2029]
[]
[]
["End of sheet"]

{"sheet":"WINEP_Inputs","index":7,"n_rows":156,"n_cols":105,"rows_kept":156,"cut":false,"hidden":false,"merged":[[1,18,1,19],[2,102,2,104]]}
["WINEP3  Update March 2019",null,null,null,null,null,null,"National Full data set "]
[null,null,null,null,null,null,null,null,null,null,null,null,null,null,null,null,null,null,null,null,null,null,null,null,null,null,null,null,null,null,null,null,null,null,"FBG Detail"]
["Draft determination published version",null,null,null,null,null,null,null,null,null,null,null,null,null,null,null,null,null,null,null,null,null,null,null,null,null,null,null,null,null,null,null,null,null,"SSSI/N2K/Ramsar",null,null,null,null,"Eels",null,"NERC Driver",null,null,null,null,null,null,null,"INNS",null,"MCZ","Water Quality Detail",null,null,null,null,null,null,null,null,null,null,null,null,null,null,null,null,null,null,null,null,null,null,"Water Resource Detail",null,null,null,null,null,null,null,null,null,"Environmental Outcome ",null,null,null,null,null,null,null,null,null,"WINEP model inputs",null,null,null,null,null,null,"Published model review and amendments "]
["WINEPID","Change Log Winep 2 to 3  ","NEW Column. Has an alteration to this measure been made? If Y then please refer to alterations log. ","Application in determination by NPS?","Has a permit been issued?","Function","RBD","Area","Water Company ","Unique ID *   (completed on company collation)","Scheme Name/Name of Investigation/Site Name/Licence name","Name of Waterbody","Waterbody ID","Water Body Type(s)","WFD Operational Catchment","Blank Column","Blank Column","Blank Column","Driver Code \n(Primary)","Further Driver Code Information \n(related to the primary driver if applicable)","Driver Code \n(Secondary)","Further Driver Code Information \n(related to the secondary driver if applicable)","Driver Code\n(Tertiary)","Further Driver Code Information \n(related to the tertiary driver if applicable)","Measure Type","Completion Date (DD/MM/YY)","Level of Certainty? (P= Purple, R=Red, A=Amber, G=Green","Abstraction Licence/ Permit, Obstruction ID or No Obstruction ID","Eastings","Northings","Investigation Type","Investigation Scope","Implementation Scope","Groundwater Measures Information","Name of SSSI \n(if applicable)","Name of N2K/Ramsar site \n(if applicable)","SSSI/N2K/Ramsar Unit ID","SSSI/N2K/Ramsar Area of Unit (Hectares)","Justification for Action/Investigation","Eel Priority Status","Eel Improvement Type ","Primary Type of Priority Habitat Created or Restored/Improved","Secondary Type of Priority Habitat Created or Restored/Improved","Other Priority Habitat Created or Restored/Improved","Type of Action Taken","Units Recorded (Hectare or km)","Number of Hectares or Kms","Name of Priority Species","Name of High Risk of Extinction Species","INNS Control Measure","INNS Species \n(if applicable)","Name of MCZ","Name of Bathing Water \n(where applicable)","Name of Shellfish Water \n(where applicable)","Chemical of Interest \n(for chemicals measures only)","Groundwater Chemicals","Drinking Water Inspectorate - Undertaking or Notice \nY/N","DrWPA Substances at Risk\n(if applicable)","Safeguard Zone Name \n(if applicable)","Safeguard Zone ID \n(if applicable)","Population Equivalent for STWs ","Current Permit Limit (mg/l)","Proposed Permit Limit (mg/l)","Proposed Iron or Aluminium Limits \n(for Phosphorus measures only)","Current DWF (m3/d)","Proposed DWF (m3/d) \n(if applicable)","Proposed Permit Limit Other","Catchment Measure Actions ","Unsustainable Abstraction System Code","Linked Groundwater Body Name","Linked Groundwater Body ID","Licence Category","Water Resource Zone \n(WRZ)","WR HMWB Flag  \n(X)","Scheme Relates to Following Missing Mitigation Measures \n(HMWB only)","Annual Licence Volume (Ml/a)","Daily Licence Volume (Ml/d)","Aggregate Licence (x)","Sustainability Change (to Annual Licence Volume) \nMl/a","Sustainability Change (to Daily Licence Volume) \nMl/d","Sustainability Change (to HoF Condition) \nMl/d","*NEW* \nWater returned to the environment (Reduction in actual abstraction) ML/d","New Annual Licence Volume \n(Ml/a)","New Daily Licence Volume \n(Ml/d)","New HoF Condition \n(Ml/d)","Quantitative\nKm River Length Improved or Protected ","Quantitative\nArea (km2) Improved or Protected","Volume (Ml/yr) Drinking Water Protected","Hectares of Designated Site (HD/RAMSAR/\nSSSI) Restored or Improved","*NEW* \nINNS ,No Det outcome - Km2 of land with reduced risk of INNS","Delivers Additional FCERM Benefits \n(Y/N)","Delivers on Salmon 5-Point Action Plan","Additional Comments","CPS Reference","Flow Categorisation\n1= PR19 Synergy\n2= WFD failure\n3= Neither","Allowed totex unit rate","Quantity proposed in PR19 FD","Quantity Delivered","1 = In PR19, funded\n0 = In PR19, not funded","Price Control","Unit","Unit Conversion to £m","Water company comment with POST DD Company UpDate Comment in RED","April 2024- Ofwat review and/or amend comment (individual cell amends in purple)","Post DD  Funding clawback"]
["YOR00025","Changed",null,null,null,"WR","Humber","Yorkshire","Yorkshire Water Service Ltd","7YW100089","Little Don Catchment Scheme","Langsett Reservoir","GB30432034","Lake","Don Upper",null,null,null,"WFD_IMP_WRHMWB",null,null,null,null,null,"Sustainability Change","2024-12-22","Amber","2/27/05/032",421253,400361,null,null,"This scheme relates to implementation of Mitigation Measure (MM)5 at Langsett Reservoir which lies in waterbody GB104027057460. The MM assessment determined that MM5 was not in place. The scheme will include: ecological monitoring, civils work to introduce a new compensation release from Langsett Reservoir, post scheme monitoring and licence variation. The wider 'Little Don Catchment Scheme will look at rebalancing flows between Langsett, Midhope and Underbank Reservoirs. ",null,null,null,null,null,null,null,null,null,null,null,null,null,null,"",null,null,null,null,null,null,null,null,null,null,null,null,null,null,null,null,null,null,null,null,null,null,"","Sustainable","Grid SWZ","X",5,17155,null,"X",null,1.5,null,null,null,null,null,3.05,null,null,null,null,null,null,"This scheme is to introduce a new compensation release and is not a change to the existing abstraction volume.",null,null,80760,3.05,3.05,1,"WR","£ per km LORI",9.9999999999999995E-7]
["YOR00029","Changed",null,null,null,"WR","Humber","Yorkshire","Yorkshire Water Service Ltd","7YW100091","Winscar  Catchment Scheme","Winscar Reservoir","GB30431876","Lake","Don Upper",null,null,null,"WFD_IMP_WRHMWB",null,null,null,null,null,"Sustainability Change","2024-12-22","Amber","2/27/05/026",415431,402472,null,null,"Winscar Reservoir lies in GB104027057500. The Winscar Catchment Scheme will address MM5. This is likely to be addressed by introducing a compensation release from Winscar Reservoir. The compensation flows from Winscar and Windleden Lower Reservoirs will be assessed together as well as the change to the maintained flow at Dunford Bridge. ",null,null,null,null,null,null,null,null,null,null,null,null,null,null,"",null,null,null,null,null,null,null,null,null,null,null,null,null,null,null,null,null,null,null,null,null,null,"","Sustainable","Grid SWZ","X",5,10140,null,"X",null,0,null,null,null,null,null,11.25,null,null,null,null,null,null,"This is a change to the existing compensation release and not a change to the abstraction volume. The sustainability change has been modelled in combination with a change to the maintained flow at Dunford Bridge and the new compensation arrangements at Langsett, Dale Dike and the R. Burn/Leighton. As a result the individual yield loss is zero. ",null,null,80760,11.25,11.25,1,"WR","£ per km LORI",9.9999999999999995E-7,null,null,""]
["YOR00033","Changed",null,null,null,"WR","Humber","Yorkshire","Yorkshire Water Service Ltd","7YW100093","Agden  River Restoration Scheme","Agden Reservoir","GB30432352","Lake","Don Upper",null,null,null,"WFD_IMP_WRHMWB",null,null,null,null,null,"Land Management/ Habitat Restoration/ Physical Improvement","2024-12-22","Amber","2/27/05/030",425875,392216,null,null,"The Agden River Restoration Scheme will address MM6 downstream of Agden reservoir (which lies in waterbody GB104027057390). The scheme will include ecological monitoring and geomorphological suverys, the input of technical expertise and partnership working to enable the implementation of targeted river restoration measures.",null,null,null,null,null,null,null,null,null,null,null,null,null,null,"",null,null,null,null,null,null,null,null,null,null,null,null,null,null,null,null,null,null,null,null,null,null,"",null,"Grid SWZ","X",6,12410,null,"X",null,null,null,null,null,null,null,0.44,null,null,null,null,null,null,null,null,null,80760,0.44,0.44,1,"WR","£ per km LORI",9.9999999999999995E-7,null,null,""]
["YOR00042","Changed",null,null,null,"WR","Humber","Yorkshire","Yorkshire Water Service Ltd","7YW100098","River Burn Catchment Scheme","Burn from Source to Leighton Beck","GB104027069300","River","Ure Middle and Lower",null,null,null,"WFD_IMP_WRHMWB",null,null,null,null,null,"Sustainability Change","2024-12-22","Amber","2/27/22/209",413395,481150,null,null,"The River Burn Catchment Scheme covers two water bodies. The scheme is likely to include the implementation of a HOF on the River Burn intake to address the water body deficit, a fish pass to address MM4 and to introduce a seasonal compensation release out of Leighton Reservoir to address MM5. It will include ecological monitoring, flow gauging and water qaulity sampling. Licences will varied with new the compensation release and HOF condition,.  ",null,null,null,null,null,null,null,null,null,null,null,null,null,null,"",null,null,null,null,null,null,null,null,null,null,null,null,null,null,null,null,null,null,null,null,null,null,"",1,"Grid SWZ","X",5,6400,null,null,null,null,0,null,null,null,5,4.84,null,null,null,null,null,null,"Current HOF needs changing to protect ecology and remove flow deficit. The sustainability change has been modelled in combination with a change to the maintained flow at Dunford Bridge, and the new compensation arrangements at Langsett,Winscar and Dale Dike. As a result the individual yield loss is zero. Updated flow classification data has changed this water body from Actual Serious Damage to Risk of Serious Damage. ",null,null,80760,6.49,6.49,1,"WR","£ per km LORI",9.9999999999999995E-7,"RESTORE#YOR00042 is still live in WINEP and will not be removed ( error casued by shared ID 7YW100098)","EA confirm (March 2024) deleted from PR19 WINEP therefore column CT amended from 6.49 to 0.","Restore to In Amp Delivery"]
["YOR00044","Changed",null,null,null,"WR","Humber","Yorkshire","Yorkshire Water Service Ltd","7YW100098","River Burn Catchment Scheme","Leighton Reservoir","GB30429612","Lake","Ure Middle and Lower",null,null,null,"WFD_IMP_WRHMWB",null,null,null,null,null,"Sustainability Change","2024-12-22","Amber","2/27/22/210",416256,479051,null,null,"The River Burn Catchment Scheme covers two water bodies. Leighton Reservoir lies in waterbody GB104027069270. The scheme is likely to include the implementation of a HOF on the River Burn intake to address the water body deficit, a fish pass to address MM4 and to introduce a seasonal compensation release out of Leighton Reservoir to address MM5. It will include ecological monitoring, flow gauging and water quality sampling. Licences will  varied with new the compensation release and HOF condition,.  ",null,null,null,null,null,null,null,null,null,null,null,null,null,null,"",null,null,null,null,null,null,null,null,null,null,null,null,null,null,null,null,null,null,null,null,null,null,"",null,"Grid SWZ","X",5,null,null,null,null,null,null,null,null,null,null,1.65,null,null,null,null,null,null,"Change to current compensation release from flat line to seasonal profile. Profiled using existing compensation release 'pot' so no additional resource required. ",null,null,80760,6.49,6.49,1,"WR","£ per km LORI",9.9999999999999995E-7,"RESTORE:YOR00044 is still live in WINEP and will not be removed ( error casued by shared ID 7YW100098)","EA confirm (March 2024) deleted from PR19 WINEP therefore column CT amended from 6.49 to 0.","Restore to In Amp Delivery"]
["YOR00045","Changed","Yes – alteration made",null,null,"WR","Humber","Yorkshire","Yorkshire Water Service Ltd","7YW100098","River Burn Catchment Scheme","Burn from Source to Leighton Beck","GB104027069300","River","Ure Middle and Lower",null,null,null,"WFD_IMP_WRHMWB",null,null,null,null,null,"Fish Passage","2024-12-22","Amber","2/27/22/209",413395,481150,null,null,"The River Burn Catchment Scheme covers two water bodies. The scheme is likely to include the implementation of a HOF on the River Burn intake to address the water body deficit, a fish pass to address MM4 and to introduce a seasonal compensation release out of Leighton Reservoir to address MM5. It will include ecological monitoring, flow gauging and water quality sampling. Licences will varied with new the compensation release and HOF condition,.  ",null,null,null,null,null,null,null,null,null,null,null,null,null,null,"",null,null,null,null,null,null,null,null,null,null,null,null,null,null,null,null,null,null,null,null,null,null,"",null,"Grid SWZ","X",4,null,null,null,null,null,null,null,null,null,null,13.56,null,null,null,null,null,null,"The fish pass scheme will be considered along side the flow scheme for the River Burn. ",null,null,80760,6.49,0,1,"WR","£ per km LORI",9.9999999999999995E-7,"REMOVAL: YW Confirm Removal","EA confirm (March 2024) deleted from PR19 WINEP therefore column CT amended from 6.49 to 0.","Removal"]
["YOR00055","Changed",null,null,null,"WQ","Humber","Yorkshire","Yorkshire Water Service Ltd","7YW100121","HARROGATE SOUTH/STW","Crimple Beck from Park Beck to River Nidd","GB104027063742","River","Nidd Middle and Lower",null,null,null,"WFD_IMPm","Phosphorus",null,null,null,null,"Continuous Discharge","2024-12-22","Amber","QR.27/21/0048",437870,451620,null,null,null,null,null,null,null,null,null,null,null,null,null,null,null,null,null,null,null,null,null,null,null,null,null,null,null,null,null,null,36729.800000000003,null,"0.4mg/l average","4000ug/l Fe 95%ile","9800m³/d",null,"8000ug/l  Fe Upper Tier ",null,null,null,"",null,null,null,null,null,null,null,null,null,null,null,null,null,"N/A",4.5,null,null,null,null,null,null,"Works identified for both WFD and SAe drivers.  WFD limit is concluded to be cost beneficial.  2 kilometres improved from Bad to Moderate and 2.5 kilometres improved from Poor to Moderate status. Total 4.5km in river length improvement.","*",null,778365,4.4529999999999994,4.4529999999999994,1,"WWN","£ per km LORI",9.9999999999999995E-7,"Dual P Driver Site -LORI assigned to WFd_IMP Driver",null,""]
["YOR00059","Changed",null,null,null,"WQ","Humber","Yorkshire","Yorkshire Water Service Ltd","7YW100125","OWLWOOD (GARFORTH) STW","Lin Dike from Source to River Aire","GB104027062810","River","Aire Lower",null,null,null,"WFD_IMPm","Phosphorus",null,null,null,null,"Continuous Discharge","2024-12-22","Amber",2225,441750,428790,null,null,null,null,null,null,null,null,null,null,null,null,null,null,null,null,null,null,null,null,null,null,null,null,null,null,null,null,null,null,39030.800000000003,null,"0.25mg/l average","4000ug/l Fe 95%ile","8801m³/d",null,"8000ug/l  Fe Upper Tier ",null,null,null,"",null,null,null,null,null,null,null,null,null,null,null,null,null,"N/A",3.3,null,null,null,null,null,null,"Works identified for both WFD and SAe drivers.  WFD limit is concluded to be cost beneficial. 3.3 kilometres improved from Bad to Moderate.","*",null,778365,10.028000000000002,10.028000000000002,1,"WWN","£ per km LORI",9.9999999999999995E-7,"Dual P Driver Site -LORI assigned to WFd_IMP Driver",null,""]
["YOR00060","Changed",null,null,null,"WQ","Humber","Yorkshire","Yorkshire Water Service Ltd","7YW100126","DRONFIELD/STW","Drone/Whitting from Source to River Rother","GB104027057710","River","Rother and Doe Lea",null,null,null,"WFD_IMPm","Phosphorus",null,null,null,null,"Continuous Discharge","2024-12-22","Amber","1863",436750,377810,null,null,null,null,null,null,null,null,null,null,null,null,null,null,null,null,null,null,null,null,null,null,null,null,null,null,null,null,null,null,21779,null,"0.3mg/l average","4000ug/l Fe 95%ile","5500m³/d",null,"8000ug/l  Fe Upper Tier ",null,null,null,"",null,null,null,null,null,null,null,null,null,null,null,null,null,"N/A",6.8,null,null,null,null,null,null,"Works identified for both WFD and SAe drivers.  WFD limit is concluded to be cost beneficial. 2.7 kilometres improved from Bad to Mod and 4.1 kilometres improved from Poor to Moderate status. Total 6.8km in river length improvement.","*",null,778365,7.8539999999999992,7.8539999999999992,1,"WWN","£ per km LORI",9.9999999999999995E-7,"Dual P Driver Site -LORI assigned to WFd_IMP Driver",null,""]
["YOR00062","Changed",null,null,null,"WQ","Humber","Yorkshire","Yorkshire Water Service Ltd","7YW100128","DANESMOOR/STW","Rother from Source to Redleadmill Brook","GB104027052280","River","Rother and Doe Lea",null,null,null,"WFD_IMPm","Phosphorus",null,null,null,null,"Continuous Discharge","2024-12-22","Amber","2138",44074,36300,null,null,null,null,null,null,null,null,null,null,null,null,null,null,null,null,null,null,null,null,null,null,null,null,null,null,null,null,null,null,6669.6,null,"0.4mg/l average","4000ug/l Fe 95%ile","1392m³/d",null,"8000ug/l  Fe Upper Tier ",null,null,null,"",null,null,null,null,null,null,null,null,null,null,null,null,null,"N/A",7.9,null,null,null,null,null,null,"Cost beneficial scheme. 3 kilometres improved from Poor to Good status and 4.2 kilometres improved from Poor to Moderate status and 0.7 kilometres improved from Bad to Moderate. Total 4.9km in river length improvement.","*",null,276351,4.8639999999999999,4.8639999999999999,1,"WWN","£ per km LORI",9.9999999999999995E-7,"Single WFD_IMP Driver For P",null,""]
["YOR00063","Changed","Yes – alteration made",null,null,"WQ","Humber","Yorkshire","Yorkshire Water Service Ltd","7YW100129","TUPTON/STW","Redleadmill Brook","GB104027057620","River","Rother and Doe Lea",null,null,null,"WFD_IMPm","Phosphorus",null,null,null,null,"Continuous Discharge","2024-12-22","Amber","3139(SS)",439820,366810,null,null,null,null,null,null,null,null,null,null,null,null,null,null,null,null,null,null,null,null,null,null,null,null,null,null,null,null,null,null,11012,null,"0.25mg/l average","4000ug/l Fe 95%ile","2641m³/d",null,"8000ug/l  Fe Upper Tier ",null,null,null,"",null,null,null,null,null,null,null,null,null,null,null,null,null,"N/A",7.9,null,null,null,null,null,null,"Works identified for both WFD and SAe drivers.  WFD limit is concluded to be cost beneficial. 3 kilometres improved from Poor to Good status and 4.2 kilometres improved from Poor to Moderate status and 0.7 kilometres improved from Bad to Mod. Total 7.9km in river length improvement.","*",null,778365,10.223000000000001,0,1,"WWN","£ per km LORI",9.9999999999999995E-7,"DEFERRAL NEW -YW have submitted deferral to 30 June 2025 due to the new need to relocate a badger sett at the site.Quantity Delivered set to ZERO",null,"Carry over"]
["YOR00065","Changed",null,null,null,"WQ","Humber","Yorkshire","Yorkshire Water Service Ltd","7YW100131","ACKWORTH/STW","Went from Hoyle Mill Stream to Blowell Drain","GB104027063360","River","Don Lower",null,null,null,"WFD_IMPg","Phosphorus",null,null,null,null,"Continuous Discharge","2024-12-22","Amber",430,446630,416680,null,null,null,null,null,null,null,null,null,null,null,null,null,null,null,null,null,null,null,null,null,null,null,null,null,null,null,null,null,null,9301,null,"0.5mg/l average","4000ug/l Fe 95%ile","2331m³/d",null,"8000ug/l  Fe Upper Tier ",null,null,null,"",null,null,null,null,null,null,null,null,null,null,null,null,null,"N/A",10.1,null,null,null,null,null,null,"Cost beneficial scheme. 8.1 kilometres improved from Poor to Good status and 2 kilometres improved from Poor to Moderate status. Total 10.1km in river length improvement.","*",null,276351,1.5829999999999984,1.5829999999999984,1,"WWN","£ per km LORI",9.9999999999999995E-7,"Single WFD_IMP Driver For P",null,""]
["YOR00066","Changed",null,null,null,"WQ","Humber","Yorkshire","Yorkshire Water Service Ltd","7YW100132","CARLETON/NO 2 STW","Went from Hoyle Mill Stream to Blowell Drain","GB104027063360","River","Don Lower",null,null,null,"WFD_IMPm","Phosphorus",null,null,null,null,"Continuous Discharge","2024-12-22","Amber",381,446370,419260,null,null,null,null,null,null,null,null,null,null,null,null,null,null,null,null,null,null,null,null,null,null,null,null,null,null,null,null,null,null,6519,null,"0.25mg/l average","2819ug/l Fe 95%ile","1418m³/d",null,"8000ug/l  Fe Upper Tier ",null,null,null,"",null,null,null,null,null,null,null,null,null,null,null,null,null,"N/A",3.2,null,null,null,null,null,null,"Cost beneficial scheme. 3.2 kilometres improved from Bad to Moderate","*",null,276351,10.102999999999998,10.102999999999998,1,"WWN","£ per km LORI",9.9999999999999995E-7,"Single WFD_IMP Driver For P",null,""]
["YOR00067","Changed",null,null,null,"WQ","Humber","Yorkshire","Yorkshire Water Service Ltd","7YW100133","NORTON (ASKERN) WwTW","Went from Hoyle Mill Stream to Blowell Drain","GB104027063360","River","Don Lower",null,null,null,"WFD_IMPg","Phosphorus",null,null,null,null,"Continuous Discharge","2024-12-22","Amber","3816(SS)",454900,416200,null,null,null,null,null,null,null,null,null,null,null,null,null,null,null,null,null,null,null,null,null,null,null,null,null,null,null,null,null,null,9866.2000000000007,null,"0.25mg/l average","4000ug/l Fe 95%ile","4004m³/d",null,"8000ug/l  Fe Upper Tier ",null,null,null,"",null,null,null,null,null,null,null,null,null,null,null,null,null,null,10.1,null,null,null,null,null,null,"Works identified for both WFD and SAe drivers.  WFD limit is concluded to be cost beneficial. 8.1 kilometres improved from Poor to Good status and 2 kilometres improved from Poor to Moderate status. ","*",null,778365,13.8,13.8,1,"WWN","£ per km LORI",9.9999999999999995E-7,"Dual P Driver Site -LORI assigned to WFd_IMP Driver",null,""]
["EMD00773","Changed",null,null,null,"WQ","Humber","East Midlands","Yorkshire Water Service Ltd","7YW200005","BALBY (STW)","Mother Drain from Source to Torne","GB104028058440","River","Isle of Axholme",null,null,null,"WFD_IMPg","Phosphorus",null,null,null,null,"Continuous Discharge","2024-12-22","Amber","T/83/45405/R",458063,401770,null,null,null,null,null,null,null,null,null,null,null,null,null,null,null,null,null,null,null,null,null,null,null,null,null,null,null,null,null,null,17202,null,0.25,null,6200,null,null,null,null,null,"",null,null,null,null,null,null,null,null,null,null,null,null,null,null,6.9,null,null,null,null,null,null,null,null,null,276351,0,0,1,"WWN","£ per km LORI",9.9999999999999995E-7,"Single WFD_IMP Driver For P. No claimed LORI - outside YW model area",null,""]
["EMD00812","Changed",null,null,null,"WQ","Humber","East Midlands","Yorkshire Water Service Ltd","7YW200006","HATFIELD WOODHOUSE (STW)","Hatfield Waste Drain Catchment (trib of Torne/Three Rivers)","GB104028064330","River","Isle of Axholme",null,null,null,"WFD_IMPg","Phosphorus",null,null,null,null,"Continuous Discharge","2024-12-22","Amber","T/83/45453/R",468570,408164,null,null,null,null,null,null,null,null,null,null,null,null,null,null,null,null,null,null,null,null,null,null,null,null,null,null,null,null,null,null,516,null,0.3,"4000 (8000)",103,null,null,null,null,null,"",null,null,null,null,null,null,null,null,null,null,null,null,null,null,12,null,null,null,null,null,null,null,null,null,276351,0,0,1,"WWN","£ per km LORI",9.9999999999999995E-7,"Single WFD_IMP Driver For P with ammonia. No claimed LORI as outside YW model area.Also design change post FD from on site scheme to  closure and transfer scheme",null,""]
["EMD00813","Changed",null,null,null,"WQ","Humber","East Midlands","Yorkshire Water Service Ltd","7YW200007","HATFIELD WOODHOUSE (STW)","Hatfield Waste Drain Catchment (trib of Torne/Three Rivers)","GB104028064330","River","Isle of Axholme",null,null,null,"WFD_IMPg","Ammonia",null,null,null,null,"Continuous Discharge","2024-12-22","Amber","T/83/45453/R",468570,408164,null,null,null,null,null,null,null,null,null,null,null,null,null,null,null,null,null,null,null,null,null,null,null,null,null,null,null,null,null,null,516,10,"2 (12)",null,103,null,null,null,null,null,"",null,null,null,null,null,null,null,null,null,null,null,null,null,null,14.9,null,null,null,null,null,null,"May relax to 3mg/l if demonstrated that Final Effluent shows a Non Parametric Distribution ",null,null,276351,0,0,1,"WWN","£ per km LORI",9.9999999999999995E-7,"Single WFD_IMP Driver For P with ammonia. No claimed LORI - outside YW model area",null,""]
["YOR00112","Changed",null,null,null,"WR","Humber","Yorkshire","Yorkshire Water Service Ltd","7YW200060","Grimwith Sediment Scheme","Barben Beck/River Dibb Catchment (trib of Wharfe)","GB104027064120","River","Wharfe Upper",null,null,null,"WFD_IMP_WRHMWB","Land Management / Physical Improvement",null,null,null,null,"Land Management/ Habitat Restoration/ Physical Improvement","2024-12-22","Amber",null,405740,463906,null,null,"The scheme will address sediment mitigation measures on a stretch of watercourse downstream of Grimwith reservoir where the banks of the river have been straightened and lined with large boulders, preventing natural erosional processes. ",null,null,null,null,null,null,null,null,null,null,null,null,null,null,null,null,null,null,null,null,null,null,null,null,null,null,null,null,null,null,null,null,null,null,null,null,null,"",null,"Grid SWZ","x","7, 8",null,null,null,null,null,null,null,null,null,null,5.1100000000000003,null,null,null,null,null,null,"Scheme is subject to the outcome of the Grimwith Reservoir flow trial. ",null,null,80760,5.1100000000000003,5.1100000000000003,1,"WR","£ per km LORI",9.9999999999999995E-7,null,null,""]
["YOR00115","Changed","Yes – alteration made",null,null,"FBG","Humber","Yorkshire","Yorkshire Water Service Ltd","7YW200063","Airebank Mills Fish Passage","Aire from Otterburn Beck to Eshton Beck","GB104027063050","River","Aire Upper",null,null,null,"WFD_IMP_FISH",null,null,null,null,null,"Fish Passage","2024-12-22","Amber",null,394138,453944,null,null,"This scheme has been included to improve fish passage for salmonids up to Gargrave. Gargrave is target for initial salmon recovery on the River Aire. ",null,null,null,null,null,null,null,null,null,null,null,null,null,null,null,null,null,null,null,null,null,null,null,null,null,null,null,null,null,null,null,null,null,null,null,null,null,"",null,"Grid SWZ",null,null,null,null,null,null,null,null,null,null,null,null,4.5,null,null,null,null,null,"Recovering Salmon River","This scheme is cost beneficial within the bundle of measures. The bundle of measures includes Systergenix weir (not a YWS asset). Once fish passage at Systergenix has been achieved the actual LORI will be 4.5km",null,null,37745,4.5,4.5,1,"WR","£ per km LORI",9.9999999999999995E-7,null,null,""]
["YOR00116","Changed",null,null,null,"FBG","Humber","Yorkshire","Yorkshire Water Service Ltd","7YW200064","Cheesebottom Weir Fish Passage","Don from Scout Dyke to the Little Don","GB104027057490","River","Don Upper",null,null,null,"WFD_IMP_FISH",null,null,null,null,null,"Fish Passage","2024-12-22","Amber",null,427908,400642,null,null,"This weir is within the second phase for salmon restoration on the River Don (the first phase is almost complete). The fish passage scheme will improve fish passage for Atlantic Salmon and brown trout. ",null,null,null,null,null,null,null,null,null,null,null,null,null,null,null,null,null,null,null,null,null,null,null,null,null,null,null,null,null,null,null,null,null,null,null,null,null,"",null,"Grid SWZ",null,null,null,null,null,null,null,null,null,null,null,null,9.5,null,null,null,null,null,"Recovering Salmon River"," There is a hydropower site located on the opposite bank which may limit the options for fish passage. ",null,null,37745,9.5,9.5,1,"WR","£ per km LORI",9.9999999999999995E-7,null,null,""]
["YOR00122","Changed",null,null,null,"FBG","Humber","Yorkshire","Yorkshire Water Service Ltd","7YW200070","Cononley Weir Fish Passage","Aire (Eshton Beck to R Worth)","GB104027063033","River","Aire Upper",null,null,null,"WFD_IMP_FISH",null,null,null,null,null,"Fish Passage","2024-12-22","Amber",null,399495,446773,null,null,"The waterbody is currently failing for mulitiple species and lower densities of brown trout. Addressing fish passage at the site will help to improve the fish status of the waterbody. The site comprises of five small weirs. The scheme will include options appraisal and implementation of a fish passage solution. ",null,null,null,null,null,null,null,null,null,null,null,null,null,null,null,null,null,null,null,null,null,null,null,null,null,null,null,null,null,null,null,null,null,null,null,null,null,"",null,"Grid SWZ",null,null,null,null,null,null,null,null,null,null,null,null,45.54,null,null,null,null,null,null,null,null,null,37745,45.54,0,1,"WR","£ per km LORI",9.9999999999999995E-7,"REMOVAL: YW Confirm Removal","EA confirm (March 2024) deleted from PR19 WINEP therefore column CT amended from 45.54 to 0.","Removal"]
["YOR00123","Changed","Yes – alteration made",null,null,"FBG","Humber","Yorkshire","Yorkshire Water Service Ltd","7YW200071","Farnley Beck Fish Passage","Low/Wortley/Pudsey Bks","GB104027062830","River","Aire Lower",null,null,null,"WFD_IMP_FISH",null,null,null,null,null,"Fish Passage","2024-12-22","Amber",null,425339,433023,null,null,"Scheme to address fish passage. The waterbody is currently failing for mulitiple species and lower densities of brown trout.",null,null,null,null,null,null,null,null,null,null,null,null,null,null,null,null,null,null,null,null,null,null,null,null,null,null,null,null,null,null,null,null,null,null,null,null,null,"",null,null,null,null,null,null,null,null,null,null,null,null,null,null,3.29,null,null,null,null,null,null,null,null,null,37745,3.29,0,1,"WR","£ per km LORI",9.9999999999999995E-7,"REMOVAL: YW Confirm Removal","EA confirm (March 2024) deleted from PR19 WINEP therefore column CT amended from 3.29 to 0.","Removal"]
["YOR00124","Changed","Yes – alteration made",null,null,"WR","Humber","Yorkshire","Yorkshire Water Service Ltd","7YW200072","Schole Hill Fish Passage","Don from Source to Scout Dyke","GB104027057500","River","Don Upper",null,null,null,"WFD_IMP_WRHMWB",null,null,null,null,null,"Fish Passage","2024-12-22","Amber",null,422580,403143,null,null,"Scheme to improve fish passage. Site lies downstream of Harden, Windleden and Winscar Reservoirs.WB failing for minor species and to an extent grayling. It is anticipated that a low cost solution will be suitable at this location. ",null,null,null,null,null,null,null,null,null,null,null,null,null,null,null,null,null,null,null,null,null,null,null,null,null,null,null,null,null,null,null,null,null,null,null,null,null,"",null,"Grid SWZ","x",1,null,null,null,null,null,null,null,null,null,null,0.78,null,null,null,null,null,null,null,null,null,80760,0.78,0.78,1,"WR","£ per km LORI",9.9999999999999995E-7,null,null,""]
["YOR00125","Changed","Yes – alteration made",null,null,"FBG","Humber","Yorkshire","Yorkshire Water Service Ltd","7YW200073","Watson Mill Fish Passage","Ryburn from Booth Dean Clough to R Calder","GB104027062580","River","Calder Middle",null,null,null,"WFD_IMP_FISH",null,null,null,null,null,"Fish Passage","2024-12-22","Amber",null,405809,423222,null,null,"Scheme to improve fish passage. WB failing for minor species. It is anticipated that a low cost solution will be suitable at this location. ",null,null,null,null,null,null,null,null,null,null,null,null,null,null,null,null,null,null,null,null,null,null,null,null,null,null,null,null,null,null,null,null,null,null,null,null,null,"",null,null,null,null,null,null,null,null,null,null,null,null,null,null,0.94,null,null,null,null,null,null,null,null,null,37745,0.94,0.94,1,"WR","£ per km LORI",9.9999999999999995E-7,null,null,""]
["YOR01523","Changed",null,null,null,"WQ","Humber","Yorkshire","Yorkshire Water Service Ltd","7YW200635","SOUTH ELMSALL/STW 6X","Ea Beck from Frickley Beck to the Skell","GB104027063200","River","Don Lower",null,null,null,"WFD_IMPg","Biochemical Oxygen Demand / Dissolved Oxygen",null,null,null,null,"Intermittent Discharge","2024-12-22","Amber","WRA7507 schedule 4",448250,410650,null,null,null,null,null,null,null,null,null,null,null,null,null,null,null,null,null,null,null,null,null,null,null,null,null,null,null,null,null,null,35231.1,"15mg/l",null,null,"9800m³/d",null,"10,000m³",null,null,null,null,null,null,null,null,null,null,null,null,null,null,null,null,null,null,2.25,null,null,null,null,null,null,"FIS, 10,000m³ storage on storm discharge","*",null,590,10000,10000,1,"WWN","£ per m3",9.9999999999999995E-7,"Propose to change delivery date to 31/03/25",null,""]
["YOR00693","Changed","Yes – alteration made",null,null,"WQ","Humber","Yorkshire","Yorkshire Water Service Ltd","7YW200637","BENTLEY/STW FE transfer to NGR 458119 405197","Bentley Mill Stream","GB104027057541","River","Don Lower",null,null,null,"WFD_IMPg","Ammonia","WFD_IMPg","Biochemical Oxygen Demand / Dissolved Oxygen",null,null,"Continuous Discharge","2024-12-22","Amber","1978 schedule 1",457130,405720,null,null,null,null,null,null,null,null,null,null,null,null,null,null,null,null,null,null,null,null,null,null,null,null,null,null,null,null,null,null,20936,null,"1mg/l",null,"5046m³/d",null,null,null,null,null,"",null,null,null,null,null,null,null,null,null,null,null,null,null,null,1.3,null,null,null,null,null,null,"Relocate Bentley STW FE to the R.Don . \nProposed 1mg/l would be required if transfer scheme was not able to be completed.This will require feasibility as part of solution delivery which may change the exact discharge location. No changes to to flow or quality conditions. Needed to meet FIS standards. If FE transfer proposal passes CBA then 1mg/l on permit not required.","*",null,2933301,0,0,1,"WWN","£ per km LORI",9.9999999999999995E-7,"Multiple drivers for Bentley Stream. No LORI to avoid double counting. LORI assigned to WFd_IMP Phosphorus Driver 7YW200867",null,""]
["YOR00694","Changed",null,null,null,"WQ","Humber","Yorkshire","Yorkshire Water Service Ltd","7YW200638","CLAYTON WEST/STW ( Storm Overflow - now wetland (FIS denotes storm oveflow )","Dearne from Bentley Brook to Cawthorne Dyke","GB104027063260","River","Dearne",null,null,null,"WFD_IMPg","Ammonia","WFD_IMPg","Biochemical Oxygen Demand / Dissolved Oxygen",null,null,"Intermittent Discharge","2024-12-22","Amber","3809(SS) / schedule 2",426780,412070,null,null,null,null,null,null,null,null,null,null,null,null,null,null,null,null,null,null,null,null,null,null,null,null,null,null,null,null,null,null,16803.8,"n/a",null,null,null,null,"8,120m³",null,null,null,"",null,null,null,null,null,null,null,null,null,null,null,null,null,null,2.0499999999999998,null,null,null,null,null,null,"FIS & 99%ile. Current storage 1120m³, additional storage 7000m³  on the settled storm, total proposed storage 8,120m³. Settled storm discharge point will not change from current NGR under then the FE transfer scheme.","*",null,2933301,2.0499999999999998,2.0499999999999998,1,"WWN","£ per km LORI",9.9999999999999995E-7,"Multiple drivers. Equivalent grey stoage volume = 7000m3. Redesigned as wetland to delvier same benefit.  No LORI to avoid double counting.","YKY model altered units and totex allowance due to action change. This action was originally part of a funded FD group with totex allowance of £2,933,301m. Therefore model inputs have been returned to reflect the FD and ensure appropriate reconciliation. Changes to cells in this line are: Cell CR31 amended from 590 to 2,933,301.  Cell CS31 amended from 7,000m3 to 2.05 (£ per km LORI sourced from column CH). Cell CT31 amended from 7,000 to 2.05 (as per column CH). Cell CW31 amended from £ per m3 to £ per km LORI. "]
["YOR00696","Changed",null,null,null,"WQ","Humber","Yorkshire","Yorkshire Water Service Ltd","7YW200640","Little Don intermittents - Huinself Rd","Little Don from Source to River Don","GB104027057460","River","Don Upper",null,null,null,"WFD_IMPg","Ammonia",null,null,null,null,"Intermittent Discharge","2024-12-22","Amber","WRA8524",427290,398460,null,null,null,null,null,null,null,null,null,null,null,null,null,null,null,null,null,null,null,null,null,null,null,null,null,null,null,null,null,null,null,null,null,null,null,null,"4,000m³",null,null,null,null,null,null,null,null,null,null,null,null,null,null,null,null,null,null,2.1,null,null,null,null,null,null,"FIS. Storage4000m^3. Provisionally attached to Huinself Road CSO but 4000m³ or equivalent network interention to provide the same water quality benefit to the Little Don.","*",null,590,4000,4000,1,"WWN","£ per m3",9.9999999999999995E-7,null,null,""]
["YOR01536","Addition",null,null,null,"WQ","Humber","Yorkshire","Yorkshire Water Service Ltd","7YW200641","Pudsey intermittents (Farnley Ring Road)","Low/Wortley/Pudsey Bks","GB104027062830","River","Aire Lower",null,null,null,"WFD_IMPg","Ammonia",null,null,null,null,"Intermittent Discharge","2024-12-22","Amber","C4966",424670,433540,null,null,null,null,null,null,null,null,null,null,null,null,null,null,null,null,null,null,null,null,null,null,null,null,null,null,null,null,null,null,null,null,null,null,null,null,"5,000m³",null,null,null,null,null,null,null,null,null,null,null,null,null,null,null,null,null,null,2.74,null,null,null,null,null,null,"Total proposed storage 5,000m³ total. Farnley Ring Road","*",null,590,5000,0,1,"WWN","£ per m3",9.9999999999999995E-7,"DEFERRAL Agree - Date Extension to 31 Mar 2027","YKY confirm in model (column CY) delivery in AMP8 year 2026/27. Therefore column CT amended from 5000 to 0.","Carry over"]
["YOR00775","Changed",null,null,null,"WQ","Humber","Yorkshire","Yorkshire Water Service Ltd","7YW200719","SHERBURN IN ELMET/STW","Upper Fox Drain Catchment ds of Sherburn STW","GB104027063610","River","Ouse Lower Yorkshire",null,null,null,"WFD_IMPg","Ammonia",null,null,null,null,"Continuous Discharge","2024-12-22","Amber","27/24/0162",452920,433420,null,null,null,null,null,null,null,null,null,null,null,null,null,null,null,null,null,null,null,null,null,null,null,null,null,null,null,null,null,null,12214,"11mg/l","1.3mg/l 95%ile",null,"3750m³/d",null,"12mg/l upper tier",null,null,null,"",null,null,null,null,null,null,null,null,null,null,null,null,null,"N/A",4.5,null,null,null,null,null,null,"New proposed limit is 1.3mg/l to improve 4.5km from Moderate to Good.","*",null,778365,0,0,1,"WWN","£ per km LORI",9.9999999999999995E-7,"Dual P Driver Site plus Ammonia-LORI assigned to WFd_IMP Driver",null,""]
["YOR00787","Changed",null,null,null,"WQ","Humber","Yorkshire","Yorkshire Water Service Ltd","7YW200731","BOLSOVER/STW","Doe Lea from Source to Hawke Brook","GB104027057290","River","Rother and Doe Lea",null,null,null,"WFD_IMPg","Ammonia",null,null,null,null,"Continuous Discharge","2024-12-22","Amber",1866,445919,370148,null,null,null,null,null,null,null,null,null,null,null,null,null,null,null,null,null,null,null,null,null,null,null,null,null,null,null,null,null,null,11810.6,"10mg/l","1mg/l 95%ile",null,"1900m³/d",null,"12mg/l upper tier",null,null,null,"",null,null,null,null,null,null,null,null,null,null,null,null,null,"N/A",4,null,null,null,null,null,null,"Cost beneficial due to No Det scheme.kilometres improved from Poor to Good status","*",null,778365,0,0,1,"WWN","£ per km LORI",9.9999999999999995E-7,"Dual P Driver Site plus Ammonia-LORI assigned to WFd_IMP Driver",null,""]
["YOR00793","Changed","Yes – alteration made",null,null,"WQ","Humber","Yorkshire","Yorkshire Water Service Ltd","7YW200737","CARTHORPE WPC WORKS","Healam Beck from Burniston Bk to River Swale","GB104027068850","River","Swale Middle",null,null,null,"WFD_IMPg","Phosphorus",null,null,null,null,"Continuous Discharge","2024-12-22","Amber","27/23/0207",432120,483610,null,null,null,null,null,null,null,null,null,null,null,null,null,null,null,null,null,null,null,null,null,null,null,null,null,null,null,null,null,null,549,null,"0.5mg/l average","4000ug/l Fe 95%ile","124m³/d",null,"8000ug/l  Fe Upper Tier ",null,null,null,"",null,null,null,null,null,null,null,null,null,null,null,null,null,"N/A",4.8,null,null,null,null,null,null,"Cost beneficial scheme. 4.8kilometres improved from Moderate to Good status","*",null,276351,4.83,4.83,1,"WWN","£ per km LORI",9.9999999999999995E-7,"RESTORE TO  In AMP Delivery -Delivery Date of 31 /3/25 now requested as no longer catchment candidate. Quantity delivered in full as anticipated","EA confirm (March 2024) delivery in AMP8 Year 27/28. Therefore column CT amended from 4.83 to 0.","Restore to In Amp Delivery"]
["YOR00799","Changed",null,null,null,"WQ","Humber","Yorkshire","Yorkshire Water Service Ltd","7YW200743","THORNTON LE BEANS","Otterington Beck catchment (trib of Wiske)","GB104027069450","River","Wiske",null,null,null,"WFD_IMPg","Phosphorus",null,null,null,null,"Continuous Discharge","2024-12-22","Amber","COPA/2783",439300,490500,null,null,null,null,null,null,null,null,null,null,null,null,null,null,null,null,null,null,null,null,null,null,null,null,null,null,null,null,null,null,190.4,null,"1.5mg/l average","4000ug/l Fe 95%ile","37m³/d",null,"8000ug/l  Fe Upper Tier ",null,null,null,"",null,null,null,null,null,null,null,null,null,null,null,null,null,"N/A",6.4,null,null,null,null,null,null,"Cost beneficial scheme.6.4 kilometres improved from Moderate to Good status","*",null,276351,6.4379999999999997,6.44,1,"WWN","£ per km LORI",9.9999999999999995E-7,"RESTORE TO  In AMP Delivery -Delivery Date of 31 /3/25 now requested as no longer catchment candidate. Quantity delivered in full as anticipated","EA confirm (March 2024) delivery in AMP8  27/28. Therefore column CT amended from 6.44 to 0.","Restore to In Amp Delivery"]
["YOR00804","Changed",null,null,null,"WQ","Humber","Yorkshire","Yorkshire Water Service Ltd","7YW200748","Rainton STW","Cundall Beck/Soppa Gutter Catch (trib of Swale)","GB104027068780","River","Swale Lower",null,null,null,"WFD_IMPg","Phosphorus",null,null,null,null,"Continuous Discharge","2024-12-22","Amber","COPA/2253",437600,474900,null,null,null,null,null,null,null,null,null,null,null,null,null,null,null,null,null,null,null,null,null,null,null,null,null,null,null,null,null,null,345.6,null,"3mg/l average","4000ug/l Fe 95%ile","109m³/d",null,"8000ug/l  Fe Upper Tier ",null,null,null,"",null,null,null,null,null,null,null,null,null,null,null,null,null,"N/A",7.8,null,null,null,null,null,null,"Cost beneficial scheme. 7.8 kilometres improved from Moderate to Good status","*",null,276351,1.464,1.46,1,"WWN","£ per km LORI",9.9999999999999995E-7,"RESTORE TO  In AMP Delivery -Delivery Date of 31 /3/25 now requested as no longer catchment candidate. Quantity delivered in full as anticipated","EA confirm (March 2024) delivery in AMP8  27/28. Therefore column CT amended from 1.46 to 0.","Restore to In Amp Delivery"]
["YOR00805","Changed",null,null,null,"WQ","Humber","Yorkshire","Yorkshire Water Service Ltd","7YW200749","DISHFORTH WPC WORKS","Cundall Beck/Soppa Gutter Catch (trib of Swale)","GB104027068780","River","Swale Lower",null,null,null,"WFD_IMPg","Phosphorus",null,null,null,null,"Continuous Discharge","2024-12-22","Amber","27/23/0150",438500,473355,null,null,null,null,null,null,null,null,null,null,null,null,null,null,null,null,null,null,null,null,null,null,null,null,null,null,null,null,null,null,594.4,null,"0.5mg/l average","4000ug/l Fe 95%ile","113m³/d",null,"8000ug/l  Fe Upper Tier ",null,null,null,"",null,null,null,null,null,null,null,null,null,null,null,null,null,"N/A",1.6,null,null,null,null,null,null,"Cost beneficial scheme. 1.6 kilometres improved from Poor to Good status","*",null,276351,7.7649999999999997,7.7649999999999997,1,"WWN","£ per km LORI",9.9999999999999995E-7,"Single WFD_IMP Driver For P",null,""]
["YOR00806","Changed",null,null,null,"WQ","Humber","Yorkshire","Yorkshire Water Service Ltd","7YW200750","KIRKBY MALZEARD/STW","Kex Beck and the Laver","GB104027069260","River","Ure Middle and Lower",null,null,null,"WFD_IMPg","Phosphorus",null,null,null,null,"Continuous Discharge","2024-12-22","Amber","27/22/0048",424700,474140,null,null,null,null,null,null,null,null,null,null,null,null,null,null,null,null,null,null,null,null,null,null,null,null,null,null,null,null,null,null,1476,null,"1.5mg/l average","4000ug/l Fe 95%ile","442m³/d",null,"8000ug/l  Fe Upper Tier ",null,null,null,"",null,null,null,null,null,null,null,null,null,null,null,null,null,"N/A",9.8000000000000007,null,null,null,null,null,null,"Cost beneficial scheme. 4.8 kilometres improved from Poor to Good status and 5 kilometres improved from Moderate to Good status. Total 9.8km in river length improvement.","*",null,276351,12.117999999999997,12.117999999999997,1,"WWN","£ per km LORI",9.9999999999999995E-7,"Single WFD_IMP Driver For P",null,""]
["YOR00812","Changed","Yes – alteration made",null,null,"WQ","Humber","Yorkshire","Yorkshire Water Service Ltd","7YW200756","KILLINGHALL STW","Nidd from Burstwith to Oak Beck","GB104027068296","River","Nidd Middle and Lower",null,null,null,"WFD_IMPg","Phosphorus",null,null,null,null,"Continuous Discharge","2024-12-22","Amber","27/21/0089",427100,459060,null,null,null,null,null,null,null,null,null,null,null,null,null,null,null,null,null,null,null,null,null,null,null,null,null,null,null,null,null,null,3470.6,null,"0.5mg/l average","4000ug/l Fe 95%ile","1631m³/d",null,"8000ug/l  Fe Upper Tier ",null,null,null,"",null,null,null,null,null,null,null,null,null,null,null,null,null,"N/A",2.8,null,null,null,null,null,null,"Cost beneficial scheme.2.8 kilometres improved from Moderate to Good status","*",null,276351,0,0,1,"WWN","£ per km LORI",9.9999999999999995E-7,"RESTORE TO  In AMP Delivery -Delivery Date of 31 /3/25 now requested as no longer catchment candidate. Quantity delivered in full as anticipated","EA confirm (March 2024) delivery in AMP8  27/28 however no amend to model as already 0 in column CT","Restore to In Amp Delivery"]
["YOR00813","Changed",null,null,null,"WQ","Humber","Yorkshire","Yorkshire Water Service Ltd","7YW200757","SHAW MILLS/STW","Thornton Beck Catch (Trib of Nidd)","GB104027063850","River","Nidd Middle and Lower",null,null,null,"WFD_IMPg","Phosphorus",null,null,null,null,"Continuous Discharge","2024-12-22","Amber","27/21/0091",427605,461435,null,null,null,null,null,null,null,null,null,null,null,null,null,null,null,null,null,null,null,null,null,null,null,null,null,null,null,null,null,null,595.6,null,"1mg/l average","4000ug/l Fe 95%ile","132m³/d",null,"8000ug/l  Fe Upper Tier ",null,null,null,"",null,null,null,null,null,null,null,null,null,null,null,null,null,"N/A",6.6,null,null,null,null,null,null,"Cost beneficial scheme.1.3 kilometres improved from Poor to Good status and 5.3 kilometres improved from Moderate to Good status. Total 6.6km in river length improvement.","*",null,276351,29.858000000000011,29.858000000000011,1,"WWN","£ per km LORI",9.9999999999999995E-7,"Single WFD_IMP Driver For P",null,""]
["YOR00833","Changed","Yes – alteration made",null,null,"WQ","Humber","Yorkshire","Yorkshire Water Service Ltd","7YW200777","DRAUGHTON WPC WORKS","Hambleton Beck/Ings Bk Catch (trib of Wharfe)","GB104027064030","River","Wharfe Middle and Washburn",null,null,null,"WFD_IMPg","Phosphorus",null,null,null,null,"Continuous Discharge","2024-12-22","Amber","27/19/0082",404610,453100,null,null,null,null,null,null,null,null,null,null,null,null,null,null,null,null,null,null,null,null,null,null,null,null,null,null,null,null,null,null,303.8,null,"0.25mg/l average","4000ug/l Fe 95%ile","96m³/d",null,"8000ug/l  Fe Upper Tier ",null,null,null,"",null,null,null,null,null,null,null,null,null,null,null,null,null,"N/A",3.5,null,null,null,null,null,null,"Cost beneficial scheme. 3.5 kilometres improved from Moderate to Good status","*",null,276351,3.5189999999999992,3.5189999999999992,1,"WWN","£ per km LORI",9.9999999999999995E-7,"Single WFD_IMP Driver For P with BOD @green",null,""]
["YOR00838","Changed",null,null,null,"WQ","Humber","Yorkshire","Yorkshire Water Service Ltd","7YW200782","SHERBURN IN ELMET/STW","Upper Fox Drain Catchment ds of Sherburn STW","GB104027063610","River","Ouse Lower Yorkshire",null,null,null,"WFD_IMPm","Phosphorus",null,null,null,null,"Continuous Discharge","2024-12-22","Amber","27/24/0162",452920,433420,null,null,null,null,null,null,null,null,null,null,null,null,null,null,null,null,null,null,null,null,null,null,null,null,null,null,null,null,null,null,12214,null,"0.5mg/l average","2663ug/l Fe 95%ile","3750m³/d",null,"8000ug/l  Fe Upper Tier ",null,null,null,"",null,null,null,null,null,null,null,null,null,null,null,null,null,"N/A",4.5,null,null,null,null,null,null,"New proposed P limit pf 0.5mg/l to achieve Moderate. RLI improved is the same as ammonia so moves from Bad to Moderate.","*",null,778365,10.129999999999999,10.129999999999999,1,"WWN","£ per km LORI",9.9999999999999995E-7,"Dual P Driver Site plus Ammonia-LORI assigned to WFd_IMP Driver",null,""]
["YOR00840","Changed",null,null,null,"WQ","Humber","Yorkshire","Yorkshire Water Service Ltd","7YW200784","HAROME/STW","Walmouth Beck from Source to River Riccal","GB104027068210","River","Rye",null,null,null,"WFD_IMPg","Phosphorus",null,null,null,null,"Continuous Discharge","2024-12-22","Amber","27/25/0079",465980,482149,null,null,null,null,null,null,null,null,null,null,null,null,null,null,null,null,null,null,null,null,null,null,null,null,null,null,null,null,null,null,1413.8,null,"0.25mg/l average","4000ug/l Fe 95%ile","755m³/d",null,"8000ug/l  Fe Upper Tier ",null,null,null,"",null,null,null,null,null,null,null,null,null,null,null,null,null,"N/A",5.4,null,null,null,null,null,null,"Cost beneficial scheme. 5.4 kilometres improved from Poor to Good status","*",null,276351,6.4020000000000001,6.4,1,"WWN","£ per km LORI",9.9999999999999995E-7,"RESTORE TO  In AMP Delivery -Delivery Date of 31 /3/25 now requested as no longer catchment candidate. Quantity delivered in full as anticipated","EA confirm (March 2024) delivery in AMP8  27/28 therefore column CT amended from 6.40 to 0.","Restore to In Amp Delivery"]
["YOR00846","Changed",null,null,null,"WQ","Humber","Yorkshire","Yorkshire Water Service Ltd","7YW200790","BISHOP WILTON WPC WO","Bishop Wilton Beck Catch (trib of Blackfoss Beck)","GB104027063470","River","Derwent Lower Yorkshire",null,null,null,"WFD_IMPg","Phosphorus",null,null,null,null,"Continuous Discharge","2024-12-22","Amber","27/28/0104",479290,454370,null,null,null,null,null,null,null,null,null,null,null,null,null,null,null,null,null,null,null,null,null,null,null,null,null,null,null,null,null,null,484,null,"1mg/l average","4000ug/l Fe 95%ile","118m³/d",null,"8000ug/l  Fe Upper Tier ",null,null,null,"",null,null,null,null,null,null,null,null,null,null,null,null,null,"N/A",9.9,null,null,null,null,null,null,"9.9 kilometres improved from Moderate to Good status","*",null,1287218,1,1,1,"WWN","£ per kgP/day removed",9.9999999999999995E-7,"RESTORE TO  In AMP Delivery -Delivery Date of 31 /3/25 now requested as no longer catchment candidate. Quantity delivered in full as anticipated","EA confirm (March 2024) delivery in AMP8  27/28 therefore column CT amended from 1 to 0.","Restore to In Amp Delivery"]
["YOR00847","Changed",null,null,null,"WQ","Humber","Yorkshire","Yorkshire Water Service Ltd","7YW200791","POCKLINGTON/STW","Pocklington Beck from Source to Bielby beck","GB104027063480","River","Derwent Lower Yorkshire",null,null,null,"WFD_IMPg","Phosphorus",null,null,null,null,"Continuous Discharge","2024-12-22","Amber","27/28/0195",480052,447318,null,null,null,null,null,null,null,null,null,null,null,null,null,null,null,null,null,null,null,null,null,null,null,null,null,null,null,null,null,null,10171,"1mg/l","0.25mg/l average","4000ug/l Fe 95%ile","2797m³/d",null,"8000ug/l  Fe Upper Tier ",null,null,null,"",null,null,null,null,null,null,null,null,null,null,null,null,null,"N/A",9.6,null,null,null,null,null,null,"Cost beneficial scheme.9.6 kilometres improved from Moderate to Good status","*",null,276351,2.17,2.17,1,"WWN","£ per km LORI",9.9999999999999995E-7,"Single WFD_IMP Driver For P",null,""]
["YOR00849","Changed","Yes – alteration made",null,null,"WQ","Humber","Yorkshire","Yorkshire Water Service Ltd","7YW200793","CROFTON/STW","Oakenshaw Beck from Source to River Calder","GB104027062560","River","Calder Lower",null,null,null,"WFD_IMPg","Phosphorus",null,null,null,null,"Continuous Discharge","2024-12-22","Amber","2207",436290,418470,null,null,null,null,null,null,null,null,null,null,null,null,null,null,null,null,null,null,null,null,null,null,null,null,null,null,null,null,null,null,9343.2000000000007,null,"0.25mg/l average","3774ug/l Fe 95%ile","4546m³/d",null,"8000ug/l  Fe Upper Tier ",null,null,null,"",null,null,null,null,null,null,null,null,null,null,null,null,null,"N/A",3.7,null,null,null,null,null,null,"Cost beneficial scheme. 2.8 kilometres improved from Bad to Good status and 0.8 kilometres improved from Poor to Good status. Total 3.7km in river length improvement.","*",null,276351,8.9890000000000008,8.9890000000000008,1,"WWN","£ per km LORI",9.9999999999999995E-7,"Single WFD_IMP Driver For P",null,""]
["YOR00850","Changed",null,null,null,"WQ","Humber","Yorkshire","Yorkshire Water Service Ltd","7YW200794","MELTHAM/STW","Mag Brook from Source to River Holme","GB104027063590","River","Colne and Holme",null,null,null,"WFD_IMPg","Phosphorus",null,null,null,null,"Continuous Discharge","2024-12-22","Amber","WRA6680",411092,411402,null,null,null,null,null,null,null,null,null,null,null,null,null,null,null,null,null,null,null,null,null,null,null,null,null,null,null,null,null,null,8484.2000000000007,null,"0.4mg/l average","4000ug/l Fe 95%ile","2350m³/d",null,"8000ug/l  Fe Upper Tier ",null,null,null,"",null,null,null,null,null,null,null,null,null,null,null,null,null,"N/A",3.7,null,null,null,null,null,null,"Cost beneficial scheme. 3.7 kilometres improved from Poor to Good status","*",null,276351,17.146000000000001,17.146000000000001,1,"WWN","£ per km LORI",9.9999999999999995E-7,"Single WFD_IMP Driver For P",null,""]
["YOR00851","Changed",null,null,null,"WQ","Humber","Yorkshire","Yorkshire Water Service Ltd","7YW200795","NEILEY NO 2 STW","Holme from New Mill Dike to R Colne","GB104027063301","River","Colne and Holme",null,null,null,"WFD_IMPg","Phosphorus",null,null,null,null,"Continuous Discharge","2024-12-22","Amber","2255",414628,411578,null,null,null,null,null,null,null,null,null,null,null,null,null,null,null,null,null,null,null,null,null,null,null,null,null,null,null,null,null,null,20346,null,"0.4mg/l average","4000ug/l Fe 95%ile","7497m³/d",null,"8000ug/l  Fe Upper Tier ",null,null,null,"",null,null,null,null,null,null,null,null,null,null,null,null,null,"N/A",1.5,null,null,null,null,null,null,"Works identified for both WFD and SAe drivers.  WFD limit is concluded to be cost beneficial.1.5 kilometres improved from Poor to Good status","*",null,778365,1.5309999999999988,1.5309999999999988,1,"WWN","£ per km LORI",9.9999999999999995E-7,"Dual P Driver Site -LORI assigned to WFd_IMP Driver",null,""]
["YOR00852","Changed",null,null,null,"WQ","Humber","Yorkshire","Yorkshire Water Service Ltd","7YW200796","RIPPONDEN WOOD STW","Ryburn from Booth Dean Clough to R Calder","GB104027062580","River","Calder Middle",null,null,null,"WFD_IMPg","Phosphorus",null,null,null,null,"Continuous Discharge","2024-12-22","Amber","E741(SS)",404540,420640,null,null,null,null,null,null,null,null,null,null,null,null,null,null,null,null,null,null,null,null,null,null,null,null,null,null,null,null,null,null,5163.6000000000004,null,"0.5mg/l average","4000ug/l Fe 95%ile","1639m³/d",null,"8000ug/l  Fe Upper Tier ",null,null,null,"",null,null,null,null,null,null,null,null,null,null,null,null,null,"N/A",3.9,null,null,null,null,null,null,"Cost beneficial scheme. 3.9 kilometres improved from Poor to Good status","*",null,276351,7.9579999999999993,7.9579999999999993,1,"WWN","£ per km LORI",9.9999999999999995E-7,"Single WFD_IMP Driver For P",null,""]
["YOR00853","Changed",null,null,null,"WQ","Humber","Yorkshire","Yorkshire Water Service Ltd","7YW200797","EASTWOOD/STW","Calder from Walsden Water to Colden Water","GB104027062650","River","Calder Upper",null,null,null,"WFD_IMPg","Phosphorus",null,null,null,null,"Continuous Discharge","2024-12-22","Amber","E61",397163,426382,null,null,null,null,null,null,null,null,null,null,null,null,null,null,null,null,null,null,null,null,null,null,null,null,null,null,null,null,null,null,14727.6,null,"0.5mg/l average","4000ug/l Fe 95%ile","10255m³/d",null,"8000ug/l  Fe Upper Tier ",null,null,null,"",null,null,null,null,null,null,null,null,null,null,null,null,null,"N/A",6.4,null,null,null,null,null,null,"Works identified for both WFD and SAe drivers.  WFD limit is concluded to be cost beneficial. 6.4kilometres improved from Poor to Good status","*",null,778365,1.833000000000002,1.833000000000002,1,"WWN","£ per km LORI",9.9999999999999995E-7,"Dual P Driver Site -LORI assigned to WFd_IMP Driver",null,""]
["YOR00854","Changed",null,null,null,"WQ","Humber","Yorkshire","Yorkshire Water Service Ltd","7YW200798","REDACRE STW","Calder from Colden Water to Ryburn Confluence","GB104027062641","River","Calder Middle",null,null,null,"WFD_IMPg","Phosphorus",null,null,null,null,"Continuous Discharge","2024-12-22","Amber","E740(SS)",401025,426209,null,null,null,null,null,null,null,null,null,null,null,null,null,null,null,null,null,null,null,null,null,null,null,null,null,null,null,null,null,null,8547.4,null,"0.5mg/l average","4000ug/l Fe 95%ile","4421m³/d",null,"8000ug/l  Fe Upper Tier ",null,null,null,"",null,null,null,null,null,null,null,null,null,null,null,null,null,"N/A",6.4,null,null,null,null,null,null,"Cost beneficial scheme. 6.4 kilometres improved from Poor to Good status","*",null,276351,5.0390000000000015,5.0390000000000015,1,"WWN","£ per km LORI",9.9999999999999995E-7,"Single WFD_IMP Driver For P",null,""]
["YOR00855","Changed",null,null,null,"WQ","Humber","Yorkshire","Yorkshire Water Service Ltd","7YW200799","HIGH ROYD NO 2 STW","Luddenden Brook from Source to River Calder","GB104027062770","River","Calder Middle",null,null,null,"WFD_IMPg","Phosphorus",null,null,null,null,"Continuous Discharge","2024-12-22","Amber","967",405169,423937,null,null,null,null,null,null,null,null,null,null,null,null,null,null,null,null,null,null,null,null,null,null,null,null,null,null,null,null,null,null,11495.8,null,"0.5mg/l average","4000ug/l Fe 95%ile","6696m³/d",null,"8000ug/l  Fe Upper Tier ",null,null,null,"",null,null,null,null,null,null,null,null,null,null,null,null,null,"N/A",6.4,null,null,null,null,null,null,"Works identified for both WFD and SAe drivers.  WFD limit is concluded to be cost beneficial. 6.4 kilometres improved from Poor to Good status","*",null,778365,1.5399999999999991,1.5399999999999991,1,"WWN","£ per km LORI",9.9999999999999995E-7,"Dual P Driver Site -LORI assigned to WFd_IMP Driver",null,""]
["YOR00856","Changed",null,null,null,"WQ","Humber","Yorkshire","Yorkshire Water Service Ltd","7YW200800","HALIFAX COPLEY STW","Calder from Ryburn Confluence  to River Colne","GB104027062642","River","Calder Middle",null,null,null,"WFD_IMPg","Phosphorus",null,null,null,null,"Continuous Discharge","2024-12-22","Amber","WRA7510",409224,422301,null,null,null,null,null,null,null,null,null,null,null,null,null,null,null,null,null,null,null,null,null,null,null,null,null,null,null,null,null,null,167246,null,"0.3mg/l average","4000ug/l Fe 95%ile","57700m³/d",null,"8000ug/l  Fe Upper Tier ",null,null,null,"",null,null,null,null,null,null,null,null,null,null,null,null,null,"N/A",6.4,null,null,null,null,null,null,"Works identified for both WFD and SAe drivers.  WFD limit is concluded to be cost beneficial. 6.4 kilometres improved from Poor to Good status","*",null,778365,12.996000000000006,12.996000000000006,1,"WWN","£ per km LORI",9.9999999999999995E-7,"Dual P Driver Site -LORI assigned to WFd_IMP Driver",null,""]
["YOR00857","Changed","Pending – decision not yet taken",null,null,"WQ","Humber","Yorkshire","Yorkshire Water Service Ltd","7YW200801","Huddersfield STW Colne Bridge","Calder from Ryburn Confluence to River Colne","GB104027062642","River","Calder Lower",null,null,null,"WFD_IMPg","Phosphorus",null,null,null,null,"Continuous Discharge","2024-12-22","Amber","WRA7409",417820,420440,null,null,null,null,null,null,null,null,null,null,null,null,null,null,null,null,null,null,null,null,null,null,null,null,null,null,null,null,null,null,237696,null,"was 0.25 mg/l in FD","4000ug/l Fe 95%ile","84000m³/d",null,"8000ug/l  Fe Upper Tier ",null,null,null,"",null,null,null,null,null,null,null,null,null,null,null,null,null,"N/A",6.3,null,null,null,null,null,null,"Works identified for both WFD and SAe drivers.  WFD limit is concluded to be cost beneficial. 6.3 kilometres improved from Poor to Good status","*",null,502014,0,0,1,"WWN","£ per km LORI",9.9999999999999995E-7,"REMOVAL: YW Confirm Removal","YKY confirm in model (column CY) removal and EA confirm (March 2024) deleted from PR19 WINEP. No amends required. ","Removal"]
["YOR00858","Changed",null,null,null,"WQ","Humber","Yorkshire","Yorkshire Water Service Ltd","7YW200802","HUDDERSFIELD STW Cooper Bridge","Calder from River Colne to River Chald","GB104027062631","River","Calder Lower",null,null,null,"WFD_IMPg","Phosphorus",null,null,null,null,"Continuous Discharge","2024-12-22","Amber","WRA7409",418470,420810,null,null,null,null,null,null,null,null,null,null,null,null,null,null,null,null,null,null,null,null,null,null,null,null,null,null,null,null,null,null,56427,null,"0.25mg/l average","4000ug/l Fe 95%ile","20000m³/d",null,"8000ug/l  Fe Upper Tier ",null,null,null,"",null,null,null,null,null,null,null,null,null,null,null,null,null,"N/A",6.3,null,null,null,null,null,null,"Works identified for both WFD and SAe drivers.  WFD limit is concluded to be cost beneficial. 6.3 kilometres improved from Poor to Good status","*",null,778365,12.022000000000006,12.022000000000006,1,"WWN","£ per km LORI",9.9999999999999995E-7,"Dual P Driver Site -LORI assigned to WFd_IMP Driver",null,""]
["YOR00859","Changed",null,null,null,"WQ","Humber","Yorkshire","Yorkshire Water Service Ltd","7YW200803","DEWSBURY/STW","Calder from River Colne to River Chald","GB104027062631","River","Calder Lower",null,null,null,"WFD_IMPg","Phosphorus",null,null,null,null,"Continuous Discharge","2024-12-22","Amber","E15",426460,419490,null,null,null,null,null,null,null,null,null,null,null,null,null,null,null,null,null,null,null,null,null,null,null,null,null,null,null,null,null,null,251691.2,null,"0.5mg/l average","4000ug/l Fe 95%ile","85694m³/d",null,"8000ug/l  Fe Upper Tier ",null,null,null,"",null,null,null,null,null,null,null,null,null,null,null,null,null,"N/A",6.3,null,null,null,null,null,null,"Works identified for both WFD and SAe drivers.  WFD limit is concluded to be cost beneficial. 6.3 kilometres improved from Poor to Good status","*",null,778365,5.8190000000000026,5.8190000000000026,1,"WWN","£ per km LORI",9.9999999999999995E-7,"Dual P Driver Site -LORI assigned to WFd_IMP Driver#Site known As Dewsbury and Mitchell Laithes",null,""]
["YOR00860","Changed",null,null,null,"WQ","Humber","Yorkshire","Yorkshire Water Service Ltd","7YW200804","HORBURY (DUDFLEET) STW","Calder from River Colne to River Chald","GB104027062631","River","Calder Lower",null,null,null,"WFD_IMPg","Phosphorus",null,null,null,null,"Continuous Discharge","2024-12-22","Amber","C4107",430000,417070,null,null,null,null,null,null,null,null,null,null,null,null,null,null,null,null,null,null,null,null,null,null,null,null,null,null,null,null,null,null,42,null,"0.5mg/l average","4000ug/l Fe 95%ile","10m3/d",null,"8000ug/l  Fe Upper Tier ",null,null,null,"",null,null,null,null,null,null,null,null,null,null,null,null,null,"N/A",6.3,null,null,null,null,null,null,"Works identified for both WFD and SAe drivers.  WFD limit is concluded to be cost beneficial. 6.3 kilometres improved from Poor to Good status","*",null,778365,3.3089999999999975,3.3089999999999975,1,"WWN","£ per km LORI",9.9999999999999995E-7,"Dual P Driver Site -LORI assigned to WFd_IMP Driver",null,""]
["YOR00861","Changed",null,null,null,"WQ","Humber","Yorkshire","Yorkshire Water Service Ltd","7YW200805","CALDER VALE/STW","Calder from River Chald to River Aire","GB104027062632","River","Calder Lower",null,null,null,"WFD_IMPg","Phosphorus",null,null,null,null,"Continuous Discharge","2024-12-22","Amber","C4106",435070,420410,null,null,null,null,null,null,null,null,null,null,null,null,null,null,null,null,null,null,null,null,null,null,null,null,null,null,null,null,null,null,101008,null,"0.6mg/l average","4000ug/l Fe 95%ile","32000m³/d",null,"8000ug/l  Fe Upper Tier ",null,null,null,"",null,null,null,null,null,null,null,null,null,null,null,null,null,null,6.3,null,null,null,null,null,null,"Works identified for both WFD and SAe drivers.  WFD limit is concluded to be cost beneficial. 6.3 kilometres improved from Poor to Good status","*",null,778365,6.7109999999999985,6.7109999999999985,1,"WWN","£ per km LORI",9.9999999999999995E-7,"Dual P Driver Site -LORI assigned to WFd_IMP Driver",null,""]
["YOR00862","Changed",null,null,null,"WQ","Humber","Yorkshire","Yorkshire Water Service Ltd","7YW200806","Stanley (Smalley Bight) STW","Calder from River Chald to River Aire","GB104027062632","River","Calder Lower",null,null,null,"WFD_IMPg","Phosphorus",null,null,null,null,"Continuous Discharge","2024-12-22","Amber","E743(SS)",435280,423900,null,null,null,null,null,null,null,null,null,null,null,null,null,null,null,null,null,null,null,null,null,null,null,null,null,null,null,null,null,null,18957.2,null,"1mg/l average","4000ug/l Fe 95%ile","5300m³/d",null,"8000ug/l  Fe Upper Tier ",null,null,null,"",null,null,null,null,null,null,null,null,null,null,null,null,null,"N/A",6.3,null,null,null,null,null,null,"Works identified for both WFD and SAe drivers.  WFD limit is concluded to be cost beneficial. 6.3 kilometres improved from Poor to Good status","*",null,778365,7.8109999999999928,7.8109999999999928,1,"WWN","£ per km LORI",9.9999999999999995E-7,"Dual P Driver Site -LORI assigned to WFd_IMP Driver#Same site as 7YW200942",null,""]
["YOR00863","Changed",null,null,null,"WQ","Humber","Yorkshire","Yorkshire Water Service Ltd","7YW200807","NORMANTON/STW (Mill Lane)","Choke Churl Bk from Source to River Calder","GB104027062590","River","Calder Lower",null,null,null,"WFD_IMPg","Phosphorus",null,null,null,null,"Continuous Discharge","2024-12-22","Amber","WA6472",439670,424910,null,null,null,null,null,null,null,null,null,null,null,null,null,null,null,null,null,null,null,null,null,null,null,null,null,null,null,null,null,null,44569.8,null,"0.8mg/l average","4000ug/l Fe 95%ile","12464m³/d",null,"8000ug/l  Fe Upper Tier ",null,null,null,"",null,null,null,null,null,null,null,null,null,null,null,null,null,null,6.3,null,null,null,null,null,null,"Works identified for both WFD and SAe drivers.  WFD limit is concluded to be cost beneficial. 6.3 kilometres improved from Poor to Good status","*",null,778365,3.3939999999999912,3.3939999999999912,1,"WWN","£ per km LORI",9.9999999999999995E-7,"Dual P Driver Site -LORI assigned to WFd_IMP Driver",null,""]
["YOR00866","Changed",null,null,null,"WQ","Humber","Yorkshire","Yorkshire Water Service Ltd","7YW200810","EMBSAY/STW","Haw Beck from Source to Eller beck","GB104027063060","River","Aire Upper",null,null,null,"WFD_IMPg","Phosphorus",null,null,null,null,"Continuous Discharge","2024-12-22","Amber","2583",399880,453010,null,null,null,null,null,null,null,null,null,null,null,null,null,null,null,null,null,null,null,null,null,null,null,null,null,null,null,null,null,null,1777.4,null,"0.25mg/l average","4000ug/l Fe 95%ile","727m³/d",null,"8000ug/l  Fe Upper Tier ",null,null,null,"",null,null,null,null,null,null,null,null,null,null,null,null,null,"N/A",4.2,null,null,null,null,null,null,"Cost beneficial scheme. 3.9 kilometres improved from Poor to Good status and 0.3 kilometres improved from Moderate to Good status. Total 4.2km in river length improvement.","*",null,276351,2.7149999999999981,2.72,1,"WWN","£ per km LORI",9.9999999999999995E-7,"RESTORE  to In AMP Delivery -Delivery Date of 31 /3/25 now requested as no longer catchment candidate. Quantity delivered in full as anticipated","EA confirm (March 2024) delivery in AMP8  27/28 therefore column CT amended from 2.72 to 0.","Restore to In Amp Delivery"]
["YOR00867","Changed",null,null,null,"WQ","Humber","Yorkshire","Yorkshire Water Service Ltd","7YW200811","EAST MARTON","Langber Beck from Source to Earby Beck","GB104027063010","River","Aire Upper",null,null,null,"WFD_IMPg","Phosphorus",null,null,null,null,"Continuous Discharge","2024-12-22","Amber",1850,390970,450550,null,null,null,null,null,null,null,null,null,null,null,null,null,null,null,null,null,null,null,null,null,null,null,null,null,null,null,null,null,null,220.8,null,"4mg/l average","4000ug/l Fe 95%ile","44m³/d",null,"8000ug/l  Fe Upper Tier ",null,null,null,"",null,null,null,null,null,null,null,null,null,null,null,null,null,"N/A",2,null,null,null,null,null,null,"Cost beneficial scheme. 2 kilometres improved from Moderate to Good status","*",null,276351,0,0,1,"WWN","£ per km LORI",9.9999999999999995E-7,"RESTORE TO  In AMP Delivery -Delivery Date of 31 /3/25 now requested as no longer catchment candidate. Quantity delivered in full as anticipated","EA confirm (March 2024) delivery in AMP8  27/28 however no amend to model as already 0 in column CT","Restore to In Amp Delivery"]
["YOR00872","Changed",null,null,null,"WQ","Humber","Yorkshire","Yorkshire Water Service Ltd","7YW200816","KEIGHLEY MARLEY/STW","Aire (R Worth to Gill Beck)","GB104027063034","River","Aire Middle",null,null,null,"WFD_IMPg","Phosphorus",null,null,null,null,"Continuous Discharge","2024-12-22","Amber","WRA7172",409030,441150,null,null,null,null,null,null,null,null,null,null,null,null,null,null,null,null,null,null,null,null,null,null,null,null,null,null,null,null,null,null,90039,null,"0.5mg/l average","4000ug/l Fe 95%ile","28129m³/d",null,"8000ug/l  Fe Upper Tier ",null,null,null,"",null,null,null,null,null,null,null,null,null,null,null,null,null,"N/A",5.0999999999999996,null,null,null,null,null,null,"Works identified for both WFD and SAe drivers.  WFD limit is concluded to be cost beneficial. 5.1 kilometres improved from Poor to Good status","*",null,778365,6.4589999999999961,6.4589999999999961,1,"WWN","£ per km LORI",9.9999999999999995E-7,"Dual P Driver Site -LORI assigned to WFd_IMP Driver",null,""]
["YOR00873","Changed",null,null,null,"WQ","Humber","Yorkshire","Yorkshire Water Service Ltd","7YW200817","DOWLEY GAP (BINGLEY)","Aire (R Worth to Gill Beck)","GB104027063034","River","Aire Middle",null,null,null,"WFD_IMPg","Phosphorus",null,null,null,null,"Continuous Discharge","2024-12-22","Amber",2502,412310,438140,null,null,null,null,null,null,null,null,null,null,null,null,null,null,null,null,null,null,null,null,null,null,null,null,null,null,null,null,null,null,38795.4,null,"0.25mg/l average","4000ug/l Fe 95%ile","11713m³/d",null,"8000ug/l  Fe Upper Tier ",null,null,null,"",null,null,null,null,null,null,null,null,null,null,null,null,null,"N/A",5.0999999999999996,null,null,null,null,null,null,"Works identified for both WFD and SAe drivers.  WFD limit is concluded to be cost beneficial. 5.1 kilometres improved from Poor to Good status","*",null,778365,9.1550000000000082,9.1550000000000082,1,"WWN","£ per km LORI",9.9999999999999995E-7,"Dual P Driver Site -LORI assigned to WFd_IMP Driver",null,""]
["YOR00874","Changed","Yes – alteration made",null,null,"WQ","Humber","Yorkshire","Yorkshire Water Service Ltd","7YW200818","BRADFORD ESHOLT/NO 2 STW","Aire from Gill Beck (Baildon) to River Calder","GB104027063032","River","Aire Lower",null,null,null,"WFD_IMPg","Phosphorus",null,null,null,null,"Continuous Discharge","2024-12-22","Amber","WRA6925",418984,438746,null,null,null,null,null,null,null,null,null,null,null,null,null,null,null,null,null,null,null,null,null,null,null,null,null,null,null,null,null,null,367696.2,null,"0.5mg/l average","4000ug/l Fe 95%ile","130000m³/d",null,"8000ug/l  Fe Upper Tier ",null,null,null,"",null,null,null,null,null,null,null,null,null,null,null,null,null,"N/A",13.1,null,null,null,null,null,null,"Works identified for both WFD and SAe drivers.  WFD limit is concluded to be cost beneficial. 1.4 kilometres improved from Poor to Moderate status and 11.7 kilometres improved from Poor to Good status. Total 13.1km in river length improvement.","*",null,778365,23.472000000000008,23.472000000000008,1,"WWN","£ per km LORI",9.9999999999999995E-7,"Dual P Driver Site -LORI assigned to WFd_IMP Driver",null,""]
["YOR00875","Changed",null,null,null,"WQ","Humber","Yorkshire","Yorkshire Water Service Ltd","7YW200819","KNOSTROP WWTW","Wyke Beck from Source to River Aire","GB104027062880","River","Aire Lower",null,null,null,"WFD_IMPg","Phosphorus",null,null,null,null,"Continuous Discharge","2024-12-22","Amber","WRA6924",433276,432035,null,null,null,null,null,null,null,null,null,null,null,null,null,null,null,null,null,null,null,null,null,null,null,null,null,null,null,null,null,null,366809,null,"0.4mg/l average","4000ug/l Fe 95%ile","213600m³/d",null,"8000ug/l  Fe Upper Tier ",null,null,null,"",null,null,null,null,null,null,null,null,null,null,null,null,null,"N/A",13.1,null,null,null,null,null,null,"Works identified for both WFD and SAe drivers.  WFD limit is concluded to be cost beneficial. 1.4 kilometres improved from Poor to Moderate status and 11.7 kilometres improved from Poor to Good status. Total 13.1km in river length improvement.","*",null,778365,5.593,5.593,1,"WWN","£ per km LORI",9.9999999999999995E-7,"Dual P Driver Site -LORI assigned to WFd_IMP Driver",null,""]
["YOR00876","Changed",null,null,null,"WQ","Humber","Yorkshire","Yorkshire Water Service Ltd","7YW200820","LEMONROYD STW","Oulton Beck from Source to River Aire","GB104027062680","River","Aire Lower",null,null,null,"WFD_IMPg","Phosphorus",null,null,null,null,"Continuous Discharge","2024-12-22","Amber","WRA7220",438200,428000,null,null,null,null,null,null,null,null,null,null,null,null,null,null,null,null,null,null,null,null,null,null,null,null,null,null,null,null,null,null,35201.199999999997,null,"2mg/l average","4000ug/l Fe 95%ile","7500m³/d",null,"8000ug/l  Fe Upper Tier ",null,null,null,"",null,null,null,null,null,null,null,null,null,null,null,null,null,"N/A",13.1,null,null,null,null,null,null,"Works identified for both WFD and SAe drivers.  WFD limit is concluded to be cost beneficial. 1.4 kilometres improved from Poor to Moderate status and 11.7 kilometres improved from Poor to Good status. Total 13.1km in river length improvement.","*",null,778365,5.5859999999999985,5.5859999999999985,1,"WWN","£ per km LORI",9.9999999999999995E-7,"Dual P Driver Site -LORI assigned to WFd_IMP Driver",null,""]
["YOR00878","Changed",null,null,null,"WQ","Humber","Yorkshire","Yorkshire Water Service Ltd","7YW200822","CASTLEFORD/STW","Aire from River Calder to River Ouse","GB104027062760","River","Aire Lower",null,null,null,"WFD_IMPg","Phosphorus",null,null,null,null,"Continuous Discharge","2024-12-22","Amber","WRA6659",444640,426680,null,null,null,null,null,null,null,null,null,null,null,null,null,null,null,null,null,null,null,null,null,null,null,null,null,null,null,null,null,null,34117,null,"3mg/l average","4000ug/l Fe 95%ile","8400m³/d",null,"8000ug/l  Fe Upper Tier ",null,null,null,"",null,null,null,null,null,null,null,null,null,null,null,null,null,"N/A",9.9,null,null,null,null,null,null,"Works identified for both WFD and SAe drivers.  WFD limit is concluded to be cost beneficial. 9.9 kilometres improved from Poor to Good status","*",null,778365,0,0,1,"WWN","£ per km LORI",9.9999999999999995E-7,"Dual P Driver Site -LORI assigned to U_IMP2  Driver. U_IMP2 more stringent than WFD_IMP",null,""]
["YOR00879","Changed",null,null,null,"WQ","Humber","Yorkshire","Yorkshire Water Service Ltd","7YW200823","SUTTON WWTW","Aire from River Calder to River Ouse","GB104027062760","River","Aire Lower",null,null,null,"WFD_IMPg","Phosphorus",null,null,null,null,"Continuous Discharge","2024-12-22","Amber",1945,450400,424310,null,null,null,null,null,null,null,null,null,null,null,null,null,null,null,null,null,null,null,null,null,null,null,null,null,null,null,null,null,null,48826,null,"1mg/l average","4000ug/l Fe 95%ile","11073m³/d",null,"8000ug/l  Fe Upper Tier ",null,null,null,"",null,null,null,null,null,null,null,null,null,null,null,null,null,"N/A",9.9,null,null,null,null,null,null,"Works identified for both WFD and SAe drivers.  WFD limit is concluded to be cost beneficial. 9.9 kilometres improved from Poor to Good status","*",null,778365,23.16500000000002,23.16500000000002,1,"WWN","£ per km LORI",9.9999999999999995E-7,"Dual P Driver Site -LORI assigned to WFd_IMP Driver",null,""]
["YOR00881","Changed","Yes – alteration made",null,null,"WQ","Humber","Yorkshire","Yorkshire Water Service Ltd","7YW200825","SOUTH ELMSALL/STW","Ea Beck from Frickley Beck to the Skell","GB104027063200","River","Don Lower",null,null,null,"WFD_IMPm","Phosphorus",null,null,null,null,"Continuous Discharge","2024-12-22","Amber","WRA7507",448390,410640,null,null,null,null,null,null,null,null,null,null,null,null,null,null,null,null,null,null,null,null,null,null,null,null,null,null,null,null,null,null,35231.4,null,"0.3mg/l average","4000ug/l Fe 95%ile","9800m³/d",null,"8000ug/l  Fe Upper Tier ",null,null,null,"",null,null,null,null,null,null,null,null,null,null,null,null,null,"N/A",9,null,null,null,null,null,null,"Works identified for both WFD and SAe drivers.  WFD limit is concluded to be cost beneficial. 3.9 kilometres improved from Bad to Moderate and 5.1 kilometres improved from Poor to Good status. Total 9km in river length improvement.","*",null,778365,5.1169999999999991,5.1169999999999991,1,"WWN","£ per km LORI",9.9999999999999995E-7,"Dual P Driver Site -LORI assigned to WFd_IMP Driver",null,""]
["YOR00882","Changed",null,null,null,"WQ","Humber","Yorkshire","Yorkshire Water Service Ltd","7YW200826","WRANGBROOK STW","The Skell from Source to Ea Beck","GB104027063280","River","Don Lower",null,null,null,"WFD_IMPg","Phosphorus",null,null,null,null,"Continuous Discharge","2024-12-22","Amber","E744",449590,412540,null,null,null,null,null,null,null,null,null,null,null,null,null,null,null,null,null,null,null,null,null,null,null,null,null,null,null,null,null,null,6534.8,null,"0.5mg/l average","4000ug/l Fe 95%ile","1340m³/d",null,"8000ug/l  Fe Upper Tier ",null,null,null,"",null,null,null,null,null,null,null,null,null,null,null,null,null,"N/A",5.8,null,null,null,null,null,null,"Cost beneficial scheme. 5.8 kilometres improved from Poor to Good status","*",null,276351,8.7759999999999998,8.7759999999999998,1,"WWN","£ per km LORI",9.9999999999999995E-7,"Single WFD_IMP Driver For P",null,""]
["YOR00883","Changed",null,null,null,"WQ","Humber","Yorkshire","Yorkshire Water Service Ltd","7YW200827","Adwick Le Street","Ea Beck from the Skell to River Don","GB104027057591","River","Don Lower",null,null,null,"WFD_IMPm","Phosphorus",null,null,null,null,"Continuous Discharge","2024-12-22","Amber","WRA7541",454690,408050,null,null,null,null,null,null,null,null,null,null,null,null,null,null,null,null,null,null,null,null,null,null,null,null,null,null,null,null,null,null,20133,null,"0.3mg/l average","4000ug/l Fe 95%ile","5400m³/d",null,"8000ug/l  Fe Upper Tier ",null,null,null,"",null,null,null,null,null,null,null,null,null,null,null,null,null,null,3.9,null,null,null,null,null,null,"Works identified for both WFD and SAe drivers.  WFD limit is concluded to be cost beneficial. 2.4 kilometres improved from Bad to Mod and 1.5 kilometres improved from Poor to Good status. Total 3.9km in river length improvement.","*",null,778365,8.5730000000000004,8.5730000000000004,1,"WWN","£ per km LORI",9.9999999999999995E-7,"Dual P Driver Site -LORI assigned to WFd_IMP Driver",null,""]
["YOR00886","Changed",null,null,null,"WQ","Humber","Yorkshire","Yorkshire Water Service Ltd","7YW200830","GRIMETHORPE/STW","Grimethorpe Dike from Source to River Dearne","GB104027063180","River","Dearne",null,null,null,"WFD_IMPm","Phosphorus",null,null,null,null,"Continuous Discharge","2024-12-22","Amber","2246",440280,409430,null,null,null,null,null,null,null,null,null,null,null,null,null,null,null,null,null,null,null,null,null,null,null,null,null,null,null,null,null,null,12973.4,null,"0.25mg/l average","4000ug/l Fe 95%ile","3157m³/d",null,"8000ug/l  Fe Upper Tier ",null,null,null,"",null,null,null,null,null,null,null,null,null,null,null,null,null,"N/A",3.7,null,null,null,null,null,null,"Works identified for both WFD and SAe drivers.  WFD limit is concluded to be cost beneficial. 3.7 kilometres improved from Bad to Moderate.","*",null,778365,10.161000000000003,10.161000000000003,1,"WWN","£ per km LORI",9.9999999999999995E-7,"Dual P Driver Site -LORI assigned to WFd_IMP Driver",null,""]
["YOR00887","Changed",null,null,null,"WQ","Humber","Yorkshire","Yorkshire Water Service Ltd","7YW200831","CLAYTON WEST/STW","Dearne from Source to Bentley Brook","GB104027063220","River","Dearne",null,null,null,"WFD_IMPg","Phosphorus",null,null,null,null,"Continuous Discharge","2024-12-22","Amber","3809(SS)",426780,412070,null,null,null,null,null,null,null,null,null,null,null,null,null,null,null,null,null,null,null,null,null,null,null,null,null,null,null,null,null,null,16803.8,null,"0.25mg/l average","4000ug/l Fe 95%ile","5748m³/d",null,"8000ug/l  Fe Upper Tier ",null,null,null,"",null,null,null,null,null,null,null,null,null,null,null,null,null,"N/A",8,null,null,null,null,null,null,"Works identified for both WFD and SAe drivers.  WFD limit is concluded to be cost beneficial. 8 kilometres improved from Poor to Good status","*",null,778365,3.7070000000000007,3.7070000000000007,1,"WWN","£ per km LORI",9.9999999999999995E-7,"Dual P Driver Site -LORI assigned to WFd_IMP Driver",null,""]
["YOR00888","Changed",null,null,null,"WQ","Humber","Yorkshire","Yorkshire Water Service Ltd","7YW200832","HOYLANDSWAINE/STW","Silkstone Beck from Source to Cawthorne Dyke","GB104027057560","River","Dearne",null,null,null,"WFD_IMPg","Phosphorus",null,null,null,null,"Continuous Discharge","2024-12-22","Amber","2344",426900,405700,null,null,null,null,null,null,null,null,null,null,null,null,null,null,null,null,null,null,null,null,null,null,null,null,null,null,null,null,null,null,967.2,null,"0.4mg/l average","4000ug/l Fe 95%ile","236m³/d",null,"8000ug/l  Fe Upper Tier ",null,null,null,"",null,null,null,null,null,null,null,null,null,null,null,null,null,"N/A",3.7,null,null,null,null,null,null,"Cost beneficial scheme. 3.7 kilometres improved from Poor to Good status","*",null,276351,9.8049999999999997,9.8049999999999997,1,"WWN","£ per km LORI",9.9999999999999995E-7,"Single WFD_IMP Driver For P",null,""]
["YOR00902","Changed",null,null,null,"WQ","Humber","Yorkshire","Yorkshire Water Service Ltd","7YW200846","INGBIRCHWORTH STW","Scout Dyke from Source to River Don","GB104027057530","River","Don Upper",null,null,null,"WFD_IMPg","Phosphorus",null,null,null,null,"Continuous Discharge","2024-12-22","Amber","WRA7365",422717,405548,null,null,null,null,null,null,null,null,null,null,null,null,null,null,null,null,null,null,null,null,null,null,null,null,null,null,null,null,null,null,429.8,null,"1mg/l average","4000ug/l Fe 95%ile","102m³/d",null,"8000ug/l  Fe Upper Tier ",null,null,null,"",null,null,null,null,null,null,null,null,null,null,null,null,null,"N/A",6,null,null,null,null,null,null,"Cost beneficial scheme. 6 kilometres improved from Moderate to Good status","*",null,1287218,1,1,1,"WWN","£ per kgP/day removed",9.9999999999999995E-7,"Site Closure and Transfer Scheme with Single WFD_IMP  for Phosphorus",null,""]
["YOR00903","Changed",null,null,null,"WQ","Humber","Yorkshire","Yorkshire Water Service Ltd","7YW200847","CHEESEBOTTOM STW","Don from Scout Dyke to the Little Don","GB104027057490","River","Don Upper",null,null,null,"WFD_IMPm","Phosphorus",null,null,null,null,"Continuous Discharge","2024-12-22","Amber","2556",427990,401280,null,null,null,null,null,null,null,null,null,null,null,null,null,null,null,null,null,null,null,null,null,null,null,null,null,null,null,null,null,null,13297.2,null,"0.5mg/l average","4000ug/l Fe 95%ile","4478m³/d",null,"8000ug/l  Fe Upper Tier ",null,null,null,"",null,null,null,null,null,null,null,null,null,null,null,null,null,null,15.5,null,null,null,null,null,null,"Works identified for both WFD and SAe drivers.  WFD limit is concluded to be cost beneficial. 4.3 kilometres improved from Moderate to Good status and 1.4 kilometres improved from Poor to Good status and 9.8 kilometres improved from Poor to Moderate status. Total 15.5 km in river length improvement.","*",null,778365,7.7469999999999999,7.7469999999999999,1,"WWN","£ per km LORI",9.9999999999999995E-7,"Dual P Driver Site -LORI assigned to WFd_IMP Driver",null,""]
["YOR00904","Changed",null,null,null,"WQ","Humber","Yorkshire","Yorkshire Water Service Ltd","7YW200848","STOCKSBRIDGE/STW","Don from Little Don to River Loxley confluence","GB104027057411","River","Don Upper",null,null,null,"WFD_IMPm","Phosphorus",null,null,null,null,"Continuous Discharge","2024-12-22","Amber","E697(SS)",429150,397500,null,null,null,null,null,null,null,null,null,null,null,null,null,null,null,null,null,null,null,null,null,null,null,null,null,null,null,null,null,null,14718.2,null,"0.5mg/l average","4000ug/l Fe 95%ile","3482m³/d",null,"8000ug/l  Fe Upper Tier ",null,null,null,"",null,null,null,null,null,null,null,null,null,null,null,null,null,"N/A",15.5,null,null,null,null,null,null,"Works identified for both WFD and SAe drivers.  WFD limit is concluded to be cost beneficial. 4.3 kilometres improved from Moderate to Good status and 1.4 kilometres improved from Poor to Good status and 9.8 kilometres improved from Poor to Moderate status. Total 15.5km in river length improvement.","*",null,778365,23.136999999999979,23.136999999999979,1,"WWN","£ per km LORI",9.9999999999999995E-7,"Dual P Driver Site -LORI assigned to WFd_IMP Driver",null,""]
["YOR00906","Changed",null,null,null,"WQ","Humber","Yorkshire","Yorkshire Water Service Ltd","7YW200850","BLACKBURN MEADOWS/STW","Don from River Don Works to River Rother","GB104027057413","River","Don Middle",null,null,null,"WFD_IMPg","Phosphorus",null,null,null,null,"Continuous Discharge","2024-12-22","Amber","E25",440520,391930,null,null,null,null,null,null,null,null,null,null,null,null,null,null,null,null,null,null,null,null,null,null,null,null,null,null,null,null,null,null,460744,null,"0.3mg/l average","4000ug/l Fe 95%ile","158000m³/d",null,"8000ug/l  Fe Upper Tier ",null,null,null,"",null,null,null,null,null,null,null,null,null,null,null,null,null,"N/A",2.4,null,null,null,null,null,null,"Works identified for both WFD and SAe drivers.  WFD limit is concluded to be cost beneficial. 2.4 kilometres improved from Poor to Good status","*",null,778365,6.5280000000000058,6.5280000000000058,1,"WWN","£ per km LORI",9.9999999999999995E-7,"Propose to change delivery date to 31/03/25. Dual P Driver Site -LORI assigned to WFd_IMP Driver",null,""]
["YOR00913","Changed",null,null,null,"WQ","Humber","Yorkshire","Yorkshire Water Service Ltd","7YW200857","Old Whittington (Chesterfield) STW","Rother, Spittal Brook to Doe Lea","GB104027057771","River","Rother and Doe Lea",null,null,null,"WFD_IMPg","Phosphorus",null,null,null,null,"Continuous Discharge","2024-12-22","Amber","WRA6756",439406,374553,null,null,null,null,null,null,null,null,null,null,null,null,null,null,null,null,null,null,null,null,null,null,null,null,null,null,null,null,null,null,97084.6,null,"0.25mg/l average","4000ug/l Fe 95%ile","29600m³/d",null,"8000ug/l  Fe Upper Tier ",null,null,null,"",null,null,null,null,null,null,null,null,null,null,null,null,null,null,8.3000000000000007,null,null,null,null,null,null,"Works identified for both WFD and SAe drivers.  WFD limit is concluded to be cost beneficial. 8.3 kilometres improved from Poor to Good status","*",null,778365,9.2680000000000007,9.2680000000000007,1,"WWN","£ per km LORI",9.9999999999999995E-7,"Dual P Driver Site -LORI assigned to WFd_IMP Driver",null,""]
["YOR00914","Changed","Yes – alteration made",null,null,"WQ","Humber","Yorkshire","Yorkshire Water Service Ltd","7YW200858","STOCKLEY/STW","Doe Lea from Source to Hawke Brook","GB104027057290","River","Rother and Doe Lea",null,null,null,"WFD_IMPg","Phosphorus",null,null,null,null,"Continuous Discharge","2024-12-22","Amber","E280",445920,367970,null,null,null,null,null,null,null,null,null,null,null,null,null,null,null,null,null,null,null,null,null,null,null,null,null,null,null,null,null,null,2673.4,null,"0.5mg/l average","4000ug/l Fe 95%ile","677m³/d",null,"8000ug/l  Fe Upper Tier ",null,null,null,"",null,null,null,null,null,null,null,null,null,null,null,null,null,"N/A",4,null,null,null,null,null,null,"Cost beneficial scheme. 4 kilometres improved from Poor to Good status","*",null,276351,2.3670000000000009,2.3670000000000009,1,"WWN","£ per km LORI",9.9999999999999995E-7,"Single WFD_IMP Driver For P",null,""]
["YOR00915","Changed",null,null,null,"WQ","Humber","Yorkshire","Yorkshire Water Service Ltd","7YW200859","BOLSOVER/STW","Doe Lea from Source to Hawke Brook","GB104027057290","River","Rother and Doe Lea",null,null,null,"WFD_IMPg","Phosphorus",null,null,null,null,"Continuous Discharge","2024-12-22","Amber",1866,445919,370148,null,null,null,null,null,null,null,null,null,null,null,null,null,null,null,null,null,null,null,null,null,null,null,null,null,null,null,null,null,null,11810.6,null,"0.3mg/l average","4000ug/l Fe 95%ile","1900m³/d",null,"8000ug/l  Fe Upper Tier ",null,null,null,null,null,null,null,null,null,null,null,null,null,null,null,null,null,null,4,null,null,null,null,null,null,"Works identified for both WFD and SAe drivers.  WFD limit is concluded to be cost beneficial. 4 kilometres improved from Poor to Good status","*",null,778365,7.7959999999999958,7.7959999999999958,1,"WWN","£ per km LORI",9.9999999999999995E-7,"Dual P Driver Site plus Ammonia-LORI assigned to WFd_IMP Driver",null,""]
["YOR00916","Changed",null,null,null,"WQ","Humber","Yorkshire","Yorkshire Water Service Ltd","7YW200860","STAVELEY/STW","Doe Lea from Hawke Brooke to River Rother","GB104027057301","River","Rother and Doe Lea",null,null,null,"WFD_IMPg","Phosphorus",null,null,null,null,"Continuous Discharge","2024-12-22","Amber","WRA 6647",444380,476610,null,null,null,null,null,null,null,null,null,null,null,null,null,null,null,null,null,null,null,null,null,null,null,null,null,null,null,null,null,null,28138,null,"0.25mg/l average","4000ug/l Fe 95%ile","5730m³/d",null,"8000ug/l  Fe Upper Tier ",null,null,null,"",null,null,null,null,null,null,null,null,null,null,null,null,null,"N/A",2.9,null,null,null,null,null,null,"Works identified for both WFD and SAe drivers.  WFD limit is concluded to be cost beneficial. 2.9 kilometres improved from Bad to Good status","*",null,778365,12.93399999999999,12.93399999999999,1,"WWN","£ per km LORI",9.9999999999999995E-7,"Dual P Driver Site -LORI assigned to WFd_IMP Driver",null,""]
["YOR00917","Changed",null,null,null,"WQ","Humber","Yorkshire","Yorkshire Water Service Ltd","7YW200861","WOODHOUSE MILL WwTW","Rother, Doe Lea to Don","GB104027057772","River","Rother and Doe Lea",null,null,null,"WFD_IMPg","Phosphorus",null,null,null,null,"Continuous Discharge","2024-12-22","Amber","3334(SS)",443290,386140,null,null,null,null,null,null,null,null,null,null,null,null,null,null,null,null,null,null,null,null,null,null,null,null,null,null,null,null,null,null,128370,null,"0.9mg/l average","4000ug/l Fe 95%ile","28343m³/d",null,"8000ug/l  Fe Upper Tier ",null,null,null,"",null,null,null,null,null,null,null,null,null,null,null,null,null,"N/A",8.5,null,null,null,null,null,null,"Works identified for both WFD and SAe drivers.  WFD limit is concluded to be cost beneficial. 8.5 kilometres improved from Poor to Good status","*",null,778365,4.2749999999999986,4.2749999999999986,1,"WWN","£ per km LORI",9.9999999999999995E-7,"Dual P Driver Site -LORI assigned to WFd_IMP Driver",null,""]
["YOR00918","Changed",null,null,null,"WQ","Humber","Yorkshire","Yorkshire Water Service Ltd","7YW200862","LONG LANE/STW","Ulley Brook from Source to River Rother","GB104027057740","River","Rother and Doe Lea",null,null,null,"WFD_IMPg","Phosphorus",null,null,null,null,"Continuous Discharge","2024-12-22","Amber","2081",443678,389206,null,null,null,null,null,null,null,null,null,null,null,null,null,null,null,null,null,null,null,null,null,null,null,null,null,null,null,null,null,null,22968,null,"0.5mg/l average","4000ug/l Fe 95%ile","4472m³/d",null,"8000ug/l  Fe Upper Tier ",null,null,null,"",null,null,null,null,null,null,null,null,null,null,null,null,null,"N/A",4.0999999999999996,null,null,null,null,null,null,"Works identified for both WFD and SAe drivers.  WFD limit is concluded to be cost beneficial. 4.1 kilometres improved from Poor to Good status","*",null,778365,4.2360000000000042,4.2360000000000042,1,"WWN","£ per km LORI",9.9999999999999995E-7,"Dual P Driver Site -LORI assigned to WFd_IMP Driver",null,""]
["YOR00919","Changed",null,null,null,"WQ","Humber","Yorkshire","Yorkshire Water Service Ltd","7YW200863","ALDWARKE/STW","Don from River Rother to River Dearne","GB104027057452","River","Don Middle",null,null,null,"WFD_IMPg","Phosphorus",null,null,null,null,"Continuous Discharge","2024-12-22","Amber","C4954",445060,394470,null,null,null,null,null,null,null,null,null,null,null,null,null,null,null,null,null,null,null,null,null,null,null,null,null,null,null,null,null,null,109591,null,"0.7mg/l average","4000ug/l Fe 95%ile","31277m³/d",null,"8000ug/l  Fe Upper Tier ",null,null,null,"",null,null,null,null,null,null,null,null,null,null,null,null,null,null,7.8,null,null,null,null,null,null,"Works identified for both WFD and SAe drivers.  WFD limit is concluded to be cost beneficial. 7.8 kilometres improved from Poor to Good status kilometres improved from Poor to Good status","*",null,778365,7.0600000000000023,7.0600000000000023,1,"WWN","£ per km LORI",9.9999999999999995E-7,"Dual P Driver Site -LORI assigned to WFd_IMP Driver",null,""]
["YOR00920","Changed",null,null,null,"WQ","Humber","Yorkshire","Yorkshire Water Service Ltd","7YW200864","MEXBORO SWINTON/STW","Don from River Rother to River Dearne","GB104027057452","River","Don Middle",null,null,null,"WFD_IMPg","Phosphorus",null,null,null,null,"Continuous Discharge","2024-12-22","Amber",2160,446986,399204,null,null,null,null,null,null,null,null,null,null,null,null,null,null,null,null,null,null,null,null,null,null,null,null,null,null,null,null,null,null,16175.2,null,"1mg/l average","4000ug/l Fe 95%ile","4800m³/d",null,"8000ug/l  Fe Upper Tier ",null,null,null,"",null,null,null,null,null,null,null,null,null,null,null,null,null,"N/A",7.8,null,null,null,null,null,null,"Works identified for both WFD and SAe drivers.  WFD limit is concluded to be cost beneficial. 7.8 kilometres improved from Poor to Good status kilometres improved from Poor to Good status","*",null,778365,3.0600000000000023,3.0600000000000023,1,"WWN","£ per km LORI",9.9999999999999995E-7,"Dual P Driver Site -LORI assigned to WFd_IMP Driver",null,""]
["YOR00921","Changed",null,null,null,"WQ","Humber","Yorkshire","Yorkshire Water Service Ltd","7YW200865","DENABY WTW","Don from River Rother to River Dearne","GB104027057452","River","Don Middle",null,null,null,"WFD_IMPg","Phosphorus",null,null,null,null,"Continuous Discharge","2024-12-22","Amber","E728(SS)",449450,399940,null,null,null,null,null,null,null,null,null,null,null,null,null,null,null,null,null,null,null,null,null,null,null,null,null,null,null,null,null,null,32166,null,"0.6mg/l average","4000ug/l Fe 95%ile","8199m³/d",null,"8000ug/l  Fe Upper Tier ",null,null,null,"",null,null,null,null,null,null,null,null,null,null,null,null,null,"N/A",7.8,null,null,null,null,null,null,"Works identified for both WFD and SAe drivers.  WFD limit is concluded to be cost beneficial. 7.8 kilometres improved from Poor to Good status kilometres improved from Poor to Good status","*",null,778365,13.415999999999983,13.415999999999983,1,"WWN","£ per km LORI",9.9999999999999995E-7,"Dual P Driver Site -LORI assigned to WFd_IMP Driver",null,""]
["YOR00922","Changed","Yes – alteration made",null,null,"wq","Humber","Yorkshire","Yorkshire Water Service Ltd","7YW200866","Clifton STW","Kearsley Bk","GB104027064244","River","Don Middle",null,null,null,"WFD_IMPg","Phosphorus",null,null,null,null,"Continuous Discharge","2024-12-22","Amber","E727(SS)",451600,396800,null,null,null,null,null,null,null,null,null,null,null,null,null,null,null,null,null,null,null,null,null,null,null,null,null,null,null,null,null,null,189,null,"4mg/l average","4000ug/l Fe 95%ile","40m³/d",null,"8000ug/l  Fe Upper Tier ",null,null,null,"",null,null,null,null,null,null,null,null,null,null,null,null,null,"N/A",3.5,null,null,null,null,null,null,"Cost beneficial scheme. 3.5 kilometres improved from Moderate to Good status","*",null,276351,0,0,1,"WWN","£ per km LORI",9.9999999999999995E-7,"Single WFD_IMP Driver For P#Doesn't have a LORI associated. Small Phosphorus change. ",null,""]
["YOR00923","Changed","Yes – alteration made",null,null,"WQ","Humber","Yorkshire","Yorkshire Water Service Ltd","7YW200867","BENTLEY/STW P Removal","Bentley Mill Stream","GB104027057541","River","Don Lower",null,null,null,"WFD_IMPg","Phosphorus",null,null,null,null,"Continuous Discharge","2024-12-22","Amber","1978 sched 1",457130,405720,null,null,null,null,null,null,null,null,null,null,null,null,null,null,null,null,null,null,null,null,null,null,null,null,null,null,null,null,null,null,20936,null,"0.25mg/l average","4000ug/l Fe 95%ile","5046m³/d",null,"8000ug/l  Fe Upper Tier ",null,null,null,"",null,null,null,null,null,null,null,null,null,null,null,null,null,null,1.3,null,null,null,null,null,null,"Works identified for both WFD and SAe drivers.  WFD limit is concluded to be cost beneficial. ","*",null,778365,3.43,3.43,1,"WWN","£ per km LORI",9.9999999999999995E-7,"Dual P Driver Site -LORI assigned to WFd_IMP Driver 7YW200867",null,""]
["YOR00928","Changed",null,null,null,"WQ","Humber","Yorkshire","Yorkshire Water Service Ltd","7YW200872","KIRK SMEATON/STW","Went from Hoyle Mill Stream to Blowell Drain","GB104027063360","River","Don Lower",null,null,null,"WFD_IMPg","Phosphorus",null,null,null,null,"Continuous Discharge","2024-12-22","Amber","E730",453354,415995,null,null,null,null,null,null,null,null,null,null,null,null,null,null,null,null,null,null,null,null,null,null,null,null,null,null,null,null,null,null,800.6,null,"0.5mg/l average","4000ug/l Fe 95%ile","171m³/d",null,"8000ug/l  Fe Upper Tier ",null,null,null,"",null,null,null,null,null,null,null,null,null,null,null,null,null,"N/A",10.1,null,null,null,null,null,null,"Cost beneficial scheme. Total 10.1km in river length improvement comprising  8.1 kilometres improved from Poor to Good status and 2 kilometres improved from Poor to Moderate status.","*",null,1287218,2,2,1,"WWN","£ per kgP/day removed",9.9999999999999995E-7,"Site Closure and Transfer Scheme with Single WFD_IMP  for Phosphorus",null,""]
["YOR00966","Changed",null,null,null,"WQ","Humber","Yorkshire","Yorkshire Water Service Ltd","7YW200910","Adwick Le Street","Ea Beck from the Skell to River Don","GB104027057591","River","Don Lower",null,null,null,"U_IMP2","Phosphorus",null,null,null,null,"Continuous Discharge","2025-03-31","Amber","WRA7541",454640,407980,null,null,null,null,null,null,null,null,null,null,null,null,null,null,null,null,null,null,null,null,null,null,null,null,null,null,null,null,null,null,20133,null,"2mg/l average","4000ug/l Fe 95%ile","5400m³/d",null,"8000ug/l  Fe Upper Tier ",null,null,null,"",null,null,null,null,null,null,null,null,null,null,null,null,null,null,2.4,null,null,null,null,null,null,"Defra to confirm sensitive areas","*",null,778365,0,0,1,"WWN","£ per km LORI",9.9999999999999995E-7,"Dual P Driver Site -LORI assigned to WFd_IMP Driver",null,""]
["YOR00967","Changed",null,null,null,"WQ","Humber","Yorkshire","Yorkshire Water Service Ltd","7YW200911","ALDWARKE/STW","Don from River Rother to River Dearne","GB104027057452","River","Don Middle",null,null,null,"U_IMP2","Phosphorus",null,null,null,null,"Continuous Discharge","2025-03-31","Amber","C4954",445060,394470,null,null,null,null,null,null,null,null,null,null,null,null,null,null,null,null,null,null,null,null,null,null,null,null,null,null,null,null,null,null,109591,null,"1mg/l average","4000ug/l Fe 95%ile","31277m³/d",null,"8000ug/l  Fe Upper Tier ",null,null,null,"",null,null,null,null,null,null,null,null,null,null,null,null,null,null,7.8,null,null,null,null,null,null,"Defra to confirm sensitive areas","*",null,778365,0,0,1,"WWN","£ per km LORI",9.9999999999999995E-7,"Dual P Driver Site -LORI assigned to WFd_IMP Driver",null,""]
["YOR00968","Changed","Yes – alteration made",null,null,"WQ","Humber","Yorkshire","Yorkshire Water Service Ltd","7YW200912","BENTLEY/STW P Removal","Bentley Mill Stream","GB104027057541","River","Don Lower",null,null,null,"U_IMP2","Phosphorus",null,null,null,null,"Continuous Discharge","2025-03-31","Amber",1978,457130,405720,null,null,null,null,null,null,null,null,null,null,null,null,null,null,null,null,null,null,null,null,null,null,null,null,null,null,null,null,null,null,20936,null,"2mg/l average","4000ug/l Fe 95%ile","5046m³/d",null,"8000ug/l  Fe Upper Tier ",null,null,null,"",null,null,null,null,null,null,null,null,null,null,null,null,null,null,1.3,null,null,null,null,null,null,"Defra to confirm sensitive areas.","*",null,778365,0,0,1,"WWN","£ per km LORI",9.9999999999999995E-7,"Dual P Driver Site -LORI assigned to WFd_IMP Driver 7YW200867",null,""]
["YOR00969","Changed",null,null,null,"WQ","Humber","Yorkshire","Yorkshire Water Service Ltd","7YW200913","BLACKBURN MEADOWS/STW","Don from River Don Works to River Rother","GB104027057413","River","Don Middle",null,null,null,"U_IMP2","Phosphorus",null,null,null,null,"Continuous Discharge","2025-03-31","Amber","E25",440520,391930,null,null,null,null,null,null,null,null,null,null,null,null,null,null,null,null,null,null,null,null,null,null,null,null,null,null,null,null,null,null,460744,null,"1mg/l average","4000ug/l Fe 95%ile","158000m³/d",null,"8000ug/l  Fe Upper Tier ",null,null,null,"",null,null,null,null,null,null,null,null,null,null,null,null,null,null,null,null,null,null,null,null,null,"Defra to confirm sensitive areas","*",null,778365,0,0,1,"WWN","£ per km LORI",9.9999999999999995E-7,"Dual P Driver Site -LORI assigned to WFd_IMP Driver",null,""]
["YOR00970","Changed",null,null,null,"WQ","Humber","Yorkshire","Yorkshire Water Service Ltd","7YW200914","BOLSOVER/STW","Doe Lea from Source to Hawke Brook","GB104027057290","River","Rother and Doe Lea",null,null,null,"U_IMP2","Phosphorus",null,null,null,null,"Continuous Discharge","2025-03-31","Amber",1866,445960,370100,null,null,null,null,null,null,null,null,null,null,null,null,null,null,null,null,null,null,null,null,null,null,null,null,null,null,null,null,null,null,11810.6,null,"2mg/l average","4000ug/l Fe 95%ile","1900m³/d",null,"8000ug/l  Fe Upper Tier ",null,null,null,"",null,null,null,null,null,null,null,null,null,null,null,null,null,null,4,null,null,null,null,null,null,"Defra to confirm sensitive areas","*",null,778365,0,0,1,"WWN","£ per km LORI",9.9999999999999995E-7,"Dual P Driver Site plus Ammonia-LORI assigned to WFd_IMP Driver",null,""]
["YOR00971","Changed",null,null,null,"WQ","Humber","Yorkshire","Yorkshire Water Service Ltd","7YW200915","BOLTON ON DEARNE/STW","Dearne Darfield STW to River Don","GB104027063173","River","Dearne",null,null,null,"U_IMP2","Phosphorus",null,null,null,null,"Continuous Discharge","2025-03-31","Amber",3331,445930,402080,null,null,null,null,null,null,null,null,null,null,null,null,null,null,null,null,null,null,null,null,null,null,null,null,null,null,null,null,null,null,101008,null,"2mg/l average","4000ug/l Fe 95%ile","5400m³/d",null,"8000ug/l  Fe Upper Tier ",null,null,null,"",null,null,null,null,null,null,null,null,null,null,null,null,null,null,null,null,null,null,null,null,null,"Defra to confirm sensitive areas","*",null,502014,5.8619999999999948,5.8619999999999948,1,"WWN","£ per km LORI",9.9999999999999995E-7,"Single U_IMP2 Phosphorus Driver at Site",null,""]
["YOR00972","Changed","Yes – alteration made",null,null,"WQ","Humber","Yorkshire","Yorkshire Water Service Ltd","7YW200916","BRADFORD ESHOLT/NO 2 STW","Aire from Gill Beck (Baildon) to River Calder","GB104027063032","River","Aire Lower",null,null,null,"U_IMP2","Phosphorus",null,null,null,null,"Continuous Discharge","2025-03-31","Amber","WRA6925",418984,438746,null,null,null,null,null,null,null,null,null,null,null,null,null,null,null,null,null,null,null,null,null,null,null,null,null,null,null,null,null,null,367696.2,null,"1mg/l average","4000ug/l Fe 95%ile","130000m³/d",null,"8000ug/l  Fe Upper Tier ",null,null,null,"",null,null,null,null,null,null,null,null,null,null,null,null,null,null,null,null,null,null,null,null,null,"Defra to confirm sensitive areas","*",null,778365,0,0,1,"WWN","£ per km LORI",9.9999999999999995E-7,"Dual P Driver Site -LORI assigned to WFd_IMP Driver",null,""]
["YOR00973","Changed",null,null,null,"WQ","Humber","Yorkshire","Yorkshire Water Service Ltd","7YW200917","CALDER VALE/STW","Calder from River Chald to River Aire","GB104027062632","River","Calder Lower",null,null,null,"U_IMP2","Phosphorus",null,null,null,null,"Continuous Discharge","2025-03-31","Amber","C4106",435070,420410,null,null,null,null,null,null,null,null,null,null,null,null,null,null,null,null,null,null,null,null,null,null,null,null,null,null,null,null,null,null,101008,null,"1mg/l average","4000ug/l Fe 95%ile","32000m³/d",null,"8000ug/l  Fe Upper Tier ",null,null,null,"",null,null,null,null,null,null,null,null,null,null,null,null,null,null,6.3,null,null,null,null,null,null,"Defra to confirm sensitive areas","*",null,778365,0,0,1,"WWN","£ per km LORI",9.9999999999999995E-7,"Dual P Driver Site -LORI assigned to WFd_IMP Driver",null,""]
["YOR00974","Changed",null,null,null,"WQ","Humber","Yorkshire","Yorkshire Water Service Ltd","7YW200918","CASTLEFORD/STW","Aire from River Calder to River Ouse","GB104027062760","River","Aire Lower",null,null,null,"U_IMP2","Phosphorus",null,null,null,null,"Continuous Discharge","2025-03-31","Amber","WRA6659",444640,426680,null,null,null,null,null,null,null,null,null,null,null,null,null,null,null,null,null,null,null,null,null,null,null,null,null,null,null,null,null,null,40721,null,"2mg/l average","4000ug/l Fe 95%ile","8400m³/d",null,"8000ug/l  Fe Upper Tier ",null,null,null,"",null,null,null,null,null,null,null,null,null,null,null,null,null,null,null,null,null,null,null,null,null,"Defra to confirm sensitive areas","*",null,778365,5.296999999999997,5.296999999999997,1,"WWN","£ per km LORI",9.9999999999999995E-7,"Dual P Driver Site -LORI assigned to U_IMP2  Driver. U_IMP2 more stringent than WFD_IMP",null,""]
["YOR00975","Changed",null,null,null,"WQ","Humber","Yorkshire","Yorkshire Water Service Ltd","7YW200919","CHEESEBOTTOM STW","Don from Scout Dyke to the Little Don","GB104027057490","River","Don Upper",null,null,null,"U_IMP2","Phosphorus",null,null,null,null,"Continuous Discharge","2025-03-31","Amber",2556,427990,401280,null,null,null,null,null,null,null,null,null,null,null,null,null,null,null,null,null,null,null,null,null,null,null,null,null,null,null,null,null,null,13297.2,null,"2mg/l average","4000ug/l Fe 95%ile","4478m³/d",null,"8000ug/l  Fe Upper Tier ",null,null,null,"",null,null,null,null,null,null,null,null,null,null,null,null,null,null,4.3,null,null,null,null,null,null,"Defra to confirm sensitive areas","*",null,778365,0,0,1,"WWN","£ per km LORI",9.9999999999999995E-7,"Dual P Driver Site -LORI assigned to WFd_IMP Driver",null,""]
["YOR00976","Changed",null,null,null,"WQ","Humber","Yorkshire","Yorkshire Water Service Ltd","7YW200920","CLAYTON WEST/STW","Dearne from Source to Bentley Brook","GB104027063220","River","Dearne",null,null,null,"U_IMP2","Phosphorus",null,null,null,null,"Continuous Discharge","2025-03-31","Amber","3809(SS)",426780,412070,null,null,null,null,null,null,null,null,null,null,null,null,null,null,null,null,null,null,null,null,null,null,null,null,null,null,null,null,null,null,16803.8,null,"2mg/l average","4000ug/l Fe 95%ile","5748m³/d",null,"8000ug/l  Fe Upper Tier ",null,null,null,"",null,null,null,null,null,null,null,null,null,null,null,null,null,null,null,null,null,null,null,null,null,"Defra to confirm sensitive areas","*",null,778365,0,0,1,"WWN","£ per km LORI",9.9999999999999995E-7,"Dual P Driver Site -LORI assigned to WFd_IMP Driver",null,""]
["YOR00977","Changed",null,null,null,"WQ","Humber","Yorkshire","Yorkshire Water Service Ltd","7YW200921","DARTON/STW","Dearne from Cawthorne Dyke to Lundwood STW","GB104027063171","River","Dearne",null,null,null,"U_IMP2","Phosphorus",null,null,null,null,"Continuous Discharge","2025-03-31","Amber",2026,432637,408976,null,null,null,null,null,null,null,null,null,null,null,null,null,null,null,null,null,null,null,null,null,null,null,null,null,null,null,null,null,null,22301,null,"2mg/l average","4000ug/l Fe 95%ile","4200m³/d",null,"8000ug/l  Fe Upper Tier ",null,null,null,"",null,null,null,null,null,null,null,null,null,null,null,null,null,null,null,null,null,null,null,null,null,"Defra to confirm sensitive areas","*",null,502014,7.718,7.718,1,"WWN","£ per km LORI",9.9999999999999995E-7,"Single U_IMP2 Phosphorus Driver at Site",null,""]
["YOR00978","Changed",null,null,null,"WQ","Humber","Yorkshire","Yorkshire Water Service Ltd","7YW200922","DENABY WTW","Don from River Rother to River Dearne","GB104027057452","River","Don Middle",null,null,null,"U_IMP2","Phosphorus",null,null,null,null,"Continuous Discharge","2025-03-31","Amber","E728(SS)",449450,399940,null,null,null,null,null,null,null,null,null,null,null,null,null,null,null,null,null,null,null,null,null,null,null,null,null,null,null,null,null,null,32166,null,"2mg/l average","4000ug/l Fe 95%ile","8199m³/d",null,"8000ug/l  Fe Upper Tier ",null,null,null,"",null,null,null,null,null,null,null,null,null,null,null,null,null,null,null,null,null,null,null,null,null,"Defra to confirm sensitive areas","*",null,778365,0,0,1,"WWN","£ per km LORI",9.9999999999999995E-7,"Dual P Driver Site -LORI assigned to WFd_IMP Driver",null,""]
["YOR00979","Changed",null,null,null,"WQ","Humber","Yorkshire","Yorkshire Water Service Ltd","7YW200923","DEWSBURY/STW","Calder from River Colne to River Chald","GB104027062631","River","Calder Lower",null,null,null,"U_IMP2","Phosphorus",null,null,null,null,"Continuous Discharge","2025-03-31","Amber","E15",426130,419640,null,null,null,null,null,null,null,null,null,null,null,null,null,null,null,null,null,null,null,null,null,null,null,null,null,null,null,null,null,null,250450,null,"1mg/l average","4000ug/l Fe 95%ile","85694m³/d",null,"8000ug/l  Fe Upper Tier ",null,null,null,"",null,null,null,null,null,null,null,null,null,null,null,null,null,null,null,null,null,null,null,null,null,"Defra to confirm sensitive areas","*",null,778365,0,0,1,"WWN","£ per km LORI",9.9999999999999995E-7,"Dual P Driver Site -LORI assigned to WFd_IMP Driver#Site known As Dewsbury and Mitchell Laithes",null,""]
["YOR00980","Changed",null,null,null,"WQ","Humber","Yorkshire","Yorkshire Water Service Ltd","7YW200924","DOWLEY GAP (BINGLEY)","Aire (R Worth to Gill Beck)","GB104027063034","River","Aire Middle",null,null,null,"U_IMP2","Phosphorus",null,null,null,null,"Continuous Discharge","2025-03-31","Amber",2502,412310,438140,null,null,null,null,null,null,null,null,null,null,null,null,null,null,null,null,null,null,null,null,null,null,null,null,null,null,null,null,null,null,38795.4,null,"2mg/l average","4000ug/l Fe 95%ile","11713m³/d",null,"8000ug/l  Fe Upper Tier ",null,null,null,"",null,null,null,null,null,null,null,null,null,null,null,null,null,null,null,null,null,null,null,null,null,"Defra to confirm sensitive areas","*",null,778365,0,0,1,"WWN","£ per km LORI",9.9999999999999995E-7,"Dual P Driver Site -LORI assigned to WFd_IMP Driver",null,""]
["YOR00981","Changed",null,null,null,"WQ","Humber","Yorkshire","Yorkshire Water Service Ltd","7YW200925","DRONFIELD/STW","Drone/Whitting from Source to River Rother","GB104027057710","River","Rother and Doe Lea",null,null,null,"U_IMP2","Phosphorus",null,null,null,null,"Continuous Discharge","2025-03-31","Amber",1863,436750,377810,null,null,null,null,null,null,null,null,null,null,null,null,null,null,null,null,null,null,null,null,null,null,null,null,null,null,null,null,null,null,21779,null,"2mg/l average","4000ug/l Fe 95%ile","5500m³/d",null,"8000ug/l  Fe Upper Tier ",null,null,null,"",null,null,null,null,null,null,null,null,null,null,null,null,null,null,null,null,null,null,null,null,null,"Defra to confirm sensitive areas","*",null,778365,0,0,1,"WWN","£ per km LORI",9.9999999999999995E-7,"Dual P Driver Site -LORI assigned to WFd_IMP Driver",null,""]
["YOR00982","Changed",null,null,null,"WQ","Humber","Yorkshire","Yorkshire Water Service Ltd","7YW200926","OWLWOOD (GARFORTH) STW","Lin Dike from Source to River Aire","GB104027062810","River","Aire Lower",null,null,null,"U_IMP2","Phosphorus",null,null,null,null,"Continuous Discharge","2025-03-31","Amber",2225,441750,428790,null,null,null,null,null,null,null,null,null,null,null,null,null,null,null,null,null,null,null,null,null,null,null,null,null,null,null,null,null,null,39030.800000000003,null,"2mg/l average","3481ug/l Fe 95%ile","8801m³/d",null,"8000ug/l  Fe Upper Tier ",null,null,null,"",null,null,null,null,null,null,null,null,null,null,null,null,null,null,null,null,null,null,null,null,null,"Defra to confirm sensitive areas","*",null,778365,0,0,1,"WWN","£ per km LORI",9.9999999999999995E-7,"Dual P Driver Site -LORI assigned to WFd_IMP Driver",null,""]
["YOR00983","Changed",null,null,null,"WQ","Humber","Yorkshire","Yorkshire Water Service Ltd","7YW200927","GRIMETHORPE/STW","Grimethorpe Dike from Source to River Dearne","GB104027063180","River","Dearne",null,null,null,"U_IMP2","Phosphorus",null,null,null,null,"Continuous Discharge","2025-03-31","Amber",2246,440280,409430,null,null,null,null,null,null,null,null,null,null,null,null,null,null,null,null,null,null,null,null,null,null,null,null,null,null,null,null,null,null,12973.4,null,"2mg/l average","2655ug/l Fe 95%ile","3157m³/d",null,"8000ug/l  Fe Upper Tier ",null,null,null,"",null,null,null,null,null,null,null,null,null,null,null,null,null,null,null,null,null,null,null,null,null,"Defra to confirm sensitive areas","*",null,778365,0,0,1,"WWN","£ per km LORI",9.9999999999999995E-7,"Dual P Driver Site -LORI assigned to WFd_IMP Driver",null,""]
["YOR00984","Changed",null,null,null,"WQ","Humber","Yorkshire","Yorkshire Water Service Ltd","7YW200928","HARROGATE SOUTH/STW","Crimple Beck from Park Beck to River Nidd","GB104027063742","River","Nidd Middle and Lower",null,null,null,"U_IMP2","Phosphorus",null,null,null,null,"Continuous Discharge","2025-03-31","Amber","QR.27/21/0048",437870,451620,null,null,null,null,null,null,null,null,null,null,null,null,null,null,null,null,null,null,null,null,null,null,null,null,null,null,null,null,null,null,36729.800000000003,null,"2mg/l average","4000ug/l Fe 95%ile","9800m³/d",null,"8000ug/l  Fe Upper Tier ",null,null,null,"",null,null,null,null,null,null,null,null,null,null,null,null,null,null,null,null,null,null,null,null,null,"Defra to confirm sensitive areas","*",null,778365,0,0,1,"WWN","£ per km LORI",9.9999999999999995E-7,"Dual P Driver Site -LORI assigned to WFd_IMP Driver",null,""]
["YOR00985","Changed",null,null,null,"WQ","Humber","Yorkshire","Yorkshire Water Service Ltd","7YW200929","HORBURY (DUDFLEET) STW","Calder from River Colne to River Chald","GB104027062631","River","Calder Lower",null,null,null,"U_IMP2","Phosphorus",null,null,null,null,"Continuous Discharge","2025-03-31","Amber","C4107",430000,417070,null,null,null,null,null,null,null,null,null,null,null,null,null,null,null,null,null,null,null,null,null,null,null,null,null,null,null,null,null,null,42,null,"2mg/l average","4000ug/l Fe 95%ile","10m3/d",null,"8000ug/l  Fe Upper Tier ",null,null,null,"",null,null,null,null,null,null,null,null,null,null,null,null,null,null,null,null,null,null,null,null,null,"Defra to confirm sensitive areas","*",null,778365,0,0,1,"WWN","£ per km LORI",9.9999999999999995E-7,"Dual P Driver Site -LORI assigned to WFd_IMP Driver",null,""]
["YOR00986","Changed",null,null,null,"WQ","Humber","Yorkshire","Yorkshire Water Service Ltd","7YW200930","HUDDERSFIELD STW Cooper Bridge","Calder from River Colne to River Chald","GB104027062631","River","Calder Lower",null,null,null,"U_IMP2","Phosphorus",null,null,null,null,"Continuous Discharge","2025-03-31","Amber","WRA7409",418470,420810,null,null,null,null,null,null,null,null,null,null,null,null,null,null,null,null,null,null,null,null,null,null,null,null,null,null,null,null,null,null,56427,null,"1mg/l average","4000ug/l Fe 95%ile","20000m³/d",null,"8000ug/l  Fe Upper Tier ",null,null,null,"",null,null,null,null,null,null,null,null,null,null,null,null,null,null,null,null,null,null,null,null,null,"Defra to confirm sensitive areas","*",null,778365,0,0,1,"WWN","£ per km LORI",9.9999999999999995E-7,"Dual P Driver Site -LORI assigned to WFd_IMP Driver",null,""]
["YOR00987","Changed",null,null,null,"WQ","Humber","Yorkshire","Yorkshire Water Service Ltd","7YW200931","KNOSTROP WWTW","Wyke Beck from Source to River Aire","GB104027062880","River","Aire Lower",null,null,null,"U_IMP2","Phosphorus",null,null,null,null,"Continuous Discharge","2025-03-31","Amber","WRA6924 / 11",433276,432035,null,null,null,null,null,null,null,null,null,null,null,null,null,null,null,null,null,null,null,null,null,null,null,null,null,null,null,null,null,null,366809,null,"1mg/l average","4000ug/l Fe 95%ile","213600m³/d",null,"8000ug/l  Fe Upper Tier ",null,null,null,"",null,null,null,null,null,null,null,null,null,null,null,null,null,null,null,null,null,null,null,null,null,"Defra to confirm sensitive areas","*",null,778365,0,0,1,"WWN","£ per km LORI",9.9999999999999995E-7,"Dual P Driver Site -LORI assigned to WFd_IMP Driver",null,""]
["YOR00988","Changed",null,null,null,"WQ","Humber","Yorkshire","Yorkshire Water Service Ltd","7YW200932","LEMONROYD STW","Oulton Beck from Source to River Aire","GB104027062680","River","Aire Lower",null,null,null,"U_IMP2","Phosphorus",null,null,null,null,"Continuous Discharge","2025-03-31","Amber","WRA7220",438200,428000,null,null,null,null,null,null,null,null,null,null,null,null,null,null,null,null,null,null,null,null,null,null,null,null,null,null,null,null,null,null,35201.199999999997,null,"2mg/l average","4000ug/l Fe 95%ile","7500m³/d",null,"8000ug/l  Fe Upper Tier ",null,null,null,"",null,null,null,null,null,null,null,null,null,null,null,null,null,null,null,null,null,null,null,null,null,"Defra to confirm sensitive areas","*",null,778365,0,0,1,"WWN","£ per km LORI",9.9999999999999995E-7,"Dual P Driver Site -LORI assigned to WFd_IMP Driver",null,""]
["YOR00989","Changed",null,null,null,"WQ","Humber","Yorkshire","Yorkshire Water Service Ltd","7YW200933","LONG LANE/STW","Ulley Brook from Source to River Rother","GB104027057740","River","Rother and Doe Lea",null,null,null,"U_IMP2","Phosphorus",null,null,null,null,"Continuous Discharge","2025-03-31","Amber","2081",443678,389206,null,null,null,null,null,null,null,null,null,null,null,null,null,null,null,null,null,null,null,null,null,null,null,null,null,null,null,null,null,null,22968,null,"2mg/l average","4000ug/l Fe 95%ile","4472m³/d",null,"8000ug/l  Fe Upper Tier ",null,null,null,"",null,null,null,null,null,null,null,null,null,null,null,null,null,null,null,null,null,null,null,null,null,"Defra to confirm sensitive areas","*",null,778365,0,0,1,"WWN","£ per km LORI",9.9999999999999995E-7,"Dual P Driver Site -LORI assigned to WFd_IMP Driver",null,""]
["YOR00990","Changed",null,null,null,"WQ","Humber","Yorkshire","Yorkshire Water Service Ltd","7YW200934","LUNDWOOD STW","Dearne from Lundwood to River Dove","GB104027063172","River","Dearne",null,null,null,"U_IMP2","Phosphorus",null,null,null,null,"Continuous Discharge","2025-03-31","Amber","E10",437940,406610,null,null,null,null,null,null,null,null,null,null,null,null,null,null,null,null,null,null,null,null,null,null,null,null,null,null,null,null,null,null,85600,null,"2mg/l average","4000ug/l Fe 95%ile","18237m³/d",null,"8000ug/l  Fe Upper Tier ",null,null,null,"",null,null,null,null,null,null,null,null,null,null,null,null,null,null,null,null,null,null,null,null,null,"Defra to confirm sensitive areas","*",null,502014,2.0150000000000006,2.0150000000000006,1,"WWN","£ per km LORI",9.9999999999999995E-7,"Single U_IMP2 Phosphorus Driver at Site",null,""]
["YOR00991","Changed",null,null,null,"WQ","Humber","Yorkshire","Yorkshire Water Service Ltd","7YW200935","NORMANTON/STW (Mill Lane)","Choke Churl Bk from Source to River Calder","GB104027062590","River","Calder Lower",null,null,null,"U_IMP2","Phosphorus",null,null,null,null,"Continuous Discharge","2025-03-31","Amber","WA6472",439370,424190,null,null,null,null,null,null,null,null,null,null,null,null,null,null,null,null,null,null,null,null,null,null,null,null,null,null,null,null,null,null,44569.8,null,"2mg/l average","4000ug/l Fe 95%ile","12464m³/d",null,"8000ug/l  Fe Upper Tier ",null,null,null,"",null,null,null,null,null,null,null,null,null,null,null,null,null,null,6.3,null,null,null,null,null,null,"Defra to confirm sensitive areas","*",null,778365,0,0,1,"WWN","£ per km LORI",9.9999999999999995E-7,"Dual P Driver Site -LORI assigned to WFd_IMP Driver",null,""]
["YOR00992","Changed",null,null,null,"WQ","Humber","Yorkshire","Yorkshire Water Service Ltd","7YW200936","Norton (Askern) WwTW","Went from Hoyle Mill Stream to Blowell Drain","GB104027063360","River","Don Lower",null,null,null,"U_IMP2","Phosphorus",null,null,null,null,"Continuous Discharge","2025-03-31","Amber","3816(SS)",455120,416000,null,null,null,null,null,null,null,null,null,null,null,null,null,null,null,null,null,null,null,null,null,null,null,null,null,null,null,null,null,null,9866.2000000000007,null,"2mg/l average","4000ug/l Fe 95%ile","4004m³/d",null,"8000ug/l  Fe Upper Tier ",null,null,null,"",null,null,null,null,null,null,null,null,null,null,null,null,null,null,8.1,null,null,null,null,null,null,"Defra to confirm sensitive areas","*",null,778365,0,0,1,"WWN","£ per km LORI",9.9999999999999995E-7,"Dual P Driver Site -LORI assigned to WFd_IMP Driver",null,""]
["YOR00993","Changed",null,null,null,"WQ","Humber","Yorkshire","Yorkshire Water Service Ltd","7YW200937","Old Whittington (Chesterfield) STW","Rother, Spittal Brook to Doe Lea","GB104027057771","River","Rother and Doe Lea",null,null,null,"U_IMP2","Phosphorus",null,null,null,null,"Continuous Discharge","2025-03-31","Amber","WRA6756",439200,374630,null,null,null,null,null,null,null,null,null,null,null,null,null,null,null,null,null,null,null,null,null,null,null,null,null,null,null,null,null,null,97084.6,null,"1mg/l average","4000ug/l Fe 95%ile","29600m³/d",null,"8000ug/l  Fe Upper Tier ",null,null,null,"",null,null,null,null,null,null,null,null,null,null,null,null,null,null,8.3000000000000007,null,null,null,null,null,null,"Defra to confirm sensitive areas","*",null,778365,0,0,1,"WWN","£ per km LORI",9.9999999999999995E-7,"Dual P Driver Site -LORI assigned to WFd_IMP Driver",null,""]
["YOR00994","Changed","Yes – alteration made",null,null,"WQ","Humber","Yorkshire","Yorkshire Water Service Ltd","7YW200938","SANDALL/STW","Don from Mill Dyke to River Ouse","GB104027064243","River","Don Lower",null,null,null,"U_IMP2","Phosphorus",null,null,null,null,"Continuous Discharge","2025-03-31","Amber","2829(T)",459760,406360,null,null,null,null,null,null,null,null,null,null,null,null,null,null,null,null,null,null,null,null,null,null,null,null,null,null,null,null,null,null,91114,null,"2mg/l average","4000ug/l Fe 95%ile","25800m³/d",null,"8000ug/l  Fe Upper Tier ",null,null,null,"",null,null,null,null,null,null,null,null,null,null,null,null,null,null,null,null,null,null,null,null,null,"Defra to confirm sensitive areas","*",null,502014,14.064000000000007,14.064000000000007,1,"WWN","£ per km LORI",9.9999999999999995E-7,"Single U_IMP2 Phosphorus Driver at Site",null,""]
["YOR00995","Changed",null,null,null,"WQ","Humber","Yorkshire","Yorkshire Water Service Ltd","7YW200939","SHERBURN IN ELMET/STW","Upper Fox Drain Catchment ds of Sherburn STW","GB104027063610","River","Ouse Lower Yorkshire",null,null,null,"U_IMP2","Phosphorus",null,null,null,null,"Continuous Discharge","2025-03-31","Amber","27/24/0162",452920,433420,null,null,null,null,null,null,null,null,null,null,null,null,null,null,null,null,null,null,null,null,null,null,null,null,null,null,null,null,null,null,12214,null,"2mg/l average","2663ug/l Fe 95%ile","3750m³/d",null,"8000ug/l  Fe Upper Tier ",null,null,null,"",null,null,null,null,null,null,null,null,null,null,null,null,null,null,null,null,null,null,null,null,null,"Defra to confirm sensitive areas","*",null,778365,0,0,1,"WWN","£ per km LORI",9.9999999999999995E-7,"Dual P Driver Site plus Ammonia-LORI assigned to WFd_IMP Driver",null,""]
["YOR00996","Changed",null,null,null,"WQ","Humber","Yorkshire","Yorkshire Water Service Ltd","7YW200940","SNAITH/STW","Aire from River Calder to River Ouse","GB104027062760","River","Aire Lower",null,null,null,"U_IMP2","Phosphorus",null,null,null,null,"Continuous Discharge","2025-03-31","Amber","1943",463530,422350,null,null,null,null,null,null,null,null,null,null,null,null,null,null,null,null,null,null,null,null,null,null,null,null,null,null,null,null,null,null,10800,null,"2mg/l average","4000ug/l Fe 95%ile","1367m³/d",null,"8000ug/l  Fe Upper Tier ",null,null,null,"",null,null,null,null,null,null,null,null,null,null,null,null,null,null,null,null,null,null,null,null,null,"Defra to confirm sensitive areas","*",null,502014,15.47499999999998,15.47499999999998,1,"WWN","£ per km LORI",9.9999999999999995E-7,"Single U_IMP2 Phosphorus Driver at Site",null,""]
["YOR00997","Changed","Yes – alteration made",null,null,"WQ","Humber","Yorkshire","Yorkshire Water Service Ltd","7YW200941","SOUTH ELMSALL/STW","Ea Beck from Frickley Beck to the Skell","GB104027063200","River","Don Lower",null,null,null,"U_IMP2","Phosphorus",null,null,null,null,"Continuous Discharge","2025-03-31","Amber","WRA7507",448390,410640,null,null,null,null,null,null,null,null,null,null,null,null,null,null,null,null,null,null,null,null,null,null,null,null,null,null,null,null,null,null,35231.1,null,"2mg/l average","4000ug/l Fe 95%ile","9800m³/d",null,"8000ug/l  Fe Upper Tier ",null,null,null,"",null,null,null,null,null,null,null,null,null,null,null,null,null,null,null,null,null,null,null,null,null,"Defra to confirm sensitive areas","*",null,778365,0,0,1,"WWN","£ per km LORI",9.9999999999999995E-7,"Dual P Driver Site -LORI assigned to WFd_IMP Driver",null,""]
["YOR00998","Changed",null,null,null,"WQ","Humber","Yorkshire","Yorkshire Water Service Ltd","7YW200942","Stanley (Smalley Bight) STW","Calder from River Chald to River Aire","GB104027062632","River","Calder Lower",null,null,null,"U_IMP2","Phosphorus",null,null,null,null,"Continuous Discharge","2025-03-31","Amber","E743(SS)",435280,423900,null,null,null,null,null,null,null,null,null,null,null,null,null,null,null,null,null,null,null,null,null,null,null,null,null,null,null,null,null,null,18957.2,null,"2mg/l average","4000ug/l Fe 95%ile","5300m³/d",null,"8000ug/l  Fe Upper Tier ",null,null,null,"",null,null,null,null,null,null,null,null,null,null,null,null,null,null,null,null,null,null,null,null,null,"Defra to confirm sensitive areas","*",null,778365,0,0,1,"WWN","£ per km LORI",9.9999999999999995E-7,"Dual P Driver Site -LORI assigned to WFd_IMP Driver (7YW200806)",null,""]
["YOR00999","Changed","Yes – alteration made",null,null,"WQ","Humber","Yorkshire","Yorkshire Water Service Ltd","7YW200943","STAVELEY/STW","Doe Lea from Hawke Brooke to River Rother","GB104027057301","River","Rother and Doe Lea",null,null,null,"U_IMP2","Phosphorus",null,null,null,null,"Continuous Discharge","2025-03-31","Amber","WRA 6647",444380,376610,null,null,null,null,null,null,null,null,null,null,null,null,null,null,null,null,null,null,null,null,null,null,null,null,null,null,null,null,null,null,28138,null,"2mg/l average","4000ug/l Fe 95%ile","5730m³/d",null,"8000ug/l  Fe Upper Tier ",null,null,null,"",null,null,null,null,null,null,null,null,null,null,null,null,null,null,null,null,null,null,null,null,null,"Defra to confirm sensitive areas","*",null,778365,0,0,1,"WWN","£ per km LORI",9.9999999999999995E-7,"Dual P Driver Site -LORI assigned to WFd_IMP Driver",null,""]
["YOR01000","Changed",null,null,null,"WQ","Humber","Yorkshire","Yorkshire Water Service Ltd","7YW200944","STOCKSBRIDGE/STW","Don from Little Don to River Loxley confluence","GB104027057411","River","Don Upper",null,null,null,"U_IMP2","Phosphorus",null,null,null,null,"Continuous Discharge","2025-03-31","Amber","E697(SS)",429150,397500,null,null,null,null,null,null,null,null,null,null,null,null,null,null,null,null,null,null,null,null,null,null,null,null,null,null,null,null,null,null,14718.2,null,"2mg/l average","4000ug/l Fe 95%ile","3482m³/d",null,"8000ug/l  Fe Upper Tier ",null,null,null,"",null,null,null,null,null,null,null,null,null,null,null,null,null,null,null,null,null,null,null,null,null,"Defra to confirm sensitive areas","*",null,778365,0,0,1,"WWN","£ per km LORI",9.9999999999999995E-7,"Dual P Driver Site -LORI assigned to WFd_IMP Driver",null,""]
["YOR01001","Changed",null,null,null,"WQ","Humber","Yorkshire","Yorkshire Water Service Ltd","7YW200945","SUTTON WWTW","Aire from River Calder to River Ouse","GB104027062760","River","Aire Lower",null,null,null,"U_IMP2","Phosphorus",null,null,null,null,"Continuous Discharge","2025-03-31","Amber","1945",450400,424310,null,null,null,null,null,null,null,null,null,null,null,null,null,null,null,null,null,null,null,null,null,null,null,null,null,null,null,null,null,null,48826,null,"2mg/l average","4000ug/l Fe 95%ile","11073m³/d",null,"8000ug/l  Fe Upper Tier ",null,null,null,"",null,null,null,null,null,null,null,null,null,null,null,null,null,null,null,null,null,null,null,null,null,"Defra to confirm sensitive areas","*",null,778365,0,0,1,"WWN","£ per km LORI",9.9999999999999995E-7,"Dual P Driver Site -LORI assigned to WFd_IMP Driver",null,""]
["YOR01002","Changed",null,null,null,"WQ","Humber","Yorkshire","Yorkshire Water Service Ltd","7YW200946","TUPTON/STW","Redleadmill Brook","GB104027057620","River","Rother and Doe Lea",null,null,null,"U_IMP2","Phosphorus",null,null,null,null,"Continuous Discharge","2025-03-31","Amber","3139(SS)",439820,366810,null,null,null,null,null,null,null,null,null,null,null,null,null,null,null,null,null,null,null,null,null,null,null,null,null,null,null,null,null,null,11012,null,"2mg/l average","4000ug/l Fe 95%ile","2641m³/d",null,"8000ug/l  Fe Upper Tier ",null,null,null,"",null,null,null,null,null,null,null,null,null,null,null,null,null,null,null,null,null,null,null,null,null,"Defra to confirm sensitive areas","*",null,778365,0,0,1,"WWN","£ per km LORI",9.9999999999999995E-7,"DEFERRAL NEW -YW have submitted deferral to 30 June 2025 due to the new need to relocate a badger sett at the site.LORI assigned to other driver for scheme",null,"Carry over"]
["YOR01003","Changed","Yes – alteration made",null,null,"WQ","Humber","Yorkshire","Yorkshire Water Service Ltd","7YW200947","WOMBWELL/STW","Dearne Darfield STW to River Don","GB104027063173","River","Dearne",null,null,null,"U_IMP2","Phosphorus",null,null,null,null,"Continuous Discharge","2025-03-31","Amber","WA6273",440881,403364,null,null,null,null,null,null,null,null,null,null,null,null,null,null,null,null,null,null,null,null,null,null,null,null,null,null,null,null,null,null,41515.800000000003,null,"2mg/l average","4000ug/l Fe 95%ile","9900m³/d",null,"8000ug/l  Fe Upper Tier ",null,null,null,"",null,null,null,null,null,null,null,null,null,null,null,null,null,null,null,null,null,null,null,null,null,"Defra to confirm sensitive areas","*",null,502014,5.1970000000000045,5.1970000000000045,1,"WWN","£ per km LORI",9.9999999999999995E-7,"Single U_IMP2 Phosphorus Driver at Site",null,""]
["YOR01004","Changed",null,null,null,"WQ","Humber","Yorkshire","Yorkshire Water Service Ltd","7YW200948","Woodhouse Mill WwTW","Rother, Doe Lea to Don","GB104027057772","River","Rother and Doe Lea",null,null,null,"U_IMP2","Phosphorus",null,null,null,null,"Continuous Discharge","2025-03-31","Amber","3334(SS)",443290,386140,null,null,null,null,null,null,null,null,null,null,null,null,null,null,null,null,null,null,null,null,null,null,null,null,null,null,null,null,null,null,146562,null,"1mg/l average","4000ug/l Fe 95%ile","23993m³/d",null,"8000ug/l  Fe Upper Tier ",null,null,null,"",null,null,null,null,null,null,null,null,null,null,null,null,null,null,null,null,null,null,null,null,null,"Defra to confirm sensitive areas","*",null,778365,0,0,1,"WWN","£ per km LORI",9.9999999999999995E-7,"Dual P Driver Site -LORI assigned to WFd_IMP Driver",null,""]
["YOR01005","Changed",null,null,null,"WQ","Humber","Yorkshire","Yorkshire Water Service Ltd","7YW200949","WORSBROUGH WwTW","Dove from Source to River Dearne","GB104027057510","River","Dearne",null,null,null,"U_IMP2","Phosphorus",null,null,null,null,"Continuous Discharge","2025-03-31","Amber","WRA7404",436280,403430,null,null,null,null,null,null,null,null,null,null,null,null,null,null,null,null,null,null,null,null,null,null,null,null,null,null,null,null,null,null,19580,null,"2mg/l average","4000ug/l Fe 95%ile","5400m³/d",null,"8000ug/l  Fe Upper Tier ",null,null,null,"",null,null,null,null,null,null,null,null,null,null,null,null,null,null,null,null,null,null,null,null,null,"Defra to confirm sensitive areas","*",null,502014,5.7629999999999999,5.7629999999999999,1,"WWN","£ per km LORI",9.9999999999999995E-7,"Single U_IMP2 Phosphorus Driver at Site",null,""]
["YOR01006","Changed",null,null,null,"WQ","Humber","Yorkshire","Yorkshire Water Service Ltd","7YW200950","HIGH ROYD NO 2 STW","Luddenden Brook from Source to River Calder","GB104027062770","River","Calder Middle",null,null,null,"U_IMP2","Phosphorus",null,null,null,null,"Continuous Discharge","2025-03-31","Amber","967",405169,423937,null,null,null,null,null,null,null,null,null,null,null,null,null,null,null,null,null,null,null,null,null,null,null,null,null,null,null,null,null,null,11495.8,null,"2mg/l average","4000ug/l Fe 95%ile","6696m³/d",null,"8000ug/l  Fe Upper Tier ",null,null,null,"",null,null,null,null,null,null,null,null,null,null,null,null,null,null,null,null,null,null,null,null,null,"Defra to confirm sensitive areas","*",null,778365,0,0,1,"WWN","£ per km LORI",9.9999999999999995E-7,"Dual P Driver Site -LORI assigned to WFd_IMP Driver",null,""]
["YOR01007","Changed",null,null,null,"WQ","Humber","Yorkshire","Yorkshire Water Service Ltd","7YW200951","EASTWOOD/STW","Calder from Walsden Water to Colden Water","GB104027062650","River","Calder Upper",null,null,null,"U_IMP2","Phosphorus",null,null,null,null,"Continuous Discharge","2025-03-31","Amber","E61",397163,426382,null,null,null,null,null,null,null,null,null,null,null,null,null,null,null,null,null,null,null,null,null,null,null,null,null,null,null,null,null,null,14727.6,null,"2mg/l average","4000ug/l Fe 95%ile","10255m³/d",null,"8000ug/l  Fe Upper Tier ",null,null,null,"",null,null,null,null,null,null,null,null,null,null,null,null,null,null,null,null,null,null,null,null,null,"Defra to confirm sensitive areas","*",null,778365,0,0,1,"WWN","£ per km LORI",9.9999999999999995E-7,"Dual P Driver Site -LORI assigned to WFd_IMP Driver",null,""]
["YOR01008","Changed",null,null,null,"WQ","Humber","Yorkshire","Yorkshire Water Service Ltd","7YW200952","HALIFAX COPLEY STW","Calder from Ryburn Confluence  to River Colne","GB104027062642","River","Calder Middle",null,null,null,"U_IMP2","Phosphorus",null,null,null,null,"Continuous Discharge","2025-03-31","Amber","WRA7510",409224,422301,null,null,null,null,null,null,null,null,null,null,null,null,null,null,null,null,null,null,null,null,null,null,null,null,null,null,null,null,null,null,167246,null,"1mg/l average","4000ug/l Fe 95%ile","57700m³/d",null,"8000ug/l  Fe Upper Tier ",null,null,null,"",null,null,null,null,null,null,null,null,null,null,null,null,null,null,null,null,null,null,null,null,null,"Defra to confirm sensitive areas","*",null,778365,0,0,1,"WWN","£ per km LORI",9.9999999999999995E-7,"Dual P Driver Site -LORI assigned to WFd_IMP Driver",null,""]
["YOR01009","Changed",null,null,null,"WQ","Humber","Yorkshire","Yorkshire Water Service Ltd","7YW200953","NEILEY NO 2 STW","Holme from New Mill Dike to R Colne","GB104027063301","River","Colne and Holme",null,null,null,"U_IMP2","Phosphorus",null,null,null,null,"Continuous Discharge","2025-03-31","Amber","2255",414628,411578,null,null,null,null,null,null,null,null,null,null,null,null,null,null,null,null,null,null,null,null,null,null,null,null,null,null,null,null,null,null,20346,null,"2mg/l average","4000ug/l Fe 95%ile","7497m³/d",null,"8000ug/l  Fe Upper Tier ",null,null,null,"",null,null,null,null,null,null,null,null,null,null,null,null,null,null,null,null,null,null,null,null,null,"Defra to confirm sensitive areas","*",null,778365,0,0,1,"WWN","£ per km LORI",9.9999999999999995E-7,"Dual P Driver Site -LORI assigned to WFd_IMP Driver",null,""]
["YOR01010","Changed",null,null,null,"WQ","Humber","Yorkshire","Yorkshire Water Service Ltd","7YW200954","Huddersfield STW Colne Bridge","Calder from River Colne to River Chald","GB104027062631","River","Calder Lower",null,null,null,"U_IMP2","Phosphorus",null,null,null,null,"Continuous Discharge","2025-03-31","Amber","WRA7409",417820,420440,null,null,null,null,null,null,null,null,null,null,null,null,null,null,null,null,null,null,null,null,null,null,null,null,null,null,null,null,null,null,237696,null,"2mg/l average","4000ug/l Fe 95%ile","84000m³/d",null,"8000ug/l  Fe Upper Tier ",null,null,null,"",null,null,null,null,null,null,null,null,null,null,null,null,null,null,null,null,null,null,null,null,null,"Defra to confirm sensitive areas","*",null,502014,0,0,1,"WWN","£ per km LORI",9.9999999999999995E-7,"was Dual P Driver Site now U_IMP2 only  -Quantity proposed set to zero as LORI assigned to Cooper Bridge Driver 7YW200802.LORI integrated with  Cooper Bridge 7YW200802",null,""]
["YOR01011","Changed",null,null,null,"WQ","Humber","Yorkshire","Yorkshire Water Service Ltd","7YW200955","KEIGHLEY MARLEY/STW","Aire (R Worth to Gill Beck)","GB104027063034","River","Aire Middle",null,null,null,"U_IMP2","Phosphorus",null,null,null,null,"Continuous Discharge","2025-03-31","Amber","WRA7172",409030,441150,null,null,null,null,null,null,null,null,null,null,null,null,null,null,null,null,null,null,null,null,null,null,null,null,null,null,null,null,null,null,90039,null,"2mg/l average","4000ug/l Fe 95%ile","28129m³/d",null,"8000ug/l  Fe Upper Tier ",null,null,null,"",null,null,null,null,null,null,null,null,null,null,null,null,null,null,null,null,null,null,null,null,null,"Defra to confirm sensitive areas","*",null,778365,0,0,1,"WWN","£ per km LORI",9.9999999999999995E-7,"Dual P Driver Site -LORI assigned to WFd_IMP Driver",null,""]
["YOR01012","Changed",null,null,null,"WQ","Humber","Yorkshire","Yorkshire Water Service Ltd","7YW200956","Wath-Upon-Dearne STW","Dearne Darfield STW to River Don","GB104027063173","River","Dearne",null,null,null,"U_IMP2","Phosphorus",null,null,null,null,"Continuous Discharge","2025-03-31","Amber","2172",444490,401120,null,null,null,null,null,null,null,null,null,null,null,null,null,null,null,null,null,null,null,null,null,null,null,null,null,null,null,null,null,null,18067.2,null,"2mg/l average","4000ug/l Fe 95%ile","6850m³/d",null,"8000ug/l  Fe Upper Tier ",null,null,null,"",null,null,null,null,null,null,null,null,null,null,null,null,null,null,null,null,null,null,null,null,null,"Defra to confirm sensitive areas","*",null,502014,1.3049999999999997,1.3049999999999997,1,"WWN","£ per km LORI",9.9999999999999995E-7,"Single U_IMP2 Phosphorus Driver at Site",null,""]
["YOR01013","Changed",null,null,null,"WQ","Humber","Yorkshire","Yorkshire Water Service Ltd","7YW200957","MEXBORO SWINTON/STW","Don from River Rother to River Dearne","GB104027057452","River","Don Middle",null,null,null,"U_IMP2","Phosphorus",null,null,null,null,"Continuous Discharge","2025-03-31","Amber","2160",446986,399204,null,null,null,null,null,null,null,null,null,null,null,null,null,null,null,null,null,null,null,null,null,null,null,null,null,null,null,null,null,null,16175.2,null,"2mg/l average","4000ug/l Fe 95%ile","4800m³/d",null,"8000ug/l  Fe Upper Tier ",null,null,null,"",null,null,null,null,null,null,null,null,null,null,null,null,null,null,null,null,null,null,null,null,null,"Defra to confirm sensitive areas","*",null,778365,0,0,1,"WWN","£ per km LORI",9.9999999999999995E-7,"Dual P Driver Site -LORI assigned to WFd_IMP Driver",null,""]
["YOR01014","Changed",null,null,null,"WQ","Humber","Yorkshire","Yorkshire Water Service Ltd","7YW200958","THORNE/STW","Don from Mill Dyke to River Ouse","GB104027064243","River","Don Lower",null,null,null,"U_IMP2","Phosphorus",null,null,null,null,"Continuous Discharge","2025-03-31","Amber","3332",467780,414470,null,null,null,null,null,null,null,null,null,null,null,null,null,null,null,null,null,null,null,null,null,null,null,null,null,null,null,null,null,null,39527,null,"2mg/l average","4000ug/l Fe 95%ile","7874m³/d",null,"8000ug/l  Fe Upper Tier ",null,null,null,"",null,null,null,null,null,null,null,null,null,null,null,null,null,null,null,null,null,null,null,null,null,"Defra to confirm sensitive areas. ","*",null,502014,10.300999999999988,10.300999999999988,1,"WWN","£ per km LORI",9.9999999999999995E-7,"Single U_IMP2 Phosphorus Driver at Site",null,""]
["YOR01518","Changed",null,null,null,"WQ","Humber","Yorkshire","Yorkshire Water Service Ltd","7YW201465","SKIPTON/STW","Aire (Eshton Beck to R Worth)","GB104027063033","River","Aire Upper",null,null,null,"U_IMP2","Phosphorus",null,null,null,null,"Continuous Discharge","2025-03-31","Amber",2838,398720,449400,null,null,null,null,null,null,null,null,null,null,null,null,null,null,null,null,null,null,null,null,null,null,null,null,null,null,null,null,null,null,19750,"0.5mg/l","2mg/l average","4000ug/l Fe 95%ile","5002m³/d",null,"8000ug/l  Fe Upper Tier ",null,null,null,"",null,null,null,null,null,null,null,null,null,null,null,null,null,null,null,null,null,null,null,null,null,"Defra to confirm sensitive areas. This site already has a tighter P limit.","*",null,502014,0,0,0,"WWN","£ per km LORI",9.9999999999999995E-7,"Was Single U_IMP2 Phosphorus Driver at Site but already had a WFD improvement in AMP6 so no activity in AMP7. Permitting matter only. No river length and no funding.","YKY advises in model 'not valid driver' and 'should not be in model'. Amend to unit from 'no RM cost' to '£ per km LORI'"]
["YOR00691","Changed",null,null,null,"WQ","Humber","Yorkshire","Yorkshire Water Service Ltd","7YW300057","SOUTH ELMSALL/STW 3X","Ea Beck from Frickley Beck to the Skell","GB104027063200","River","Don Lower",null,null,null,"WFD_IMPg","Biochemical Oxygen Demand / Dissolved Oxygen",null,null,null,null,"Intermittent Discharge","2024-12-22","Amber","WRA7507 schedule 2",448250,410650,null,null,null,null,null,null,null,null,null,null,null,null,null,null,null,null,null,null,null,null,null,null,null,null,null,null,null,null,null,null,35231.1,"15mg/l",null,null,"9800m³/d",null,"5,340m³",null,null,null,null,null,null,null,null,null,null,null,null,null,null,null,null,null,null,2.25,null,null,null,null,null,null,"FIS, current storage 1340m³, additional storage 4,000m³ storage on settled storm discharge, total proposed storage 5340m³","*",null,590,5340,5340,1,"WWN","£ per m3",9.9999999999999995E-7,"Propose to change delivery date to 31/03/25. 7YW300057 links with 7YW200635. ",null,""]
["YOR00697","Changed",null,null,null,"WQ","Humber","Yorkshire","Yorkshire Water Service Ltd","7YW300058","Pudsey intermittents - Smalewell Reach 1","Low/Wortley/Pudsey Bks","GB104027062830","River","Aire Lower",null,null,null,"WFD_IMPg","Ammonia",null,null,null,null,"Intermittent Discharge","2024-12-22","Amber","WRA7473 1",420740,432870,null,null,null,null,null,null,null,null,null,null,null,null,null,null,null,null,null,null,null,null,null,null,null,null,null,null,null,null,null,null,null,null,null,null,null,null,"3,950m³",null,null,null,null,null,null,null,null,null,null,null,null,null,null,null,null,null,null,2.74,null,null,null,null,null,null,"Current storage 950m³, additional storage 3000m³, total storage 3950m³. Smalewell","*",null,590,0,0,0,"WWN","£ per km LORI",9.9999999999999995E-7,"REMOVAL: YW Confirm Removal","YKY confirm in model (column CY) removal and EA confirm (March 2024) deleted from PR19 WINEP. Amend to unit from 'no RM cost' to '£ per km LORI'","Removal"]
["YOR01524","Changed",null,null,null,"WQ","Humber","Yorkshire","Yorkshire Water Service Ltd","7YW300059","Bentley Mill Stream intermittents - BentleyMill Rise SPS","Bentley Mill Stream","GB104027057541","River","Don Lower",null,null,null,"WFD_IMPg","Ammonia and ","WFD_IMPg","Biochemical Oxygen Demand / Dissolved Oxygen",null,null,"Intermittent Discharge","2024-12-22","Amber","WRA7543/1",456650,404360,null,null,null,null,null,null,null,null,null,null,null,null,null,null,null,null,null,null,null,null,null,null,null,null,null,null,null,null,null,null,null,null,null,null,null,null,"100m³",null,null,null,null,null,null,null,null,null,null,null,null,null,null,null,null,null,null,0.39,null,null,null,null,null,null,"No current storage, additional storage 100m³, total proposed stoage 100m³ at Bentley Mill Rise SPS. To meet FIS standards.","*",null,2933301,0.39,"-",1,"WWN","£ per km LORI",9.9999999999999995E-7,"REMOVAL:Agree BUT -Claw back metrics adjsuted as OFWAt comment sin DD Model and LORI =0.39","YKY model confirms removal as action no longer required (column CY) therefore YKY populate cell CT146 with zero.  YKY model altered units and totex allowance due to action change. This action was originally part of a funded FD group with totex allowance of £2,933,301m therefore model inputs have been returned to reflect the FD and ensure appropriate reconciliation. Amends to cells in this line are: Cell CR31 amended from 590 to 2,933,301.  Cell CS31 amended from 100m3 to 2.05  (£ per km LORI sourced from column CH). Cell CW31 amended from £ per m3 to £ per km LORI. ","Removal"]
["YOR01525","Changed",null,null,null,"WQ","Humber","Yorkshire","Yorkshire Water Service Ltd","7YW300060","West Bretton storm tank discharge Transfer to NGR 429884,412035","Dearne from Bentley Brook to Cawthorne Dyke","GB104027063260","River","Dearne",null,null,null,"WFD_IMPg","Ammonia","WFD_IMPg","Biochemical Oxygen Demand / Dissolved Oxygen",null,null,"correct to Intermittent from Continuous Discharge","2024-12-22","Amber","C5412 / 2",429160,413280,null,null,null,null,null,null,null,null,null,null,null,null,null,null,null,null,null,null,null,null,null,null,null,null,null,null,null,null,null,null,318,"20mg/l",null,null,"219m³/d",null,null,null,null,null,null,null,null,null,null,null,null,null,null,null,null,null,null,null,null,0.75,null,null,null,null,null,null,"This will require feasibility as part of solution delivery which may change the exact discharge location. No changes to to flow or quality conditions. To meet FIS standards.","*",null,2933301,0,0,1,"WWN","£ per km LORI",9.9999999999999995E-7,"REMOVAL : POST DD- YW confirm scheme removed but claw back cost on other driver for West Bretton",null,"Removal"]
["YOR01526","Changed",null,null,null,"WQ","Humber","Yorkshire","Yorkshire Water Service Ltd","7YW300061","CLAYTON WEST/STW Final Effluent Transfer to NGR 429884,412035","Dearne from Bentley Brook to Cawthorne Dyke","GB104027063260","River","Dearne",null,null,null,"WFD_IMPg","Ammonia","WFD_IMPg","Biochemical Oxygen Demand / Dissolved Oxygen",null,null,"Continuous Discharge","2024-12-22","Amber","3809(SS) / schedule 1",426780,412070,null,null,null,null,null,null,null,null,null,null,null,null,null,null,null,null,null,null,null,null,null,null,null,null,null,null,null,null,null,null,16803.8,"5mg/l",null,null,"8400m³/d","n/a","n/a",null,null,null,null,null,null,null,null,null,null,null,null,null,null,null,null,null,null,2.0499999999999998,null,null,null,null,null,null,"This will require feasibility as part of solution delivery which may change the exact discharge location. No changes to to flow or quality conditions. To meet FIS standards.","*",null,2933301,5.76,5.76,1,"WWN","£ per km LORI",9.9999999999999995E-7,"Dual Drivers LORI For FE ",null,""]
["YOR01527","Changed",null,null,null,"WQ","Humber","Yorkshire","Yorkshire Water Service Ltd","7YW300062","West Bretton Final Effluent Transfer to NGR 429884,412035","Dearne from Bentley Brook to Cawthorne Dyke","GB104027063260","River","Dearne",null,null,null,"WFD_IMPg","Ammonia","WFD_IMPg","Biochemical Oxygen Demand / Dissolved Oxygen",null,null,"Continuous Discharge","2024-12-22","Amber","C5412 / 1",429160,413280,null,null,null,null,null,null,null,null,null,null,null,null,null,null,null,null,null,null,null,null,null,null,null,null,null,null,null,null,null,null,318,"20mg/l",null,null,"219m³/d",null,null,null,null,null,null,null,null,null,null,null,null,null,null,null,null,null,null,null,null,0.75,null,null,null,null,null,null,"This will require feasibility as part of solution delivery which may change the exact discharge location. No changes to to flow or quality conditions. To meet FIS standards.","*",null,2933301,0.75,0,1,"WWN","£ per km LORI",9.9999999999999995E-7,"REMOVAL: POST DD- YW confirm scheem removed BUT corret LORI to 0.75 km Dual Drivers LORI For FE and Storm",null,"Removal"]
["YOR01531","Addition",null,null,null,"WQ","Humber","Yorkshire","Yorkshire Water Service Ltd","7YW300066","Pudsey intermittents - Dick Lane","Low/Wortley/Pudsey Bks","GB104027062830","River","Aire Lower",null,null,null,"WFD_IMPg","Ammonia",null,null,null,null,"Intermittent Discharge","2024-12-22","Amber","WRA7450 1",419710,433260,null,null,null,null,null,null,null,null,null,null,null,null,null,null,null,null,null,null,null,null,null,null,null,null,null,null,null,null,null,null,null,null,null,null,null,null,"4,225m³",null,null,null,null,null,null,null,null,null,null,null,null,null,null,null,null,null,null,2.74,null,null,null,null,null,null,"Current storage 1,225m³, additional storage 3000m³ total proposed storage 4,225m³. Dick Lane(New Lane)","*",null,590,3000,3000,1,"WWN","£ per m3",9.9999999999999995E-7,"RESTORE-Post DD :YW have requested delivery date to be 31/3/2025 In AMP-YW have restore quantity delivered","YKY confirm in model (column CY) delivery in AMP8 year 2026/27 therefore column CT amended from 3000 to 0.","Restore to In Amp Delivery"]
["YOR01532","Addition",null,null,null,"WQ","Humber","Yorkshire","Yorkshire Water Service Ltd","7YW300067","Pudsey intermittents - Dale Farm","Low/Wortley/Pudsey Bks","GB104027062830","River","Aire Lower",null,null,null,"WFD_IMPg","Ammonia",null,null,null,null,"Intermittent Discharge","2024-12-22","Amber","WRA7971 1",422990,430110,null,null,null,null,null,null,null,null,null,null,null,null,null,null,null,null,null,null,null,null,null,null,null,null,null,null,null,null,null,null,null,null,null,null,null,null,"250m³",null,null,null,null,null,null,null,null,null,null,null,null,null,null,null,null,null,null,2.74,null,null,null,null,null,null,"Total proposed storage 250m³ total. Dale Farm CSO","*",null,590,250,250,1,"WWN","£ per m3",9.9999999999999995E-7,"RESTORE-Post DD :YW have requested delivery date to be 31/3/2025 In AMP-YW have restore quantity delivered","YKY confirm in model (column CY) delivery in AMP8 year 2026/27 therefore column CT amended from 250 to 0.","Restore to In Amp Delivery"]
["YOR01533","Addition",null,null,null,"WQ","Humber","Yorkshire","Yorkshire Water Service Ltd","7YW300068","Pudsey intermittents - Hough Side Works","Low/Wortley/Pudsey Bks","GB104027062830","River","Aire Lower",null,null,null,"WFD_IMPg","Ammonia",null,null,null,null,"Intermittent Discharge","2024-12-22","Amber","C4917 1",423660,433150,null,null,null,null,null,null,null,null,null,null,null,null,null,null,null,null,null,null,null,null,null,null,null,null,null,null,null,null,null,null,null,null,null,null,null,null,"25,400m³",null,null,null,null,null,null,null,null,null,null,null,null,null,null,null,null,null,null,2.74,null,null,null,null,null,null,"Current storage, 400m³, additional storage 25,000m³ total, total proposed storage 25,400m³. Houghside Works","*",null,590,25000,0,1,"WWN","£ per m3",9.9999999999999995E-7,"DEFERRAL : Agree - Date Extension to 31 Mar 2027","YKY confirm in model (column CY) delivery in AMP8 year 2026/27 therefore column CT amended from 25000 to 0.","Carry over"]
["YOR01534","Addition",null,null,null,"WQ","Humber","Yorkshire","Yorkshire Water Service Ltd","7YW300069","Pudsey intermittents - Gaint Road (Kent Road)","Low/Wortley/Pudsey Bks","GB104027062830","River","Aire Lower",null,null,null,"WFD_IMPg","Ammonia",null,null,null,null,"Intermittent Discharge","2024-12-22","Amber","C3961 1",423020,432610,null,null,null,null,null,null,null,null,null,null,null,null,null,null,null,null,null,null,null,null,null,null,null,null,null,null,null,null,null,null,null,null,null,null,null,null,"2,500m³",null,null,null,null,null,null,null,null,null,null,null,null,null,null,null,null,null,null,2.74,null,null,null,null,null,null,"Total proposed storage 2,500m³,  total.  Kent Road","*",null,590,2500,0,1,"WWN","£ per m3",9.9999999999999995E-7,"DEFEERAL This storage action is to be removed by EA in favour of diverted and increased investment at 7YW200641 Farnely Ring Road CSO (delivery date= 31 Mar 2027). Set CT to blank to generate carry over investment","YKY confirm in model (column CY) delivery in AMP8 year 2026/27 therefore column CT amended from 2500 to 0.","Carry over"]
["YOR01535","Addition",null,null,null,"WQ","Humber","Yorkshire","Yorkshire Water Service Ltd","7YW300070","Pudsey intermittents - Smalewell Reach 1","Low/Wortley/Pudsey Bks","GB104027062830","River","Aire Lower",null,null,null,"WFD_IMPg","Ammonia",null,null,null,null,"Intermittent Discharge","2024-12-22","Amber","WRA7473 1",420740,432870,null,null,null,null,null,null,null,null,null,null,null,null,null,null,null,null,null,null,null,null,null,null,null,null,null,null,null,null,null,null,null,null,null,null,null,null,"8,450m³",null,null,null,null,null,null,null,null,null,null,null,null,null,null,null,null,null,null,2.74,null,null,null,null,null,null,"Current storage 950m³, additional storage 7,500m³, total proposed storage8450m³. Smalewell in reach 1.  RLI has bee counted in previous line for Pudsey Smalewell CSO.YW write \"No investment identified for Dick lane under this Reach 3 solution, but 7500m³ at Pudsey Smalewell alone will not allowReach 1 to pass WQ\".","*",null,590,7500,0,1,"WWN","£ per m3",9.9999999999999995E-7,"DEFERRAL to delivery date 31 Dec  2025 In AMP-This storage action is to be reduced by EA in favour of diverted and increased investment at 7YW200641 Farnely Ring Road CSO (delivery date= 31 Mar 2027). Set CT to blank to generate carry over investment","YKY confirm in model (column CY) delivery in AMP8 year 2026/27 therefore column CT amended from 7500 to 0.","Carry over"]
["YOR01549","Addition",null,null,null,"WQ","Humber","Yorkshire","Yorkshire Water Service Ltd","7YW300636","BENTLEY/STW storm discharge transfer to NGR 458119 405197","Bentley Mill Stream","GB104027057541","River","Don Lower",null,null,null,"WFD_IMPg","Ammonia","WFD_IMPg","Biochemical Oxygen Demand / Dissolved Oxygen",null,null,"Intermittent Discharge","2024-12-22","Amber","1978 schedule 2",457160,405724,null,null,null,null,null,null,null,null,null,null,null,null,null,null,null,null,null,null,null,null,null,null,null,null,null,null,null,null,null,null,20936,null,null,null,"5046m³/d",null,null,null,null,null,"",null,null,null,null,null,null,null,null,null,null,null,null,null,null,1.3,null,null,null,null,null,null,"Relocate Bentley STW continuous and intermittents to the R.Don . Proposed 1mg/l would be required if transferscheme was not able to be completed.This will require feasibility as part of solution delivery which may change the exact discharge location. Needed to meet FIS standards",null,null,2933301,0,0,1,"WWN","£ per km LORI",9.9999999999999995E-7,"Multiple drivers for Bentley Stream. No LORI to avoid double counting. LORI assigned to WFd_IMP Phosphorus Driver 7YW200867",null,""]
[null,null,null,null,null,null,null,null,null,null,null,null,null,null,null,null,null,null,null,null,null,null,null,null,null,null,null,null,null,null,null,null,null,null,null,null,null,null,null,null,null,null,null,null,null,null,null,null,null,null,null,null,null,null,null,null,null,null,null,null,null,null,null,null,null,null,null,null,null,null,null,null,null,null,null,null,null,null,null,null,null,null,null,null,null,null,null,null,null,null,null,null,null,null,null,null,null,null," "]

{"sheet":"InpActive","index":8,"n_rows":48,"n_cols":19,"rows_kept":48,"cut":false,"hidden":false,"merged":[]}
[{"$f":" RIGHT(CELL(\"filename\", $A$1), LEN(CELL(\"filename\", $A$1)) - SEARCH(\"]\", CELL(\"filename\", $A$1)))","v":"InpActive"}]
[null,null,null,null,{"$f":"Time!E25","v":"Model period ending"},{"$f":"Check!F2","v":0},"Checks",null,null,{"$f":" Time!J$25","v":"2019-03-31"},{"$f":" Time!K$25","v":"2020-03-31"},{"$f":" Time!L$25","v":"2021-03-31"},{"$f":" Time!M$25","v":"2022-03-31"},{"$f":" Time!N$25","v":"2023-03-31"},{"$f":" Time!O$25","v":"2024-03-31"},{"$f":" Time!P$25","v":"2025-03-31"},{"$f":" Time!Q$25","v":"2026-03-31"},{"$f":" Time!R$25","v":"2027-03-31"},{"$f":" Time!S$25","v":"2028-03-31"}]
[null,null,null,null,{"$f":"Time!E107","v":"Timeline label"},{"$f":"Check!F3","v":5},"Track chgs",null,null,{"$f":" Time!J$107","v":"Pre-Fcst"},{"$f":" Time!K$107","v":"Pre-Fcst"},{"$f":" Time!L$107","v":"Forecast"},{"$f":" Time!M$107","v":"Forecast"},{"$f":" Time!N$107","v":"Forecast"},{"$f":" Time!O$107","v":"Forecast"},{"$f":" Time!P$107","v":"Forecast"},{"$f":" Time!Q$107","v":"Post-Fcst"},{"$f":" Time!R$107","v":"Post-Fcst"},{"$f":" Time!S$107","v":"Post-Fcst"}]
[null,null,null,null,{"$f":"Time!E130","v":"Financial year ending"},null,null,null,null,{"$f":" Time!J$130","v":2019},{"$f":" Time!K$130","v":2020},{"$f":" Time!L$130","v":2021},{"$f":" Time!M$130","v":2022},{"$f":" Time!N$130","v":2023},{"$f":" Time!O$130","v":2024},{"$f":" Time!P$130","v":2025},{"$f":" Time!Q$130","v":2026},{"$f":" Time!R$130","v":2027},{"$f":" Time!S$130","v":2028}]
[null,null,null,null,{"$f":"Time!E10","v":"Model column counter"},"Constant","Unit","Total",null,{"$f":" Time!J$10","v":1},{"$f":" Time!K$10","v":2},{"$f":" Time!L$10","v":3},{"$f":" Time!M$10","v":4},{"$f":" Time!N$10","v":5},{"$f":" Time!O$10","v":6},{"$f":" Time!P$10","v":7},{"$f":" Time!Q$10","v":8},{"$f":" Time!R$10","v":9},{"$f":" Time!S$10","v":10}]
[]
["A: TIME"]
[]
[null,"Timeline setup"]
[]
[null,null,"Timeline start dates"]
[null,null,null,null,"1st model column start date","2018-04-01","date","Date should be the first date of the financial year"]
[]
[null,null,"Financial year inputs"]
[null,null,null,null,"First modelling column financial year #",2019,"year #","Financial model start year"]
[null,null,null,null,"Financial year end month number #",3,"month #","Month of financial year end for financial model"]
[]
[null,null,"Timeline labels"]
[null,null,null,null,"Pre - forecast period","Pre-Fcst","label"]
[null,null,null,null,"Forecast period","Forecast","label"]
[null,null,null,null,"Post - forecast period","Post-Fcst","label"]
[]
[null,"Project dates"]
[]
[null,null,null,null,"Forecast start date","2020-04-01","date"]
[null,null,null,null,"Forecast duration",5,"years"]
[null,null,null,null,"Forecast duration (text)","2020-25","years #","For Info only"]
[]
[null,null,null,null,"Forecast period reconcilation is profiled from",3,"year"]
[]
["B: FINANCING INPUTS"]
[]
[null,null,null,null,"Financing cost index",null,"Index",null,null,null,null,4,3,2,1,0]
[]
[null,null,null,null,"Financing Cost",2.92E-2,"%"]
[]
["C: NON CHANGEABLE MODEL TECHNICAL INPUTS"]
[]
[null,null,null,null,"Months per model period",12,"months"]
[]
[null,null,null,null,"Track Tolerance Level",1E-3,"tolerance"]
[null,null,null,null,"Check Tolerance Level",9.9999999999999995E-8,"tolerance"]
[]
[null,null,null,null,"Thousands in a million",1000,"thousands"]
[null,null,null,null,"Units in a million",1000000,"unit"]
[null,null,null,null,"Unit conversion to percentage",100,"unit"]
[]
["End of sheet"]

{"sheet":"Calcs >>","index":9,"n_rows":0,"n_cols":0,"rows_kept":0,"cut":false,"hidden":false,"merged":[]}

{"sheet":"WINEP_Schemes","index":10,"n_rows":167,"n_cols":14,"rows_kept":167,"cut":false,"hidden":false,"merged":[]}
[{"$f":" RIGHT(CELL(\"filename\", $A$1), LEN(CELL(\"filename\", $A$1)) - SEARCH(\"]\", CELL(\"filename\", $A$1)))","v":"WINEP_Schemes"}]
[null,null,null,null,null,{"$f":" Check!F2","v":0},"Checks"]
[null,null,null,null,null,{"$f":" Check!F3","v":5},"Track chgs"]
[]
["AMBER WINEP SCHEMES"]
[]
[null,null,"List of WINEP schemes that were unconfirmed at FD"]
[]
[null,null,"WINEPID","Unique ID","Scheme category / name","Unit","Unit Conversion to £m",null,"Allowed totex unit rate","Quantity in PR19 FD","Quantity Delivered","1 = In FD, funded\n0 = In FD, not funded","Price Control","Proportion Confirmed"]
[null,null,{"$f":" WINEP_Inputs!A5","v":"YOR00025"},{"$f":" WINEP_Inputs!J5","v":"7YW100089"},{"$f":" WINEP_Inputs!K5","v":"Little Don Catchment Scheme"},{"$f":"WINEP_Inputs!CW5","v":"£ per km LORI"},{"$f":"WINEP_Inputs!CX5","v":9.9999999999999995E-7},null,{"$f":" WINEP_Inputs!CR5","v":80760},{"$f":" WINEP_Inputs!CS5","v":3.05},{"$f":" WINEP_Inputs!CT5","v":3.05},{"$f":" WINEP_Inputs!CU5","v":1},{"$f":" WINEP_Inputs!CV5","v":"WR"},{"$f":" IF(K10 = 0, 0, K10 / J10)","v":1}]
[null,null,{"$f":" WINEP_Inputs!A6","v":"YOR00029"},{"$f":" WINEP_Inputs!J6","v":"7YW100091"},{"$f":" WINEP_Inputs!K6","v":"Winscar  Catchment Scheme"},{"$f":"WINEP_Inputs!CW6","v":"£ per km LORI"},{"$f":"WINEP_Inputs!CX6","v":9.9999999999999995E-7},null,{"$f":" WINEP_Inputs!CR6","v":80760},{"$f":" WINEP_Inputs!CS6","v":11.25},{"$f":" WINEP_Inputs!CT6","v":11.25},{"$f":" WINEP_Inputs!CU6","v":1},{"$f":" WINEP_Inputs!CV6","v":"WR"},1]
[null,null,{"$f":" WINEP_Inputs!A7","v":"YOR00033"},{"$f":" WINEP_Inputs!J7","v":"7YW100093"},{"$f":" WINEP_Inputs!K7","v":"Agden  River Restoration Scheme"},{"$f":"WINEP_Inputs!CW7","v":"£ per km LORI"},{"$f":"WINEP_Inputs!CX7","v":9.9999999999999995E-7},null,{"$f":" WINEP_Inputs!CR7","v":80760},{"$f":" WINEP_Inputs!CS7","v":0.44},{"$f":" WINEP_Inputs!CT7","v":0.44},{"$f":" WINEP_Inputs!CU7","v":1},{"$f":" WINEP_Inputs!CV7","v":"WR"},1]
[null,null,{"$f":" WINEP_Inputs!A8","v":"YOR00042"},{"$f":" WINEP_Inputs!J8","v":"7YW100098"},{"$f":" WINEP_Inputs!K8","v":"River Burn Catchment Scheme"},{"$f":"WINEP_Inputs!CW8","v":"£ per km LORI"},{"$f":"WINEP_Inputs!CX8","v":9.9999999999999995E-7},null,{"$f":" WINEP_Inputs!CR8","v":80760},{"$f":" WINEP_Inputs!CS8","v":6.49},{"$f":" WINEP_Inputs!CT8","v":6.49},{"$f":" WINEP_Inputs!CU8","v":1},{"$f":" WINEP_Inputs!CV8","v":"WR"},1]
[null,null,{"$f":" WINEP_Inputs!A9","v":"YOR00044"},{"$f":" WINEP_Inputs!J9","v":"7YW100098"},{"$f":" WINEP_Inputs!K9","v":"River Burn Catchment Scheme"},{"$f":"WINEP_Inputs!CW9","v":"£ per km LORI"},{"$f":"WINEP_Inputs!CX9","v":9.9999999999999995E-7},null,{"$f":" WINEP_Inputs!CR9","v":80760},{"$f":" WINEP_Inputs!CS9","v":6.49},{"$f":" WINEP_Inputs!CT9","v":6.49},{"$f":" WINEP_Inputs!CU9","v":1},{"$f":" WINEP_Inputs!CV9","v":"WR"},1]
[null,null,{"$f":" WINEP_Inputs!A10","v":"YOR00045"},{"$f":" WINEP_Inputs!J10","v":"7YW100098"},{"$f":" WINEP_Inputs!K10","v":"River Burn Catchment Scheme"},{"$f":"WINEP_Inputs!CW10","v":"£ per km LORI"},{"$f":"WINEP_Inputs!CX10","v":9.9999999999999995E-7},null,{"$f":" WINEP_Inputs!CR10","v":80760},{"$f":" WINEP_Inputs!CS10","v":6.49},{"$f":" WINEP_Inputs!CT10","v":0},{"$f":" WINEP_Inputs!CU10","v":1},{"$f":" WINEP_Inputs!CV10","v":"WR"},0]
[null,null,{"$f":" WINEP_Inputs!A11","v":"YOR00055"},{"$f":" WINEP_Inputs!J11","v":"7YW100121"},{"$f":" WINEP_Inputs!K11","v":"HARROGATE SOUTH/STW"},{"$f":"WINEP_Inputs!CW11","v":"£ per km LORI"},{"$f":"WINEP_Inputs!CX11","v":9.9999999999999995E-7},null,{"$f":" WINEP_Inputs!CR11","v":778365},{"$f":" WINEP_Inputs!CS11","v":4.4529999999999994},{"$f":" WINEP_Inputs!CT11","v":4.4529999999999994},{"$f":" WINEP_Inputs!CU11","v":1},{"$f":" WINEP_Inputs!CV11","v":"WWN"},{"$f":" IF(K16 = 0, 0, K16 / J16)","v":1}]
[null,null,{"$f":" WINEP_Inputs!A12","v":"YOR00059"},{"$f":" WINEP_Inputs!J12","v":"7YW100125"},{"$f":" WINEP_Inputs!K12","v":"OWLWOOD (GARFORTH) STW"},{"$f":"WINEP_Inputs!CW12","v":"£ per km LORI"},{"$f":"WINEP_Inputs!CX12","v":9.9999999999999995E-7},null,{"$f":" WINEP_Inputs!CR12","v":778365},{"$f":" WINEP_Inputs!CS12","v":10.028000000000002},{"$f":" WINEP_Inputs!CT12","v":10.028000000000002},{"$f":" WINEP_Inputs!CU12","v":1},{"$f":" WINEP_Inputs!CV12","v":"WWN"},1]
[null,null,{"$f":" WINEP_Inputs!A13","v":"YOR00060"},{"$f":" WINEP_Inputs!J13","v":"7YW100126"},{"$f":" WINEP_Inputs!K13","v":"DRONFIELD/STW"},{"$f":"WINEP_Inputs!CW13","v":"£ per km LORI"},{"$f":"WINEP_Inputs!CX13","v":9.9999999999999995E-7},null,{"$f":" WINEP_Inputs!CR13","v":778365},{"$f":" WINEP_Inputs!CS13","v":7.8539999999999992},{"$f":" WINEP_Inputs!CT13","v":7.8539999999999992},{"$f":" WINEP_Inputs!CU13","v":1},{"$f":" WINEP_Inputs!CV13","v":"WWN"},1]
[null,null,{"$f":" WINEP_Inputs!A14","v":"YOR00062"},{"$f":" WINEP_Inputs!J14","v":"7YW100128"},{"$f":" WINEP_Inputs!K14","v":"DANESMOOR/STW"},{"$f":"WINEP_Inputs!CW14","v":"£ per km LORI"},{"$f":"WINEP_Inputs!CX14","v":9.9999999999999995E-7},null,{"$f":" WINEP_Inputs!CR14","v":276351},{"$f":" WINEP_Inputs!CS14","v":4.8639999999999999},{"$f":" WINEP_Inputs!CT14","v":4.8639999999999999},{"$f":" WINEP_Inputs!CU14","v":1},{"$f":" WINEP_Inputs!CV14","v":"WWN"},1]
[null,null,{"$f":" WINEP_Inputs!A15","v":"YOR00063"},{"$f":" WINEP_Inputs!J15","v":"7YW100129"},{"$f":" WINEP_Inputs!K15","v":"TUPTON/STW"},{"$f":"WINEP_Inputs!CW15","v":"£ per km LORI"},{"$f":"WINEP_Inputs!CX15","v":9.9999999999999995E-7},null,{"$f":" WINEP_Inputs!CR15","v":778365},{"$f":" WINEP_Inputs!CS15","v":10.223000000000001},{"$f":" WINEP_Inputs!CT15","v":0},{"$f":" WINEP_Inputs!CU15","v":1},{"$f":" WINEP_Inputs!CV15","v":"WWN"},0]
[null,null,{"$f":" WINEP_Inputs!A16","v":"YOR00065"},{"$f":" WINEP_Inputs!J16","v":"7YW100131"},{"$f":" WINEP_Inputs!K16","v":"ACKWORTH/STW"},{"$f":"WINEP_Inputs!CW16","v":"£ per km LORI"},{"$f":"WINEP_Inputs!CX16","v":9.9999999999999995E-7},null,{"$f":" WINEP_Inputs!CR16","v":276351},{"$f":" WINEP_Inputs!CS16","v":1.5829999999999984},{"$f":" WINEP_Inputs!CT16","v":1.5829999999999984},{"$f":" WINEP_Inputs!CU16","v":1},{"$f":" WINEP_Inputs!CV16","v":"WWN"},1]
[null,null,{"$f":" WINEP_Inputs!A17","v":"YOR00066"},{"$f":" WINEP_Inputs!J17","v":"7YW100132"},{"$f":" WINEP_Inputs!K17","v":"CARLETON/NO 2 STW"},{"$f":"WINEP_Inputs!CW17","v":"£ per km LORI"},{"$f":"WINEP_Inputs!CX17","v":9.9999999999999995E-7},null,{"$f":" WINEP_Inputs!CR17","v":276351},{"$f":" WINEP_Inputs!CS17","v":10.102999999999998},{"$f":" WINEP_Inputs!CT17","v":10.102999999999998},{"$f":" WINEP_Inputs!CU17","v":1},{"$f":" WINEP_Inputs!CV17","v":"WWN"},1]
[null,null,{"$f":" WINEP_Inputs!A18","v":"YOR00067"},{"$f":" WINEP_Inputs!J18","v":"7YW100133"},{"$f":" WINEP_Inputs!K18","v":"NORTON (ASKERN) WwTW"},{"$f":"WINEP_Inputs!CW18","v":"£ per km LORI"},{"$f":"WINEP_Inputs!CX18","v":9.9999999999999995E-7},null,{"$f":" WINEP_Inputs!CR18","v":778365},{"$f":" WINEP_Inputs!CS18","v":13.8},{"$f":" WINEP_Inputs!CT18","v":13.8},{"$f":" WINEP_Inputs!CU18","v":1},{"$f":" WINEP_Inputs!CV18","v":"WWN"},1]
[null,null,{"$f":" WINEP_Inputs!A19","v":"EMD00773"},{"$f":" WINEP_Inputs!J19","v":"7YW200005"},{"$f":" WINEP_Inputs!K19","v":"BALBY (STW)"},{"$f":"WINEP_Inputs!CW19","v":"£ per km LORI"},{"$f":"WINEP_Inputs!CX19","v":9.9999999999999995E-7},null,{"$f":" WINEP_Inputs!CR19","v":276351},{"$f":" WINEP_Inputs!CS19","v":0},{"$f":" WINEP_Inputs!CT19","v":0},{"$f":" WINEP_Inputs!CU19","v":1},{"$f":" WINEP_Inputs!CV19","v":"WWN"},0]
[null,null,{"$f":" WINEP_Inputs!A20","v":"EMD00812"},{"$f":" WINEP_Inputs!J20","v":"7YW200006"},{"$f":" WINEP_Inputs!K20","v":"HATFIELD WOODHOUSE (STW)"},{"$f":"WINEP_Inputs!CW20","v":"£ per km LORI"},{"$f":"WINEP_Inputs!CX20","v":9.9999999999999995E-7},null,{"$f":" WINEP_Inputs!CR20","v":276351},{"$f":" WINEP_Inputs!CS20","v":0},{"$f":" WINEP_Inputs!CT20","v":0},{"$f":" WINEP_Inputs!CU20","v":1},{"$f":" WINEP_Inputs!CV20","v":"WWN"},0]
[null,null,{"$f":" WINEP_Inputs!A21","v":"EMD00813"},{"$f":" WINEP_Inputs!J21","v":"7YW200007"},{"$f":" WINEP_Inputs!K21","v":"HATFIELD WOODHOUSE (STW)"},{"$f":"WINEP_Inputs!CW21","v":"£ per km LORI"},{"$f":"WINEP_Inputs!CX21","v":9.9999999999999995E-7},null,{"$f":" WINEP_Inputs!CR21","v":276351},{"$f":" WINEP_Inputs!CS21","v":0},{"$f":" WINEP_Inputs!CT21","v":0},{"$f":" WINEP_Inputs!CU21","v":1},{"$f":" WINEP_Inputs!CV21","v":"WWN"},0]
[null,null,{"$f":" WINEP_Inputs!A22","v":"YOR00112"},{"$f":" WINEP_Inputs!J22","v":"7YW200060"},{"$f":" WINEP_Inputs!K22","v":"Grimwith Sediment Scheme"},{"$f":"WINEP_Inputs!CW22","v":"£ per km LORI"},{"$f":"WINEP_Inputs!CX22","v":9.9999999999999995E-7},null,{"$f":" WINEP_Inputs!CR22","v":80760},{"$f":" WINEP_Inputs!CS22","v":5.1100000000000003},{"$f":" WINEP_Inputs!CT22","v":5.1100000000000003},{"$f":" WINEP_Inputs!CU22","v":1},{"$f":" WINEP_Inputs!CV22","v":"WR"},1]
[null,null,{"$f":" WINEP_Inputs!A23","v":"YOR00115"},{"$f":" WINEP_Inputs!J23","v":"7YW200063"},{"$f":" WINEP_Inputs!K23","v":"Airebank Mills Fish Passage"},{"$f":"WINEP_Inputs!CW23","v":"£ per km LORI"},{"$f":"WINEP_Inputs!CX23","v":9.9999999999999995E-7},null,{"$f":" WINEP_Inputs!CR23","v":37745},{"$f":" WINEP_Inputs!CS23","v":4.5},{"$f":" WINEP_Inputs!CT23","v":4.5},{"$f":" WINEP_Inputs!CU23","v":1},{"$f":" WINEP_Inputs!CV23","v":"WR"},1]
[null,null,{"$f":" WINEP_Inputs!A24","v":"YOR00116"},{"$f":" WINEP_Inputs!J24","v":"7YW200064"},{"$f":" WINEP_Inputs!K24","v":"Cheesebottom Weir Fish Passage"},{"$f":"WINEP_Inputs!CW24","v":"£ per km LORI"},{"$f":"WINEP_Inputs!CX24","v":9.9999999999999995E-7},null,{"$f":" WINEP_Inputs!CR24","v":37745},{"$f":" WINEP_Inputs!CS24","v":9.5},{"$f":" WINEP_Inputs!CT24","v":9.5},{"$f":" WINEP_Inputs!CU24","v":1},{"$f":" WINEP_Inputs!CV24","v":"WR"},1]
[null,null,{"$f":" WINEP_Inputs!A25","v":"YOR00122"},{"$f":" WINEP_Inputs!J25","v":"7YW200070"},{"$f":" WINEP_Inputs!K25","v":"Cononley Weir Fish Passage"},{"$f":"WINEP_Inputs!CW25","v":"£ per km LORI"},{"$f":"WINEP_Inputs!CX25","v":9.9999999999999995E-7},null,{"$f":" WINEP_Inputs!CR25","v":37745},{"$f":" WINEP_Inputs!CS25","v":45.54},{"$f":" WINEP_Inputs!CT25","v":0},{"$f":" WINEP_Inputs!CU25","v":1},{"$f":" WINEP_Inputs!CV25","v":"WR"},0]
[null,null,{"$f":" WINEP_Inputs!A26","v":"YOR00123"},{"$f":" WINEP_Inputs!J26","v":"7YW200071"},{"$f":" WINEP_Inputs!K26","v":"Farnley Beck Fish Passage"},{"$f":"WINEP_Inputs!CW26","v":"£ per km LORI"},{"$f":"WINEP_Inputs!CX26","v":9.9999999999999995E-7},null,{"$f":" WINEP_Inputs!CR26","v":37745},{"$f":" WINEP_Inputs!CS26","v":3.29},{"$f":" WINEP_Inputs!CT26","v":0},{"$f":" WINEP_Inputs!CU26","v":1},{"$f":" WINEP_Inputs!CV26","v":"WR"},0]
[null,null,{"$f":" WINEP_Inputs!A27","v":"YOR00124"},{"$f":" WINEP_Inputs!J27","v":"7YW200072"},{"$f":" WINEP_Inputs!K27","v":"Schole Hill Fish Passage"},{"$f":"WINEP_Inputs!CW27","v":"£ per km LORI"},{"$f":"WINEP_Inputs!CX27","v":9.9999999999999995E-7},null,{"$f":" WINEP_Inputs!CR27","v":80760},{"$f":" WINEP_Inputs!CS27","v":0.78},{"$f":" WINEP_Inputs!CT27","v":0.78},{"$f":" WINEP_Inputs!CU27","v":1},{"$f":" WINEP_Inputs!CV27","v":"WR"},1]
[null,null,{"$f":" WINEP_Inputs!A28","v":"YOR00125"},{"$f":" WINEP_Inputs!J28","v":"7YW200073"},{"$f":" WINEP_Inputs!K28","v":"Watson Mill Fish Passage"},{"$f":"WINEP_Inputs!CW28","v":"£ per km LORI"},{"$f":"WINEP_Inputs!CX28","v":9.9999999999999995E-7},null,{"$f":" WINEP_Inputs!CR28","v":37745},{"$f":" WINEP_Inputs!CS28","v":0.94},{"$f":" WINEP_Inputs!CT28","v":0.94},{"$f":" WINEP_Inputs!CU28","v":1},{"$f":" WINEP_Inputs!CV28","v":"WR"},1]
[null,null,{"$f":" WINEP_Inputs!A29","v":"YOR01523"},{"$f":" WINEP_Inputs!J29","v":"7YW200635"},{"$f":" WINEP_Inputs!K29","v":"SOUTH ELMSALL/STW 6X"},{"$f":"WINEP_Inputs!CW29","v":"£ per m3"},{"$f":"WINEP_Inputs!CX29","v":9.9999999999999995E-7},null,{"$f":" WINEP_Inputs!CR29","v":590},{"$f":" WINEP_Inputs!CS29","v":10000},{"$f":" WINEP_Inputs!CT29","v":10000},{"$f":" WINEP_Inputs!CU29","v":1},{"$f":" WINEP_Inputs!CV29","v":"WWN"},1]
[null,null,{"$f":" WINEP_Inputs!A30","v":"YOR00693"},{"$f":" WINEP_Inputs!J30","v":"7YW200637"},{"$f":" WINEP_Inputs!K30","v":"BENTLEY/STW FE transfer to NGR 458119 405197"},{"$f":"WINEP_Inputs!CW30","v":"£ per km LORI"},{"$f":"WINEP_Inputs!CX30","v":9.9999999999999995E-7},null,{"$f":" WINEP_Inputs!CR30","v":2933301},{"$f":" WINEP_Inputs!CS30","v":0},{"$f":" WINEP_Inputs!CT30","v":0},{"$f":" WINEP_Inputs!CU30","v":1},{"$f":" WINEP_Inputs!CV30","v":"WWN"},0]
[null,null,{"$f":" WINEP_Inputs!A31","v":"YOR00694"},{"$f":" WINEP_Inputs!J31","v":"7YW200638"},{"$f":" WINEP_Inputs!K31","v":"CLAYTON WEST/STW ( Storm Overflow - now wetland (FIS denotes storm oveflow )"},{"$f":"WINEP_Inputs!CW31","v":"£ per km LORI"},{"$f":"WINEP_Inputs!CX31","v":9.9999999999999995E-7},null,{"$f":" WINEP_Inputs!CR31","v":2933301},{"$f":" WINEP_Inputs!CS31","v":2.0499999999999998},{"$f":" WINEP_Inputs!CT31","v":2.0499999999999998},{"$f":" WINEP_Inputs!CU31","v":1},{"$f":" WINEP_Inputs!CV31","v":"WWN"},1]
[null,null,{"$f":" WINEP_Inputs!A32","v":"YOR00696"},{"$f":" WINEP_Inputs!J32","v":"7YW200640"},{"$f":" WINEP_Inputs!K32","v":"Little Don intermittents - Huinself Rd"},{"$f":"WINEP_Inputs!CW32","v":"£ per m3"},{"$f":"WINEP_Inputs!CX32","v":9.9999999999999995E-7},null,{"$f":" WINEP_Inputs!CR32","v":590},{"$f":" WINEP_Inputs!CS32","v":4000},{"$f":" WINEP_Inputs!CT32","v":4000},{"$f":" WINEP_Inputs!CU32","v":1},{"$f":" WINEP_Inputs!CV32","v":"WWN"},1]
[null,null,{"$f":" WINEP_Inputs!A33","v":"YOR01536"},{"$f":" WINEP_Inputs!J33","v":"7YW200641"},{"$f":" WINEP_Inputs!K33","v":"Pudsey intermittents (Farnley Ring Road)"},{"$f":"WINEP_Inputs!CW33","v":"£ per m3"},{"$f":"WINEP_Inputs!CX33","v":9.9999999999999995E-7},null,{"$f":" WINEP_Inputs!CR33","v":590},{"$f":" WINEP_Inputs!CS33","v":5000},{"$f":" WINEP_Inputs!CT33","v":0},{"$f":" WINEP_Inputs!CU33","v":1},{"$f":" WINEP_Inputs!CV33","v":"WWN"},0]
[null,null,{"$f":" WINEP_Inputs!A34","v":"YOR00775"},{"$f":" WINEP_Inputs!J34","v":"7YW200719"},{"$f":" WINEP_Inputs!K34","v":"SHERBURN IN ELMET/STW"},{"$f":"WINEP_Inputs!CW34","v":"£ per km LORI"},{"$f":"WINEP_Inputs!CX34","v":9.9999999999999995E-7},null,{"$f":" WINEP_Inputs!CR34","v":778365},{"$f":" WINEP_Inputs!CS34","v":0},{"$f":" WINEP_Inputs!CT34","v":0},{"$f":" WINEP_Inputs!CU34","v":1},{"$f":" WINEP_Inputs!CV34","v":"WWN"},0]
[null,null,{"$f":" WINEP_Inputs!A35","v":"YOR00787"},{"$f":" WINEP_Inputs!J35","v":"7YW200731"},{"$f":" WINEP_Inputs!K35","v":"BOLSOVER/STW"},{"$f":"WINEP_Inputs!CW35","v":"£ per km LORI"},{"$f":"WINEP_Inputs!CX35","v":9.9999999999999995E-7},null,{"$f":" WINEP_Inputs!CR35","v":778365},{"$f":" WINEP_Inputs!CS35","v":0},{"$f":" WINEP_Inputs!CT35","v":0},{"$f":" WINEP_Inputs!CU35","v":1},{"$f":" WINEP_Inputs!CV35","v":"WWN"},0]
[null,null,{"$f":" WINEP_Inputs!A36","v":"YOR00793"},{"$f":" WINEP_Inputs!J36","v":"7YW200737"},{"$f":" WINEP_Inputs!K36","v":"CARTHORPE WPC WORKS"},{"$f":"WINEP_Inputs!CW36","v":"£ per km LORI"},{"$f":"WINEP_Inputs!CX36","v":9.9999999999999995E-7},null,{"$f":" WINEP_Inputs!CR36","v":276351},{"$f":" WINEP_Inputs!CS36","v":4.83},{"$f":" WINEP_Inputs!CT36","v":4.83},{"$f":" WINEP_Inputs!CU36","v":1},{"$f":" WINEP_Inputs!CV36","v":"WWN"},1]
[null,null,{"$f":" WINEP_Inputs!A37","v":"YOR00799"},{"$f":" WINEP_Inputs!J37","v":"7YW200743"},{"$f":" WINEP_Inputs!K37","v":"THORNTON LE BEANS"},{"$f":"WINEP_Inputs!CW37","v":"£ per km LORI"},{"$f":"WINEP_Inputs!CX37","v":9.9999999999999995E-7},null,{"$f":" WINEP_Inputs!CR37","v":276351},{"$f":" WINEP_Inputs!CS37","v":6.4379999999999997},{"$f":" WINEP_Inputs!CT37","v":6.44},{"$f":" WINEP_Inputs!CU37","v":1},{"$f":" WINEP_Inputs!CV37","v":"WWN"},1.0003106554830694]
[null,null,{"$f":" WINEP_Inputs!A38","v":"YOR00804"},{"$f":" WINEP_Inputs!J38","v":"7YW200748"},{"$f":" WINEP_Inputs!K38","v":"Rainton STW"},{"$f":"WINEP_Inputs!CW38","v":"£ per km LORI"},{"$f":"WINEP_Inputs!CX38","v":9.9999999999999995E-7},null,{"$f":" WINEP_Inputs!CR38","v":276351},{"$f":" WINEP_Inputs!CS38","v":1.464},{"$f":" WINEP_Inputs!CT38","v":1.46},{"$f":" WINEP_Inputs!CU38","v":1},{"$f":" WINEP_Inputs!CV38","v":"WWN"},0.99726775956284153]
[null,null,{"$f":" WINEP_Inputs!A39","v":"YOR00805"},{"$f":" WINEP_Inputs!J39","v":"7YW200749"},{"$f":" WINEP_Inputs!K39","v":"DISHFORTH WPC WORKS"},{"$f":"WINEP_Inputs!CW39","v":"£ per km LORI"},{"$f":"WINEP_Inputs!CX39","v":9.9999999999999995E-7},null,{"$f":" WINEP_Inputs!CR39","v":276351},{"$f":" WINEP_Inputs!CS39","v":7.7649999999999997},{"$f":" WINEP_Inputs!CT39","v":7.7649999999999997},{"$f":" WINEP_Inputs!CU39","v":1},{"$f":" WINEP_Inputs!CV39","v":"WWN"},1]
[null,null,{"$f":" WINEP_Inputs!A40","v":"YOR00806"},{"$f":" WINEP_Inputs!J40","v":"7YW200750"},{"$f":" WINEP_Inputs!K40","v":"KIRKBY MALZEARD/STW"},{"$f":"WINEP_Inputs!CW40","v":"£ per km LORI"},{"$f":"WINEP_Inputs!CX40","v":9.9999999999999995E-7},null,{"$f":" WINEP_Inputs!CR40","v":276351},{"$f":" WINEP_Inputs!CS40","v":12.117999999999997},{"$f":" WINEP_Inputs!CT40","v":12.117999999999997},{"$f":" WINEP_Inputs!CU40","v":1},{"$f":" WINEP_Inputs!CV40","v":"WWN"},1]
[null,null,{"$f":" WINEP_Inputs!A41","v":"YOR00812"},{"$f":" WINEP_Inputs!J41","v":"7YW200756"},{"$f":" WINEP_Inputs!K41","v":"KILLINGHALL STW"},{"$f":"WINEP_Inputs!CW41","v":"£ per km LORI"},{"$f":"WINEP_Inputs!CX41","v":9.9999999999999995E-7},null,{"$f":" WINEP_Inputs!CR41","v":276351},{"$f":" WINEP_Inputs!CS41","v":0},{"$f":" WINEP_Inputs!CT41","v":0},{"$f":" WINEP_Inputs!CU41","v":1},{"$f":" WINEP_Inputs!CV41","v":"WWN"},0]
[null,null,{"$f":" WINEP_Inputs!A42","v":"YOR00813"},{"$f":" WINEP_Inputs!J42","v":"7YW200757"},{"$f":" WINEP_Inputs!K42","v":"SHAW MILLS/STW"},{"$f":"WINEP_Inputs!CW42","v":"£ per km LORI"},{"$f":"WINEP_Inputs!CX42","v":9.9999999999999995E-7},null,{"$f":" WINEP_Inputs!CR42","v":276351},{"$f":" WINEP_Inputs!CS42","v":29.858000000000011},{"$f":" WINEP_Inputs!CT42","v":29.858000000000011},{"$f":" WINEP_Inputs!CU42","v":1},{"$f":" WINEP_Inputs!CV42","v":"WWN"},1]
[null,null,{"$f":" WINEP_Inputs!A43","v":"YOR00833"},{"$f":" WINEP_Inputs!J43","v":"7YW200777"},{"$f":" WINEP_Inputs!K43","v":"DRAUGHTON WPC WORKS"},{"$f":"WINEP_Inputs!CW43","v":"£ per km LORI"},{"$f":"WINEP_Inputs!CX43","v":9.9999999999999995E-7},null,{"$f":" WINEP_Inputs!CR43","v":276351},{"$f":" WINEP_Inputs!CS43","v":3.5189999999999992},{"$f":" WINEP_Inputs!CT43","v":3.5189999999999992},{"$f":" WINEP_Inputs!CU43","v":1},{"$f":" WINEP_Inputs!CV43","v":"WWN"},1]
[null,null,{"$f":" WINEP_Inputs!A44","v":"YOR00838"},{"$f":" WINEP_Inputs!J44","v":"7YW200782"},{"$f":" WINEP_Inputs!K44","v":"SHERBURN IN ELMET/STW"},{"$f":"WINEP_Inputs!CW44","v":"£ per km LORI"},{"$f":"WINEP_Inputs!CX44","v":9.9999999999999995E-7},null,{"$f":" WINEP_Inputs!CR44","v":778365},{"$f":" WINEP_Inputs!CS44","v":10.129999999999999},{"$f":" WINEP_Inputs!CT44","v":10.129999999999999},{"$f":" WINEP_Inputs!CU44","v":1},{"$f":" WINEP_Inputs!CV44","v":"WWN"},1]
[null,null,{"$f":" WINEP_Inputs!A45","v":"YOR00840"},{"$f":" WINEP_Inputs!J45","v":"7YW200784"},{"$f":" WINEP_Inputs!K45","v":"HAROME/STW"},{"$f":"WINEP_Inputs!CW45","v":"£ per km LORI"},{"$f":"WINEP_Inputs!CX45","v":9.9999999999999995E-7},null,{"$f":" WINEP_Inputs!CR45","v":276351},{"$f":" WINEP_Inputs!CS45","v":6.4020000000000001},{"$f":" WINEP_Inputs!CT45","v":6.4},{"$f":" WINEP_Inputs!CU45","v":1},{"$f":" WINEP_Inputs!CV45","v":"WWN"},0.999687597625742]
[null,null,{"$f":" WINEP_Inputs!A46","v":"YOR00846"},{"$f":" WINEP_Inputs!J46","v":"7YW200790"},{"$f":" WINEP_Inputs!K46","v":"BISHOP WILTON WPC WO"},{"$f":"WINEP_Inputs!CW46","v":"£ per kgP/day removed"},{"$f":"WINEP_Inputs!CX46","v":9.9999999999999995E-7},null,{"$f":" WINEP_Inputs!CR46","v":1287218},{"$f":" WINEP_Inputs!CS46","v":1},{"$f":" WINEP_Inputs!CT46","v":1},{"$f":" WINEP_Inputs!CU46","v":1},{"$f":" WINEP_Inputs!CV46","v":"WWN"},1]
[null,null,{"$f":" WINEP_Inputs!A47","v":"YOR00847"},{"$f":" WINEP_Inputs!J47","v":"7YW200791"},{"$f":" WINEP_Inputs!K47","v":"POCKLINGTON/STW"},{"$f":"WINEP_Inputs!CW47","v":"£ per km LORI"},{"$f":"WINEP_Inputs!CX47","v":9.9999999999999995E-7},null,{"$f":" WINEP_Inputs!CR47","v":276351},{"$f":" WINEP_Inputs!CS47","v":2.17},{"$f":" WINEP_Inputs!CT47","v":2.17},{"$f":" WINEP_Inputs!CU47","v":1},{"$f":" WINEP_Inputs!CV47","v":"WWN"},1]
[null,null,{"$f":" WINEP_Inputs!A48","v":"YOR00849"},{"$f":" WINEP_Inputs!J48","v":"7YW200793"},{"$f":" WINEP_Inputs!K48","v":"CROFTON/STW"},{"$f":"WINEP_Inputs!CW48","v":"£ per km LORI"},{"$f":"WINEP_Inputs!CX48","v":9.9999999999999995E-7},null,{"$f":" WINEP_Inputs!CR48","v":276351},{"$f":" WINEP_Inputs!CS48","v":8.9890000000000008},{"$f":" WINEP_Inputs!CT48","v":8.9890000000000008},{"$f":" WINEP_Inputs!CU48","v":1},{"$f":" WINEP_Inputs!CV48","v":"WWN"},1]
[null,null,{"$f":" WINEP_Inputs!A49","v":"YOR00850"},{"$f":" WINEP_Inputs!J49","v":"7YW200794"},{"$f":" WINEP_Inputs!K49","v":"MELTHAM/STW"},{"$f":"WINEP_Inputs!CW49","v":"£ per km LORI"},{"$f":"WINEP_Inputs!CX49","v":9.9999999999999995E-7},null,{"$f":" WINEP_Inputs!CR49","v":276351},{"$f":" WINEP_Inputs!CS49","v":17.146000000000001},{"$f":" WINEP_Inputs!CT49","v":17.146000000000001},{"$f":" WINEP_Inputs!CU49","v":1},{"$f":" WINEP_Inputs!CV49","v":"WWN"},1]
[null,null,{"$f":" WINEP_Inputs!A50","v":"YOR00851"},{"$f":" WINEP_Inputs!J50","v":"7YW200795"},{"$f":" WINEP_Inputs!K50","v":"NEILEY NO 2 STW"},{"$f":"WINEP_Inputs!CW50","v":"£ per km LORI"},{"$f":"WINEP_Inputs!CX50","v":9.9999999999999995E-7},null,{"$f":" WINEP_Inputs!CR50","v":778365},{"$f":" WINEP_Inputs!CS50","v":1.5309999999999988},{"$f":" WINEP_Inputs!CT50","v":1.5309999999999988},{"$f":" WINEP_Inputs!CU50","v":1},{"$f":" WINEP_Inputs!CV50","v":"WWN"},1]
[null,null,{"$f":" WINEP_Inputs!A51","v":"YOR00852"},{"$f":" WINEP_Inputs!J51","v":"7YW200796"},{"$f":" WINEP_Inputs!K51","v":"RIPPONDEN WOOD STW"},{"$f":"WINEP_Inputs!CW51","v":"£ per km LORI"},{"$f":"WINEP_Inputs!CX51","v":9.9999999999999995E-7},null,{"$f":" WINEP_Inputs!CR51","v":276351},{"$f":" WINEP_Inputs!CS51","v":7.9579999999999993},{"$f":" WINEP_Inputs!CT51","v":7.9579999999999993},{"$f":" WINEP_Inputs!CU51","v":1},{"$f":" WINEP_Inputs!CV51","v":"WWN"},1]
[null,null,{"$f":" WINEP_Inputs!A52","v":"YOR00853"},{"$f":" WINEP_Inputs!J52","v":"7YW200797"},{"$f":" WINEP_Inputs!K52","v":"EASTWOOD/STW"},{"$f":"WINEP_Inputs!CW52","v":"£ per km LORI"},{"$f":"WINEP_Inputs!CX52","v":9.9999999999999995E-7},null,{"$f":" WINEP_Inputs!CR52","v":778365},{"$f":" WINEP_Inputs!CS52","v":1.833000000000002},{"$f":" WINEP_Inputs!CT52","v":1.833000000000002},{"$f":" WINEP_Inputs!CU52","v":1},{"$f":" WINEP_Inputs!CV52","v":"WWN"},1]
[null,null,{"$f":" WINEP_Inputs!A53","v":"YOR00854"},{"$f":" WINEP_Inputs!J53","v":"7YW200798"},{"$f":" WINEP_Inputs!K53","v":"REDACRE STW"},{"$f":"WINEP_Inputs!CW53","v":"£ per km LORI"},{"$f":"WINEP_Inputs!CX53","v":9.9999999999999995E-7},null,{"$f":" WINEP_Inputs!CR53","v":276351},{"$f":" WINEP_Inputs!CS53","v":5.0390000000000015},{"$f":" WINEP_Inputs!CT53","v":5.0390000000000015},{"$f":" WINEP_Inputs!CU53","v":1},{"$f":" WINEP_Inputs!CV53","v":"WWN"},1]
[null,null,{"$f":" WINEP_Inputs!A54","v":"YOR00855"},{"$f":" WINEP_Inputs!J54","v":"7YW200799"},{"$f":" WINEP_Inputs!K54","v":"HIGH ROYD NO 2 STW"},{"$f":"WINEP_Inputs!CW54","v":"£ per km LORI"},{"$f":"WINEP_Inputs!CX54","v":9.9999999999999995E-7},null,{"$f":" WINEP_Inputs!CR54","v":778365},{"$f":" WINEP_Inputs!CS54","v":1.5399999999999991},{"$f":" WINEP_Inputs!CT54","v":1.5399999999999991},{"$f":" WINEP_Inputs!CU54","v":1},{"$f":" WINEP_Inputs!CV54","v":"WWN"},1]
[null,null,{"$f":" WINEP_Inputs!A55","v":"YOR00856"},{"$f":" WINEP_Inputs!J55","v":"7YW200800"},{"$f":" WINEP_Inputs!K55","v":"HALIFAX COPLEY STW"},{"$f":"WINEP_Inputs!CW55","v":"£ per km LORI"},{"$f":"WINEP_Inputs!CX55","v":9.9999999999999995E-7},null,{"$f":" WINEP_Inputs!CR55","v":778365},{"$f":" WINEP_Inputs!CS55","v":12.996000000000006},{"$f":" WINEP_Inputs!CT55","v":12.996000000000006},{"$f":" WINEP_Inputs!CU55","v":1},{"$f":" WINEP_Inputs!CV55","v":"WWN"},1]
[null,null,{"$f":" WINEP_Inputs!A56","v":"YOR00857"},{"$f":" WINEP_Inputs!J56","v":"7YW200801"},{"$f":" WINEP_Inputs!K56","v":"Huddersfield STW Colne Bridge"},{"$f":"WINEP_Inputs!CW56","v":"£ per km LORI"},{"$f":"WINEP_Inputs!CX56","v":9.9999999999999995E-7},null,{"$f":" WINEP_Inputs!CR56","v":502014},{"$f":" WINEP_Inputs!CS56","v":0},{"$f":" WINEP_Inputs!CT56","v":0},{"$f":" WINEP_Inputs!CU56","v":1},{"$f":" WINEP_Inputs!CV56","v":"WWN"},0]
[null,null,{"$f":" WINEP_Inputs!A57","v":"YOR00858"},{"$f":" WINEP_Inputs!J57","v":"7YW200802"},{"$f":" WINEP_Inputs!K57","v":"HUDDERSFIELD STW Cooper Bridge"},{"$f":"WINEP_Inputs!CW57","v":"£ per km LORI"},{"$f":"WINEP_Inputs!CX57","v":9.9999999999999995E-7},null,{"$f":" WINEP_Inputs!CR57","v":778365},{"$f":" WINEP_Inputs!CS57","v":12.022000000000006},{"$f":" WINEP_Inputs!CT57","v":12.022000000000006},{"$f":" WINEP_Inputs!CU57","v":1},{"$f":" WINEP_Inputs!CV57","v":"WWN"},1]
[null,null,{"$f":" WINEP_Inputs!A58","v":"YOR00859"},{"$f":" WINEP_Inputs!J58","v":"7YW200803"},{"$f":" WINEP_Inputs!K58","v":"DEWSBURY/STW"},{"$f":"WINEP_Inputs!CW58","v":"£ per km LORI"},{"$f":"WINEP_Inputs!CX58","v":9.9999999999999995E-7},null,{"$f":" WINEP_Inputs!CR58","v":778365},{"$f":" WINEP_Inputs!CS58","v":5.8190000000000026},{"$f":" WINEP_Inputs!CT58","v":5.8190000000000026},{"$f":" WINEP_Inputs!CU58","v":1},{"$f":" WINEP_Inputs!CV58","v":"WWN"},1]
[null,null,{"$f":" WINEP_Inputs!A59","v":"YOR00860"},{"$f":" WINEP_Inputs!J59","v":"7YW200804"},{"$f":" WINEP_Inputs!K59","v":"HORBURY (DUDFLEET) STW"},{"$f":"WINEP_Inputs!CW59","v":"£ per km LORI"},{"$f":"WINEP_Inputs!CX59","v":9.9999999999999995E-7},null,{"$f":" WINEP_Inputs!CR59","v":778365},{"$f":" WINEP_Inputs!CS59","v":3.3089999999999975},{"$f":" WINEP_Inputs!CT59","v":3.3089999999999975},{"$f":" WINEP_Inputs!CU59","v":1},{"$f":" WINEP_Inputs!CV59","v":"WWN"},1]
[null,null,{"$f":" WINEP_Inputs!A60","v":"YOR00861"},{"$f":" WINEP_Inputs!J60","v":"7YW200805"},{"$f":" WINEP_Inputs!K60","v":"CALDER VALE/STW"},{"$f":"WINEP_Inputs!CW60","v":"£ per km LORI"},{"$f":"WINEP_Inputs!CX60","v":9.9999999999999995E-7},null,{"$f":" WINEP_Inputs!CR60","v":778365},{"$f":" WINEP_Inputs!CS60","v":6.7109999999999985},{"$f":" WINEP_Inputs!CT60","v":6.7109999999999985},{"$f":" WINEP_Inputs!CU60","v":1},{"$f":" WINEP_Inputs!CV60","v":"WWN"},1]
[null,null,{"$f":" WINEP_Inputs!A61","v":"YOR00862"},{"$f":" WINEP_Inputs!J61","v":"7YW200806"},{"$f":" WINEP_Inputs!K61","v":"Stanley (Smalley Bight) STW"},{"$f":"WINEP_Inputs!CW61","v":"£ per km LORI"},{"$f":"WINEP_Inputs!CX61","v":9.9999999999999995E-7},null,{"$f":" WINEP_Inputs!CR61","v":778365},{"$f":" WINEP_Inputs!CS61","v":7.8109999999999928},{"$f":" WINEP_Inputs!CT61","v":7.8109999999999928},{"$f":" WINEP_Inputs!CU61","v":1},{"$f":" WINEP_Inputs!CV61","v":"WWN"},1]
[null,null,{"$f":" WINEP_Inputs!A62","v":"YOR00863"},{"$f":" WINEP_Inputs!J62","v":"7YW200807"},{"$f":" WINEP_Inputs!K62","v":"NORMANTON/STW (Mill Lane)"},{"$f":"WINEP_Inputs!CW62","v":"£ per km LORI"},{"$f":"WINEP_Inputs!CX62","v":9.9999999999999995E-7},null,{"$f":" WINEP_Inputs!CR62","v":778365},{"$f":" WINEP_Inputs!CS62","v":3.3939999999999912},{"$f":" WINEP_Inputs!CT62","v":3.3939999999999912},{"$f":" WINEP_Inputs!CU62","v":1},{"$f":" WINEP_Inputs!CV62","v":"WWN"},1]
[null,null,{"$f":" WINEP_Inputs!A63","v":"YOR00866"},{"$f":" WINEP_Inputs!J63","v":"7YW200810"},{"$f":" WINEP_Inputs!K63","v":"EMBSAY/STW"},{"$f":"WINEP_Inputs!CW63","v":"£ per km LORI"},{"$f":"WINEP_Inputs!CX63","v":9.9999999999999995E-7},null,{"$f":" WINEP_Inputs!CR63","v":276351},{"$f":" WINEP_Inputs!CS63","v":2.7149999999999981},{"$f":" WINEP_Inputs!CT63","v":2.72},{"$f":" WINEP_Inputs!CU63","v":1},{"$f":" WINEP_Inputs!CV63","v":"WWN"},1.0018416206261518]
[null,null,{"$f":" WINEP_Inputs!A64","v":"YOR00867"},{"$f":" WINEP_Inputs!J64","v":"7YW200811"},{"$f":" WINEP_Inputs!K64","v":"EAST MARTON"},{"$f":"WINEP_Inputs!CW64","v":"£ per km LORI"},{"$f":"WINEP_Inputs!CX64","v":9.9999999999999995E-7},null,{"$f":" WINEP_Inputs!CR64","v":276351},{"$f":" WINEP_Inputs!CS64","v":0},{"$f":" WINEP_Inputs!CT64","v":0},{"$f":" WINEP_Inputs!CU64","v":1},{"$f":" WINEP_Inputs!CV64","v":"WWN"},0]
[null,null,{"$f":" WINEP_Inputs!A65","v":"YOR00872"},{"$f":" WINEP_Inputs!J65","v":"7YW200816"},{"$f":" WINEP_Inputs!K65","v":"KEIGHLEY MARLEY/STW"},{"$f":"WINEP_Inputs!CW65","v":"£ per km LORI"},{"$f":"WINEP_Inputs!CX65","v":9.9999999999999995E-7},null,{"$f":" WINEP_Inputs!CR65","v":778365},{"$f":" WINEP_Inputs!CS65","v":6.4589999999999961},{"$f":" WINEP_Inputs!CT65","v":6.4589999999999961},{"$f":" WINEP_Inputs!CU65","v":1},{"$f":" WINEP_Inputs!CV65","v":"WWN"},1]
[null,null,{"$f":" WINEP_Inputs!A66","v":"YOR00873"},{"$f":" WINEP_Inputs!J66","v":"7YW200817"},{"$f":" WINEP_Inputs!K66","v":"DOWLEY GAP (BINGLEY)"},{"$f":"WINEP_Inputs!CW66","v":"£ per km LORI"},{"$f":"WINEP_Inputs!CX66","v":9.9999999999999995E-7},null,{"$f":" WINEP_Inputs!CR66","v":778365},{"$f":" WINEP_Inputs!CS66","v":9.1550000000000082},{"$f":" WINEP_Inputs!CT66","v":9.1550000000000082},{"$f":" WINEP_Inputs!CU66","v":1},{"$f":" WINEP_Inputs!CV66","v":"WWN"},1]
[null,null,{"$f":" WINEP_Inputs!A67","v":"YOR00874"},{"$f":" WINEP_Inputs!J67","v":"7YW200818"},{"$f":" WINEP_Inputs!K67","v":"BRADFORD ESHOLT/NO 2 STW"},{"$f":"WINEP_Inputs!CW67","v":"£ per km LORI"},{"$f":"WINEP_Inputs!CX67","v":9.9999999999999995E-7},null,{"$f":" WINEP_Inputs!CR67","v":778365},{"$f":" WINEP_Inputs!CS67","v":23.472000000000008},{"$f":" WINEP_Inputs!CT67","v":23.472000000000008},{"$f":" WINEP_Inputs!CU67","v":1},{"$f":" WINEP_Inputs!CV67","v":"WWN"},1]
[null,null,{"$f":" WINEP_Inputs!A68","v":"YOR00875"},{"$f":" WINEP_Inputs!J68","v":"7YW200819"},{"$f":" WINEP_Inputs!K68","v":"KNOSTROP WWTW"},{"$f":"WINEP_Inputs!CW68","v":"£ per km LORI"},{"$f":"WINEP_Inputs!CX68","v":9.9999999999999995E-7},null,{"$f":" WINEP_Inputs!CR68","v":778365},{"$f":" WINEP_Inputs!CS68","v":5.593},{"$f":" WINEP_Inputs!CT68","v":5.593},{"$f":" WINEP_Inputs!CU68","v":1},{"$f":" WINEP_Inputs!CV68","v":"WWN"},1]
[null,null,{"$f":" WINEP_Inputs!A69","v":"YOR00876"},{"$f":" WINEP_Inputs!J69","v":"7YW200820"},{"$f":" WINEP_Inputs!K69","v":"LEMONROYD STW"},{"$f":"WINEP_Inputs!CW69","v":"£ per km LORI"},{"$f":"WINEP_Inputs!CX69","v":9.9999999999999995E-7},null,{"$f":" WINEP_Inputs!CR69","v":778365},{"$f":" WINEP_Inputs!CS69","v":5.5859999999999985},{"$f":" WINEP_Inputs!CT69","v":5.5859999999999985},{"$f":" WINEP_Inputs!CU69","v":1},{"$f":" WINEP_Inputs!CV69","v":"WWN"},1]
[null,null,{"$f":" WINEP_Inputs!A70","v":"YOR00878"},{"$f":" WINEP_Inputs!J70","v":"7YW200822"},{"$f":" WINEP_Inputs!K70","v":"CASTLEFORD/STW"},{"$f":"WINEP_Inputs!CW70","v":"£ per km LORI"},{"$f":"WINEP_Inputs!CX70","v":9.9999999999999995E-7},null,{"$f":" WINEP_Inputs!CR70","v":778365},{"$f":" WINEP_Inputs!CS70","v":0},{"$f":" WINEP_Inputs!CT70","v":0},{"$f":" WINEP_Inputs!CU70","v":1},{"$f":" WINEP_Inputs!CV70","v":"WWN"},0]
[null,null,{"$f":" WINEP_Inputs!A71","v":"YOR00879"},{"$f":" WINEP_Inputs!J71","v":"7YW200823"},{"$f":" WINEP_Inputs!K71","v":"SUTTON WWTW"},{"$f":"WINEP_Inputs!CW71","v":"£ per km LORI"},{"$f":"WINEP_Inputs!CX71","v":9.9999999999999995E-7},null,{"$f":" WINEP_Inputs!CR71","v":778365},{"$f":" WINEP_Inputs!CS71","v":23.16500000000002},{"$f":" WINEP_Inputs!CT71","v":23.16500000000002},{"$f":" WINEP_Inputs!CU71","v":1},{"$f":" WINEP_Inputs!CV71","v":"WWN"},1]
[null,null,{"$f":" WINEP_Inputs!A72","v":"YOR00881"},{"$f":" WINEP_Inputs!J72","v":"7YW200825"},{"$f":" WINEP_Inputs!K72","v":"SOUTH ELMSALL/STW"},{"$f":"WINEP_Inputs!CW72","v":"£ per km LORI"},{"$f":"WINEP_Inputs!CX72","v":9.9999999999999995E-7},null,{"$f":" WINEP_Inputs!CR72","v":778365},{"$f":" WINEP_Inputs!CS72","v":5.1169999999999991},{"$f":" WINEP_Inputs!CT72","v":5.1169999999999991},{"$f":" WINEP_Inputs!CU72","v":1},{"$f":" WINEP_Inputs!CV72","v":"WWN"},1]
[null,null,{"$f":" WINEP_Inputs!A73","v":"YOR00882"},{"$f":" WINEP_Inputs!J73","v":"7YW200826"},{"$f":" WINEP_Inputs!K73","v":"WRANGBROOK STW"},{"$f":"WINEP_Inputs!CW73","v":"£ per km LORI"},{"$f":"WINEP_Inputs!CX73","v":9.9999999999999995E-7},null,{"$f":" WINEP_Inputs!CR73","v":276351},{"$f":" WINEP_Inputs!CS73","v":8.7759999999999998},{"$f":" WINEP_Inputs!CT73","v":8.7759999999999998},{"$f":" WINEP_Inputs!CU73","v":1},{"$f":" WINEP_Inputs!CV73","v":"WWN"},1]
[null,null,{"$f":" WINEP_Inputs!A74","v":"YOR00883"},{"$f":" WINEP_Inputs!J74","v":"7YW200827"},{"$f":" WINEP_Inputs!K74","v":"Adwick Le Street"},{"$f":"WINEP_Inputs!CW74","v":"£ per km LORI"},{"$f":"WINEP_Inputs!CX74","v":9.9999999999999995E-7},null,{"$f":" WINEP_Inputs!CR74","v":778365},{"$f":" WINEP_Inputs!CS74","v":8.5730000000000004},{"$f":" WINEP_Inputs!CT74","v":8.5730000000000004},{"$f":" WINEP_Inputs!CU74","v":1},{"$f":" WINEP_Inputs!CV74","v":"WWN"},1]
[null,null,{"$f":" WINEP_Inputs!A75","v":"YOR00886"},{"$f":" WINEP_Inputs!J75","v":"7YW200830"},{"$f":" WINEP_Inputs!K75","v":"GRIMETHORPE/STW"},{"$f":"WINEP_Inputs!CW75","v":"£ per km LORI"},{"$f":"WINEP_Inputs!CX75","v":9.9999999999999995E-7},null,{"$f":" WINEP_Inputs!CR75","v":778365},{"$f":" WINEP_Inputs!CS75","v":10.161000000000003},{"$f":" WINEP_Inputs!CT75","v":10.161000000000003},{"$f":" WINEP_Inputs!CU75","v":1},{"$f":" WINEP_Inputs!CV75","v":"WWN"},{"$f":" IF(K80 = 0, 0, K80 / J80)","v":1}]
[null,null,{"$f":" WINEP_Inputs!A76","v":"YOR00887"},{"$f":" WINEP_Inputs!J76","v":"7YW200831"},{"$f":" WINEP_Inputs!K76","v":"CLAYTON WEST/STW"},{"$f":"WINEP_Inputs!CW76","v":"£ per km LORI"},{"$f":"WINEP_Inputs!CX76","v":9.9999999999999995E-7},null,{"$f":" WINEP_Inputs!CR76","v":778365},{"$f":" WINEP_Inputs!CS76","v":3.7070000000000007},{"$f":" WINEP_Inputs!CT76","v":3.7070000000000007},{"$f":" WINEP_Inputs!CU76","v":1},{"$f":" WINEP_Inputs!CV76","v":"WWN"},1]
[null,null,{"$f":" WINEP_Inputs!A77","v":"YOR00888"},{"$f":" WINEP_Inputs!J77","v":"7YW200832"},{"$f":" WINEP_Inputs!K77","v":"HOYLANDSWAINE/STW"},{"$f":"WINEP_Inputs!CW77","v":"£ per km LORI"},{"$f":"WINEP_Inputs!CX77","v":9.9999999999999995E-7},null,{"$f":" WINEP_Inputs!CR77","v":276351},{"$f":" WINEP_Inputs!CS77","v":9.8049999999999997},{"$f":" WINEP_Inputs!CT77","v":9.8049999999999997},{"$f":" WINEP_Inputs!CU77","v":1},{"$f":" WINEP_Inputs!CV77","v":"WWN"},1]
[null,null,{"$f":" WINEP_Inputs!A78","v":"YOR00902"},{"$f":" WINEP_Inputs!J78","v":"7YW200846"},{"$f":" WINEP_Inputs!K78","v":"INGBIRCHWORTH STW"},{"$f":"WINEP_Inputs!CW78","v":"£ per kgP/day removed"},{"$f":"WINEP_Inputs!CX78","v":9.9999999999999995E-7},null,{"$f":" WINEP_Inputs!CR78","v":1287218},{"$f":" WINEP_Inputs!CS78","v":1},{"$f":" WINEP_Inputs!CT78","v":1},{"$f":" WINEP_Inputs!CU78","v":1},{"$f":" WINEP_Inputs!CV78","v":"WWN"},1]
[null,null,{"$f":" WINEP_Inputs!A79","v":"YOR00903"},{"$f":" WINEP_Inputs!J79","v":"7YW200847"},{"$f":" WINEP_Inputs!K79","v":"CHEESEBOTTOM STW"},{"$f":"WINEP_Inputs!CW79","v":"£ per km LORI"},{"$f":"WINEP_Inputs!CX79","v":9.9999999999999995E-7},null,{"$f":" WINEP_Inputs!CR79","v":778365},{"$f":" WINEP_Inputs!CS79","v":7.7469999999999999},{"$f":" WINEP_Inputs!CT79","v":7.7469999999999999},{"$f":" WINEP_Inputs!CU79","v":1},{"$f":" WINEP_Inputs!CV79","v":"WWN"},1]
[null,null,{"$f":" WINEP_Inputs!A80","v":"YOR00904"},{"$f":" WINEP_Inputs!J80","v":"7YW200848"},{"$f":" WINEP_Inputs!K80","v":"STOCKSBRIDGE/STW"},{"$f":"WINEP_Inputs!CW80","v":"£ per km LORI"},{"$f":"WINEP_Inputs!CX80","v":9.9999999999999995E-7},null,{"$f":" WINEP_Inputs!CR80","v":778365},{"$f":" WINEP_Inputs!CS80","v":23.136999999999979},{"$f":" WINEP_Inputs!CT80","v":23.136999999999979},{"$f":" WINEP_Inputs!CU80","v":1},{"$f":" WINEP_Inputs!CV80","v":"WWN"},1]
[null,null,{"$f":" WINEP_Inputs!A81","v":"YOR00906"},{"$f":" WINEP_Inputs!J81","v":"7YW200850"},{"$f":" WINEP_Inputs!K81","v":"BLACKBURN MEADOWS/STW"},{"$f":"WINEP_Inputs!CW81","v":"£ per km LORI"},{"$f":"WINEP_Inputs!CX81","v":9.9999999999999995E-7},null,{"$f":" WINEP_Inputs!CR81","v":778365},{"$f":" WINEP_Inputs!CS81","v":6.5280000000000058},{"$f":" WINEP_Inputs!CT81","v":6.5280000000000058},{"$f":" WINEP_Inputs!CU81","v":1},{"$f":" WINEP_Inputs!CV81","v":"WWN"},1]
[null,null,{"$f":" WINEP_Inputs!A82","v":"YOR00913"},{"$f":" WINEP_Inputs!J82","v":"7YW200857"},{"$f":" WINEP_Inputs!K82","v":"Old Whittington (Chesterfield) STW"},{"$f":"WINEP_Inputs!CW82","v":"£ per km LORI"},{"$f":"WINEP_Inputs!CX82","v":9.9999999999999995E-7},null,{"$f":" WINEP_Inputs!CR82","v":778365},{"$f":" WINEP_Inputs!CS82","v":9.2680000000000007},{"$f":" WINEP_Inputs!CT82","v":9.2680000000000007},{"$f":" WINEP_Inputs!CU82","v":1},{"$f":" WINEP_Inputs!CV82","v":"WWN"},1]
[null,null,{"$f":" WINEP_Inputs!A83","v":"YOR00914"},{"$f":" WINEP_Inputs!J83","v":"7YW200858"},{"$f":" WINEP_Inputs!K83","v":"STOCKLEY/STW"},{"$f":"WINEP_Inputs!CW83","v":"£ per km LORI"},{"$f":"WINEP_Inputs!CX83","v":9.9999999999999995E-7},null,{"$f":" WINEP_Inputs!CR83","v":276351},{"$f":" WINEP_Inputs!CS83","v":2.3670000000000009},{"$f":" WINEP_Inputs!CT83","v":2.3670000000000009},{"$f":" WINEP_Inputs!CU83","v":1},{"$f":" WINEP_Inputs!CV83","v":"WWN"},1]
[null,null,{"$f":" WINEP_Inputs!A84","v":"YOR00915"},{"$f":" WINEP_Inputs!J84","v":"7YW200859"},{"$f":" WINEP_Inputs!K84","v":"BOLSOVER/STW"},{"$f":"WINEP_Inputs!CW84","v":"£ per km LORI"},{"$f":"WINEP_Inputs!CX84","v":9.9999999999999995E-7},null,{"$f":" WINEP_Inputs!CR84","v":778365},{"$f":" WINEP_Inputs!CS84","v":7.7959999999999958},{"$f":" WINEP_Inputs!CT84","v":7.7959999999999958},{"$f":" WINEP_Inputs!CU84","v":1},{"$f":" WINEP_Inputs!CV84","v":"WWN"},1]
[null,null,{"$f":" WINEP_Inputs!A85","v":"YOR00916"},{"$f":" WINEP_Inputs!J85","v":"7YW200860"},{"$f":" WINEP_Inputs!K85","v":"STAVELEY/STW"},{"$f":"WINEP_Inputs!CW85","v":"£ per km LORI"},{"$f":"WINEP_Inputs!CX85","v":9.9999999999999995E-7},null,{"$f":" WINEP_Inputs!CR85","v":778365},{"$f":" WINEP_Inputs!CS85","v":12.93399999999999},{"$f":" WINEP_Inputs!CT85","v":12.93399999999999},{"$f":" WINEP_Inputs!CU85","v":1},{"$f":" WINEP_Inputs!CV85","v":"WWN"},1]
[null,null,{"$f":" WINEP_Inputs!A86","v":"YOR00917"},{"$f":" WINEP_Inputs!J86","v":"7YW200861"},{"$f":" WINEP_Inputs!K86","v":"WOODHOUSE MILL WwTW"},{"$f":"WINEP_Inputs!CW86","v":"£ per km LORI"},{"$f":"WINEP_Inputs!CX86","v":9.9999999999999995E-7},null,{"$f":" WINEP_Inputs!CR86","v":778365},{"$f":" WINEP_Inputs!CS86","v":4.2749999999999986},{"$f":" WINEP_Inputs!CT86","v":4.2749999999999986},{"$f":" WINEP_Inputs!CU86","v":1},{"$f":" WINEP_Inputs!CV86","v":"WWN"},1]
[null,null,{"$f":" WINEP_Inputs!A87","v":"YOR00918"},{"$f":" WINEP_Inputs!J87","v":"7YW200862"},{"$f":" WINEP_Inputs!K87","v":"LONG LANE/STW"},{"$f":"WINEP_Inputs!CW87","v":"£ per km LORI"},{"$f":"WINEP_Inputs!CX87","v":9.9999999999999995E-7},null,{"$f":" WINEP_Inputs!CR87","v":778365},{"$f":" WINEP_Inputs!CS87","v":4.2360000000000042},{"$f":" WINEP_Inputs!CT87","v":4.2360000000000042},{"$f":" WINEP_Inputs!CU87","v":1},{"$f":" WINEP_Inputs!CV87","v":"WWN"},1]
[null,null,{"$f":" WINEP_Inputs!A88","v":"YOR00919"},{"$f":" WINEP_Inputs!J88","v":"7YW200863"},{"$f":" WINEP_Inputs!K88","v":"ALDWARKE/STW"},{"$f":"WINEP_Inputs!CW88","v":"£ per km LORI"},{"$f":"WINEP_Inputs!CX88","v":9.9999999999999995E-7},null,{"$f":" WINEP_Inputs!CR88","v":778365},{"$f":" WINEP_Inputs!CS88","v":7.0600000000000023},{"$f":" WINEP_Inputs!CT88","v":7.0600000000000023},{"$f":" WINEP_Inputs!CU88","v":1},{"$f":" WINEP_Inputs!CV88","v":"WWN"},1]
[null,null,{"$f":" WINEP_Inputs!A89","v":"YOR00920"},{"$f":" WINEP_Inputs!J89","v":"7YW200864"},{"$f":" WINEP_Inputs!K89","v":"MEXBORO SWINTON/STW"},{"$f":"WINEP_Inputs!CW89","v":"£ per km LORI"},{"$f":"WINEP_Inputs!CX89","v":9.9999999999999995E-7},null,{"$f":" WINEP_Inputs!CR89","v":778365},{"$f":" WINEP_Inputs!CS89","v":3.0600000000000023},{"$f":" WINEP_Inputs!CT89","v":3.0600000000000023},{"$f":" WINEP_Inputs!CU89","v":1},{"$f":" WINEP_Inputs!CV89","v":"WWN"},1]
[null,null,{"$f":" WINEP_Inputs!A90","v":"YOR00921"},{"$f":" WINEP_Inputs!J90","v":"7YW200865"},{"$f":" WINEP_Inputs!K90","v":"DENABY WTW"},{"$f":"WINEP_Inputs!CW90","v":"£ per km LORI"},{"$f":"WINEP_Inputs!CX90","v":9.9999999999999995E-7},null,{"$f":" WINEP_Inputs!CR90","v":778365},{"$f":" WINEP_Inputs!CS90","v":13.415999999999983},{"$f":" WINEP_Inputs!CT90","v":13.415999999999983},{"$f":" WINEP_Inputs!CU90","v":1},{"$f":" WINEP_Inputs!CV90","v":"WWN"},1]
[null,null,{"$f":" WINEP_Inputs!A91","v":"YOR00922"},{"$f":" WINEP_Inputs!J91","v":"7YW200866"},{"$f":" WINEP_Inputs!K91","v":"Clifton STW"},{"$f":"WINEP_Inputs!CW91","v":"£ per km LORI"},{"$f":"WINEP_Inputs!CX91","v":9.9999999999999995E-7},null,{"$f":" WINEP_Inputs!CR91","v":276351},{"$f":" WINEP_Inputs!CS91","v":0},{"$f":" WINEP_Inputs!CT91","v":0},{"$f":" WINEP_Inputs!CU91","v":1},{"$f":" WINEP_Inputs!CV91","v":"WWN"},0]
[null,null,{"$f":" WINEP_Inputs!A92","v":"YOR00923"},{"$f":" WINEP_Inputs!J92","v":"7YW200867"},{"$f":" WINEP_Inputs!K92","v":"BENTLEY/STW P Removal"},{"$f":"WINEP_Inputs!CW92","v":"£ per km LORI"},{"$f":"WINEP_Inputs!CX92","v":9.9999999999999995E-7},null,{"$f":" WINEP_Inputs!CR92","v":778365},{"$f":" WINEP_Inputs!CS92","v":3.43},{"$f":" WINEP_Inputs!CT92","v":3.43},{"$f":" WINEP_Inputs!CU92","v":1},{"$f":" WINEP_Inputs!CV92","v":"WWN"},1]
[null,null,{"$f":" WINEP_Inputs!A93","v":"YOR00928"},{"$f":" WINEP_Inputs!J93","v":"7YW200872"},{"$f":" WINEP_Inputs!K93","v":"KIRK SMEATON/STW"},{"$f":"WINEP_Inputs!CW93","v":"£ per kgP/day removed"},{"$f":"WINEP_Inputs!CX93","v":9.9999999999999995E-7},null,{"$f":" WINEP_Inputs!CR93","v":1287218},{"$f":" WINEP_Inputs!CS93","v":2},{"$f":" WINEP_Inputs!CT93","v":2},{"$f":" WINEP_Inputs!CU93","v":1},{"$f":" WINEP_Inputs!CV93","v":"WWN"},1]
[null,null,{"$f":" WINEP_Inputs!A94","v":"YOR00966"},{"$f":" WINEP_Inputs!J94","v":"7YW200910"},{"$f":" WINEP_Inputs!K94","v":"Adwick Le Street"},{"$f":"WINEP_Inputs!CW94","v":"£ per km LORI"},{"$f":"WINEP_Inputs!CX94","v":9.9999999999999995E-7},null,{"$f":" WINEP_Inputs!CR94","v":778365},{"$f":" WINEP_Inputs!CS94","v":0},{"$f":" WINEP_Inputs!CT94","v":0},{"$f":" WINEP_Inputs!CU94","v":1},{"$f":" WINEP_Inputs!CV94","v":"WWN"},0]
[null,null,{"$f":" WINEP_Inputs!A95","v":"YOR00967"},{"$f":" WINEP_Inputs!J95","v":"7YW200911"},{"$f":" WINEP_Inputs!K95","v":"ALDWARKE/STW"},{"$f":"WINEP_Inputs!CW95","v":"£ per km LORI"},{"$f":"WINEP_Inputs!CX95","v":9.9999999999999995E-7},null,{"$f":" WINEP_Inputs!CR95","v":778365},{"$f":" WINEP_Inputs!CS95","v":0},{"$f":" WINEP_Inputs!CT95","v":0},{"$f":" WINEP_Inputs!CU95","v":1},{"$f":" WINEP_Inputs!CV95","v":"WWN"},0]
[null,null,{"$f":" WINEP_Inputs!A96","v":"YOR00968"},{"$f":" WINEP_Inputs!J96","v":"7YW200912"},{"$f":" WINEP_Inputs!K96","v":"BENTLEY/STW P Removal"},{"$f":"WINEP_Inputs!CW96","v":"£ per km LORI"},{"$f":"WINEP_Inputs!CX96","v":9.9999999999999995E-7},null,{"$f":" WINEP_Inputs!CR96","v":778365},{"$f":" WINEP_Inputs!CS96","v":0},{"$f":" WINEP_Inputs!CT96","v":0},{"$f":" WINEP_Inputs!CU96","v":1},{"$f":" WINEP_Inputs!CV96","v":"WWN"},0]
[null,null,{"$f":" WINEP_Inputs!A97","v":"YOR00969"},{"$f":" WINEP_Inputs!J97","v":"7YW200913"},{"$f":" WINEP_Inputs!K97","v":"BLACKBURN MEADOWS/STW"},{"$f":"WINEP_Inputs!CW97","v":"£ per km LORI"},{"$f":"WINEP_Inputs!CX97","v":9.9999999999999995E-7},null,{"$f":" WINEP_Inputs!CR97","v":778365},{"$f":" WINEP_Inputs!CS97","v":0},{"$f":" WINEP_Inputs!CT97","v":0},{"$f":" WINEP_Inputs!CU97","v":1},{"$f":" WINEP_Inputs!CV97","v":"WWN"},0]
[null,null,{"$f":" WINEP_Inputs!A98","v":"YOR00970"},{"$f":" WINEP_Inputs!J98","v":"7YW200914"},{"$f":" WINEP_Inputs!K98","v":"BOLSOVER/STW"},{"$f":"WINEP_Inputs!CW98","v":"£ per km LORI"},{"$f":"WINEP_Inputs!CX98","v":9.9999999999999995E-7},null,{"$f":" WINEP_Inputs!CR98","v":778365},{"$f":" WINEP_Inputs!CS98","v":0},{"$f":" WINEP_Inputs!CT98","v":0},{"$f":" WINEP_Inputs!CU98","v":1},{"$f":" WINEP_Inputs!CV98","v":"WWN"},0]
[null,null,{"$f":" WINEP_Inputs!A99","v":"YOR00971"},{"$f":" WINEP_Inputs!J99","v":"7YW200915"},{"$f":" WINEP_Inputs!K99","v":"BOLTON ON DEARNE/STW"},{"$f":"WINEP_Inputs!CW99","v":"£ per km LORI"},{"$f":"WINEP_Inputs!CX99","v":9.9999999999999995E-7},null,{"$f":" WINEP_Inputs!CR99","v":502014},{"$f":" WINEP_Inputs!CS99","v":5.8619999999999948},{"$f":" WINEP_Inputs!CT99","v":5.8619999999999948},{"$f":" WINEP_Inputs!CU99","v":1},{"$f":" WINEP_Inputs!CV99","v":"WWN"},1]
[null,null,{"$f":" WINEP_Inputs!A100","v":"YOR00972"},{"$f":" WINEP_Inputs!J100","v":"7YW200916"},{"$f":" WINEP_Inputs!K100","v":"BRADFORD ESHOLT/NO 2 STW"},{"$f":"WINEP_Inputs!CW100","v":"£ per km LORI"},{"$f":"WINEP_Inputs!CX100","v":9.9999999999999995E-7},null,{"$f":" WINEP_Inputs!CR100","v":778365},{"$f":" WINEP_Inputs!CS100","v":0},{"$f":" WINEP_Inputs!CT100","v":0},{"$f":" WINEP_Inputs!CU100","v":1},{"$f":" WINEP_Inputs!CV100","v":"WWN"},0]
[null,null,{"$f":" WINEP_Inputs!A101","v":"YOR00973"},{"$f":" WINEP_Inputs!J101","v":"7YW200917"},{"$f":" WINEP_Inputs!K101","v":"CALDER VALE/STW"},{"$f":"WINEP_Inputs!CW101","v":"£ per km LORI"},{"$f":"WINEP_Inputs!CX101","v":9.9999999999999995E-7},null,{"$f":" WINEP_Inputs!CR101","v":778365},{"$f":" WINEP_Inputs!CS101","v":0},{"$f":" WINEP_Inputs!CT101","v":0},{"$f":" WINEP_Inputs!CU101","v":1},{"$f":" WINEP_Inputs!CV101","v":"WWN"},0]
[null,null,{"$f":" WINEP_Inputs!A102","v":"YOR00974"},{"$f":" WINEP_Inputs!J102","v":"7YW200918"},{"$f":" WINEP_Inputs!K102","v":"CASTLEFORD/STW"},{"$f":"WINEP_Inputs!CW102","v":"£ per km LORI"},{"$f":"WINEP_Inputs!CX102","v":9.9999999999999995E-7},null,{"$f":" WINEP_Inputs!CR102","v":778365},{"$f":" WINEP_Inputs!CS102","v":5.296999999999997},{"$f":" WINEP_Inputs!CT102","v":5.296999999999997},{"$f":" WINEP_Inputs!CU102","v":1},{"$f":" WINEP_Inputs!CV102","v":"WWN"},1]
[null,null,{"$f":" WINEP_Inputs!A103","v":"YOR00975"},{"$f":" WINEP_Inputs!J103","v":"7YW200919"},{"$f":" WINEP_Inputs!K103","v":"CHEESEBOTTOM STW"},{"$f":"WINEP_Inputs!CW103","v":"£ per km LORI"},{"$f":"WINEP_Inputs!CX103","v":9.9999999999999995E-7},null,{"$f":" WINEP_Inputs!CR103","v":778365},{"$f":" WINEP_Inputs!CS103","v":0},{"$f":" WINEP_Inputs!CT103","v":0},{"$f":" WINEP_Inputs!CU103","v":1},{"$f":" WINEP_Inputs!CV103","v":"WWN"},0]
[null,null,{"$f":" WINEP_Inputs!A104","v":"YOR00976"},{"$f":" WINEP_Inputs!J104","v":"7YW200920"},{"$f":" WINEP_Inputs!K104","v":"CLAYTON WEST/STW"},{"$f":"WINEP_Inputs!CW104","v":"£ per km LORI"},{"$f":"WINEP_Inputs!CX104","v":9.9999999999999995E-7},null,{"$f":" WINEP_Inputs!CR104","v":778365},{"$f":" WINEP_Inputs!CS104","v":0},{"$f":" WINEP_Inputs!CT104","v":0},{"$f":" WINEP_Inputs!CU104","v":1},{"$f":" WINEP_Inputs!CV104","v":"WWN"},0]
[null,null,{"$f":" WINEP_Inputs!A105","v":"YOR00977"},{"$f":" WINEP_Inputs!J105","v":"7YW200921"},{"$f":" WINEP_Inputs!K105","v":"DARTON/STW"},{"$f":"WINEP_Inputs!CW105","v":"£ per km LORI"},{"$f":"WINEP_Inputs!CX105","v":9.9999999999999995E-7},null,{"$f":" WINEP_Inputs!CR105","v":502014},{"$f":" WINEP_Inputs!CS105","v":7.718},{"$f":" WINEP_Inputs!CT105","v":7.718},{"$f":" WINEP_Inputs!CU105","v":1},{"$f":" WINEP_Inputs!CV105","v":"WWN"},1]
[null,null,{"$f":" WINEP_Inputs!A106","v":"YOR00978"},{"$f":" WINEP_Inputs!J106","v":"7YW200922"},{"$f":" WINEP_Inputs!K106","v":"DENABY WTW"},{"$f":"WINEP_Inputs!CW106","v":"£ per km LORI"},{"$f":"WINEP_Inputs!CX106","v":9.9999999999999995E-7},null,{"$f":" WINEP_Inputs!CR106","v":778365},{"$f":" WINEP_Inputs!CS106","v":0},{"$f":" WINEP_Inputs!CT106","v":0},{"$f":" WINEP_Inputs!CU106","v":1},{"$f":" WINEP_Inputs!CV106","v":"WWN"},0]
[null,null,{"$f":" WINEP_Inputs!A107","v":"YOR00979"},{"$f":" WINEP_Inputs!J107","v":"7YW200923"},{"$f":" WINEP_Inputs!K107","v":"DEWSBURY/STW"},{"$f":"WINEP_Inputs!CW107","v":"£ per km LORI"},{"$f":"WINEP_Inputs!CX107","v":9.9999999999999995E-7},null,{"$f":" WINEP_Inputs!CR107","v":778365},{"$f":" WINEP_Inputs!CS107","v":0},{"$f":" WINEP_Inputs!CT107","v":0},{"$f":" WINEP_Inputs!CU107","v":1},{"$f":" WINEP_Inputs!CV107","v":"WWN"},0]
[null,null,{"$f":" WINEP_Inputs!A108","v":"YOR00980"},{"$f":" WINEP_Inputs!J108","v":"7YW200924"},{"$f":" WINEP_Inputs!K108","v":"DOWLEY GAP (BINGLEY)"},{"$f":"WINEP_Inputs!CW108","v":"£ per km LORI"},{"$f":"WINEP_Inputs!CX108","v":9.9999999999999995E-7},null,{"$f":" WINEP_Inputs!CR108","v":778365},{"$f":" WINEP_Inputs!CS108","v":0},{"$f":" WINEP_Inputs!CT108","v":0},{"$f":" WINEP_Inputs!CU108","v":1},{"$f":" WINEP_Inputs!CV108","v":"WWN"},0]
[null,null,{"$f":" WINEP_Inputs!A109","v":"YOR00981"},{"$f":" WINEP_Inputs!J109","v":"7YW200925"},{"$f":" WINEP_Inputs!K109","v":"DRONFIELD/STW"},{"$f":"WINEP_Inputs!CW109","v":"£ per km LORI"},{"$f":"WINEP_Inputs!CX109","v":9.9999999999999995E-7},null,{"$f":" WINEP_Inputs!CR109","v":778365},{"$f":" WINEP_Inputs!CS109","v":0},{"$f":" WINEP_Inputs!CT109","v":0},{"$f":" WINEP_Inputs!CU109","v":1},{"$f":" WINEP_Inputs!CV109","v":"WWN"},0]
[null,null,{"$f":" WINEP_Inputs!A110","v":"YOR00982"},{"$f":" WINEP_Inputs!J110","v":"7YW200926"},{"$f":" WINEP_Inputs!K110","v":"OWLWOOD (GARFORTH) STW"},{"$f":"WINEP_Inputs!CW110","v":"£ per km LORI"},{"$f":"WINEP_Inputs!CX110","v":9.9999999999999995E-7},null,{"$f":" WINEP_Inputs!CR110","v":778365},{"$f":" WINEP_Inputs!CS110","v":0},{"$f":" WINEP_Inputs!CT110","v":0},{"$f":" WINEP_Inputs!CU110","v":1},{"$f":" WINEP_Inputs!CV110","v":"WWN"},0]
[null,null,{"$f":" WINEP_Inputs!A111","v":"YOR00983"},{"$f":" WINEP_Inputs!J111","v":"7YW200927"},{"$f":" WINEP_Inputs!K111","v":"GRIMETHORPE/STW"},{"$f":"WINEP_Inputs!CW111","v":"£ per km LORI"},{"$f":"WINEP_Inputs!CX111","v":9.9999999999999995E-7},null,{"$f":" WINEP_Inputs!CR111","v":778365},{"$f":" WINEP_Inputs!CS111","v":0},{"$f":" WINEP_Inputs!CT111","v":0},{"$f":" WINEP_Inputs!CU111","v":1},{"$f":" WINEP_Inputs!CV111","v":"WWN"},0]
[null,null,{"$f":" WINEP_Inputs!A112","v":"YOR00984"},{"$f":" WINEP_Inputs!J112","v":"7YW200928"},{"$f":" WINEP_Inputs!K112","v":"HARROGATE SOUTH/STW"},{"$f":"WINEP_Inputs!CW112","v":"£ per km LORI"},{"$f":"WINEP_Inputs!CX112","v":9.9999999999999995E-7},null,{"$f":" WINEP_Inputs!CR112","v":778365},{"$f":" WINEP_Inputs!CS112","v":0},{"$f":" WINEP_Inputs!CT112","v":0},{"$f":" WINEP_Inputs!CU112","v":1},{"$f":" WINEP_Inputs!CV112","v":"WWN"},0]
[null,null,{"$f":" WINEP_Inputs!A113","v":"YOR00985"},{"$f":" WINEP_Inputs!J113","v":"7YW200929"},{"$f":" WINEP_Inputs!K113","v":"HORBURY (DUDFLEET) STW"},{"$f":"WINEP_Inputs!CW113","v":"£ per km LORI"},{"$f":"WINEP_Inputs!CX113","v":9.9999999999999995E-7},null,{"$f":" WINEP_Inputs!CR113","v":778365},{"$f":" WINEP_Inputs!CS113","v":0},{"$f":" WINEP_Inputs!CT113","v":0},{"$f":" WINEP_Inputs!CU113","v":1},{"$f":" WINEP_Inputs!CV113","v":"WWN"},0]
[null,null,{"$f":" WINEP_Inputs!A114","v":"YOR00986"},{"$f":" WINEP_Inputs!J114","v":"7YW200930"},{"$f":" WINEP_Inputs!K114","v":"HUDDERSFIELD STW Cooper Bridge"},{"$f":"WINEP_Inputs!CW114","v":"£ per km LORI"},{"$f":"WINEP_Inputs!CX114","v":9.9999999999999995E-7},null,{"$f":" WINEP_Inputs!CR114","v":778365},{"$f":" WINEP_Inputs!CS114","v":0},{"$f":" WINEP_Inputs!CT114","v":0},{"$f":" WINEP_Inputs!CU114","v":1},{"$f":" WINEP_Inputs!CV114","v":"WWN"},0]
[null,null,{"$f":" WINEP_Inputs!A115","v":"YOR00987"},{"$f":" WINEP_Inputs!J115","v":"7YW200931"},{"$f":" WINEP_Inputs!K115","v":"KNOSTROP WWTW"},{"$f":"WINEP_Inputs!CW115","v":"£ per km LORI"},{"$f":"WINEP_Inputs!CX115","v":9.9999999999999995E-7},null,{"$f":" WINEP_Inputs!CR115","v":778365},{"$f":" WINEP_Inputs!CS115","v":0},{"$f":" WINEP_Inputs!CT115","v":0},{"$f":" WINEP_Inputs!CU115","v":1},{"$f":" WINEP_Inputs!CV115","v":"WWN"},0]
[null,null,{"$f":" WINEP_Inputs!A116","v":"YOR00988"},{"$f":" WINEP_Inputs!J116","v":"7YW200932"},{"$f":" WINEP_Inputs!K116","v":"LEMONROYD STW"},{"$f":"WINEP_Inputs!CW116","v":"£ per km LORI"},{"$f":"WINEP_Inputs!CX116","v":9.9999999999999995E-7},null,{"$f":" WINEP_Inputs!CR116","v":778365},{"$f":" WINEP_Inputs!CS116","v":0},{"$f":" WINEP_Inputs!CT116","v":0},{"$f":" WINEP_Inputs!CU116","v":1},{"$f":" WINEP_Inputs!CV116","v":"WWN"},0]
[null,null,{"$f":" WINEP_Inputs!A117","v":"YOR00989"},{"$f":" WINEP_Inputs!J117","v":"7YW200933"},{"$f":" WINEP_Inputs!K117","v":"LONG LANE/STW"},{"$f":"WINEP_Inputs!CW117","v":"£ per km LORI"},{"$f":"WINEP_Inputs!CX117","v":9.9999999999999995E-7},null,{"$f":" WINEP_Inputs!CR117","v":778365},{"$f":" WINEP_Inputs!CS117","v":0},{"$f":" WINEP_Inputs!CT117","v":0},{"$f":" WINEP_Inputs!CU117","v":1},{"$f":" WINEP_Inputs!CV117","v":"WWN"},0]
[null,null,{"$f":" WINEP_Inputs!A118","v":"YOR00990"},{"$f":" WINEP_Inputs!J118","v":"7YW200934"},{"$f":" WINEP_Inputs!K118","v":"LUNDWOOD STW"},{"$f":"WINEP_Inputs!CW118","v":"£ per km LORI"},{"$f":"WINEP_Inputs!CX118","v":9.9999999999999995E-7},null,{"$f":" WINEP_Inputs!CR118","v":502014},{"$f":" WINEP_Inputs!CS118","v":2.0150000000000006},{"$f":" WINEP_Inputs!CT118","v":2.0150000000000006},{"$f":" WINEP_Inputs!CU118","v":1},{"$f":" WINEP_Inputs!CV118","v":"WWN"},1]
[null,null,{"$f":" WINEP_Inputs!A119","v":"YOR00991"},{"$f":" WINEP_Inputs!J119","v":"7YW200935"},{"$f":" WINEP_Inputs!K119","v":"NORMANTON/STW (Mill Lane)"},{"$f":"WINEP_Inputs!CW119","v":"£ per km LORI"},{"$f":"WINEP_Inputs!CX119","v":9.9999999999999995E-7},null,{"$f":" WINEP_Inputs!CR119","v":778365},{"$f":" WINEP_Inputs!CS119","v":0},{"$f":" WINEP_Inputs!CT119","v":0},{"$f":" WINEP_Inputs!CU119","v":1},{"$f":" WINEP_Inputs!CV119","v":"WWN"},0]
[null,null,{"$f":" WINEP_Inputs!A120","v":"YOR00992"},{"$f":" WINEP_Inputs!J120","v":"7YW200936"},{"$f":" WINEP_Inputs!K120","v":"Norton (Askern) WwTW"},{"$f":"WINEP_Inputs!CW120","v":"£ per km LORI"},{"$f":"WINEP_Inputs!CX120","v":9.9999999999999995E-7},null,{"$f":" WINEP_Inputs!CR120","v":778365},{"$f":" WINEP_Inputs!CS120","v":0},{"$f":" WINEP_Inputs!CT120","v":0},{"$f":" WINEP_Inputs!CU120","v":1},{"$f":" WINEP_Inputs!CV120","v":"WWN"},0]
[null,null,{"$f":" WINEP_Inputs!A121","v":"YOR00993"},{"$f":" WINEP_Inputs!J121","v":"7YW200937"},{"$f":" WINEP_Inputs!K121","v":"Old Whittington (Chesterfield) STW"},{"$f":"WINEP_Inputs!CW121","v":"£ per km LORI"},{"$f":"WINEP_Inputs!CX121","v":9.9999999999999995E-7},null,{"$f":" WINEP_Inputs!CR121","v":778365},{"$f":" WINEP_Inputs!CS121","v":0},{"$f":" WINEP_Inputs!CT121","v":0},{"$f":" WINEP_Inputs!CU121","v":1},{"$f":" WINEP_Inputs!CV121","v":"WWN"},0]
[null,null,{"$f":" WINEP_Inputs!A122","v":"YOR00994"},{"$f":" WINEP_Inputs!J122","v":"7YW200938"},{"$f":" WINEP_Inputs!K122","v":"SANDALL/STW"},{"$f":"WINEP_Inputs!CW122","v":"£ per km LORI"},{"$f":"WINEP_Inputs!CX122","v":9.9999999999999995E-7},null,{"$f":" WINEP_Inputs!CR122","v":502014},{"$f":" WINEP_Inputs!CS122","v":14.064000000000007},{"$f":" WINEP_Inputs!CT122","v":14.064000000000007},{"$f":" WINEP_Inputs!CU122","v":1},{"$f":" WINEP_Inputs!CV122","v":"WWN"},1]
[null,null,{"$f":" WINEP_Inputs!A123","v":"YOR00995"},{"$f":" WINEP_Inputs!J123","v":"7YW200939"},{"$f":" WINEP_Inputs!K123","v":"SHERBURN IN ELMET/STW"},{"$f":"WINEP_Inputs!CW123","v":"£ per km LORI"},{"$f":"WINEP_Inputs!CX123","v":9.9999999999999995E-7},null,{"$f":" WINEP_Inputs!CR123","v":778365},{"$f":" WINEP_Inputs!CS123","v":0},{"$f":" WINEP_Inputs!CT123","v":0},{"$f":" WINEP_Inputs!CU123","v":1},{"$f":" WINEP_Inputs!CV123","v":"WWN"},0]
[null,null,{"$f":" WINEP_Inputs!A124","v":"YOR00996"},{"$f":" WINEP_Inputs!J124","v":"7YW200940"},{"$f":" WINEP_Inputs!K124","v":"SNAITH/STW"},{"$f":"WINEP_Inputs!CW124","v":"£ per km LORI"},{"$f":"WINEP_Inputs!CX124","v":9.9999999999999995E-7},null,{"$f":" WINEP_Inputs!CR124","v":502014},{"$f":" WINEP_Inputs!CS124","v":15.47499999999998},{"$f":" WINEP_Inputs!CT124","v":15.47499999999998},{"$f":" WINEP_Inputs!CU124","v":1},{"$f":" WINEP_Inputs!CV124","v":"WWN"},1]
[null,null,{"$f":" WINEP_Inputs!A125","v":"YOR00997"},{"$f":" WINEP_Inputs!J125","v":"7YW200941"},{"$f":" WINEP_Inputs!K125","v":"SOUTH ELMSALL/STW"},{"$f":"WINEP_Inputs!CW125","v":"£ per km LORI"},{"$f":"WINEP_Inputs!CX125","v":9.9999999999999995E-7},null,{"$f":" WINEP_Inputs!CR125","v":778365},{"$f":" WINEP_Inputs!CS125","v":0},{"$f":" WINEP_Inputs!CT125","v":0},{"$f":" WINEP_Inputs!CU125","v":1},{"$f":" WINEP_Inputs!CV125","v":"WWN"},0]
[null,null,{"$f":" WINEP_Inputs!A126","v":"YOR00998"},{"$f":" WINEP_Inputs!J126","v":"7YW200942"},{"$f":" WINEP_Inputs!K126","v":"Stanley (Smalley Bight) STW"},{"$f":"WINEP_Inputs!CW126","v":"£ per km LORI"},{"$f":"WINEP_Inputs!CX126","v":9.9999999999999995E-7},null,{"$f":" WINEP_Inputs!CR126","v":778365},{"$f":" WINEP_Inputs!CS126","v":0},{"$f":" WINEP_Inputs!CT126","v":0},{"$f":" WINEP_Inputs!CU126","v":1},{"$f":" WINEP_Inputs!CV126","v":"WWN"},0]
[null,null,{"$f":" WINEP_Inputs!A127","v":"YOR00999"},{"$f":" WINEP_Inputs!J127","v":"7YW200943"},{"$f":" WINEP_Inputs!K127","v":"STAVELEY/STW"},{"$f":"WINEP_Inputs!CW127","v":"£ per km LORI"},{"$f":"WINEP_Inputs!CX127","v":9.9999999999999995E-7},null,{"$f":" WINEP_Inputs!CR127","v":778365},{"$f":" WINEP_Inputs!CS127","v":0},{"$f":" WINEP_Inputs!CT127","v":0},{"$f":" WINEP_Inputs!CU127","v":1},{"$f":" WINEP_Inputs!CV127","v":"WWN"},0]
[null,null,{"$f":" WINEP_Inputs!A128","v":"YOR01000"},{"$f":" WINEP_Inputs!J128","v":"7YW200944"},{"$f":" WINEP_Inputs!K128","v":"STOCKSBRIDGE/STW"},{"$f":"WINEP_Inputs!CW128","v":"£ per km LORI"},{"$f":"WINEP_Inputs!CX128","v":9.9999999999999995E-7},null,{"$f":" WINEP_Inputs!CR128","v":778365},{"$f":" WINEP_Inputs!CS128","v":0},{"$f":" WINEP_Inputs!CT128","v":0},{"$f":" WINEP_Inputs!CU128","v":1},{"$f":" WINEP_Inputs!CV128","v":"WWN"},0]
[null,null,{"$f":" WINEP_Inputs!A129","v":"YOR01001"},{"$f":" WINEP_Inputs!J129","v":"7YW200945"},{"$f":" WINEP_Inputs!K129","v":"SUTTON WWTW"},{"$f":"WINEP_Inputs!CW129","v":"£ per km LORI"},{"$f":"WINEP_Inputs!CX129","v":9.9999999999999995E-7},null,{"$f":" WINEP_Inputs!CR129","v":778365},{"$f":" WINEP_Inputs!CS129","v":0},{"$f":" WINEP_Inputs!CT129","v":0},{"$f":" WINEP_Inputs!CU129","v":1},{"$f":" WINEP_Inputs!CV129","v":"WWN"},0]
[null,null,{"$f":" WINEP_Inputs!A130","v":"YOR01002"},{"$f":" WINEP_Inputs!J130","v":"7YW200946"},{"$f":" WINEP_Inputs!K130","v":"TUPTON/STW"},{"$f":"WINEP_Inputs!CW130","v":"£ per km LORI"},{"$f":"WINEP_Inputs!CX130","v":9.9999999999999995E-7},null,{"$f":" WINEP_Inputs!CR130","v":778365},{"$f":" WINEP_Inputs!CS130","v":0},{"$f":" WINEP_Inputs!CT130","v":0},{"$f":" WINEP_Inputs!CU130","v":1},{"$f":" WINEP_Inputs!CV130","v":"WWN"},0]
[null,null,{"$f":" WINEP_Inputs!A131","v":"YOR01003"},{"$f":" WINEP_Inputs!J131","v":"7YW200947"},{"$f":" WINEP_Inputs!K131","v":"WOMBWELL/STW"},{"$f":"WINEP_Inputs!CW131","v":"£ per km LORI"},{"$f":"WINEP_Inputs!CX131","v":9.9999999999999995E-7},null,{"$f":" WINEP_Inputs!CR131","v":502014},{"$f":" WINEP_Inputs!CS131","v":5.1970000000000045},{"$f":" WINEP_Inputs!CT131","v":5.1970000000000045},{"$f":" WINEP_Inputs!CU131","v":1},{"$f":" WINEP_Inputs!CV131","v":"WWN"},1]
[null,null,{"$f":" WINEP_Inputs!A132","v":"YOR01004"},{"$f":" WINEP_Inputs!J132","v":"7YW200948"},{"$f":" WINEP_Inputs!K132","v":"Woodhouse Mill WwTW"},{"$f":"WINEP_Inputs!CW132","v":"£ per km LORI"},{"$f":"WINEP_Inputs!CX132","v":9.9999999999999995E-7},null,{"$f":" WINEP_Inputs!CR132","v":778365},{"$f":" WINEP_Inputs!CS132","v":0},{"$f":" WINEP_Inputs!CT132","v":0},{"$f":" WINEP_Inputs!CU132","v":1},{"$f":" WINEP_Inputs!CV132","v":"WWN"},0]
[null,null,{"$f":" WINEP_Inputs!A133","v":"YOR01005"},{"$f":" WINEP_Inputs!J133","v":"7YW200949"},{"$f":" WINEP_Inputs!K133","v":"WORSBROUGH WwTW"},{"$f":"WINEP_Inputs!CW133","v":"£ per km LORI"},{"$f":"WINEP_Inputs!CX133","v":9.9999999999999995E-7},null,{"$f":" WINEP_Inputs!CR133","v":502014},{"$f":" WINEP_Inputs!CS133","v":5.7629999999999999},{"$f":" WINEP_Inputs!CT133","v":5.7629999999999999},{"$f":" WINEP_Inputs!CU133","v":1},{"$f":" WINEP_Inputs!CV133","v":"WWN"},1]
[null,null,{"$f":" WINEP_Inputs!A134","v":"YOR01006"},{"$f":" WINEP_Inputs!J134","v":"7YW200950"},{"$f":" WINEP_Inputs!K134","v":"HIGH ROYD NO 2 STW"},{"$f":"WINEP_Inputs!CW134","v":"£ per km LORI"},{"$f":"WINEP_Inputs!CX134","v":9.9999999999999995E-7},null,{"$f":" WINEP_Inputs!CR134","v":778365},{"$f":" WINEP_Inputs!CS134","v":0},{"$f":" WINEP_Inputs!CT134","v":0},{"$f":" WINEP_Inputs!CU134","v":1},{"$f":" WINEP_Inputs!CV134","v":"WWN"},0]
[null,null,{"$f":" WINEP_Inputs!A135","v":"YOR01007"},{"$f":" WINEP_Inputs!J135","v":"7YW200951"},{"$f":" WINEP_Inputs!K135","v":"EASTWOOD/STW"},{"$f":"WINEP_Inputs!CW135","v":"£ per km LORI"},{"$f":"WINEP_Inputs!CX135","v":9.9999999999999995E-7},null,{"$f":" WINEP_Inputs!CR135","v":778365},{"$f":" WINEP_Inputs!CS135","v":0},{"$f":" WINEP_Inputs!CT135","v":0},{"$f":" WINEP_Inputs!CU135","v":1},{"$f":" WINEP_Inputs!CV135","v":"WWN"},0]
[null,null,{"$f":" WINEP_Inputs!A136","v":"YOR01008"},{"$f":" WINEP_Inputs!J136","v":"7YW200952"},{"$f":" WINEP_Inputs!K136","v":"HALIFAX COPLEY STW"},{"$f":"WINEP_Inputs!CW136","v":"£ per km LORI"},{"$f":"WINEP_Inputs!CX136","v":9.9999999999999995E-7},null,{"$f":" WINEP_Inputs!CR136","v":778365},{"$f":" WINEP_Inputs!CS136","v":0},{"$f":" WINEP_Inputs!CT136","v":0},{"$f":" WINEP_Inputs!CU136","v":1},{"$f":" WINEP_Inputs!CV136","v":"WWN"},0]
[null,null,{"$f":" WINEP_Inputs!A137","v":"YOR01009"},{"$f":" WINEP_Inputs!J137","v":"7YW200953"},{"$f":" WINEP_Inputs!K137","v":"NEILEY NO 2 STW"},{"$f":"WINEP_Inputs!CW137","v":"£ per km LORI"},{"$f":"WINEP_Inputs!CX137","v":9.9999999999999995E-7},null,{"$f":" WINEP_Inputs!CR137","v":778365},{"$f":" WINEP_Inputs!CS137","v":0},{"$f":" WINEP_Inputs!CT137","v":0},{"$f":" WINEP_Inputs!CU137","v":1},{"$f":" WINEP_Inputs!CV137","v":"WWN"},0]
[null,null,{"$f":" WINEP_Inputs!A138","v":"YOR01010"},{"$f":" WINEP_Inputs!J138","v":"7YW200954"},{"$f":" WINEP_Inputs!K138","v":"Huddersfield STW Colne Bridge"},{"$f":"WINEP_Inputs!CW138","v":"£ per km LORI"},{"$f":"WINEP_Inputs!CX138","v":9.9999999999999995E-7},null,{"$f":" WINEP_Inputs!CR138","v":502014},{"$f":" WINEP_Inputs!CS138","v":0},{"$f":" WINEP_Inputs!CT138","v":0},{"$f":" WINEP_Inputs!CU138","v":1},{"$f":" WINEP_Inputs!CV138","v":"WWN"},0]
[null,null,{"$f":" WINEP_Inputs!A139","v":"YOR01011"},{"$f":" WINEP_Inputs!J139","v":"7YW200955"},{"$f":" WINEP_Inputs!K139","v":"KEIGHLEY MARLEY/STW"},{"$f":"WINEP_Inputs!CW139","v":"£ per km LORI"},{"$f":"WINEP_Inputs!CX139","v":9.9999999999999995E-7},null,{"$f":" WINEP_Inputs!CR139","v":778365},{"$f":" WINEP_Inputs!CS139","v":0},{"$f":" WINEP_Inputs!CT139","v":0},{"$f":" WINEP_Inputs!CU139","v":1},{"$f":" WINEP_Inputs!CV139","v":"WWN"},{"$f":" IF(K144 = 0, 0, K144 / J144)","v":0}]
[null,null,{"$f":" WINEP_Inputs!A140","v":"YOR01012"},{"$f":" WINEP_Inputs!J140","v":"7YW200956"},{"$f":" WINEP_Inputs!K140","v":"Wath-Upon-Dearne STW"},{"$f":"WINEP_Inputs!CW140","v":"£ per km LORI"},{"$f":"WINEP_Inputs!CX140","v":9.9999999999999995E-7},null,{"$f":" WINEP_Inputs!CR140","v":502014},{"$f":" WINEP_Inputs!CS140","v":1.3049999999999997},{"$f":" WINEP_Inputs!CT140","v":1.3049999999999997},{"$f":" WINEP_Inputs!CU140","v":1},{"$f":" WINEP_Inputs!CV140","v":"WWN"},1]
[null,null,{"$f":" WINEP_Inputs!A141","v":"YOR01013"},{"$f":" WINEP_Inputs!J141","v":"7YW200957"},{"$f":" WINEP_Inputs!K141","v":"MEXBORO SWINTON/STW"},{"$f":"WINEP_Inputs!CW141","v":"£ per km LORI"},{"$f":"WINEP_Inputs!CX141","v":9.9999999999999995E-7},null,{"$f":" WINEP_Inputs!CR141","v":778365},{"$f":" WINEP_Inputs!CS141","v":0},{"$f":" WINEP_Inputs!CT141","v":0},{"$f":" WINEP_Inputs!CU141","v":1},{"$f":" WINEP_Inputs!CV141","v":"WWN"},0]
[null,null,{"$f":" WINEP_Inputs!A142","v":"YOR01014"},{"$f":" WINEP_Inputs!J142","v":"7YW200958"},{"$f":" WINEP_Inputs!K142","v":"THORNE/STW"},{"$f":"WINEP_Inputs!CW142","v":"£ per km LORI"},{"$f":"WINEP_Inputs!CX142","v":9.9999999999999995E-7},null,{"$f":" WINEP_Inputs!CR142","v":502014},{"$f":" WINEP_Inputs!CS142","v":10.300999999999988},{"$f":" WINEP_Inputs!CT142","v":10.300999999999988},{"$f":" WINEP_Inputs!CU142","v":1},{"$f":" WINEP_Inputs!CV142","v":"WWN"},1]
[null,null,{"$f":" WINEP_Inputs!A143","v":"YOR01518"},{"$f":" WINEP_Inputs!J143","v":"7YW201465"},{"$f":" WINEP_Inputs!K143","v":"SKIPTON/STW"},{"$f":"WINEP_Inputs!CW143","v":"£ per km LORI"},{"$f":"WINEP_Inputs!CX143","v":9.9999999999999995E-7},null,{"$f":" WINEP_Inputs!CR143","v":502014},{"$f":" WINEP_Inputs!CS143","v":0},{"$f":" WINEP_Inputs!CT143","v":0},{"$f":" WINEP_Inputs!CU143","v":0},{"$f":" WINEP_Inputs!CV143","v":"WWN"},0]
[null,null,{"$f":" WINEP_Inputs!A144","v":"YOR00691"},{"$f":" WINEP_Inputs!J144","v":"7YW300057"},{"$f":" WINEP_Inputs!K144","v":"SOUTH ELMSALL/STW 3X"},{"$f":"WINEP_Inputs!CW144","v":"£ per m3"},{"$f":"WINEP_Inputs!CX144","v":9.9999999999999995E-7},null,{"$f":" WINEP_Inputs!CR144","v":590},{"$f":" WINEP_Inputs!CS144","v":5340},{"$f":" WINEP_Inputs!CT144","v":5340},{"$f":" WINEP_Inputs!CU144","v":1},{"$f":" WINEP_Inputs!CV144","v":"WWN"},1]
[null,null,{"$f":" WINEP_Inputs!A145","v":"YOR00697"},{"$f":" WINEP_Inputs!J145","v":"7YW300058"},{"$f":" WINEP_Inputs!K145","v":"Pudsey intermittents - Smalewell Reach 1"},{"$f":"WINEP_Inputs!CW145","v":"£ per km LORI"},{"$f":"WINEP_Inputs!CX145","v":9.9999999999999995E-7},null,{"$f":" WINEP_Inputs!CR145","v":590},{"$f":" WINEP_Inputs!CS145","v":0},{"$f":" WINEP_Inputs!CT145","v":0},{"$f":" WINEP_Inputs!CU145","v":0},{"$f":" WINEP_Inputs!CV145","v":"WWN"},0]
[null,null,{"$f":" WINEP_Inputs!A146","v":"YOR01524"},{"$f":" WINEP_Inputs!J146","v":"7YW300059"},{"$f":" WINEP_Inputs!K146","v":"Bentley Mill Stream intermittents - BentleyMill Rise SPS"},{"$f":"WINEP_Inputs!CW146","v":"£ per km LORI"},{"$f":"WINEP_Inputs!CX146","v":9.9999999999999995E-7},null,{"$f":" WINEP_Inputs!CR146","v":2933301},{"$f":" WINEP_Inputs!CS146","v":0.39},{"$f":" WINEP_Inputs!CT146","v":"-"},{"$f":" WINEP_Inputs!CU146","v":1},{"$f":" WINEP_Inputs!CV146","v":"WWN"}]
[null,null,{"$f":" WINEP_Inputs!A147","v":"YOR01525"},{"$f":" WINEP_Inputs!J147","v":"7YW300060"},{"$f":" WINEP_Inputs!K147","v":"West Bretton storm tank discharge Transfer to NGR 429884,412035"},{"$f":"WINEP_Inputs!CW147","v":"£ per km LORI"},{"$f":"WINEP_Inputs!CX147","v":9.9999999999999995E-7},null,{"$f":" WINEP_Inputs!CR147","v":2933301},{"$f":" WINEP_Inputs!CS147","v":0},{"$f":" WINEP_Inputs!CT147","v":0},{"$f":" WINEP_Inputs!CU147","v":1},{"$f":" WINEP_Inputs!CV147","v":"WWN"},0]
[null,null,{"$f":" WINEP_Inputs!A148","v":"YOR01526"},{"$f":" WINEP_Inputs!J148","v":"7YW300061"},{"$f":" WINEP_Inputs!K148","v":"CLAYTON WEST/STW Final Effluent Transfer to NGR 429884,412035"},{"$f":"WINEP_Inputs!CW148","v":"£ per km LORI"},{"$f":"WINEP_Inputs!CX148","v":9.9999999999999995E-7},null,{"$f":" WINEP_Inputs!CR148","v":2933301},{"$f":" WINEP_Inputs!CS148","v":5.76},{"$f":" WINEP_Inputs!CT148","v":5.76},{"$f":" WINEP_Inputs!CU148","v":1},{"$f":" WINEP_Inputs!CV148","v":"WWN"},1]
[null,null,{"$f":" WINEP_Inputs!A149","v":"YOR01527"},{"$f":" WINEP_Inputs!J149","v":"7YW300062"},{"$f":" WINEP_Inputs!K149","v":"West Bretton Final Effluent Transfer to NGR 429884,412035"},{"$f":"WINEP_Inputs!CW149","v":"£ per km LORI"},{"$f":"WINEP_Inputs!CX149","v":9.9999999999999995E-7},null,{"$f":" WINEP_Inputs!CR149","v":2933301},{"$f":" WINEP_Inputs!CS149","v":0.75},{"$f":" WINEP_Inputs!CT149","v":0},{"$f":" WINEP_Inputs!CU149","v":1},{"$f":" WINEP_Inputs!CV149","v":"WWN"},0]
[null,null,{"$f":" WINEP_Inputs!A150","v":"YOR01531"},{"$f":" WINEP_Inputs!J150","v":"7YW300066"},{"$f":" WINEP_Inputs!K150","v":"Pudsey intermittents - Dick Lane"},{"$f":"WINEP_Inputs!CW150","v":"£ per m3"},{"$f":"WINEP_Inputs!CX150","v":9.9999999999999995E-7},null,{"$f":" WINEP_Inputs!CR150","v":590},{"$f":" WINEP_Inputs!CS150","v":3000},{"$f":" WINEP_Inputs!CT150","v":3000},{"$f":" WINEP_Inputs!CU150","v":1},{"$f":" WINEP_Inputs!CV150","v":"WWN"},1]
[null,null,{"$f":" WINEP_Inputs!A151","v":"YOR01532"},{"$f":" WINEP_Inputs!J151","v":"7YW300067"},{"$f":" WINEP_Inputs!K151","v":"Pudsey intermittents - Dale Farm"},{"$f":"WINEP_Inputs!CW151","v":"£ per m3"},{"$f":"WINEP_Inputs!CX151","v":9.9999999999999995E-7},null,{"$f":" WINEP_Inputs!CR151","v":590},{"$f":" WINEP_Inputs!CS151","v":250},{"$f":" WINEP_Inputs!CT151","v":250},{"$f":" WINEP_Inputs!CU151","v":1},{"$f":" WINEP_Inputs!CV151","v":"WWN"},1]
[null,null,{"$f":" WINEP_Inputs!A152","v":"YOR01533"},{"$f":" WINEP_Inputs!J152","v":"7YW300068"},{"$f":" WINEP_Inputs!K152","v":"Pudsey intermittents - Hough Side Works"},{"$f":"WINEP_Inputs!CW152","v":"£ per m3"},{"$f":"WINEP_Inputs!CX152","v":9.9999999999999995E-7},null,{"$f":" WINEP_Inputs!CR152","v":590},{"$f":" WINEP_Inputs!CS152","v":25000},{"$f":" WINEP_Inputs!CT152","v":0},{"$f":" WINEP_Inputs!CU152","v":1},{"$f":" WINEP_Inputs!CV152","v":"WWN"},0]
[null,null,{"$f":" WINEP_Inputs!A153","v":"YOR01534"},{"$f":" WINEP_Inputs!J153","v":"7YW300069"},{"$f":" WINEP_Inputs!K153","v":"Pudsey intermittents - Gaint Road (Kent Road)"},{"$f":"WINEP_Inputs!CW153","v":"£ per m3"},{"$f":"WINEP_Inputs!CX153","v":9.9999999999999995E-7},null,{"$f":" WINEP_Inputs!CR153","v":590},{"$f":" WINEP_Inputs!CS153","v":2500},{"$f":" WINEP_Inputs!CT153","v":0},{"$f":" WINEP_Inputs!CU153","v":1},{"$f":" WINEP_Inputs!CV153","v":"WWN"},0]
[null,null,{"$f":" WINEP_Inputs!A154","v":"YOR01535"},{"$f":" WINEP_Inputs!J154","v":"7YW300070"},{"$f":" WINEP_Inputs!K154","v":"Pudsey intermittents - Smalewell Reach 1"},{"$f":"WINEP_Inputs!CW154","v":"£ per m3"},{"$f":"WINEP_Inputs!CX154","v":9.9999999999999995E-7},null,{"$f":" WINEP_Inputs!CR154","v":590},{"$f":" WINEP_Inputs!CS154","v":7500},{"$f":" WINEP_Inputs!CT154","v":0},{"$f":" WINEP_Inputs!CU154","v":1},{"$f":" WINEP_Inputs!CV154","v":"WWN"},0]
[null,null,{"$f":" WINEP_Inputs!A155","v":"YOR01549"},{"$f":" WINEP_Inputs!J155","v":"7YW300636"},{"$f":" WINEP_Inputs!K155","v":"BENTLEY/STW storm discharge transfer to NGR 458119 405197"},{"$f":"WINEP_Inputs!CW155","v":"£ per km LORI"},{"$f":"WINEP_Inputs!CX155","v":9.9999999999999995E-7},null,{"$f":" WINEP_Inputs!CR155","v":2933301},{"$f":" WINEP_Inputs!CS155","v":0},{"$f":" WINEP_Inputs!CT155","v":0},{"$f":" WINEP_Inputs!CU155","v":1},{"$f":" WINEP_Inputs!CV155","v":"WWN"},0]
[null,null,{"$f":" WINEP_Inputs!A156","v":0},{"$f":" WINEP_Inputs!J156","v":0},{"$f":" WINEP_Inputs!K156","v":0},{"$f":"WINEP_Inputs!CW156","v":0},{"$f":"WINEP_Inputs!CX156","v":0},null,{"$f":" WINEP_Inputs!CR156","v":0},{"$f":" WINEP_Inputs!CS156","v":0},{"$f":" WINEP_Inputs!CT156","v":0},{"$f":" WINEP_Inputs!CU156","v":" "},{"$f":" WINEP_Inputs!CV156","v":0},0]
[null,null,{"$f":" WINEP_Inputs!A157","v":0},{"$f":" WINEP_Inputs!J157","v":0},{"$f":" WINEP_Inputs!K157","v":0},{"$f":"WINEP_Inputs!CW157","v":0},{"$f":"WINEP_Inputs!CX157","v":0},null,{"$f":" WINEP_Inputs!CR157","v":0},{"$f":" WINEP_Inputs!CS157","v":0},{"$f":" WINEP_Inputs!CT157","v":0},{"$f":" WINEP_Inputs!CU157","v":0},{"$f":" WINEP_Inputs!CV157","v":0},0]
[null,null,{"$f":" WINEP_Inputs!A158","v":0},{"$f":" WINEP_Inputs!J158","v":0},{"$f":" WINEP_Inputs!K158","v":0},{"$f":"WINEP_Inputs!CW158","v":0},{"$f":"WINEP_Inputs!CX158","v":0},null,{"$f":" WINEP_Inputs!CR158","v":0},{"$f":" WINEP_Inputs!CS158","v":0},{"$f":" WINEP_Inputs!CT158","v":0},{"$f":" WINEP_Inputs!CU158","v":0},{"$f":" WINEP_Inputs!CV158","v":0},0]
[null,null,{"$f":" WINEP_Inputs!A159","v":0},{"$f":" WINEP_Inputs!J159","v":0},{"$f":" WINEP_Inputs!K159","v":0},{"$f":"WINEP_Inputs!CW159","v":0},{"$f":"WINEP_Inputs!CX159","v":0},null,{"$f":" WINEP_Inputs!CR159","v":0},{"$f":" WINEP_Inputs!CS159","v":0},{"$f":" WINEP_Inputs!CT159","v":0},{"$f":" WINEP_Inputs!CU159","v":0},{"$f":" WINEP_Inputs!CV159","v":0},0]
[null,null,{"$f":" WINEP_Inputs!A160","v":0},{"$f":" WINEP_Inputs!J160","v":0},{"$f":" WINEP_Inputs!K160","v":0},{"$f":"WINEP_Inputs!CW160","v":0},{"$f":"WINEP_Inputs!CX160","v":0},null,{"$f":" WINEP_Inputs!CR160","v":0},{"$f":" WINEP_Inputs!CS160","v":0},{"$f":" WINEP_Inputs!CT160","v":0},{"$f":" WINEP_Inputs!CU160","v":0},{"$f":" WINEP_Inputs!CV160","v":0},0]
[]
["End of sheet"]

{"sheet":"WINEP_Allowance","index":11,"n_rows":190,"n_cols":22,"rows_kept":190,"cut":false,"hidden":false,"merged":[]}
[{"$f":" RIGHT(CELL(\"filename\", $A$1), LEN(CELL(\"filename\", $A$1)) - SEARCH(\"]\", CELL(\"filename\", $A$1)))","v":"WINEP_Allowance"}]
[null,null,null,null,null,{"$f":"Check!F2","v":0},"Checks"]
[null,null,null,null,null,{"$f":"Check!F3","v":5},"Track chgs"]
[]
["CALCULATION OF ADJUSTED ALLOWED COST FOR CONFIRMED SCHEMES"]
[]
["List of Amber Schemes"]
[null,"Calculate the adjusted allowed cost per scheme, £m and the WINEP reconciliation per control, £m"]
[null,null,null,null,null,null,null,null,null,null,null,null,null,null,null,null,null,"WR","WN","WWN","BR","DMY"]
[null,null,{"$f":" WINEP_Schemes!C9","v":"WINEPID"},{"$f":" WINEP_Schemes!D9","v":"Unique ID"},{"$f":" WINEP_Schemes!E9","v":"Scheme category / name"},{"$f":" WINEP_Schemes!F9","v":"Unit"},{"$f":" WINEP_Schemes!G9","v":"Unit Conversion to £m"},{"$f":" WINEP_Schemes!H9","v":0},{"$f":" WINEP_Schemes!J9","v":"Quantity in PR19 FD"},{"$f":" WINEP_Schemes!I9","v":"Allowed totex unit rate"},{"$f":" WINEP_Schemes!K9","v":"Quantity Delivered"},{"$f":" WINEP_Schemes!L9","v":"1 = In FD, funded\n0 = In FD, not funded"},{"$f":" WINEP_Schemes!M9","v":"Price Control"},{"$f":" WINEP_Schemes!N9","v":"Proportion Confirmed"},"FD Allowance, £m","Adjusted Allowance (Delivered), £m","WINEP Reconciliation, £m","Water Resources £m","Water Network £m","Wastewater Network £m","Bioresources £m","Dummy £m"]
[null,null,{"$f":"WINEP_Schemes!C10","v":"YOR00025"},{"$f":"WINEP_Schemes!D10","v":"7YW100089"},{"$f":"WINEP_Schemes!E10","v":"Little Don Catchment Scheme"},{"$f":"WINEP_Schemes!F10","v":"£ per km LORI"},{"$f":"WINEP_Schemes!G10","v":9.9999999999999995E-7},{"$f":"WINEP_Schemes!H10","v":0},{"$f":"WINEP_Schemes!J10","v":3.05},{"$f":"WINEP_Schemes!I10","v":80760},{"$f":"WINEP_Schemes!K10","v":3.05},{"$f":"WINEP_Schemes!L10","v":1},{"$f":"WINEP_Schemes!M10","v":"WR"},{"$f":"WINEP_Schemes!N10","v":1},{"$f":" I11 * J11 * G11","v":0.24631799999999998},{"$f":" N11 * O11","v":0.24631799999999998},{"$f":" IF(L11 = 0, P11, (N11 - 1) * O11)","v":0},{"$f":" IF($M11 = R$9, $Q11, 0)","v":0},{"$f":" IF($M11 = S$9, $Q11, 0)","v":0},{"$f":" IF($M11 = T$9, $Q11, 0)","v":0},{"$f":" IF($M11 = U$9, $Q11, 0)","v":0},{"$f":" IF($M11 = V$9, $Q11, 0)","v":0}]
[null,null,{"$f":"WINEP_Schemes!C11","v":"YOR00029"},{"$f":"WINEP_Schemes!D11","v":"7YW100091"},{"$f":"WINEP_Schemes!E11","v":"Winscar  Catchment Scheme"},{"$f":"WINEP_Schemes!F11","v":"£ per km LORI"},{"$f":"WINEP_Schemes!G11","v":9.9999999999999995E-7},{"$f":"WINEP_Schemes!H11","v":0},{"$f":"WINEP_Schemes!J11","v":11.25},{"$f":"WINEP_Schemes!I11","v":80760},{"$f":"WINEP_Schemes!K11","v":11.25},{"$f":"WINEP_Schemes!L11","v":1},{"$f":"WINEP_Schemes!M11","v":"WR"},{"$f":"WINEP_Schemes!N11","v":1},{"$f":" I12 * J12 * G12","v":0.90854999999999997},{"$f":" N12 * O12","v":0.90854999999999997},{"$f":" IF(L12 = 0, P12, (N12 - 1) * O12)","v":0},{"$f":" IF($M12 = R$9, $Q12, 0)","v":0},0,0,0,0]
[null,null,{"$f":"WINEP_Schemes!C12","v":"YOR00033"},{"$f":"WINEP_Schemes!D12","v":"7YW100093"},{"$f":"WINEP_Schemes!E12","v":"Agden  River Restoration Scheme"},{"$f":"WINEP_Schemes!F12","v":"£ per km LORI"},{"$f":"WINEP_Schemes!G12","v":9.9999999999999995E-7},{"$f":"WINEP_Schemes!H12","v":0},{"$f":"WINEP_Schemes!J12","v":0.44},{"$f":"WINEP_Schemes!I12","v":80760},{"$f":"WINEP_Schemes!K12","v":0.44},{"$f":"WINEP_Schemes!L12","v":1},{"$f":"WINEP_Schemes!M12","v":"WR"},{"$f":"WINEP_Schemes!N12","v":1},{"$f":" I13 * J13 * G13","v":3.5534400000000001E-2},{"$f":" N13 * O13","v":3.5534400000000001E-2},{"$f":" IF(L13 = 0, P13, (N13 - 1) * O13)","v":0},0,0,0,0,0]
[null,null,{"$f":"WINEP_Schemes!C13","v":"YOR00042"},{"$f":"WINEP_Schemes!D13","v":"7YW100098"},{"$f":"WINEP_Schemes!E13","v":"River Burn Catchment Scheme"},{"$f":"WINEP_Schemes!F13","v":"£ per km LORI"},{"$f":"WINEP_Schemes!G13","v":9.9999999999999995E-7},{"$f":"WINEP_Schemes!H13","v":0},{"$f":"WINEP_Schemes!J13","v":6.49},{"$f":"WINEP_Schemes!I13","v":80760},{"$f":"WINEP_Schemes!K13","v":6.49},{"$f":"WINEP_Schemes!L13","v":1},{"$f":"WINEP_Schemes!M13","v":"WR"},{"$f":"WINEP_Schemes!N13","v":1},{"$f":" I14 * J14 * G14","v":0.52413240000000005},{"$f":" N14 * O14","v":0.52413240000000005},{"$f":" IF(L14 = 0, P14, (N14 - 1) * O14)","v":0},0,0,0,0,0]
[null,null,{"$f":"WINEP_Schemes!C14","v":"YOR00044"},{"$f":"WINEP_Schemes!D14","v":"7YW100098"},{"$f":"WINEP_Schemes!E14","v":"River Burn Catchment Scheme"},{"$f":"WINEP_Schemes!F14","v":"£ per km LORI"},{"$f":"WINEP_Schemes!G14","v":9.9999999999999995E-7},{"$f":"WINEP_Schemes!H14","v":0},{"$f":"WINEP_Schemes!J14","v":6.49},{"$f":"WINEP_Schemes!I14","v":80760},{"$f":"WINEP_Schemes!K14","v":6.49},{"$f":"WINEP_Schemes!L14","v":1},{"$f":"WINEP_Schemes!M14","v":"WR"},{"$f":"WINEP_Schemes!N14","v":1},0.52413240000000005,0.52413240000000005,0,0,0,0,0,0]
[null,null,{"$f":"WINEP_Schemes!C15","v":"YOR00045"},{"$f":"WINEP_Schemes!D15","v":"7YW100098"},{"$f":"WINEP_Schemes!E15","v":"River Burn Catchment Scheme"},{"$f":"WINEP_Schemes!F15","v":"£ per km LORI"},{"$f":"WINEP_Schemes!G15","v":9.9999999999999995E-7},{"$f":"WINEP_Schemes!H15","v":0},{"$f":"WINEP_Schemes!J15","v":6.49},{"$f":"WINEP_Schemes!I15","v":80760},{"$f":"WINEP_Schemes!K15","v":0},{"$f":"WINEP_Schemes!L15","v":1},{"$f":"WINEP_Schemes!M15","v":"WR"},{"$f":"WINEP_Schemes!N15","v":0},0.52413240000000005,0,-0.52413240000000005,-0.52413240000000005,0,0,0,0]
[null,null,{"$f":"WINEP_Schemes!C16","v":"YOR00055"},{"$f":"WINEP_Schemes!D16","v":"7YW100121"},{"$f":"WINEP_Schemes!E16","v":"HARROGATE SOUTH/STW"},{"$f":"WINEP_Schemes!F16","v":"£ per km LORI"},{"$f":"WINEP_Schemes!G16","v":9.9999999999999995E-7},{"$f":"WINEP_Schemes!H16","v":0},{"$f":"WINEP_Schemes!J16","v":4.4529999999999994},{"$f":"WINEP_Schemes!I16","v":778365},{"$f":"WINEP_Schemes!K16","v":4.4529999999999994},{"$f":"WINEP_Schemes!L16","v":1},{"$f":"WINEP_Schemes!M16","v":"WWN"},{"$f":"WINEP_Schemes!N16","v":1},{"$f":" I17 * J17 * G17","v":3.4660593449999997},{"$f":" N17 * O17","v":3.4660593449999997},{"$f":" IF(L17 = 0, P17, (N17 - 1) * O17)","v":0},0,0,0,0,0]
[null,null,{"$f":"WINEP_Schemes!C17","v":"YOR00059"},{"$f":"WINEP_Schemes!D17","v":"7YW100125"},{"$f":"WINEP_Schemes!E17","v":"OWLWOOD (GARFORTH) STW"},{"$f":"WINEP_Schemes!F17","v":"£ per km LORI"},{"$f":"WINEP_Schemes!G17","v":9.9999999999999995E-7},{"$f":"WINEP_Schemes!H17","v":0},{"$f":"WINEP_Schemes!J17","v":10.028000000000002},{"$f":"WINEP_Schemes!I17","v":778365},{"$f":"WINEP_Schemes!K17","v":10.028000000000002},{"$f":"WINEP_Schemes!L17","v":1},{"$f":"WINEP_Schemes!M17","v":"WWN"},{"$f":"WINEP_Schemes!N17","v":1},7.8054442200000009,7.8054442200000009,0,0,0,0,0,0]
[null,null,{"$f":"WINEP_Schemes!C18","v":"YOR00060"},{"$f":"WINEP_Schemes!D18","v":"7YW100126"},{"$f":"WINEP_Schemes!E18","v":"DRONFIELD/STW"},{"$f":"WINEP_Schemes!F18","v":"£ per km LORI"},{"$f":"WINEP_Schemes!G18","v":9.9999999999999995E-7},{"$f":"WINEP_Schemes!H18","v":0},{"$f":"WINEP_Schemes!J18","v":7.8539999999999992},{"$f":"WINEP_Schemes!I18","v":778365},{"$f":"WINEP_Schemes!K18","v":7.8539999999999992},{"$f":"WINEP_Schemes!L18","v":1},{"$f":"WINEP_Schemes!M18","v":"WWN"},{"$f":"WINEP_Schemes!N18","v":1},6.1132787099999986,6.1132787099999986,0,0,0,0,0,0]
[null,null,{"$f":"WINEP_Schemes!C19","v":"YOR00062"},{"$f":"WINEP_Schemes!D19","v":"7YW100128"},{"$f":"WINEP_Schemes!E19","v":"DANESMOOR/STW"},{"$f":"WINEP_Schemes!F19","v":"£ per km LORI"},{"$f":"WINEP_Schemes!G19","v":9.9999999999999995E-7},{"$f":"WINEP_Schemes!H19","v":0},{"$f":"WINEP_Schemes!J19","v":4.8639999999999999},{"$f":"WINEP_Schemes!I19","v":276351},{"$f":"WINEP_Schemes!K19","v":4.8639999999999999},{"$f":"WINEP_Schemes!L19","v":1},{"$f":"WINEP_Schemes!M19","v":"WWN"},{"$f":"WINEP_Schemes!N19","v":1},1.3441712639999999,1.3441712639999999,0,0,0,0,0,0]
[null,null,{"$f":"WINEP_Schemes!C20","v":"YOR00063"},{"$f":"WINEP_Schemes!D20","v":"7YW100129"},{"$f":"WINEP_Schemes!E20","v":"TUPTON/STW"},{"$f":"WINEP_Schemes!F20","v":"£ per km LORI"},{"$f":"WINEP_Schemes!G20","v":9.9999999999999995E-7},{"$f":"WINEP_Schemes!H20","v":0},{"$f":"WINEP_Schemes!J20","v":10.223000000000001},{"$f":"WINEP_Schemes!I20","v":778365},{"$f":"WINEP_Schemes!K20","v":0},{"$f":"WINEP_Schemes!L20","v":1},{"$f":"WINEP_Schemes!M20","v":"WWN"},{"$f":"WINEP_Schemes!N20","v":0},7.957225395,0,-7.957225395,0,0,-7.957225395,0,0]
[null,null,{"$f":"WINEP_Schemes!C21","v":"YOR00065"},{"$f":"WINEP_Schemes!D21","v":"7YW100131"},{"$f":"WINEP_Schemes!E21","v":"ACKWORTH/STW"},{"$f":"WINEP_Schemes!F21","v":"£ per km LORI"},{"$f":"WINEP_Schemes!G21","v":9.9999999999999995E-7},{"$f":"WINEP_Schemes!H21","v":0},{"$f":"WINEP_Schemes!J21","v":1.5829999999999984},{"$f":"WINEP_Schemes!I21","v":276351},{"$f":"WINEP_Schemes!K21","v":1.5829999999999984},{"$f":"WINEP_Schemes!L21","v":1},{"$f":"WINEP_Schemes!M21","v":"WWN"},{"$f":"WINEP_Schemes!N21","v":1},0.43746363299999952,0.43746363299999952,0,0,0,0,0,0]
[null,null,{"$f":"WINEP_Schemes!C22","v":"YOR00066"},{"$f":"WINEP_Schemes!D22","v":"7YW100132"},{"$f":"WINEP_Schemes!E22","v":"CARLETON/NO 2 STW"},{"$f":"WINEP_Schemes!F22","v":"£ per km LORI"},{"$f":"WINEP_Schemes!G22","v":9.9999999999999995E-7},{"$f":"WINEP_Schemes!H22","v":0},{"$f":"WINEP_Schemes!J22","v":10.102999999999998},{"$f":"WINEP_Schemes!I22","v":276351},{"$f":"WINEP_Schemes!K22","v":10.102999999999998},{"$f":"WINEP_Schemes!L22","v":1},{"$f":"WINEP_Schemes!M22","v":"WWN"},{"$f":"WINEP_Schemes!N22","v":1},2.7919741529999995,2.7919741529999995,0,0,0,0,0,0]
[null,null,{"$f":"WINEP_Schemes!C23","v":"YOR00067"},{"$f":"WINEP_Schemes!D23","v":"7YW100133"},{"$f":"WINEP_Schemes!E23","v":"NORTON (ASKERN) WwTW"},{"$f":"WINEP_Schemes!F23","v":"£ per km LORI"},{"$f":"WINEP_Schemes!G23","v":9.9999999999999995E-7},{"$f":"WINEP_Schemes!H23","v":0},{"$f":"WINEP_Schemes!J23","v":13.8},{"$f":"WINEP_Schemes!I23","v":778365},{"$f":"WINEP_Schemes!K23","v":13.8},{"$f":"WINEP_Schemes!L23","v":1},{"$f":"WINEP_Schemes!M23","v":"WWN"},{"$f":"WINEP_Schemes!N23","v":1},10.741436999999999,10.741436999999999,0,0,0,0,0,0]
[null,null,{"$f":"WINEP_Schemes!C24","v":"EMD00773"},{"$f":"WINEP_Schemes!D24","v":"7YW200005"},{"$f":"WINEP_Schemes!E24","v":"BALBY (STW)"},{"$f":"WINEP_Schemes!F24","v":"£ per km LORI"},{"$f":"WINEP_Schemes!G24","v":9.9999999999999995E-7},{"$f":"WINEP_Schemes!H24","v":0},{"$f":"WINEP_Schemes!J24","v":0},{"$f":"WINEP_Schemes!I24","v":276351},{"$f":"WINEP_Schemes!K24","v":0},{"$f":"WINEP_Schemes!L24","v":1},{"$f":"WINEP_Schemes!M24","v":"WWN"},{"$f":"WINEP_Schemes!N24","v":0},0,0,0,0,0,0,0,0]
[null,null,{"$f":"WINEP_Schemes!C25","v":"EMD00812"},{"$f":"WINEP_Schemes!D25","v":"7YW200006"},{"$f":"WINEP_Schemes!E25","v":"HATFIELD WOODHOUSE (STW)"},{"$f":"WINEP_Schemes!F25","v":"£ per km LORI"},{"$f":"WINEP_Schemes!G25","v":9.9999999999999995E-7},{"$f":"WINEP_Schemes!H25","v":0},{"$f":"WINEP_Schemes!J25","v":0},{"$f":"WINEP_Schemes!I25","v":276351},{"$f":"WINEP_Schemes!K25","v":0},{"$f":"WINEP_Schemes!L25","v":1},{"$f":"WINEP_Schemes!M25","v":"WWN"},{"$f":"WINEP_Schemes!N25","v":0},0,0,0,0,0,0,0,0]
[null,null,{"$f":"WINEP_Schemes!C26","v":"EMD00813"},{"$f":"WINEP_Schemes!D26","v":"7YW200007"},{"$f":"WINEP_Schemes!E26","v":"HATFIELD WOODHOUSE (STW)"},{"$f":"WINEP_Schemes!F26","v":"£ per km LORI"},{"$f":"WINEP_Schemes!G26","v":9.9999999999999995E-7},{"$f":"WINEP_Schemes!H26","v":0},{"$f":"WINEP_Schemes!J26","v":0},{"$f":"WINEP_Schemes!I26","v":276351},{"$f":"WINEP_Schemes!K26","v":0},{"$f":"WINEP_Schemes!L26","v":1},{"$f":"WINEP_Schemes!M26","v":"WWN"},{"$f":"WINEP_Schemes!N26","v":0},0,0,0,0,0,0,0,0]
[null,null,{"$f":"WINEP_Schemes!C27","v":"YOR00112"},{"$f":"WINEP_Schemes!D27","v":"7YW200060"},{"$f":"WINEP_Schemes!E27","v":"Grimwith Sediment Scheme"},{"$f":"WINEP_Schemes!F27","v":"£ per km LORI"},{"$f":"WINEP_Schemes!G27","v":9.9999999999999995E-7},{"$f":"WINEP_Schemes!H27","v":0},{"$f":"WINEP_Schemes!J27","v":5.1100000000000003},{"$f":"WINEP_Schemes!I27","v":80760},{"$f":"WINEP_Schemes!K27","v":5.1100000000000003},{"$f":"WINEP_Schemes!L27","v":1},{"$f":"WINEP_Schemes!M27","v":"WR"},{"$f":"WINEP_Schemes!N27","v":1},0.41268360000000004,0.41268360000000004,0,{"$f":" IF($M28 = R$9, $Q28, 0)","v":0},0,0,0,0]
[null,null,{"$f":"WINEP_Schemes!C28","v":"YOR00115"},{"$f":"WINEP_Schemes!D28","v":"7YW200063"},{"$f":"WINEP_Schemes!E28","v":"Airebank Mills Fish Passage"},{"$f":"WINEP_Schemes!F28","v":"£ per km LORI"},{"$f":"WINEP_Schemes!G28","v":9.9999999999999995E-7},{"$f":"WINEP_Schemes!H28","v":0},{"$f":"WINEP_Schemes!J28","v":4.5},{"$f":"WINEP_Schemes!I28","v":37745},{"$f":"WINEP_Schemes!K28","v":4.5},{"$f":"WINEP_Schemes!L28","v":1},{"$f":"WINEP_Schemes!M28","v":"WR"},{"$f":"WINEP_Schemes!N28","v":1},0.16985249999999999,0.16985249999999999,0,0,0,0,0,0]
[null,null,{"$f":"WINEP_Schemes!C29","v":"YOR00116"},{"$f":"WINEP_Schemes!D29","v":"7YW200064"},{"$f":"WINEP_Schemes!E29","v":"Cheesebottom Weir Fish Passage"},{"$f":"WINEP_Schemes!F29","v":"£ per km LORI"},{"$f":"WINEP_Schemes!G29","v":9.9999999999999995E-7},{"$f":"WINEP_Schemes!H29","v":0},{"$f":"WINEP_Schemes!J29","v":9.5},{"$f":"WINEP_Schemes!I29","v":37745},{"$f":"WINEP_Schemes!K29","v":9.5},{"$f":"WINEP_Schemes!L29","v":1},{"$f":"WINEP_Schemes!M29","v":"WR"},{"$f":"WINEP_Schemes!N29","v":1},0.35857749999999999,0.35857749999999999,0,0,0,0,0,0]
[null,null,{"$f":"WINEP_Schemes!C30","v":"YOR00122"},{"$f":"WINEP_Schemes!D30","v":"7YW200070"},{"$f":"WINEP_Schemes!E30","v":"Cononley Weir Fish Passage"},{"$f":"WINEP_Schemes!F30","v":"£ per km LORI"},{"$f":"WINEP_Schemes!G30","v":9.9999999999999995E-7},{"$f":"WINEP_Schemes!H30","v":0},{"$f":"WINEP_Schemes!J30","v":45.54},{"$f":"WINEP_Schemes!I30","v":37745},{"$f":"WINEP_Schemes!K30","v":0},{"$f":"WINEP_Schemes!L30","v":1},{"$f":"WINEP_Schemes!M30","v":"WR"},{"$f":"WINEP_Schemes!N30","v":0},1.7189072999999999,0,-1.7189072999999999,-1.7189072999999999,0,0,0,0]
[null,null,{"$f":"WINEP_Schemes!C31","v":"YOR00123"},{"$f":"WINEP_Schemes!D31","v":"7YW200071"},{"$f":"WINEP_Schemes!E31","v":"Farnley Beck Fish Passage"},{"$f":"WINEP_Schemes!F31","v":"£ per km LORI"},{"$f":"WINEP_Schemes!G31","v":9.9999999999999995E-7},{"$f":"WINEP_Schemes!H31","v":0},{"$f":"WINEP_Schemes!J31","v":3.29},{"$f":"WINEP_Schemes!I31","v":37745},{"$f":"WINEP_Schemes!K31","v":0},{"$f":"WINEP_Schemes!L31","v":1},{"$f":"WINEP_Schemes!M31","v":"WR"},{"$f":"WINEP_Schemes!N31","v":0},0.12418105,0,-0.12418105,-0.12418105,0,0,0,0]
[null,null,{"$f":"WINEP_Schemes!C32","v":"YOR00124"},{"$f":"WINEP_Schemes!D32","v":"7YW200072"},{"$f":"WINEP_Schemes!E32","v":"Schole Hill Fish Passage"},{"$f":"WINEP_Schemes!F32","v":"£ per km LORI"},{"$f":"WINEP_Schemes!G32","v":9.9999999999999995E-7},{"$f":"WINEP_Schemes!H32","v":0},{"$f":"WINEP_Schemes!J32","v":0.78},{"$f":"WINEP_Schemes!I32","v":80760},{"$f":"WINEP_Schemes!K32","v":0.78},{"$f":"WINEP_Schemes!L32","v":1},{"$f":"WINEP_Schemes!M32","v":"WR"},{"$f":"WINEP_Schemes!N32","v":1},6.2992800000000002E-2,6.2992800000000002E-2,0,0,0,0,0,0]
[null,null,{"$f":"WINEP_Schemes!C33","v":"YOR00125"},{"$f":"WINEP_Schemes!D33","v":"7YW200073"},{"$f":"WINEP_Schemes!E33","v":"Watson Mill Fish Passage"},{"$f":"WINEP_Schemes!F33","v":"£ per km LORI"},{"$f":"WINEP_Schemes!G33","v":9.9999999999999995E-7},{"$f":"WINEP_Schemes!H33","v":0},{"$f":"WINEP_Schemes!J33","v":0.94},{"$f":"WINEP_Schemes!I33","v":37745},{"$f":"WINEP_Schemes!K33","v":0.94},{"$f":"WINEP_Schemes!L33","v":1},{"$f":"WINEP_Schemes!M33","v":"WR"},{"$f":"WINEP_Schemes!N33","v":1},3.5480299999999992E-2,3.5480299999999992E-2,0,0,0,0,0,0]
[null,null,{"$f":"WINEP_Schemes!C34","v":"YOR01523"},{"$f":"WINEP_Schemes!D34","v":"7YW200635"},{"$f":"WINEP_Schemes!E34","v":"SOUTH ELMSALL/STW 6X"},{"$f":"WINEP_Schemes!F34","v":"£ per m3"},{"$f":"WINEP_Schemes!G34","v":9.9999999999999995E-7},{"$f":"WINEP_Schemes!H34","v":0},{"$f":"WINEP_Schemes!J34","v":10000},{"$f":"WINEP_Schemes!I34","v":590},{"$f":"WINEP_Schemes!K34","v":10000},{"$f":"WINEP_Schemes!L34","v":1},{"$f":"WINEP_Schemes!M34","v":"WWN"},{"$f":"WINEP_Schemes!N34","v":1},5.8999999999999995,5.8999999999999995,0,0,0,0,0,0]
[null,null,{"$f":"WINEP_Schemes!C35","v":"YOR00693"},{"$f":"WINEP_Schemes!D35","v":"7YW200637"},{"$f":"WINEP_Schemes!E35","v":"BENTLEY/STW FE transfer to NGR 458119 405197"},{"$f":"WINEP_Schemes!F35","v":"£ per km LORI"},{"$f":"WINEP_Schemes!G35","v":9.9999999999999995E-7},{"$f":"WINEP_Schemes!H35","v":0},{"$f":"WINEP_Schemes!J35","v":0},{"$f":"WINEP_Schemes!I35","v":2933301},{"$f":"WINEP_Schemes!K35","v":0},{"$f":"WINEP_Schemes!L35","v":1},{"$f":"WINEP_Schemes!M35","v":"WWN"},{"$f":"WINEP_Schemes!N35","v":0},0,0,0,0,0,0,0,0]
[null,null,{"$f":"WINEP_Schemes!C36","v":"YOR00694"},{"$f":"WINEP_Schemes!D36","v":"7YW200638"},{"$f":"WINEP_Schemes!E36","v":"CLAYTON WEST/STW ( Storm Overflow - now wetland (FIS denotes storm oveflow )"},{"$f":"WINEP_Schemes!F36","v":"£ per km LORI"},{"$f":"WINEP_Schemes!G36","v":9.9999999999999995E-7},{"$f":"WINEP_Schemes!H36","v":0},{"$f":"WINEP_Schemes!J36","v":2.0499999999999998},{"$f":"WINEP_Schemes!I36","v":2933301},{"$f":"WINEP_Schemes!K36","v":2.0499999999999998},{"$f":"WINEP_Schemes!L36","v":1},{"$f":"WINEP_Schemes!M36","v":"WWN"},{"$f":"WINEP_Schemes!N36","v":1},6.0132670499999996,6.0132670499999996,0,0,0,0,0,0]
[null,null,{"$f":"WINEP_Schemes!C37","v":"YOR00696"},{"$f":"WINEP_Schemes!D37","v":"7YW200640"},{"$f":"WINEP_Schemes!E37","v":"Little Don intermittents - Huinself Rd"},{"$f":"WINEP_Schemes!F37","v":"£ per m3"},{"$f":"WINEP_Schemes!G37","v":9.9999999999999995E-7},{"$f":"WINEP_Schemes!H37","v":0},{"$f":"WINEP_Schemes!J37","v":4000},{"$f":"WINEP_Schemes!I37","v":590},{"$f":"WINEP_Schemes!K37","v":4000},{"$f":"WINEP_Schemes!L37","v":1},{"$f":"WINEP_Schemes!M37","v":"WWN"},{"$f":"WINEP_Schemes!N37","v":1},2.36,2.36,0,0,0,0,0,0]
[null,null,{"$f":"WINEP_Schemes!C38","v":"YOR01536"},{"$f":"WINEP_Schemes!D38","v":"7YW200641"},{"$f":"WINEP_Schemes!E38","v":"Pudsey intermittents (Farnley Ring Road)"},{"$f":"WINEP_Schemes!F38","v":"£ per m3"},{"$f":"WINEP_Schemes!G38","v":9.9999999999999995E-7},{"$f":"WINEP_Schemes!H38","v":0},{"$f":"WINEP_Schemes!J38","v":5000},{"$f":"WINEP_Schemes!I38","v":590},{"$f":"WINEP_Schemes!K38","v":0},{"$f":"WINEP_Schemes!L38","v":1},{"$f":"WINEP_Schemes!M38","v":"WWN"},{"$f":"WINEP_Schemes!N38","v":0},2.9499999999999997,0,-2.9499999999999997,0,0,-2.9499999999999997,0,0]
[null,null,{"$f":"WINEP_Schemes!C39","v":"YOR00775"},{"$f":"WINEP_Schemes!D39","v":"7YW200719"},{"$f":"WINEP_Schemes!E39","v":"SHERBURN IN ELMET/STW"},{"$f":"WINEP_Schemes!F39","v":"£ per km LORI"},{"$f":"WINEP_Schemes!G39","v":9.9999999999999995E-7},{"$f":"WINEP_Schemes!H39","v":0},{"$f":"WINEP_Schemes!J39","v":0},{"$f":"WINEP_Schemes!I39","v":778365},{"$f":"WINEP_Schemes!K39","v":0},{"$f":"WINEP_Schemes!L39","v":1},{"$f":"WINEP_Schemes!M39","v":"WWN"},{"$f":"WINEP_Schemes!N39","v":0},0,0,0,0,0,0,0,0]
[null,null,{"$f":"WINEP_Schemes!C40","v":"YOR00787"},{"$f":"WINEP_Schemes!D40","v":"7YW200731"},{"$f":"WINEP_Schemes!E40","v":"BOLSOVER/STW"},{"$f":"WINEP_Schemes!F40","v":"£ per km LORI"},{"$f":"WINEP_Schemes!G40","v":9.9999999999999995E-7},{"$f":"WINEP_Schemes!H40","v":0},{"$f":"WINEP_Schemes!J40","v":0},{"$f":"WINEP_Schemes!I40","v":778365},{"$f":"WINEP_Schemes!K40","v":0},{"$f":"WINEP_Schemes!L40","v":1},{"$f":"WINEP_Schemes!M40","v":"WWN"},{"$f":"WINEP_Schemes!N40","v":0},0,0,0,0,0,0,0,0]
[null,null,{"$f":"WINEP_Schemes!C41","v":"YOR00793"},{"$f":"WINEP_Schemes!D41","v":"7YW200737"},{"$f":"WINEP_Schemes!E41","v":"CARTHORPE WPC WORKS"},{"$f":"WINEP_Schemes!F41","v":"£ per km LORI"},{"$f":"WINEP_Schemes!G41","v":9.9999999999999995E-7},{"$f":"WINEP_Schemes!H41","v":0},{"$f":"WINEP_Schemes!J41","v":4.83},{"$f":"WINEP_Schemes!I41","v":276351},{"$f":"WINEP_Schemes!K41","v":4.83},{"$f":"WINEP_Schemes!L41","v":1},{"$f":"WINEP_Schemes!M41","v":"WWN"},{"$f":"WINEP_Schemes!N41","v":1},1.33477533,1.33477533,0,0,0,0,0,0]
[null,null,{"$f":"WINEP_Schemes!C42","v":"YOR00799"},{"$f":"WINEP_Schemes!D42","v":"7YW200743"},{"$f":"WINEP_Schemes!E42","v":"THORNTON LE BEANS"},{"$f":"WINEP_Schemes!F42","v":"£ per km LORI"},{"$f":"WINEP_Schemes!G42","v":9.9999999999999995E-7},{"$f":"WINEP_Schemes!H42","v":0},{"$f":"WINEP_Schemes!J42","v":6.4379999999999997},{"$f":"WINEP_Schemes!I42","v":276351},{"$f":"WINEP_Schemes!K42","v":6.44},{"$f":"WINEP_Schemes!L42","v":1},{"$f":"WINEP_Schemes!M42","v":"WWN"},{"$f":"WINEP_Schemes!N42","v":1.0003106554830694},1.7791477379999998,1.7797004400000001,5.5270200000023947E-4,0,0,5.5270200000023947E-4,0,0]
[null,null,{"$f":"WINEP_Schemes!C43","v":"YOR00804"},{"$f":"WINEP_Schemes!D43","v":"7YW200748"},{"$f":"WINEP_Schemes!E43","v":"Rainton STW"},{"$f":"WINEP_Schemes!F43","v":"£ per km LORI"},{"$f":"WINEP_Schemes!G43","v":9.9999999999999995E-7},{"$f":"WINEP_Schemes!H43","v":0},{"$f":"WINEP_Schemes!J43","v":1.464},{"$f":"WINEP_Schemes!I43","v":276351},{"$f":"WINEP_Schemes!K43","v":1.46},{"$f":"WINEP_Schemes!L43","v":1},{"$f":"WINEP_Schemes!M43","v":"WWN"},{"$f":"WINEP_Schemes!N43","v":0.99726775956284153},0.40457786400000001,0.40347246000000003,-1.1054040000000012E-3,0,0,-1.1054040000000012E-3,0,0]
[null,null,{"$f":"WINEP_Schemes!C44","v":"YOR00805"},{"$f":"WINEP_Schemes!D44","v":"7YW200749"},{"$f":"WINEP_Schemes!E44","v":"DISHFORTH WPC WORKS"},{"$f":"WINEP_Schemes!F44","v":"£ per km LORI"},{"$f":"WINEP_Schemes!G44","v":9.9999999999999995E-7},{"$f":"WINEP_Schemes!H44","v":0},{"$f":"WINEP_Schemes!J44","v":7.7649999999999997},{"$f":"WINEP_Schemes!I44","v":276351},{"$f":"WINEP_Schemes!K44","v":7.7649999999999997},{"$f":"WINEP_Schemes!L44","v":1},{"$f":"WINEP_Schemes!M44","v":"WWN"},{"$f":"WINEP_Schemes!N44","v":1},2.1458655150000001,2.1458655150000001,0,0,0,0,0,0]
[null,null,{"$f":"WINEP_Schemes!C45","v":"YOR00806"},{"$f":"WINEP_Schemes!D45","v":"7YW200750"},{"$f":"WINEP_Schemes!E45","v":"KIRKBY MALZEARD/STW"},{"$f":"WINEP_Schemes!F45","v":"£ per km LORI"},{"$f":"WINEP_Schemes!G45","v":9.9999999999999995E-7},{"$f":"WINEP_Schemes!H45","v":0},{"$f":"WINEP_Schemes!J45","v":12.117999999999997},{"$f":"WINEP_Schemes!I45","v":276351},{"$f":"WINEP_Schemes!K45","v":12.117999999999997},{"$f":"WINEP_Schemes!L45","v":1},{"$f":"WINEP_Schemes!M45","v":"WWN"},{"$f":"WINEP_Schemes!N45","v":1},3.3488214179999991,3.3488214179999991,0,0,0,0,0,0]
[null,null,{"$f":"WINEP_Schemes!C46","v":"YOR00812"},{"$f":"WINEP_Schemes!D46","v":"7YW200756"},{"$f":"WINEP_Schemes!E46","v":"KILLINGHALL STW"},{"$f":"WINEP_Schemes!F46","v":"£ per km LORI"},{"$f":"WINEP_Schemes!G46","v":9.9999999999999995E-7},{"$f":"WINEP_Schemes!H46","v":0},{"$f":"WINEP_Schemes!J46","v":0},{"$f":"WINEP_Schemes!I46","v":276351},{"$f":"WINEP_Schemes!K46","v":0},{"$f":"WINEP_Schemes!L46","v":1},{"$f":"WINEP_Schemes!M46","v":"WWN"},{"$f":"WINEP_Schemes!N46","v":0},0,0,0,0,0,0,0,0]
[null,null,{"$f":"WINEP_Schemes!C47","v":"YOR00813"},{"$f":"WINEP_Schemes!D47","v":"7YW200757"},{"$f":"WINEP_Schemes!E47","v":"SHAW MILLS/STW"},{"$f":"WINEP_Schemes!F47","v":"£ per km LORI"},{"$f":"WINEP_Schemes!G47","v":9.9999999999999995E-7},{"$f":"WINEP_Schemes!H47","v":0},{"$f":"WINEP_Schemes!J47","v":29.858000000000011},{"$f":"WINEP_Schemes!I47","v":276351},{"$f":"WINEP_Schemes!K47","v":29.858000000000011},{"$f":"WINEP_Schemes!L47","v":1},{"$f":"WINEP_Schemes!M47","v":"WWN"},{"$f":"WINEP_Schemes!N47","v":1},8.251288158000003,8.251288158000003,0,0,0,0,0,0]
[null,null,{"$f":"WINEP_Schemes!C48","v":"YOR00833"},{"$f":"WINEP_Schemes!D48","v":"7YW200777"},{"$f":"WINEP_Schemes!E48","v":"DRAUGHTON WPC WORKS"},{"$f":"WINEP_Schemes!F48","v":"£ per km LORI"},{"$f":"WINEP_Schemes!G48","v":9.9999999999999995E-7},{"$f":"WINEP_Schemes!H48","v":0},{"$f":"WINEP_Schemes!J48","v":3.5189999999999992},{"$f":"WINEP_Schemes!I48","v":276351},{"$f":"WINEP_Schemes!K48","v":3.5189999999999992},{"$f":"WINEP_Schemes!L48","v":1},{"$f":"WINEP_Schemes!M48","v":"WWN"},{"$f":"WINEP_Schemes!N48","v":1},0.97247916899999975,0.97247916899999975,0,0,0,0,0,0]
[null,null,{"$f":"WINEP_Schemes!C49","v":"YOR00838"},{"$f":"WINEP_Schemes!D49","v":"7YW200782"},{"$f":"WINEP_Schemes!E49","v":"SHERBURN IN ELMET/STW"},{"$f":"WINEP_Schemes!F49","v":"£ per km LORI"},{"$f":"WINEP_Schemes!G49","v":9.9999999999999995E-7},{"$f":"WINEP_Schemes!H49","v":0},{"$f":"WINEP_Schemes!J49","v":10.129999999999999},{"$f":"WINEP_Schemes!I49","v":778365},{"$f":"WINEP_Schemes!K49","v":10.129999999999999},{"$f":"WINEP_Schemes!L49","v":1},{"$f":"WINEP_Schemes!M49","v":"WWN"},{"$f":"WINEP_Schemes!N49","v":1},7.8848374499999991,7.8848374499999991,0,0,0,0,0,0]
[null,null,{"$f":"WINEP_Schemes!C50","v":"YOR00840"},{"$f":"WINEP_Schemes!D50","v":"7YW200784"},{"$f":"WINEP_Schemes!E50","v":"HAROME/STW"},{"$f":"WINEP_Schemes!F50","v":"£ per km LORI"},{"$f":"WINEP_Schemes!G50","v":9.9999999999999995E-7},{"$f":"WINEP_Schemes!H50","v":0},{"$f":"WINEP_Schemes!J50","v":6.4020000000000001},{"$f":"WINEP_Schemes!I50","v":276351},{"$f":"WINEP_Schemes!K50","v":6.4},{"$f":"WINEP_Schemes!L50","v":1},{"$f":"WINEP_Schemes!M50","v":"WWN"},{"$f":"WINEP_Schemes!N50","v":0.999687597625742},1.769199102,1.7686464,-5.5270199999992657E-4,0,0,-5.5270199999992657E-4,0,0]
[null,null,{"$f":"WINEP_Schemes!C51","v":"YOR00846"},{"$f":"WINEP_Schemes!D51","v":"7YW200790"},{"$f":"WINEP_Schemes!E51","v":"BISHOP WILTON WPC WO"},{"$f":"WINEP_Schemes!F51","v":"£ per kgP/day removed"},{"$f":"WINEP_Schemes!G51","v":9.9999999999999995E-7},{"$f":"WINEP_Schemes!H51","v":0},{"$f":"WINEP_Schemes!J51","v":1},{"$f":"WINEP_Schemes!I51","v":1287218},{"$f":"WINEP_Schemes!K51","v":1},{"$f":"WINEP_Schemes!L51","v":1},{"$f":"WINEP_Schemes!M51","v":"WWN"},{"$f":"WINEP_Schemes!N51","v":1},1.287218,1.287218,0,0,0,0,0,0]
[null,null,{"$f":"WINEP_Schemes!C52","v":"YOR00847"},{"$f":"WINEP_Schemes!D52","v":"7YW200791"},{"$f":"WINEP_Schemes!E52","v":"POCKLINGTON/STW"},{"$f":"WINEP_Schemes!F52","v":"£ per km LORI"},{"$f":"WINEP_Schemes!G52","v":9.9999999999999995E-7},{"$f":"WINEP_Schemes!H52","v":0},{"$f":"WINEP_Schemes!J52","v":2.17},{"$f":"WINEP_Schemes!I52","v":276351},{"$f":"WINEP_Schemes!K52","v":2.17},{"$f":"WINEP_Schemes!L52","v":1},{"$f":"WINEP_Schemes!M52","v":"WWN"},{"$f":"WINEP_Schemes!N52","v":1},0.59968166999999994,0.59968166999999994,0,0,0,0,0,0]
[null,null,{"$f":"WINEP_Schemes!C53","v":"YOR00849"},{"$f":"WINEP_Schemes!D53","v":"7YW200793"},{"$f":"WINEP_Schemes!E53","v":"CROFTON/STW"},{"$f":"WINEP_Schemes!F53","v":"£ per km LORI"},{"$f":"WINEP_Schemes!G53","v":9.9999999999999995E-7},{"$f":"WINEP_Schemes!H53","v":0},{"$f":"WINEP_Schemes!J53","v":8.9890000000000008},{"$f":"WINEP_Schemes!I53","v":276351},{"$f":"WINEP_Schemes!K53","v":8.9890000000000008},{"$f":"WINEP_Schemes!L53","v":1},{"$f":"WINEP_Schemes!M53","v":"WWN"},{"$f":"WINEP_Schemes!N53","v":1},2.4841191390000001,2.4841191390000001,0,0,0,0,0,0]
[null,null,{"$f":"WINEP_Schemes!C54","v":"YOR00850"},{"$f":"WINEP_Schemes!D54","v":"7YW200794"},{"$f":"WINEP_Schemes!E54","v":"MELTHAM/STW"},{"$f":"WINEP_Schemes!F54","v":"£ per km LORI"},{"$f":"WINEP_Schemes!G54","v":9.9999999999999995E-7},{"$f":"WINEP_Schemes!H54","v":0},{"$f":"WINEP_Schemes!J54","v":17.146000000000001},{"$f":"WINEP_Schemes!I54","v":276351},{"$f":"WINEP_Schemes!K54","v":17.146000000000001},{"$f":"WINEP_Schemes!L54","v":1},{"$f":"WINEP_Schemes!M54","v":"WWN"},{"$f":"WINEP_Schemes!N54","v":1},4.7383142459999998,4.7383142459999998,0,0,0,0,0,0]
[null,null,{"$f":"WINEP_Schemes!C55","v":"YOR00851"},{"$f":"WINEP_Schemes!D55","v":"7YW200795"},{"$f":"WINEP_Schemes!E55","v":"NEILEY NO 2 STW"},{"$f":"WINEP_Schemes!F55","v":"£ per km LORI"},{"$f":"WINEP_Schemes!G55","v":9.9999999999999995E-7},{"$f":"WINEP_Schemes!H55","v":0},{"$f":"WINEP_Schemes!J55","v":1.5309999999999988},{"$f":"WINEP_Schemes!I55","v":778365},{"$f":"WINEP_Schemes!K55","v":1.5309999999999988},{"$f":"WINEP_Schemes!L55","v":1},{"$f":"WINEP_Schemes!M55","v":"WWN"},{"$f":"WINEP_Schemes!N55","v":1},1.191676814999999,1.191676814999999,0,0,0,0,0,0]
[null,null,{"$f":"WINEP_Schemes!C56","v":"YOR00852"},{"$f":"WINEP_Schemes!D56","v":"7YW200796"},{"$f":"WINEP_Schemes!E56","v":"RIPPONDEN WOOD STW"},{"$f":"WINEP_Schemes!F56","v":"£ per km LORI"},{"$f":"WINEP_Schemes!G56","v":9.9999999999999995E-7},{"$f":"WINEP_Schemes!H56","v":0},{"$f":"WINEP_Schemes!J56","v":7.9579999999999993},{"$f":"WINEP_Schemes!I56","v":276351},{"$f":"WINEP_Schemes!K56","v":7.9579999999999993},{"$f":"WINEP_Schemes!L56","v":1},{"$f":"WINEP_Schemes!M56","v":"WWN"},{"$f":"WINEP_Schemes!N56","v":1},2.199201258,2.199201258,0,0,0,0,0,0]
[null,null,{"$f":"WINEP_Schemes!C57","v":"YOR00853"},{"$f":"WINEP_Schemes!D57","v":"7YW200797"},{"$f":"WINEP_Schemes!E57","v":"EASTWOOD/STW"},{"$f":"WINEP_Schemes!F57","v":"£ per km LORI"},{"$f":"WINEP_Schemes!G57","v":9.9999999999999995E-7},{"$f":"WINEP_Schemes!H57","v":0},{"$f":"WINEP_Schemes!J57","v":1.833000000000002},{"$f":"WINEP_Schemes!I57","v":778365},{"$f":"WINEP_Schemes!K57","v":1.833000000000002},{"$f":"WINEP_Schemes!L57","v":1},{"$f":"WINEP_Schemes!M57","v":"WWN"},{"$f":"WINEP_Schemes!N57","v":1},1.4267430450000016,1.4267430450000016,0,0,0,0,0,0]
[null,null,{"$f":"WINEP_Schemes!C58","v":"YOR00854"},{"$f":"WINEP_Schemes!D58","v":"7YW200798"},{"$f":"WINEP_Schemes!E58","v":"REDACRE STW"},{"$f":"WINEP_Schemes!F58","v":"£ per km LORI"},{"$f":"WINEP_Schemes!G58","v":9.9999999999999995E-7},{"$f":"WINEP_Schemes!H58","v":0},{"$f":"WINEP_Schemes!J58","v":5.0390000000000015},{"$f":"WINEP_Schemes!I58","v":276351},{"$f":"WINEP_Schemes!K58","v":5.0390000000000015},{"$f":"WINEP_Schemes!L58","v":1},{"$f":"WINEP_Schemes!M58","v":"WWN"},{"$f":"WINEP_Schemes!N58","v":1},1.3925326890000005,1.3925326890000005,0,0,0,0,0,0]
[null,null,{"$f":"WINEP_Schemes!C59","v":"YOR00855"},{"$f":"WINEP_Schemes!D59","v":"7YW200799"},{"$f":"WINEP_Schemes!E59","v":"HIGH ROYD NO 2 STW"},{"$f":"WINEP_Schemes!F59","v":"£ per km LORI"},{"$f":"WINEP_Schemes!G59","v":9.9999999999999995E-7},{"$f":"WINEP_Schemes!H59","v":0},{"$f":"WINEP_Schemes!J59","v":1.5399999999999991},{"$f":"WINEP_Schemes!I59","v":778365},{"$f":"WINEP_Schemes!K59","v":1.5399999999999991},{"$f":"WINEP_Schemes!L59","v":1},{"$f":"WINEP_Schemes!M59","v":"WWN"},{"$f":"WINEP_Schemes!N59","v":1},1.1986820999999994,1.1986820999999994,0,0,0,0,0,0]
[null,null,{"$f":"WINEP_Schemes!C60","v":"YOR00856"},{"$f":"WINEP_Schemes!D60","v":"7YW200800"},{"$f":"WINEP_Schemes!E60","v":"HALIFAX COPLEY STW"},{"$f":"WINEP_Schemes!F60","v":"£ per km LORI"},{"$f":"WINEP_Schemes!G60","v":9.9999999999999995E-7},{"$f":"WINEP_Schemes!H60","v":0},{"$f":"WINEP_Schemes!J60","v":12.996000000000006},{"$f":"WINEP_Schemes!I60","v":778365},{"$f":"WINEP_Schemes!K60","v":12.996000000000006},{"$f":"WINEP_Schemes!L60","v":1},{"$f":"WINEP_Schemes!M60","v":"WWN"},{"$f":"WINEP_Schemes!N60","v":1},10.115631540000004,10.115631540000004,0,0,0,0,0,0]
[null,null,{"$f":"WINEP_Schemes!C61","v":"YOR00857"},{"$f":"WINEP_Schemes!D61","v":"7YW200801"},{"$f":"WINEP_Schemes!E61","v":"Huddersfield STW Colne Bridge"},{"$f":"WINEP_Schemes!F61","v":"£ per km LORI"},{"$f":"WINEP_Schemes!G61","v":9.9999999999999995E-7},{"$f":"WINEP_Schemes!H61","v":0},{"$f":"WINEP_Schemes!J61","v":0},{"$f":"WINEP_Schemes!I61","v":502014},{"$f":"WINEP_Schemes!K61","v":0},{"$f":"WINEP_Schemes!L61","v":1},{"$f":"WINEP_Schemes!M61","v":"WWN"},{"$f":"WINEP_Schemes!N61","v":0},0,0,0,0,0,0,0,0]
[null,null,{"$f":"WINEP_Schemes!C62","v":"YOR00858"},{"$f":"WINEP_Schemes!D62","v":"7YW200802"},{"$f":"WINEP_Schemes!E62","v":"HUDDERSFIELD STW Cooper Bridge"},{"$f":"WINEP_Schemes!F62","v":"£ per km LORI"},{"$f":"WINEP_Schemes!G62","v":9.9999999999999995E-7},{"$f":"WINEP_Schemes!H62","v":0},{"$f":"WINEP_Schemes!J62","v":12.022000000000006},{"$f":"WINEP_Schemes!I62","v":778365},{"$f":"WINEP_Schemes!K62","v":12.022000000000006},{"$f":"WINEP_Schemes!L62","v":1},{"$f":"WINEP_Schemes!M62","v":"WWN"},{"$f":"WINEP_Schemes!N62","v":1},9.3575040300000047,9.3575040300000047,0,0,0,0,0,0]
[null,null,{"$f":"WINEP_Schemes!C63","v":"YOR00859"},{"$f":"WINEP_Schemes!D63","v":"7YW200803"},{"$f":"WINEP_Schemes!E63","v":"DEWSBURY/STW"},{"$f":"WINEP_Schemes!F63","v":"£ per km LORI"},{"$f":"WINEP_Schemes!G63","v":9.9999999999999995E-7},{"$f":"WINEP_Schemes!H63","v":0},{"$f":"WINEP_Schemes!J63","v":5.8190000000000026},{"$f":"WINEP_Schemes!I63","v":778365},{"$f":"WINEP_Schemes!K63","v":5.8190000000000026},{"$f":"WINEP_Schemes!L63","v":1},{"$f":"WINEP_Schemes!M63","v":"WWN"},{"$f":"WINEP_Schemes!N63","v":1},4.5293059350000018,4.5293059350000018,0,0,0,0,0,0]
[null,null,{"$f":"WINEP_Schemes!C64","v":"YOR00860"},{"$f":"WINEP_Schemes!D64","v":"7YW200804"},{"$f":"WINEP_Schemes!E64","v":"HORBURY (DUDFLEET) STW"},{"$f":"WINEP_Schemes!F64","v":"£ per km LORI"},{"$f":"WINEP_Schemes!G64","v":9.9999999999999995E-7},{"$f":"WINEP_Schemes!H64","v":0},{"$f":"WINEP_Schemes!J64","v":3.3089999999999975},{"$f":"WINEP_Schemes!I64","v":778365},{"$f":"WINEP_Schemes!K64","v":3.3089999999999975},{"$f":"WINEP_Schemes!L64","v":1},{"$f":"WINEP_Schemes!M64","v":"WWN"},{"$f":"WINEP_Schemes!N64","v":1},2.5756097849999975,2.5756097849999975,0,0,0,0,0,0]
[null,null,{"$f":"WINEP_Schemes!C65","v":"YOR00861"},{"$f":"WINEP_Schemes!D65","v":"7YW200805"},{"$f":"WINEP_Schemes!E65","v":"CALDER VALE/STW"},{"$f":"WINEP_Schemes!F65","v":"£ per km LORI"},{"$f":"WINEP_Schemes!G65","v":9.9999999999999995E-7},{"$f":"WINEP_Schemes!H65","v":0},{"$f":"WINEP_Schemes!J65","v":6.7109999999999985},{"$f":"WINEP_Schemes!I65","v":778365},{"$f":"WINEP_Schemes!K65","v":6.7109999999999985},{"$f":"WINEP_Schemes!L65","v":1},{"$f":"WINEP_Schemes!M65","v":"WWN"},{"$f":"WINEP_Schemes!N65","v":1},5.2236075149999985,5.2236075149999985,0,0,0,0,0,0]
[null,null,{"$f":"WINEP_Schemes!C66","v":"YOR00862"},{"$f":"WINEP_Schemes!D66","v":"7YW200806"},{"$f":"WINEP_Schemes!E66","v":"Stanley (Smalley Bight) STW"},{"$f":"WINEP_Schemes!F66","v":"£ per km LORI"},{"$f":"WINEP_Schemes!G66","v":9.9999999999999995E-7},{"$f":"WINEP_Schemes!H66","v":0},{"$f":"WINEP_Schemes!J66","v":7.8109999999999928},{"$f":"WINEP_Schemes!I66","v":778365},{"$f":"WINEP_Schemes!K66","v":7.8109999999999928},{"$f":"WINEP_Schemes!L66","v":1},{"$f":"WINEP_Schemes!M66","v":"WWN"},{"$f":"WINEP_Schemes!N66","v":1},6.0798090149999942,6.0798090149999942,0,0,0,0,0,0]
[null,null,{"$f":"WINEP_Schemes!C67","v":"YOR00863"},{"$f":"WINEP_Schemes!D67","v":"7YW200807"},{"$f":"WINEP_Schemes!E67","v":"NORMANTON/STW (Mill Lane)"},{"$f":"WINEP_Schemes!F67","v":"£ per km LORI"},{"$f":"WINEP_Schemes!G67","v":9.9999999999999995E-7},{"$f":"WINEP_Schemes!H67","v":0},{"$f":"WINEP_Schemes!J67","v":3.3939999999999912},{"$f":"WINEP_Schemes!I67","v":778365},{"$f":"WINEP_Schemes!K67","v":3.3939999999999912},{"$f":"WINEP_Schemes!L67","v":1},{"$f":"WINEP_Schemes!M67","v":"WWN"},{"$f":"WINEP_Schemes!N67","v":1},2.641770809999993,2.641770809999993,0,0,0,0,0,0]
[null,null,{"$f":"WINEP_Schemes!C68","v":"YOR00866"},{"$f":"WINEP_Schemes!D68","v":"7YW200810"},{"$f":"WINEP_Schemes!E68","v":"EMBSAY/STW"},{"$f":"WINEP_Schemes!F68","v":"£ per km LORI"},{"$f":"WINEP_Schemes!G68","v":9.9999999999999995E-7},{"$f":"WINEP_Schemes!H68","v":0},{"$f":"WINEP_Schemes!J68","v":2.7149999999999981},{"$f":"WINEP_Schemes!I68","v":276351},{"$f":"WINEP_Schemes!K68","v":2.72},{"$f":"WINEP_Schemes!L68","v":1},{"$f":"WINEP_Schemes!M68","v":"WWN"},{"$f":"WINEP_Schemes!N68","v":1.0018416206261518},0.75029296499999942,0.75167472000000002,1.3817550000005784E-3,0,0,1.3817550000005784E-3,0,0]
[null,null,{"$f":"WINEP_Schemes!C69","v":"YOR00867"},{"$f":"WINEP_Schemes!D69","v":"7YW200811"},{"$f":"WINEP_Schemes!E69","v":"EAST MARTON"},{"$f":"WINEP_Schemes!F69","v":"£ per km LORI"},{"$f":"WINEP_Schemes!G69","v":9.9999999999999995E-7},{"$f":"WINEP_Schemes!H69","v":0},{"$f":"WINEP_Schemes!J69","v":0},{"$f":"WINEP_Schemes!I69","v":276351},{"$f":"WINEP_Schemes!K69","v":0},{"$f":"WINEP_Schemes!L69","v":1},{"$f":"WINEP_Schemes!M69","v":"WWN"},{"$f":"WINEP_Schemes!N69","v":0},0,0,0,0,0,0,0,0]
[null,null,{"$f":"WINEP_Schemes!C70","v":"YOR00872"},{"$f":"WINEP_Schemes!D70","v":"7YW200816"},{"$f":"WINEP_Schemes!E70","v":"KEIGHLEY MARLEY/STW"},{"$f":"WINEP_Schemes!F70","v":"£ per km LORI"},{"$f":"WINEP_Schemes!G70","v":9.9999999999999995E-7},{"$f":"WINEP_Schemes!H70","v":0},{"$f":"WINEP_Schemes!J70","v":6.4589999999999961},{"$f":"WINEP_Schemes!I70","v":778365},{"$f":"WINEP_Schemes!K70","v":6.4589999999999961},{"$f":"WINEP_Schemes!L70","v":1},{"$f":"WINEP_Schemes!M70","v":"WWN"},{"$f":"WINEP_Schemes!N70","v":1},5.0274595349999975,5.0274595349999975,0,0,0,0,0,0]
[null,null,{"$f":"WINEP_Schemes!C71","v":"YOR00873"},{"$f":"WINEP_Schemes!D71","v":"7YW200817"},{"$f":"WINEP_Schemes!E71","v":"DOWLEY GAP (BINGLEY)"},{"$f":"WINEP_Schemes!F71","v":"£ per km LORI"},{"$f":"WINEP_Schemes!G71","v":9.9999999999999995E-7},{"$f":"WINEP_Schemes!H71","v":0},{"$f":"WINEP_Schemes!J71","v":9.1550000000000082},{"$f":"WINEP_Schemes!I71","v":778365},{"$f":"WINEP_Schemes!K71","v":9.1550000000000082},{"$f":"WINEP_Schemes!L71","v":1},{"$f":"WINEP_Schemes!M71","v":"WWN"},{"$f":"WINEP_Schemes!N71","v":1},7.1259315750000063,7.1259315750000063,0,0,0,0,0,0]
[null,null,{"$f":"WINEP_Schemes!C72","v":"YOR00874"},{"$f":"WINEP_Schemes!D72","v":"7YW200818"},{"$f":"WINEP_Schemes!E72","v":"BRADFORD ESHOLT/NO 2 STW"},{"$f":"WINEP_Schemes!F72","v":"£ per km LORI"},{"$f":"WINEP_Schemes!G72","v":9.9999999999999995E-7},{"$f":"WINEP_Schemes!H72","v":0},{"$f":"WINEP_Schemes!J72","v":23.472000000000008},{"$f":"WINEP_Schemes!I72","v":778365},{"$f":"WINEP_Schemes!K72","v":23.472000000000008},{"$f":"WINEP_Schemes!L72","v":1},{"$f":"WINEP_Schemes!M72","v":"WWN"},{"$f":"WINEP_Schemes!N72","v":1},18.269783280000006,18.269783280000006,0,0,0,0,0,0]
[null,null,{"$f":"WINEP_Schemes!C73","v":"YOR00875"},{"$f":"WINEP_Schemes!D73","v":"7YW200819"},{"$f":"WINEP_Schemes!E73","v":"KNOSTROP WWTW"},{"$f":"WINEP_Schemes!F73","v":"£ per km LORI"},{"$f":"WINEP_Schemes!G73","v":9.9999999999999995E-7},{"$f":"WINEP_Schemes!H73","v":0},{"$f":"WINEP_Schemes!J73","v":5.593},{"$f":"WINEP_Schemes!I73","v":778365},{"$f":"WINEP_Schemes!K73","v":5.593},{"$f":"WINEP_Schemes!L73","v":1},{"$f":"WINEP_Schemes!M73","v":"WWN"},{"$f":"WINEP_Schemes!N73","v":1},4.3533954450000003,4.3533954450000003,0,0,0,0,0,0]
[null,null,{"$f":"WINEP_Schemes!C74","v":"YOR00876"},{"$f":"WINEP_Schemes!D74","v":"7YW200820"},{"$f":"WINEP_Schemes!E74","v":"LEMONROYD STW"},{"$f":"WINEP_Schemes!F74","v":"£ per km LORI"},{"$f":"WINEP_Schemes!G74","v":9.9999999999999995E-7},{"$f":"WINEP_Schemes!H74","v":0},{"$f":"WINEP_Schemes!J74","v":5.5859999999999985},{"$f":"WINEP_Schemes!I74","v":778365},{"$f":"WINEP_Schemes!K74","v":5.5859999999999985},{"$f":"WINEP_Schemes!L74","v":1},{"$f":"WINEP_Schemes!M74","v":"WWN"},{"$f":"WINEP_Schemes!N74","v":1},4.3479468899999985,4.3479468899999985,0,0,0,0,0,0]
[null,null,{"$f":"WINEP_Schemes!C75","v":"YOR00878"},{"$f":"WINEP_Schemes!D75","v":"7YW200822"},{"$f":"WINEP_Schemes!E75","v":"CASTLEFORD/STW"},{"$f":"WINEP_Schemes!F75","v":"£ per km LORI"},{"$f":"WINEP_Schemes!G75","v":9.9999999999999995E-7},{"$f":"WINEP_Schemes!H75","v":0},{"$f":"WINEP_Schemes!J75","v":0},{"$f":"WINEP_Schemes!I75","v":778365},{"$f":"WINEP_Schemes!K75","v":0},{"$f":"WINEP_Schemes!L75","v":1},{"$f":"WINEP_Schemes!M75","v":"WWN"},{"$f":"WINEP_Schemes!N75","v":0},0,0,0,0,0,0,0,0]
[null,null,{"$f":"WINEP_Schemes!C76","v":"YOR00879"},{"$f":"WINEP_Schemes!D76","v":"7YW200823"},{"$f":"WINEP_Schemes!E76","v":"SUTTON WWTW"},{"$f":"WINEP_Schemes!F76","v":"£ per km LORI"},{"$f":"WINEP_Schemes!G76","v":9.9999999999999995E-7},{"$f":"WINEP_Schemes!H76","v":0},{"$f":"WINEP_Schemes!J76","v":23.16500000000002},{"$f":"WINEP_Schemes!I76","v":778365},{"$f":"WINEP_Schemes!K76","v":23.16500000000002},{"$f":"WINEP_Schemes!L76","v":1},{"$f":"WINEP_Schemes!M76","v":"WWN"},{"$f":"WINEP_Schemes!N76","v":1},18.030825225000015,18.030825225000015,0,0,0,0,0,0]
[null,null,{"$f":"WINEP_Schemes!C77","v":"YOR00881"},{"$f":"WINEP_Schemes!D77","v":"7YW200825"},{"$f":"WINEP_Schemes!E77","v":"SOUTH ELMSALL/STW"},{"$f":"WINEP_Schemes!F77","v":"£ per km LORI"},{"$f":"WINEP_Schemes!G77","v":9.9999999999999995E-7},{"$f":"WINEP_Schemes!H77","v":0},{"$f":"WINEP_Schemes!J77","v":5.1169999999999991},{"$f":"WINEP_Schemes!I77","v":778365},{"$f":"WINEP_Schemes!K77","v":5.1169999999999991},{"$f":"WINEP_Schemes!L77","v":1},{"$f":"WINEP_Schemes!M77","v":"WWN"},{"$f":"WINEP_Schemes!N77","v":1},3.9828937049999991,3.9828937049999991,0,0,0,0,0,0]
[null,null,{"$f":"WINEP_Schemes!C78","v":"YOR00882"},{"$f":"WINEP_Schemes!D78","v":"7YW200826"},{"$f":"WINEP_Schemes!E78","v":"WRANGBROOK STW"},{"$f":"WINEP_Schemes!F78","v":"£ per km LORI"},{"$f":"WINEP_Schemes!G78","v":9.9999999999999995E-7},{"$f":"WINEP_Schemes!H78","v":0},{"$f":"WINEP_Schemes!J78","v":8.7759999999999998},{"$f":"WINEP_Schemes!I78","v":276351},{"$f":"WINEP_Schemes!K78","v":8.7759999999999998},{"$f":"WINEP_Schemes!L78","v":1},{"$f":"WINEP_Schemes!M78","v":"WWN"},{"$f":"WINEP_Schemes!N78","v":1},2.4252563760000001,2.4252563760000001,0,{"$f":" IF($M79 = R$9, $Q79, 0)","v":0},0,0,0,0]
[null,null,{"$f":"WINEP_Schemes!C79","v":"YOR00883"},{"$f":"WINEP_Schemes!D79","v":"7YW200827"},{"$f":"WINEP_Schemes!E79","v":"Adwick Le Street"},{"$f":"WINEP_Schemes!F79","v":"£ per km LORI"},{"$f":"WINEP_Schemes!G79","v":9.9999999999999995E-7},{"$f":"WINEP_Schemes!H79","v":0},{"$f":"WINEP_Schemes!J79","v":8.5730000000000004},{"$f":"WINEP_Schemes!I79","v":778365},{"$f":"WINEP_Schemes!K79","v":8.5730000000000004},{"$f":"WINEP_Schemes!L79","v":1},{"$f":"WINEP_Schemes!M79","v":"WWN"},{"$f":"WINEP_Schemes!N79","v":1},6.6729231450000004,6.6729231450000004,0,0,0,0,0,0]
[null,null,{"$f":"WINEP_Schemes!C80","v":"YOR00886"},{"$f":"WINEP_Schemes!D80","v":"7YW200830"},{"$f":"WINEP_Schemes!E80","v":"GRIMETHORPE/STW"},{"$f":"WINEP_Schemes!F80","v":"£ per km LORI"},{"$f":"WINEP_Schemes!G80","v":9.9999999999999995E-7},{"$f":"WINEP_Schemes!H80","v":0},{"$f":"WINEP_Schemes!J80","v":10.161000000000003},{"$f":"WINEP_Schemes!I80","v":778365},{"$f":"WINEP_Schemes!K80","v":10.161000000000003},{"$f":"WINEP_Schemes!L80","v":1},{"$f":"WINEP_Schemes!M80","v":"WWN"},{"$f":"WINEP_Schemes!N80","v":1},{"$f":" I81 * J81 * G81","v":7.9089667650000024},{"$f":" N81 * O81","v":7.9089667650000024},{"$f":" IF(L81 = 0, P81, (N81 - 1) * O81)","v":0},0,0,0,0,0]
[null,null,{"$f":"WINEP_Schemes!C81","v":"YOR00887"},{"$f":"WINEP_Schemes!D81","v":"7YW200831"},{"$f":"WINEP_Schemes!E81","v":"CLAYTON WEST/STW"},{"$f":"WINEP_Schemes!F81","v":"£ per km LORI"},{"$f":"WINEP_Schemes!G81","v":9.9999999999999995E-7},{"$f":"WINEP_Schemes!H81","v":0},{"$f":"WINEP_Schemes!J81","v":3.7070000000000007},{"$f":"WINEP_Schemes!I81","v":778365},{"$f":"WINEP_Schemes!K81","v":3.7070000000000007},{"$f":"WINEP_Schemes!L81","v":1},{"$f":"WINEP_Schemes!M81","v":"WWN"},{"$f":"WINEP_Schemes!N81","v":1},2.8853990550000006,2.8853990550000006,0,0,0,0,0,0]
[null,null,{"$f":"WINEP_Schemes!C82","v":"YOR00888"},{"$f":"WINEP_Schemes!D82","v":"7YW200832"},{"$f":"WINEP_Schemes!E82","v":"HOYLANDSWAINE/STW"},{"$f":"WINEP_Schemes!F82","v":"£ per km LORI"},{"$f":"WINEP_Schemes!G82","v":9.9999999999999995E-7},{"$f":"WINEP_Schemes!H82","v":0},{"$f":"WINEP_Schemes!J82","v":9.8049999999999997},{"$f":"WINEP_Schemes!I82","v":276351},{"$f":"WINEP_Schemes!K82","v":9.8049999999999997},{"$f":"WINEP_Schemes!L82","v":1},{"$f":"WINEP_Schemes!M82","v":"WWN"},{"$f":"WINEP_Schemes!N82","v":1},2.7096215549999996,2.7096215549999996,0,0,0,0,0,0]
[null,null,{"$f":"WINEP_Schemes!C83","v":"YOR00902"},{"$f":"WINEP_Schemes!D83","v":"7YW200846"},{"$f":"WINEP_Schemes!E83","v":"INGBIRCHWORTH STW"},{"$f":"WINEP_Schemes!F83","v":"£ per kgP/day removed"},{"$f":"WINEP_Schemes!G83","v":9.9999999999999995E-7},{"$f":"WINEP_Schemes!H83","v":0},{"$f":"WINEP_Schemes!J83","v":1},{"$f":"WINEP_Schemes!I83","v":1287218},{"$f":"WINEP_Schemes!K83","v":1},{"$f":"WINEP_Schemes!L83","v":1},{"$f":"WINEP_Schemes!M83","v":"WWN"},{"$f":"WINEP_Schemes!N83","v":1},1.287218,1.287218,0,0,0,0,0,0]
[null,null,{"$f":"WINEP_Schemes!C84","v":"YOR00903"},{"$f":"WINEP_Schemes!D84","v":"7YW200847"},{"$f":"WINEP_Schemes!E84","v":"CHEESEBOTTOM STW"},{"$f":"WINEP_Schemes!F84","v":"£ per km LORI"},{"$f":"WINEP_Schemes!G84","v":9.9999999999999995E-7},{"$f":"WINEP_Schemes!H84","v":0},{"$f":"WINEP_Schemes!J84","v":7.7469999999999999},{"$f":"WINEP_Schemes!I84","v":778365},{"$f":"WINEP_Schemes!K84","v":7.7469999999999999},{"$f":"WINEP_Schemes!L84","v":1},{"$f":"WINEP_Schemes!M84","v":"WWN"},{"$f":"WINEP_Schemes!N84","v":1},6.0299936550000002,6.0299936550000002,0,0,0,0,0,0]
[null,null,{"$f":"WINEP_Schemes!C85","v":"YOR00904"},{"$f":"WINEP_Schemes!D85","v":"7YW200848"},{"$f":"WINEP_Schemes!E85","v":"STOCKSBRIDGE/STW"},{"$f":"WINEP_Schemes!F85","v":"£ per km LORI"},{"$f":"WINEP_Schemes!G85","v":9.9999999999999995E-7},{"$f":"WINEP_Schemes!H85","v":0},{"$f":"WINEP_Schemes!J85","v":23.136999999999979},{"$f":"WINEP_Schemes!I85","v":778365},{"$f":"WINEP_Schemes!K85","v":23.136999999999979},{"$f":"WINEP_Schemes!L85","v":1},{"$f":"WINEP_Schemes!M85","v":"WWN"},{"$f":"WINEP_Schemes!N85","v":1},18.009031004999983,18.009031004999983,0,0,0,0,0,0]
[null,null,{"$f":"WINEP_Schemes!C86","v":"YOR00906"},{"$f":"WINEP_Schemes!D86","v":"7YW200850"},{"$f":"WINEP_Schemes!E86","v":"BLACKBURN MEADOWS/STW"},{"$f":"WINEP_Schemes!F86","v":"£ per km LORI"},{"$f":"WINEP_Schemes!G86","v":9.9999999999999995E-7},{"$f":"WINEP_Schemes!H86","v":0},{"$f":"WINEP_Schemes!J86","v":6.5280000000000058},{"$f":"WINEP_Schemes!I86","v":778365},{"$f":"WINEP_Schemes!K86","v":6.5280000000000058},{"$f":"WINEP_Schemes!L86","v":1},{"$f":"WINEP_Schemes!M86","v":"WWN"},{"$f":"WINEP_Schemes!N86","v":1},5.0811667200000041,5.0811667200000041,0,0,0,0,0,0]
[null,null,{"$f":"WINEP_Schemes!C87","v":"YOR00913"},{"$f":"WINEP_Schemes!D87","v":"7YW200857"},{"$f":"WINEP_Schemes!E87","v":"Old Whittington (Chesterfield) STW"},{"$f":"WINEP_Schemes!F87","v":"£ per km LORI"},{"$f":"WINEP_Schemes!G87","v":9.9999999999999995E-7},{"$f":"WINEP_Schemes!H87","v":0},{"$f":"WINEP_Schemes!J87","v":9.2680000000000007},{"$f":"WINEP_Schemes!I87","v":778365},{"$f":"WINEP_Schemes!K87","v":9.2680000000000007},{"$f":"WINEP_Schemes!L87","v":1},{"$f":"WINEP_Schemes!M87","v":"WWN"},{"$f":"WINEP_Schemes!N87","v":1},7.2138868199999999,7.2138868199999999,0,0,0,0,0,0]
[null,null,{"$f":"WINEP_Schemes!C88","v":"YOR00914"},{"$f":"WINEP_Schemes!D88","v":"7YW200858"},{"$f":"WINEP_Schemes!E88","v":"STOCKLEY/STW"},{"$f":"WINEP_Schemes!F88","v":"£ per km LORI"},{"$f":"WINEP_Schemes!G88","v":9.9999999999999995E-7},{"$f":"WINEP_Schemes!H88","v":0},{"$f":"WINEP_Schemes!J88","v":2.3670000000000009},{"$f":"WINEP_Schemes!I88","v":276351},{"$f":"WINEP_Schemes!K88","v":2.3670000000000009},{"$f":"WINEP_Schemes!L88","v":1},{"$f":"WINEP_Schemes!M88","v":"WWN"},{"$f":"WINEP_Schemes!N88","v":1},0.65412281700000019,0.65412281700000019,0,0,0,0,0,0]
[null,null,{"$f":"WINEP_Schemes!C89","v":"YOR00915"},{"$f":"WINEP_Schemes!D89","v":"7YW200859"},{"$f":"WINEP_Schemes!E89","v":"BOLSOVER/STW"},{"$f":"WINEP_Schemes!F89","v":"£ per km LORI"},{"$f":"WINEP_Schemes!G89","v":9.9999999999999995E-7},{"$f":"WINEP_Schemes!H89","v":0},{"$f":"WINEP_Schemes!J89","v":7.7959999999999958},{"$f":"WINEP_Schemes!I89","v":778365},{"$f":"WINEP_Schemes!K89","v":7.7959999999999958},{"$f":"WINEP_Schemes!L89","v":1},{"$f":"WINEP_Schemes!M89","v":"WWN"},{"$f":"WINEP_Schemes!N89","v":1},6.0681335399999963,6.0681335399999963,0,0,0,0,0,0]
[null,null,{"$f":"WINEP_Schemes!C90","v":"YOR00916"},{"$f":"WINEP_Schemes!D90","v":"7YW200860"},{"$f":"WINEP_Schemes!E90","v":"STAVELEY/STW"},{"$f":"WINEP_Schemes!F90","v":"£ per km LORI"},{"$f":"WINEP_Schemes!G90","v":9.9999999999999995E-7},{"$f":"WINEP_Schemes!H90","v":0},{"$f":"WINEP_Schemes!J90","v":12.93399999999999},{"$f":"WINEP_Schemes!I90","v":778365},{"$f":"WINEP_Schemes!K90","v":12.93399999999999},{"$f":"WINEP_Schemes!L90","v":1},{"$f":"WINEP_Schemes!M90","v":"WWN"},{"$f":"WINEP_Schemes!N90","v":1},10.067372909999992,10.067372909999992,0,0,0,0,0,0]
[null,null,{"$f":"WINEP_Schemes!C91","v":"YOR00917"},{"$f":"WINEP_Schemes!D91","v":"7YW200861"},{"$f":"WINEP_Schemes!E91","v":"WOODHOUSE MILL WwTW"},{"$f":"WINEP_Schemes!F91","v":"£ per km LORI"},{"$f":"WINEP_Schemes!G91","v":9.9999999999999995E-7},{"$f":"WINEP_Schemes!H91","v":0},{"$f":"WINEP_Schemes!J91","v":4.2749999999999986},{"$f":"WINEP_Schemes!I91","v":778365},{"$f":"WINEP_Schemes!K91","v":4.2749999999999986},{"$f":"WINEP_Schemes!L91","v":1},{"$f":"WINEP_Schemes!M91","v":"WWN"},{"$f":"WINEP_Schemes!N91","v":1},3.3275103749999988,3.3275103749999988,0,0,0,0,0,0]
[null,null,{"$f":"WINEP_Schemes!C92","v":"YOR00918"},{"$f":"WINEP_Schemes!D92","v":"7YW200862"},{"$f":"WINEP_Schemes!E92","v":"LONG LANE/STW"},{"$f":"WINEP_Schemes!F92","v":"£ per km LORI"},{"$f":"WINEP_Schemes!G92","v":9.9999999999999995E-7},{"$f":"WINEP_Schemes!H92","v":0},{"$f":"WINEP_Schemes!J92","v":4.2360000000000042},{"$f":"WINEP_Schemes!I92","v":778365},{"$f":"WINEP_Schemes!K92","v":4.2360000000000042},{"$f":"WINEP_Schemes!L92","v":1},{"$f":"WINEP_Schemes!M92","v":"WWN"},{"$f":"WINEP_Schemes!N92","v":1},3.2971541400000031,3.2971541400000031,0,0,0,0,0,0]
[null,null,{"$f":"WINEP_Schemes!C93","v":"YOR00919"},{"$f":"WINEP_Schemes!D93","v":"7YW200863"},{"$f":"WINEP_Schemes!E93","v":"ALDWARKE/STW"},{"$f":"WINEP_Schemes!F93","v":"£ per km LORI"},{"$f":"WINEP_Schemes!G93","v":9.9999999999999995E-7},{"$f":"WINEP_Schemes!H93","v":0},{"$f":"WINEP_Schemes!J93","v":7.0600000000000023},{"$f":"WINEP_Schemes!I93","v":778365},{"$f":"WINEP_Schemes!K93","v":7.0600000000000023},{"$f":"WINEP_Schemes!L93","v":1},{"$f":"WINEP_Schemes!M93","v":"WWN"},{"$f":"WINEP_Schemes!N93","v":1},5.495256900000002,5.495256900000002,0,0,0,0,0,0]
[null,null,{"$f":"WINEP_Schemes!C94","v":"YOR00920"},{"$f":"WINEP_Schemes!D94","v":"7YW200864"},{"$f":"WINEP_Schemes!E94","v":"MEXBORO SWINTON/STW"},{"$f":"WINEP_Schemes!F94","v":"£ per km LORI"},{"$f":"WINEP_Schemes!G94","v":9.9999999999999995E-7},{"$f":"WINEP_Schemes!H94","v":0},{"$f":"WINEP_Schemes!J94","v":3.0600000000000023},{"$f":"WINEP_Schemes!I94","v":778365},{"$f":"WINEP_Schemes!K94","v":3.0600000000000023},{"$f":"WINEP_Schemes!L94","v":1},{"$f":"WINEP_Schemes!M94","v":"WWN"},{"$f":"WINEP_Schemes!N94","v":1},2.3817969000000017,2.3817969000000017,0,0,0,0,0,0]
[null,null,{"$f":"WINEP_Schemes!C95","v":"YOR00921"},{"$f":"WINEP_Schemes!D95","v":"7YW200865"},{"$f":"WINEP_Schemes!E95","v":"DENABY WTW"},{"$f":"WINEP_Schemes!F95","v":"£ per km LORI"},{"$f":"WINEP_Schemes!G95","v":9.9999999999999995E-7},{"$f":"WINEP_Schemes!H95","v":0},{"$f":"WINEP_Schemes!J95","v":13.415999999999983},{"$f":"WINEP_Schemes!I95","v":778365},{"$f":"WINEP_Schemes!K95","v":13.415999999999983},{"$f":"WINEP_Schemes!L95","v":1},{"$f":"WINEP_Schemes!M95","v":"WWN"},{"$f":"WINEP_Schemes!N95","v":1},10.442544839999986,10.442544839999986,0,0,0,0,0,0]
[null,null,{"$f":"WINEP_Schemes!C96","v":"YOR00922"},{"$f":"WINEP_Schemes!D96","v":"7YW200866"},{"$f":"WINEP_Schemes!E96","v":"Clifton STW"},{"$f":"WINEP_Schemes!F96","v":"£ per km LORI"},{"$f":"WINEP_Schemes!G96","v":9.9999999999999995E-7},{"$f":"WINEP_Schemes!H96","v":0},{"$f":"WINEP_Schemes!J96","v":0},{"$f":"WINEP_Schemes!I96","v":276351},{"$f":"WINEP_Schemes!K96","v":0},{"$f":"WINEP_Schemes!L96","v":1},{"$f":"WINEP_Schemes!M96","v":"WWN"},{"$f":"WINEP_Schemes!N96","v":0},0,0,0,0,0,0,0,0]
[null,null,{"$f":"WINEP_Schemes!C97","v":"YOR00923"},{"$f":"WINEP_Schemes!D97","v":"7YW200867"},{"$f":"WINEP_Schemes!E97","v":"BENTLEY/STW P Removal"},{"$f":"WINEP_Schemes!F97","v":"£ per km LORI"},{"$f":"WINEP_Schemes!G97","v":9.9999999999999995E-7},{"$f":"WINEP_Schemes!H97","v":0},{"$f":"WINEP_Schemes!J97","v":3.43},{"$f":"WINEP_Schemes!I97","v":778365},{"$f":"WINEP_Schemes!K97","v":3.43},{"$f":"WINEP_Schemes!L97","v":1},{"$f":"WINEP_Schemes!M97","v":"WWN"},{"$f":"WINEP_Schemes!N97","v":1},2.66979195,2.66979195,0,0,0,0,0,0]
[null,null,{"$f":"WINEP_Schemes!C98","v":"YOR00928"},{"$f":"WINEP_Schemes!D98","v":"7YW200872"},{"$f":"WINEP_Schemes!E98","v":"KIRK SMEATON/STW"},{"$f":"WINEP_Schemes!F98","v":"£ per kgP/day removed"},{"$f":"WINEP_Schemes!G98","v":9.9999999999999995E-7},{"$f":"WINEP_Schemes!H98","v":0},{"$f":"WINEP_Schemes!J98","v":2},{"$f":"WINEP_Schemes!I98","v":1287218},{"$f":"WINEP_Schemes!K98","v":2},{"$f":"WINEP_Schemes!L98","v":1},{"$f":"WINEP_Schemes!M98","v":"WWN"},{"$f":"WINEP_Schemes!N98","v":1},2.5744359999999999,2.5744359999999999,0,0,0,0,0,0]
[null,null,{"$f":"WINEP_Schemes!C99","v":"YOR00966"},{"$f":"WINEP_Schemes!D99","v":"7YW200910"},{"$f":"WINEP_Schemes!E99","v":"Adwick Le Street"},{"$f":"WINEP_Schemes!F99","v":"£ per km LORI"},{"$f":"WINEP_Schemes!G99","v":9.9999999999999995E-7},{"$f":"WINEP_Schemes!H99","v":0},{"$f":"WINEP_Schemes!J99","v":0},{"$f":"WINEP_Schemes!I99","v":778365},{"$f":"WINEP_Schemes!K99","v":0},{"$f":"WINEP_Schemes!L99","v":1},{"$f":"WINEP_Schemes!M99","v":"WWN"},{"$f":"WINEP_Schemes!N99","v":0},0,0,0,0,0,0,0,0]
[null,null,{"$f":"WINEP_Schemes!C100","v":"YOR00967"},{"$f":"WINEP_Schemes!D100","v":"7YW200911"},{"$f":"WINEP_Schemes!E100","v":"ALDWARKE/STW"},{"$f":"WINEP_Schemes!F100","v":"£ per km LORI"},{"$f":"WINEP_Schemes!G100","v":9.9999999999999995E-7},{"$f":"WINEP_Schemes!H100","v":0},{"$f":"WINEP_Schemes!J100","v":0},{"$f":"WINEP_Schemes!I100","v":778365},{"$f":"WINEP_Schemes!K100","v":0},{"$f":"WINEP_Schemes!L100","v":1},{"$f":"WINEP_Schemes!M100","v":"WWN"},{"$f":"WINEP_Schemes!N100","v":0},0,0,0,0,0,0,0,0]
[null,null,{"$f":"WINEP_Schemes!C101","v":"YOR00968"},{"$f":"WINEP_Schemes!D101","v":"7YW200912"},{"$f":"WINEP_Schemes!E101","v":"BENTLEY/STW P Removal"},{"$f":"WINEP_Schemes!F101","v":"£ per km LORI"},{"$f":"WINEP_Schemes!G101","v":9.9999999999999995E-7},{"$f":"WINEP_Schemes!H101","v":0},{"$f":"WINEP_Schemes!J101","v":0},{"$f":"WINEP_Schemes!I101","v":778365},{"$f":"WINEP_Schemes!K101","v":0},{"$f":"WINEP_Schemes!L101","v":1},{"$f":"WINEP_Schemes!M101","v":"WWN"},{"$f":"WINEP_Schemes!N101","v":0},0,0,0,0,0,0,0,0]
[null,null,{"$f":"WINEP_Schemes!C102","v":"YOR00969"},{"$f":"WINEP_Schemes!D102","v":"7YW200913"},{"$f":"WINEP_Schemes!E102","v":"BLACKBURN MEADOWS/STW"},{"$f":"WINEP_Schemes!F102","v":"£ per km LORI"},{"$f":"WINEP_Schemes!G102","v":9.9999999999999995E-7},{"$f":"WINEP_Schemes!H102","v":0},{"$f":"WINEP_Schemes!J102","v":0},{"$f":"WINEP_Schemes!I102","v":778365},{"$f":"WINEP_Schemes!K102","v":0},{"$f":"WINEP_Schemes!L102","v":1},{"$f":"WINEP_Schemes!M102","v":"WWN"},{"$f":"WINEP_Schemes!N102","v":0},0,0,0,0,0,0,0,0]
[null,null,{"$f":"WINEP_Schemes!C103","v":"YOR00970"},{"$f":"WINEP_Schemes!D103","v":"7YW200914"},{"$f":"WINEP_Schemes!E103","v":"BOLSOVER/STW"},{"$f":"WINEP_Schemes!F103","v":"£ per km LORI"},{"$f":"WINEP_Schemes!G103","v":9.9999999999999995E-7},{"$f":"WINEP_Schemes!H103","v":0},{"$f":"WINEP_Schemes!J103","v":0},{"$f":"WINEP_Schemes!I103","v":778365},{"$f":"WINEP_Schemes!K103","v":0},{"$f":"WINEP_Schemes!L103","v":1},{"$f":"WINEP_Schemes!M103","v":"WWN"},{"$f":"WINEP_Schemes!N103","v":0},0,0,0,0,0,0,0,0]
[null,null,{"$f":"WINEP_Schemes!C104","v":"YOR00971"},{"$f":"WINEP_Schemes!D104","v":"7YW200915"},{"$f":"WINEP_Schemes!E104","v":"BOLTON ON DEARNE/STW"},{"$f":"WINEP_Schemes!F104","v":"£ per km LORI"},{"$f":"WINEP_Schemes!G104","v":9.9999999999999995E-7},{"$f":"WINEP_Schemes!H104","v":0},{"$f":"WINEP_Schemes!J104","v":5.8619999999999948},{"$f":"WINEP_Schemes!I104","v":502014},{"$f":"WINEP_Schemes!K104","v":5.8619999999999948},{"$f":"WINEP_Schemes!L104","v":1},{"$f":"WINEP_Schemes!M104","v":"WWN"},{"$f":"WINEP_Schemes!N104","v":1},2.9428060679999972,2.9428060679999972,0,0,0,0,0,0]
[null,null,{"$f":"WINEP_Schemes!C105","v":"YOR00972"},{"$f":"WINEP_Schemes!D105","v":"7YW200916"},{"$f":"WINEP_Schemes!E105","v":"BRADFORD ESHOLT/NO 2 STW"},{"$f":"WINEP_Schemes!F105","v":"£ per km LORI"},{"$f":"WINEP_Schemes!G105","v":9.9999999999999995E-7},{"$f":"WINEP_Schemes!H105","v":0},{"$f":"WINEP_Schemes!J105","v":0},{"$f":"WINEP_Schemes!I105","v":778365},{"$f":"WINEP_Schemes!K105","v":0},{"$f":"WINEP_Schemes!L105","v":1},{"$f":"WINEP_Schemes!M105","v":"WWN"},{"$f":"WINEP_Schemes!N105","v":0},0,0,0,0,0,0,0,0]
[null,null,{"$f":"WINEP_Schemes!C106","v":"YOR00973"},{"$f":"WINEP_Schemes!D106","v":"7YW200917"},{"$f":"WINEP_Schemes!E106","v":"CALDER VALE/STW"},{"$f":"WINEP_Schemes!F106","v":"£ per km LORI"},{"$f":"WINEP_Schemes!G106","v":9.9999999999999995E-7},{"$f":"WINEP_Schemes!H106","v":0},{"$f":"WINEP_Schemes!J106","v":0},{"$f":"WINEP_Schemes!I106","v":778365},{"$f":"WINEP_Schemes!K106","v":0},{"$f":"WINEP_Schemes!L106","v":1},{"$f":"WINEP_Schemes!M106","v":"WWN"},{"$f":"WINEP_Schemes!N106","v":0},0,0,0,0,0,0,0,0]
[null,null,{"$f":"WINEP_Schemes!C107","v":"YOR00974"},{"$f":"WINEP_Schemes!D107","v":"7YW200918"},{"$f":"WINEP_Schemes!E107","v":"CASTLEFORD/STW"},{"$f":"WINEP_Schemes!F107","v":"£ per km LORI"},{"$f":"WINEP_Schemes!G107","v":9.9999999999999995E-7},{"$f":"WINEP_Schemes!H107","v":0},{"$f":"WINEP_Schemes!J107","v":5.296999999999997},{"$f":"WINEP_Schemes!I107","v":778365},{"$f":"WINEP_Schemes!K107","v":5.296999999999997},{"$f":"WINEP_Schemes!L107","v":1},{"$f":"WINEP_Schemes!M107","v":"WWN"},{"$f":"WINEP_Schemes!N107","v":1},4.1229994049999972,4.1229994049999972,0,0,0,0,0,0]
[null,null,{"$f":"WINEP_Schemes!C108","v":"YOR00975"},{"$f":"WINEP_Schemes!D108","v":"7YW200919"},{"$f":"WINEP_Schemes!E108","v":"CHEESEBOTTOM STW"},{"$f":"WINEP_Schemes!F108","v":"£ per km LORI"},{"$f":"WINEP_Schemes!G108","v":9.9999999999999995E-7},{"$f":"WINEP_Schemes!H108","v":0},{"$f":"WINEP_Schemes!J108","v":0},{"$f":"WINEP_Schemes!I108","v":778365},{"$f":"WINEP_Schemes!K108","v":0},{"$f":"WINEP_Schemes!L108","v":1},{"$f":"WINEP_Schemes!M108","v":"WWN"},{"$f":"WINEP_Schemes!N108","v":0},0,0,0,0,0,0,0,0]
[null,null,{"$f":"WINEP_Schemes!C109","v":"YOR00976"},{"$f":"WINEP_Schemes!D109","v":"7YW200920"},{"$f":"WINEP_Schemes!E109","v":"CLAYTON WEST/STW"},{"$f":"WINEP_Schemes!F109","v":"£ per km LORI"},{"$f":"WINEP_Schemes!G109","v":9.9999999999999995E-7},{"$f":"WINEP_Schemes!H109","v":0},{"$f":"WINEP_Schemes!J109","v":0},{"$f":"WINEP_Schemes!I109","v":778365},{"$f":"WINEP_Schemes!K109","v":0},{"$f":"WINEP_Schemes!L109","v":1},{"$f":"WINEP_Schemes!M109","v":"WWN"},{"$f":"WINEP_Schemes!N109","v":0},0,0,0,0,0,0,0,0]
[null,null,{"$f":"WINEP_Schemes!C110","v":"YOR00977"},{"$f":"WINEP_Schemes!D110","v":"7YW200921"},{"$f":"WINEP_Schemes!E110","v":"DARTON/STW"},{"$f":"WINEP_Schemes!F110","v":"£ per km LORI"},{"$f":"WINEP_Schemes!G110","v":9.9999999999999995E-7},{"$f":"WINEP_Schemes!H110","v":0},{"$f":"WINEP_Schemes!J110","v":7.718},{"$f":"WINEP_Schemes!I110","v":502014},{"$f":"WINEP_Schemes!K110","v":7.718},{"$f":"WINEP_Schemes!L110","v":1},{"$f":"WINEP_Schemes!M110","v":"WWN"},{"$f":"WINEP_Schemes!N110","v":1},3.8745440520000001,3.8745440520000001,0,0,0,0,0,0]
[null,null,{"$f":"WINEP_Schemes!C111","v":"YOR00978"},{"$f":"WINEP_Schemes!D111","v":"7YW200922"},{"$f":"WINEP_Schemes!E111","v":"DENABY WTW"},{"$f":"WINEP_Schemes!F111","v":"£ per km LORI"},{"$f":"WINEP_Schemes!G111","v":9.9999999999999995E-7},{"$f":"WINEP_Schemes!H111","v":0},{"$f":"WINEP_Schemes!J111","v":0},{"$f":"WINEP_Schemes!I111","v":778365},{"$f":"WINEP_Schemes!K111","v":0},{"$f":"WINEP_Schemes!L111","v":1},{"$f":"WINEP_Schemes!M111","v":"WWN"},{"$f":"WINEP_Schemes!N111","v":0},0,0,0,0,0,0,0,0]
[null,null,{"$f":"WINEP_Schemes!C112","v":"YOR00979"},{"$f":"WINEP_Schemes!D112","v":"7YW200923"},{"$f":"WINEP_Schemes!E112","v":"DEWSBURY/STW"},{"$f":"WINEP_Schemes!F112","v":"£ per km LORI"},{"$f":"WINEP_Schemes!G112","v":9.9999999999999995E-7},{"$f":"WINEP_Schemes!H112","v":0},{"$f":"WINEP_Schemes!J112","v":0},{"$f":"WINEP_Schemes!I112","v":778365},{"$f":"WINEP_Schemes!K112","v":0},{"$f":"WINEP_Schemes!L112","v":1},{"$f":"WINEP_Schemes!M112","v":"WWN"},{"$f":"WINEP_Schemes!N112","v":0},0,0,0,0,0,0,0,0]
[null,null,{"$f":"WINEP_Schemes!C113","v":"YOR00980"},{"$f":"WINEP_Schemes!D113","v":"7YW200924"},{"$f":"WINEP_Schemes!E113","v":"DOWLEY GAP (BINGLEY)"},{"$f":"WINEP_Schemes!F113","v":"£ per km LORI"},{"$f":"WINEP_Schemes!G113","v":9.9999999999999995E-7},{"$f":"WINEP_Schemes!H113","v":0},{"$f":"WINEP_Schemes!J113","v":0},{"$f":"WINEP_Schemes!I113","v":778365},{"$f":"WINEP_Schemes!K113","v":0},{"$f":"WINEP_Schemes!L113","v":1},{"$f":"WINEP_Schemes!M113","v":"WWN"},{"$f":"WINEP_Schemes!N113","v":0},0,0,0,0,0,0,0,0]
[null,null,{"$f":"WINEP_Schemes!C114","v":"YOR00981"},{"$f":"WINEP_Schemes!D114","v":"7YW200925"},{"$f":"WINEP_Schemes!E114","v":"DRONFIELD/STW"},{"$f":"WINEP_Schemes!F114","v":"£ per km LORI"},{"$f":"WINEP_Schemes!G114","v":9.9999999999999995E-7},{"$f":"WINEP_Schemes!H114","v":0},{"$f":"WINEP_Schemes!J114","v":0},{"$f":"WINEP_Schemes!I114","v":778365},{"$f":"WINEP_Schemes!K114","v":0},{"$f":"WINEP_Schemes!L114","v":1},{"$f":"WINEP_Schemes!M114","v":"WWN"},{"$f":"WINEP_Schemes!N114","v":0},0,0,0,0,0,0,0,0]
[null,null,{"$f":"WINEP_Schemes!C115","v":"YOR00982"},{"$f":"WINEP_Schemes!D115","v":"7YW200926"},{"$f":"WINEP_Schemes!E115","v":"OWLWOOD (GARFORTH) STW"},{"$f":"WINEP_Schemes!F115","v":"£ per km LORI"},{"$f":"WINEP_Schemes!G115","v":9.9999999999999995E-7},{"$f":"WINEP_Schemes!H115","v":0},{"$f":"WINEP_Schemes!J115","v":0},{"$f":"WINEP_Schemes!I115","v":778365},{"$f":"WINEP_Schemes!K115","v":0},{"$f":"WINEP_Schemes!L115","v":1},{"$f":"WINEP_Schemes!M115","v":"WWN"},{"$f":"WINEP_Schemes!N115","v":0},0,0,0,0,0,0,0,0]
[null,null,{"$f":"WINEP_Schemes!C116","v":"YOR00983"},{"$f":"WINEP_Schemes!D116","v":"7YW200927"},{"$f":"WINEP_Schemes!E116","v":"GRIMETHORPE/STW"},{"$f":"WINEP_Schemes!F116","v":"£ per km LORI"},{"$f":"WINEP_Schemes!G116","v":9.9999999999999995E-7},{"$f":"WINEP_Schemes!H116","v":0},{"$f":"WINEP_Schemes!J116","v":0},{"$f":"WINEP_Schemes!I116","v":778365},{"$f":"WINEP_Schemes!K116","v":0},{"$f":"WINEP_Schemes!L116","v":1},{"$f":"WINEP_Schemes!M116","v":"WWN"},{"$f":"WINEP_Schemes!N116","v":0},0,0,0,0,0,0,0,0]
[null,null,{"$f":"WINEP_Schemes!C117","v":"YOR00984"},{"$f":"WINEP_Schemes!D117","v":"7YW200928"},{"$f":"WINEP_Schemes!E117","v":"HARROGATE SOUTH/STW"},{"$f":"WINEP_Schemes!F117","v":"£ per km LORI"},{"$f":"WINEP_Schemes!G117","v":9.9999999999999995E-7},{"$f":"WINEP_Schemes!H117","v":0},{"$f":"WINEP_Schemes!J117","v":0},{"$f":"WINEP_Schemes!I117","v":778365},{"$f":"WINEP_Schemes!K117","v":0},{"$f":"WINEP_Schemes!L117","v":1},{"$f":"WINEP_Schemes!M117","v":"WWN"},{"$f":"WINEP_Schemes!N117","v":0},0,0,0,0,0,0,0,0]
[null,null,{"$f":"WINEP_Schemes!C118","v":"YOR00985"},{"$f":"WINEP_Schemes!D118","v":"7YW200929"},{"$f":"WINEP_Schemes!E118","v":"HORBURY (DUDFLEET) STW"},{"$f":"WINEP_Schemes!F118","v":"£ per km LORI"},{"$f":"WINEP_Schemes!G118","v":9.9999999999999995E-7},{"$f":"WINEP_Schemes!H118","v":0},{"$f":"WINEP_Schemes!J118","v":0},{"$f":"WINEP_Schemes!I118","v":778365},{"$f":"WINEP_Schemes!K118","v":0},{"$f":"WINEP_Schemes!L118","v":1},{"$f":"WINEP_Schemes!M118","v":"WWN"},{"$f":"WINEP_Schemes!N118","v":0},0,0,0,0,0,0,0,0]
[null,null,{"$f":"WINEP_Schemes!C119","v":"YOR00986"},{"$f":"WINEP_Schemes!D119","v":"7YW200930"},{"$f":"WINEP_Schemes!E119","v":"HUDDERSFIELD STW Cooper Bridge"},{"$f":"WINEP_Schemes!F119","v":"£ per km LORI"},{"$f":"WINEP_Schemes!G119","v":9.9999999999999995E-7},{"$f":"WINEP_Schemes!H119","v":0},{"$f":"WINEP_Schemes!J119","v":0},{"$f":"WINEP_Schemes!I119","v":778365},{"$f":"WINEP_Schemes!K119","v":0},{"$f":"WINEP_Schemes!L119","v":1},{"$f":"WINEP_Schemes!M119","v":"WWN"},{"$f":"WINEP_Schemes!N119","v":0},0,0,0,0,0,0,0,0]
[null,null,{"$f":"WINEP_Schemes!C120","v":"YOR00987"},{"$f":"WINEP_Schemes!D120","v":"7YW200931"},{"$f":"WINEP_Schemes!E120","v":"KNOSTROP WWTW"},{"$f":"WINEP_Schemes!F120","v":"£ per km LORI"},{"$f":"WINEP_Schemes!G120","v":9.9999999999999995E-7},{"$f":"WINEP_Schemes!H120","v":0},{"$f":"WINEP_Schemes!J120","v":0},{"$f":"WINEP_Schemes!I120","v":778365},{"$f":"WINEP_Schemes!K120","v":0},{"$f":"WINEP_Schemes!L120","v":1},{"$f":"WINEP_Schemes!M120","v":"WWN"},{"$f":"WINEP_Schemes!N120","v":0},0,0,0,0,0,0,0,0]
[null,null,{"$f":"WINEP_Schemes!C121","v":"YOR00988"},{"$f":"WINEP_Schemes!D121","v":"7YW200932"},{"$f":"WINEP_Schemes!E121","v":"LEMONROYD STW"},{"$f":"WINEP_Schemes!F121","v":"£ per km LORI"},{"$f":"WINEP_Schemes!G121","v":9.9999999999999995E-7},{"$f":"WINEP_Schemes!H121","v":0},{"$f":"WINEP_Schemes!J121","v":0},{"$f":"WINEP_Schemes!I121","v":778365},{"$f":"WINEP_Schemes!K121","v":0},{"$f":"WINEP_Schemes!L121","v":1},{"$f":"WINEP_Schemes!M121","v":"WWN"},{"$f":"WINEP_Schemes!N121","v":0},0,0,0,0,0,0,0,0]
[null,null,{"$f":"WINEP_Schemes!C122","v":"YOR00989"},{"$f":"WINEP_Schemes!D122","v":"7YW200933"},{"$f":"WINEP_Schemes!E122","v":"LONG LANE/STW"},{"$f":"WINEP_Schemes!F122","v":"£ per km LORI"},{"$f":"WINEP_Schemes!G122","v":9.9999999999999995E-7},{"$f":"WINEP_Schemes!H122","v":0},{"$f":"WINEP_Schemes!J122","v":0},{"$f":"WINEP_Schemes!I122","v":778365},{"$f":"WINEP_Schemes!K122","v":0},{"$f":"WINEP_Schemes!L122","v":1},{"$f":"WINEP_Schemes!M122","v":"WWN"},{"$f":"WINEP_Schemes!N122","v":0},0,0,0,0,0,0,0,0]
[null,null,{"$f":"WINEP_Schemes!C123","v":"YOR00990"},{"$f":"WINEP_Schemes!D123","v":"7YW200934"},{"$f":"WINEP_Schemes!E123","v":"LUNDWOOD STW"},{"$f":"WINEP_Schemes!F123","v":"£ per km LORI"},{"$f":"WINEP_Schemes!G123","v":9.9999999999999995E-7},{"$f":"WINEP_Schemes!H123","v":0},{"$f":"WINEP_Schemes!J123","v":2.0150000000000006},{"$f":"WINEP_Schemes!I123","v":502014},{"$f":"WINEP_Schemes!K123","v":2.0150000000000006},{"$f":"WINEP_Schemes!L123","v":1},{"$f":"WINEP_Schemes!M123","v":"WWN"},{"$f":"WINEP_Schemes!N123","v":1},1.0115582100000002,1.0115582100000002,0,0,0,0,0,0]
[null,null,{"$f":"WINEP_Schemes!C124","v":"YOR00991"},{"$f":"WINEP_Schemes!D124","v":"7YW200935"},{"$f":"WINEP_Schemes!E124","v":"NORMANTON/STW (Mill Lane)"},{"$f":"WINEP_Schemes!F124","v":"£ per km LORI"},{"$f":"WINEP_Schemes!G124","v":9.9999999999999995E-7},{"$f":"WINEP_Schemes!H124","v":0},{"$f":"WINEP_Schemes!J124","v":0},{"$f":"WINEP_Schemes!I124","v":778365},{"$f":"WINEP_Schemes!K124","v":0},{"$f":"WINEP_Schemes!L124","v":1},{"$f":"WINEP_Schemes!M124","v":"WWN"},{"$f":"WINEP_Schemes!N124","v":0},0,0,0,0,0,0,0,0]
[null,null,{"$f":"WINEP_Schemes!C125","v":"YOR00992"},{"$f":"WINEP_Schemes!D125","v":"7YW200936"},{"$f":"WINEP_Schemes!E125","v":"Norton (Askern) WwTW"},{"$f":"WINEP_Schemes!F125","v":"£ per km LORI"},{"$f":"WINEP_Schemes!G125","v":9.9999999999999995E-7},{"$f":"WINEP_Schemes!H125","v":0},{"$f":"WINEP_Schemes!J125","v":0},{"$f":"WINEP_Schemes!I125","v":778365},{"$f":"WINEP_Schemes!K125","v":0},{"$f":"WINEP_Schemes!L125","v":1},{"$f":"WINEP_Schemes!M125","v":"WWN"},{"$f":"WINEP_Schemes!N125","v":0},0,0,0,0,0,0,0,0]
[null,null,{"$f":"WINEP_Schemes!C126","v":"YOR00993"},{"$f":"WINEP_Schemes!D126","v":"7YW200937"},{"$f":"WINEP_Schemes!E126","v":"Old Whittington (Chesterfield) STW"},{"$f":"WINEP_Schemes!F126","v":"£ per km LORI"},{"$f":"WINEP_Schemes!G126","v":9.9999999999999995E-7},{"$f":"WINEP_Schemes!H126","v":0},{"$f":"WINEP_Schemes!J126","v":0},{"$f":"WINEP_Schemes!I126","v":778365},{"$f":"WINEP_Schemes!K126","v":0},{"$f":"WINEP_Schemes!L126","v":1},{"$f":"WINEP_Schemes!M126","v":"WWN"},{"$f":"WINEP_Schemes!N126","v":0},0,0,0,0,0,0,0,0]
[null,null,{"$f":"WINEP_Schemes!C127","v":"YOR00994"},{"$f":"WINEP_Schemes!D127","v":"7YW200938"},{"$f":"WINEP_Schemes!E127","v":"SANDALL/STW"},{"$f":"WINEP_Schemes!F127","v":"£ per km LORI"},{"$f":"WINEP_Schemes!G127","v":9.9999999999999995E-7},{"$f":"WINEP_Schemes!H127","v":0},{"$f":"WINEP_Schemes!J127","v":14.064000000000007},{"$f":"WINEP_Schemes!I127","v":502014},{"$f":"WINEP_Schemes!K127","v":14.064000000000007},{"$f":"WINEP_Schemes!L127","v":1},{"$f":"WINEP_Schemes!M127","v":"WWN"},{"$f":"WINEP_Schemes!N127","v":1},7.0603248960000027,7.0603248960000027,0,0,0,0,0,0]
[null,null,{"$f":"WINEP_Schemes!C128","v":"YOR00995"},{"$f":"WINEP_Schemes!D128","v":"7YW200939"},{"$f":"WINEP_Schemes!E128","v":"SHERBURN IN ELMET/STW"},{"$f":"WINEP_Schemes!F128","v":"£ per km LORI"},{"$f":"WINEP_Schemes!G128","v":9.9999999999999995E-7},{"$f":"WINEP_Schemes!H128","v":0},{"$f":"WINEP_Schemes!J128","v":0},{"$f":"WINEP_Schemes!I128","v":778365},{"$f":"WINEP_Schemes!K128","v":0},{"$f":"WINEP_Schemes!L128","v":1},{"$f":"WINEP_Schemes!M128","v":"WWN"},{"$f":"WINEP_Schemes!N128","v":0},0,0,0,0,0,0,0,0]
[null,null,{"$f":"WINEP_Schemes!C129","v":"YOR00996"},{"$f":"WINEP_Schemes!D129","v":"7YW200940"},{"$f":"WINEP_Schemes!E129","v":"SNAITH/STW"},{"$f":"WINEP_Schemes!F129","v":"£ per km LORI"},{"$f":"WINEP_Schemes!G129","v":9.9999999999999995E-7},{"$f":"WINEP_Schemes!H129","v":0},{"$f":"WINEP_Schemes!J129","v":15.47499999999998},{"$f":"WINEP_Schemes!I129","v":502014},{"$f":"WINEP_Schemes!K129","v":15.47499999999998},{"$f":"WINEP_Schemes!L129","v":1},{"$f":"WINEP_Schemes!M129","v":"WWN"},{"$f":"WINEP_Schemes!N129","v":1},7.7686666499999895,7.7686666499999895,0,{"$f":" IF($M130 = R$9, $Q130, 0)","v":0},0,0,0,0]
[null,null,{"$f":"WINEP_Schemes!C130","v":"YOR00997"},{"$f":"WINEP_Schemes!D130","v":"7YW200941"},{"$f":"WINEP_Schemes!E130","v":"SOUTH ELMSALL/STW"},{"$f":"WINEP_Schemes!F130","v":"£ per km LORI"},{"$f":"WINEP_Schemes!G130","v":9.9999999999999995E-7},{"$f":"WINEP_Schemes!H130","v":0},{"$f":"WINEP_Schemes!J130","v":0},{"$f":"WINEP_Schemes!I130","v":778365},{"$f":"WINEP_Schemes!K130","v":0},{"$f":"WINEP_Schemes!L130","v":1},{"$f":"WINEP_Schemes!M130","v":"WWN"},{"$f":"WINEP_Schemes!N130","v":0},0,0,0,0,0,0,0,0]
[null,null,{"$f":"WINEP_Schemes!C131","v":"YOR00998"},{"$f":"WINEP_Schemes!D131","v":"7YW200942"},{"$f":"WINEP_Schemes!E131","v":"Stanley (Smalley Bight) STW"},{"$f":"WINEP_Schemes!F131","v":"£ per km LORI"},{"$f":"WINEP_Schemes!G131","v":9.9999999999999995E-7},{"$f":"WINEP_Schemes!H131","v":0},{"$f":"WINEP_Schemes!J131","v":0},{"$f":"WINEP_Schemes!I131","v":778365},{"$f":"WINEP_Schemes!K131","v":0},{"$f":"WINEP_Schemes!L131","v":1},{"$f":"WINEP_Schemes!M131","v":"WWN"},{"$f":"WINEP_Schemes!N131","v":0},0,0,0,0,0,0,0,0]
[null,null,{"$f":"WINEP_Schemes!C132","v":"YOR00999"},{"$f":"WINEP_Schemes!D132","v":"7YW200943"},{"$f":"WINEP_Schemes!E132","v":"STAVELEY/STW"},{"$f":"WINEP_Schemes!F132","v":"£ per km LORI"},{"$f":"WINEP_Schemes!G132","v":9.9999999999999995E-7},{"$f":"WINEP_Schemes!H132","v":0},{"$f":"WINEP_Schemes!J132","v":0},{"$f":"WINEP_Schemes!I132","v":778365},{"$f":"WINEP_Schemes!K132","v":0},{"$f":"WINEP_Schemes!L132","v":1},{"$f":"WINEP_Schemes!M132","v":"WWN"},{"$f":"WINEP_Schemes!N132","v":0},0,0,0,0,0,0,0,0]
[null,null,{"$f":"WINEP_Schemes!C133","v":"YOR01000"},{"$f":"WINEP_Schemes!D133","v":"7YW200944"},{"$f":"WINEP_Schemes!E133","v":"STOCKSBRIDGE/STW"},{"$f":"WINEP_Schemes!F133","v":"£ per km LORI"},{"$f":"WINEP_Schemes!G133","v":9.9999999999999995E-7},{"$f":"WINEP_Schemes!H133","v":0},{"$f":"WINEP_Schemes!J133","v":0},{"$f":"WINEP_Schemes!I133","v":778365},{"$f":"WINEP_Schemes!K133","v":0},{"$f":"WINEP_Schemes!L133","v":1},{"$f":"WINEP_Schemes!M133","v":"WWN"},{"$f":"WINEP_Schemes!N133","v":0},0,0,0,0,0,0,0,0]
[null,null,{"$f":"WINEP_Schemes!C134","v":"YOR01001"},{"$f":"WINEP_Schemes!D134","v":"7YW200945"},{"$f":"WINEP_Schemes!E134","v":"SUTTON WWTW"},{"$f":"WINEP_Schemes!F134","v":"£ per km LORI"},{"$f":"WINEP_Schemes!G134","v":9.9999999999999995E-7},{"$f":"WINEP_Schemes!H134","v":0},{"$f":"WINEP_Schemes!J134","v":0},{"$f":"WINEP_Schemes!I134","v":778365},{"$f":"WINEP_Schemes!K134","v":0},{"$f":"WINEP_Schemes!L134","v":1},{"$f":"WINEP_Schemes!M134","v":"WWN"},{"$f":"WINEP_Schemes!N134","v":0},0,0,0,0,0,0,0,0]
[null,null,{"$f":"WINEP_Schemes!C135","v":"YOR01002"},{"$f":"WINEP_Schemes!D135","v":"7YW200946"},{"$f":"WINEP_Schemes!E135","v":"TUPTON/STW"},{"$f":"WINEP_Schemes!F135","v":"£ per km LORI"},{"$f":"WINEP_Schemes!G135","v":9.9999999999999995E-7},{"$f":"WINEP_Schemes!H135","v":0},{"$f":"WINEP_Schemes!J135","v":0},{"$f":"WINEP_Schemes!I135","v":778365},{"$f":"WINEP_Schemes!K135","v":0},{"$f":"WINEP_Schemes!L135","v":1},{"$f":"WINEP_Schemes!M135","v":"WWN"},{"$f":"WINEP_Schemes!N135","v":0},0,0,0,0,0,0,0,0]
[null,null,{"$f":"WINEP_Schemes!C136","v":"YOR01003"},{"$f":"WINEP_Schemes!D136","v":"7YW200947"},{"$f":"WINEP_Schemes!E136","v":"WOMBWELL/STW"},{"$f":"WINEP_Schemes!F136","v":"£ per km LORI"},{"$f":"WINEP_Schemes!G136","v":9.9999999999999995E-7},{"$f":"WINEP_Schemes!H136","v":0},{"$f":"WINEP_Schemes!J136","v":5.1970000000000045},{"$f":"WINEP_Schemes!I136","v":502014},{"$f":"WINEP_Schemes!K136","v":5.1970000000000045},{"$f":"WINEP_Schemes!L136","v":1},{"$f":"WINEP_Schemes!M136","v":"WWN"},{"$f":"WINEP_Schemes!N136","v":1},2.608966758000002,2.608966758000002,0,0,0,0,0,0]
[null,null,{"$f":"WINEP_Schemes!C137","v":"YOR01004"},{"$f":"WINEP_Schemes!D137","v":"7YW200948"},{"$f":"WINEP_Schemes!E137","v":"Woodhouse Mill WwTW"},{"$f":"WINEP_Schemes!F137","v":"£ per km LORI"},{"$f":"WINEP_Schemes!G137","v":9.9999999999999995E-7},{"$f":"WINEP_Schemes!H137","v":0},{"$f":"WINEP_Schemes!J137","v":0},{"$f":"WINEP_Schemes!I137","v":778365},{"$f":"WINEP_Schemes!K137","v":0},{"$f":"WINEP_Schemes!L137","v":1},{"$f":"WINEP_Schemes!M137","v":"WWN"},{"$f":"WINEP_Schemes!N137","v":0},0,0,0,0,0,0,0,0]
[null,null,{"$f":"WINEP_Schemes!C138","v":"YOR01005"},{"$f":"WINEP_Schemes!D138","v":"7YW200949"},{"$f":"WINEP_Schemes!E138","v":"WORSBROUGH WwTW"},{"$f":"WINEP_Schemes!F138","v":"£ per km LORI"},{"$f":"WINEP_Schemes!G138","v":9.9999999999999995E-7},{"$f":"WINEP_Schemes!H138","v":0},{"$f":"WINEP_Schemes!J138","v":5.7629999999999999},{"$f":"WINEP_Schemes!I138","v":502014},{"$f":"WINEP_Schemes!K138","v":5.7629999999999999},{"$f":"WINEP_Schemes!L138","v":1},{"$f":"WINEP_Schemes!M138","v":"WWN"},{"$f":"WINEP_Schemes!N138","v":1},2.893106682,2.893106682,0,0,0,0,0,0]
[null,null,{"$f":"WINEP_Schemes!C139","v":"YOR01006"},{"$f":"WINEP_Schemes!D139","v":"7YW200950"},{"$f":"WINEP_Schemes!E139","v":"HIGH ROYD NO 2 STW"},{"$f":"WINEP_Schemes!F139","v":"£ per km LORI"},{"$f":"WINEP_Schemes!G139","v":9.9999999999999995E-7},{"$f":"WINEP_Schemes!H139","v":0},{"$f":"WINEP_Schemes!J139","v":0},{"$f":"WINEP_Schemes!I139","v":778365},{"$f":"WINEP_Schemes!K139","v":0},{"$f":"WINEP_Schemes!L139","v":1},{"$f":"WINEP_Schemes!M139","v":"WWN"},{"$f":"WINEP_Schemes!N139","v":0},0,0,0,0,0,0,0,0]
[null,null,{"$f":"WINEP_Schemes!C140","v":"YOR01007"},{"$f":"WINEP_Schemes!D140","v":"7YW200951"},{"$f":"WINEP_Schemes!E140","v":"EASTWOOD/STW"},{"$f":"WINEP_Schemes!F140","v":"£ per km LORI"},{"$f":"WINEP_Schemes!G140","v":9.9999999999999995E-7},{"$f":"WINEP_Schemes!H140","v":0},{"$f":"WINEP_Schemes!J140","v":0},{"$f":"WINEP_Schemes!I140","v":778365},{"$f":"WINEP_Schemes!K140","v":0},{"$f":"WINEP_Schemes!L140","v":1},{"$f":"WINEP_Schemes!M140","v":"WWN"},{"$f":"WINEP_Schemes!N140","v":0},0,0,0,0,0,0,0,0]
[null,null,{"$f":"WINEP_Schemes!C141","v":"YOR01008"},{"$f":"WINEP_Schemes!D141","v":"7YW200952"},{"$f":"WINEP_Schemes!E141","v":"HALIFAX COPLEY STW"},{"$f":"WINEP_Schemes!F141","v":"£ per km LORI"},{"$f":"WINEP_Schemes!G141","v":9.9999999999999995E-7},{"$f":"WINEP_Schemes!H141","v":0},{"$f":"WINEP_Schemes!J141","v":0},{"$f":"WINEP_Schemes!I141","v":778365},{"$f":"WINEP_Schemes!K141","v":0},{"$f":"WINEP_Schemes!L141","v":1},{"$f":"WINEP_Schemes!M141","v":"WWN"},{"$f":"WINEP_Schemes!N141","v":0},0,0,0,0,0,0,0,0]
[null,null,{"$f":"WINEP_Schemes!C142","v":"YOR01009"},{"$f":"WINEP_Schemes!D142","v":"7YW200953"},{"$f":"WINEP_Schemes!E142","v":"NEILEY NO 2 STW"},{"$f":"WINEP_Schemes!F142","v":"£ per km LORI"},{"$f":"WINEP_Schemes!G142","v":9.9999999999999995E-7},{"$f":"WINEP_Schemes!H142","v":0},{"$f":"WINEP_Schemes!J142","v":0},{"$f":"WINEP_Schemes!I142","v":778365},{"$f":"WINEP_Schemes!K142","v":0},{"$f":"WINEP_Schemes!L142","v":1},{"$f":"WINEP_Schemes!M142","v":"WWN"},{"$f":"WINEP_Schemes!N142","v":0},0,0,0,0,0,0,0,0]
[null,null,{"$f":"WINEP_Schemes!C143","v":"YOR01010"},{"$f":"WINEP_Schemes!D143","v":"7YW200954"},{"$f":"WINEP_Schemes!E143","v":"Huddersfield STW Colne Bridge"},{"$f":"WINEP_Schemes!F143","v":"£ per km LORI"},{"$f":"WINEP_Schemes!G143","v":9.9999999999999995E-7},{"$f":"WINEP_Schemes!H143","v":0},{"$f":"WINEP_Schemes!J143","v":0},{"$f":"WINEP_Schemes!I143","v":502014},{"$f":"WINEP_Schemes!K143","v":0},{"$f":"WINEP_Schemes!L143","v":1},{"$f":"WINEP_Schemes!M143","v":"WWN"},{"$f":"WINEP_Schemes!N143","v":0},0,0,0,0,0,0,0,0]
[null,null,{"$f":"WINEP_Schemes!C144","v":"YOR01011"},{"$f":"WINEP_Schemes!D144","v":"7YW200955"},{"$f":"WINEP_Schemes!E144","v":"KEIGHLEY MARLEY/STW"},{"$f":"WINEP_Schemes!F144","v":"£ per km LORI"},{"$f":"WINEP_Schemes!G144","v":9.9999999999999995E-7},{"$f":"WINEP_Schemes!H144","v":0},{"$f":"WINEP_Schemes!J144","v":0},{"$f":"WINEP_Schemes!I144","v":778365},{"$f":"WINEP_Schemes!K144","v":0},{"$f":"WINEP_Schemes!L144","v":1},{"$f":"WINEP_Schemes!M144","v":"WWN"},{"$f":"WINEP_Schemes!N144","v":0},{"$f":" I145 * J145 * G145","v":0},{"$f":" N145 * O145","v":0},{"$f":" IF(L145 = 0, P145, (N145 - 1) * O145)","v":0},0,0,0,0,0]
[null,null,{"$f":"WINEP_Schemes!C145","v":"YOR01012"},{"$f":"WINEP_Schemes!D145","v":"7YW200956"},{"$f":"WINEP_Schemes!E145","v":"Wath-Upon-Dearne STW"},{"$f":"WINEP_Schemes!F145","v":"£ per km LORI"},{"$f":"WINEP_Schemes!G145","v":9.9999999999999995E-7},{"$f":"WINEP_Schemes!H145","v":0},{"$f":"WINEP_Schemes!J145","v":1.3049999999999997},{"$f":"WINEP_Schemes!I145","v":502014},{"$f":"WINEP_Schemes!K145","v":1.3049999999999997},{"$f":"WINEP_Schemes!L145","v":1},{"$f":"WINEP_Schemes!M145","v":"WWN"},{"$f":"WINEP_Schemes!N145","v":1},0.65512826999999985,0.65512826999999985,0,0,0,0,0,0]
[null,null,{"$f":"WINEP_Schemes!C146","v":"YOR01013"},{"$f":"WINEP_Schemes!D146","v":"7YW200957"},{"$f":"WINEP_Schemes!E146","v":"MEXBORO SWINTON/STW"},{"$f":"WINEP_Schemes!F146","v":"£ per km LORI"},{"$f":"WINEP_Schemes!G146","v":9.9999999999999995E-7},{"$f":"WINEP_Schemes!H146","v":0},{"$f":"WINEP_Schemes!J146","v":0},{"$f":"WINEP_Schemes!I146","v":778365},{"$f":"WINEP_Schemes!K146","v":0},{"$f":"WINEP_Schemes!L146","v":1},{"$f":"WINEP_Schemes!M146","v":"WWN"},{"$f":"WINEP_Schemes!N146","v":0},0,0,0,0,0,0,0,0]
[null,null,{"$f":"WINEP_Schemes!C147","v":"YOR01014"},{"$f":"WINEP_Schemes!D147","v":"7YW200958"},{"$f":"WINEP_Schemes!E147","v":"THORNE/STW"},{"$f":"WINEP_Schemes!F147","v":"£ per km LORI"},{"$f":"WINEP_Schemes!G147","v":9.9999999999999995E-7},{"$f":"WINEP_Schemes!H147","v":0},{"$f":"WINEP_Schemes!J147","v":10.300999999999988},{"$f":"WINEP_Schemes!I147","v":502014},{"$f":"WINEP_Schemes!K147","v":10.300999999999988},{"$f":"WINEP_Schemes!L147","v":1},{"$f":"WINEP_Schemes!M147","v":"WWN"},{"$f":"WINEP_Schemes!N147","v":1},5.1712462139999937,5.1712462139999937,0,0,0,0,0,0]
[null,null,{"$f":"WINEP_Schemes!C148","v":"YOR01518"},{"$f":"WINEP_Schemes!D148","v":"7YW201465"},{"$f":"WINEP_Schemes!E148","v":"SKIPTON/STW"},{"$f":"WINEP_Schemes!F148","v":"£ per km LORI"},{"$f":"WINEP_Schemes!G148","v":9.9999999999999995E-7},{"$f":"WINEP_Schemes!H148","v":0},{"$f":"WINEP_Schemes!J148","v":0},{"$f":"WINEP_Schemes!I148","v":502014},{"$f":"WINEP_Schemes!K148","v":0},{"$f":"WINEP_Schemes!L148","v":0},{"$f":"WINEP_Schemes!M148","v":"WWN"},{"$f":"WINEP_Schemes!N148","v":0},0,0,0,0,0,0,0,0]
[null,null,{"$f":"WINEP_Schemes!C149","v":"YOR00691"},{"$f":"WINEP_Schemes!D149","v":"7YW300057"},{"$f":"WINEP_Schemes!E149","v":"SOUTH ELMSALL/STW 3X"},{"$f":"WINEP_Schemes!F149","v":"£ per m3"},{"$f":"WINEP_Schemes!G149","v":9.9999999999999995E-7},{"$f":"WINEP_Schemes!H149","v":0},{"$f":"WINEP_Schemes!J149","v":5340},{"$f":"WINEP_Schemes!I149","v":590},{"$f":"WINEP_Schemes!K149","v":5340},{"$f":"WINEP_Schemes!L149","v":1},{"$f":"WINEP_Schemes!M149","v":"WWN"},{"$f":"WINEP_Schemes!N149","v":1},3.1505999999999998,3.1505999999999998,0,0,0,0,0,0]
[null,null,{"$f":"WINEP_Schemes!C150","v":"YOR00697"},{"$f":"WINEP_Schemes!D150","v":"7YW300058"},{"$f":"WINEP_Schemes!E150","v":"Pudsey intermittents - Smalewell Reach 1"},{"$f":"WINEP_Schemes!F150","v":"£ per km LORI"},{"$f":"WINEP_Schemes!G150","v":9.9999999999999995E-7},{"$f":"WINEP_Schemes!H150","v":0},{"$f":"WINEP_Schemes!J150","v":0},{"$f":"WINEP_Schemes!I150","v":590},{"$f":"WINEP_Schemes!K150","v":0},{"$f":"WINEP_Schemes!L150","v":0},{"$f":"WINEP_Schemes!M150","v":"WWN"},{"$f":"WINEP_Schemes!N150","v":0},0,0,0,0,0,0,0,0]
[null,null,{"$f":"WINEP_Schemes!C151","v":"YOR01524"},{"$f":"WINEP_Schemes!D151","v":"7YW300059"},{"$f":"WINEP_Schemes!E151","v":"Bentley Mill Stream intermittents - BentleyMill Rise SPS"},{"$f":"WINEP_Schemes!F151","v":"£ per km LORI"},{"$f":"WINEP_Schemes!G151","v":9.9999999999999995E-7},{"$f":"WINEP_Schemes!H151","v":0},{"$f":"WINEP_Schemes!J151","v":0.39},{"$f":"WINEP_Schemes!I151","v":2933301},{"$f":"WINEP_Schemes!K151","v":"-"},{"$f":"WINEP_Schemes!L151","v":1},{"$f":"WINEP_Schemes!M151","v":"WWN"},{"$f":"WINEP_Schemes!N151","v":0},1.1439873900000002,0,-1.1439873900000002,0,0,-1.1439873900000002,0,0]
[null,null,{"$f":"WINEP_Schemes!C152","v":"YOR01525"},{"$f":"WINEP_Schemes!D152","v":"7YW300060"},{"$f":"WINEP_Schemes!E152","v":"West Bretton storm tank discharge Transfer to NGR 429884,412035"},{"$f":"WINEP_Schemes!F152","v":"£ per km LORI"},{"$f":"WINEP_Schemes!G152","v":9.9999999999999995E-7},{"$f":"WINEP_Schemes!H152","v":0},{"$f":"WINEP_Schemes!J152","v":0},{"$f":"WINEP_Schemes!I152","v":2933301},{"$f":"WINEP_Schemes!K152","v":0},{"$f":"WINEP_Schemes!L152","v":1},{"$f":"WINEP_Schemes!M152","v":"WWN"},{"$f":"WINEP_Schemes!N152","v":0},0,0,0,0,0,0,0,0]
[null,null,{"$f":"WINEP_Schemes!C153","v":"YOR01526"},{"$f":"WINEP_Schemes!D153","v":"7YW300061"},{"$f":"WINEP_Schemes!E153","v":"CLAYTON WEST/STW Final Effluent Transfer to NGR 429884,412035"},{"$f":"WINEP_Schemes!F153","v":"£ per km LORI"},{"$f":"WINEP_Schemes!G153","v":9.9999999999999995E-7},{"$f":"WINEP_Schemes!H153","v":0},{"$f":"WINEP_Schemes!J153","v":5.76},{"$f":"WINEP_Schemes!I153","v":2933301},{"$f":"WINEP_Schemes!K153","v":5.76},{"$f":"WINEP_Schemes!L153","v":1},{"$f":"WINEP_Schemes!M153","v":"WWN"},{"$f":"WINEP_Schemes!N153","v":1},16.895813759999996,16.895813759999996,0,0,0,0,0,0]
[null,null,{"$f":"WINEP_Schemes!C154","v":"YOR01527"},{"$f":"WINEP_Schemes!D154","v":"7YW300062"},{"$f":"WINEP_Schemes!E154","v":"West Bretton Final Effluent Transfer to NGR 429884,412035"},{"$f":"WINEP_Schemes!F154","v":"£ per km LORI"},{"$f":"WINEP_Schemes!G154","v":9.9999999999999995E-7},{"$f":"WINEP_Schemes!H154","v":0},{"$f":"WINEP_Schemes!J154","v":0.75},{"$f":"WINEP_Schemes!I154","v":2933301},{"$f":"WINEP_Schemes!K154","v":0},{"$f":"WINEP_Schemes!L154","v":1},{"$f":"WINEP_Schemes!M154","v":"WWN"},{"$f":"WINEP_Schemes!N154","v":0},2.1999757500000001,0,-2.1999757500000001,0,0,-2.1999757500000001,0,0]
[null,null,{"$f":"WINEP_Schemes!C155","v":"YOR01531"},{"$f":"WINEP_Schemes!D155","v":"7YW300066"},{"$f":"WINEP_Schemes!E155","v":"Pudsey intermittents - Dick Lane"},{"$f":"WINEP_Schemes!F155","v":"£ per m3"},{"$f":"WINEP_Schemes!G155","v":9.9999999999999995E-7},{"$f":"WINEP_Schemes!H155","v":0},{"$f":"WINEP_Schemes!J155","v":3000},{"$f":"WINEP_Schemes!I155","v":590},{"$f":"WINEP_Schemes!K155","v":3000},{"$f":"WINEP_Schemes!L155","v":1},{"$f":"WINEP_Schemes!M155","v":"WWN"},{"$f":"WINEP_Schemes!N155","v":1},1.77,1.77,0,0,0,0,0,0]
[null,null,{"$f":"WINEP_Schemes!C156","v":"YOR01532"},{"$f":"WINEP_Schemes!D156","v":"7YW300067"},{"$f":"WINEP_Schemes!E156","v":"Pudsey intermittents - Dale Farm"},{"$f":"WINEP_Schemes!F156","v":"£ per m3"},{"$f":"WINEP_Schemes!G156","v":9.9999999999999995E-7},{"$f":"WINEP_Schemes!H156","v":0},{"$f":"WINEP_Schemes!J156","v":250},{"$f":"WINEP_Schemes!I156","v":590},{"$f":"WINEP_Schemes!K156","v":250},{"$f":"WINEP_Schemes!L156","v":1},{"$f":"WINEP_Schemes!M156","v":"WWN"},{"$f":"WINEP_Schemes!N156","v":1},0.14749999999999999,0.14749999999999999,0,0,0,0,0,0]
[null,null,{"$f":"WINEP_Schemes!C157","v":"YOR01533"},{"$f":"WINEP_Schemes!D157","v":"7YW300068"},{"$f":"WINEP_Schemes!E157","v":"Pudsey intermittents - Hough Side Works"},{"$f":"WINEP_Schemes!F157","v":"£ per m3"},{"$f":"WINEP_Schemes!G157","v":9.9999999999999995E-7},{"$f":"WINEP_Schemes!H157","v":0},{"$f":"WINEP_Schemes!J157","v":25000},{"$f":"WINEP_Schemes!I157","v":590},{"$f":"WINEP_Schemes!K157","v":0},{"$f":"WINEP_Schemes!L157","v":1},{"$f":"WINEP_Schemes!M157","v":"WWN"},{"$f":"WINEP_Schemes!N157","v":0},14.75,0,-14.75,0,0,-14.75,0,0]
[null,null,{"$f":"WINEP_Schemes!C158","v":"YOR01534"},{"$f":"WINEP_Schemes!D158","v":"7YW300069"},{"$f":"WINEP_Schemes!E158","v":"Pudsey intermittents - Gaint Road (Kent Road)"},{"$f":"WINEP_Schemes!F158","v":"£ per m3"},{"$f":"WINEP_Schemes!G158","v":9.9999999999999995E-7},{"$f":"WINEP_Schemes!H158","v":0},{"$f":"WINEP_Schemes!J158","v":2500},{"$f":"WINEP_Schemes!I158","v":590},{"$f":"WINEP_Schemes!K158","v":0},{"$f":"WINEP_Schemes!L158","v":1},{"$f":"WINEP_Schemes!M158","v":"WWN"},{"$f":"WINEP_Schemes!N158","v":0},1.4749999999999999,0,-1.4749999999999999,0,0,-1.4749999999999999,0,0]
[null,null,{"$f":"WINEP_Schemes!C159","v":"YOR01535"},{"$f":"WINEP_Schemes!D159","v":"7YW300070"},{"$f":"WINEP_Schemes!E159","v":"Pudsey intermittents - Smalewell Reach 1"},{"$f":"WINEP_Schemes!F159","v":"£ per m3"},{"$f":"WINEP_Schemes!G159","v":9.9999999999999995E-7},{"$f":"WINEP_Schemes!H159","v":0},{"$f":"WINEP_Schemes!J159","v":7500},{"$f":"WINEP_Schemes!I159","v":590},{"$f":"WINEP_Schemes!K159","v":0},{"$f":"WINEP_Schemes!L159","v":1},{"$f":"WINEP_Schemes!M159","v":"WWN"},{"$f":"WINEP_Schemes!N159","v":0},4.4249999999999998,0,-4.4249999999999998,0,0,-4.4249999999999998,0,0]
[null,null,{"$f":"WINEP_Schemes!C160","v":"YOR01549"},{"$f":"WINEP_Schemes!D160","v":"7YW300636"},{"$f":"WINEP_Schemes!E160","v":"BENTLEY/STW storm discharge transfer to NGR 458119 405197"},{"$f":"WINEP_Schemes!F160","v":"£ per km LORI"},{"$f":"WINEP_Schemes!G160","v":9.9999999999999995E-7},{"$f":"WINEP_Schemes!H160","v":0},{"$f":"WINEP_Schemes!J160","v":0},{"$f":"WINEP_Schemes!I160","v":2933301},{"$f":"WINEP_Schemes!K160","v":0},{"$f":"WINEP_Schemes!L160","v":1},{"$f":"WINEP_Schemes!M160","v":"WWN"},{"$f":"WINEP_Schemes!N160","v":0},0,0,0,0,0,0,0,0]
[null,null,{"$f":"WINEP_Schemes!C161","v":0},{"$f":"WINEP_Schemes!D161","v":0},{"$f":"WINEP_Schemes!E161","v":0},{"$f":"WINEP_Schemes!F161","v":0},{"$f":"WINEP_Schemes!G161","v":0},{"$f":"WINEP_Schemes!H161","v":0},{"$f":"WINEP_Schemes!J161","v":0},{"$f":"WINEP_Schemes!I161","v":0},{"$f":"WINEP_Schemes!K161","v":0},{"$f":"WINEP_Schemes!L161","v":" "},{"$f":"WINEP_Schemes!M161","v":0},{"$f":"WINEP_Schemes!N161","v":0},0,0,0,0,0,0,0,0]
[null,null,{"$f":"WINEP_Schemes!C162","v":0},{"$f":"WINEP_Schemes!D162","v":0},{"$f":"WINEP_Schemes!E162","v":0},{"$f":"WINEP_Schemes!F162","v":0},{"$f":"WINEP_Schemes!G162","v":0},{"$f":"WINEP_Schemes!H162","v":0},{"$f":"WINEP_Schemes!J162","v":0},{"$f":"WINEP_Schemes!I162","v":0},{"$f":"WINEP_Schemes!K162","v":0},{"$f":"WINEP_Schemes!L162","v":0},{"$f":"WINEP_Schemes!M162","v":0},{"$f":"WINEP_Schemes!N162","v":0},0,0,0,0,0,0,0,0]
[null,null,{"$f":"WINEP_Schemes!C163","v":0},{"$f":"WINEP_Schemes!D163","v":0},{"$f":"WINEP_Schemes!E163","v":0},{"$f":"WINEP_Schemes!F163","v":0},{"$f":"WINEP_Schemes!G163","v":0},{"$f":"WINEP_Schemes!H163","v":0},{"$f":"WINEP_Schemes!J163","v":0},{"$f":"WINEP_Schemes!I163","v":0},{"$f":"WINEP_Schemes!K163","v":0},{"$f":"WINEP_Schemes!L163","v":0},{"$f":"WINEP_Schemes!M163","v":0},{"$f":"WINEP_Schemes!N163","v":0},0,0,0,0,0,0,0,0]
[null,null,{"$f":"WINEP_Schemes!C164","v":0},{"$f":"WINEP_Schemes!D164","v":0},{"$f":"WINEP_Schemes!E164","v":0},{"$f":"WINEP_Schemes!F164","v":0},{"$f":"WINEP_Schemes!G164","v":0},{"$f":"WINEP_Schemes!H164","v":0},{"$f":"WINEP_Schemes!J164","v":0},{"$f":"WINEP_Schemes!I164","v":0},{"$f":"WINEP_Schemes!K164","v":0},{"$f":"WINEP_Schemes!L164","v":0},{"$f":"WINEP_Schemes!M164","v":0},{"$f":"WINEP_Schemes!N164","v":0},0,0,0,0,0,0,0,0]
[null,null,{"$f":"WINEP_Schemes!C165","v":0},{"$f":"WINEP_Schemes!D165","v":0},{"$f":"WINEP_Schemes!E165","v":0},{"$f":"WINEP_Schemes!F165","v":0},{"$f":"WINEP_Schemes!G165","v":0},{"$f":"WINEP_Schemes!H165","v":0},{"$f":"WINEP_Schemes!J165","v":0},{"$f":"WINEP_Schemes!I165","v":0},{"$f":"WINEP_Schemes!K165","v":0},{"$f":"WINEP_Schemes!L165","v":0},{"$f":"WINEP_Schemes!M165","v":0},{"$f":"WINEP_Schemes!N165","v":0},0,0,0,0,0,0,0,0]
[null,null,{"$f":"WINEP_Schemes!C166","v":0},{"$f":"WINEP_Schemes!D166","v":0},{"$f":"WINEP_Schemes!E166","v":0},{"$f":"WINEP_Schemes!F166","v":0},{"$f":"WINEP_Schemes!G166","v":0},{"$f":"WINEP_Schemes!H166","v":0},{"$f":"WINEP_Schemes!J166","v":0},{"$f":"WINEP_Schemes!I166","v":0},{"$f":"WINEP_Schemes!K166","v":0},{"$f":"WINEP_Schemes!L166","v":0},{"$f":"WINEP_Schemes!M166","v":0},{"$f":"WINEP_Schemes!N166","v":0},0,0,0,0,0,0,0,0]
[null,null,{"$f":"WINEP_Schemes!C167","v":0},{"$f":"WINEP_Schemes!D167","v":0},{"$f":"WINEP_Schemes!E167","v":0},{"$f":"WINEP_Schemes!F167","v":0},{"$f":"WINEP_Schemes!G167","v":0},{"$f":"WINEP_Schemes!H167","v":0},{"$f":"WINEP_Schemes!J167","v":0},{"$f":"WINEP_Schemes!I167","v":0},{"$f":"WINEP_Schemes!K167","v":0},{"$f":"WINEP_Schemes!L167","v":0},{"$f":"WINEP_Schemes!M167","v":0},{"$f":"WINEP_Schemes!N167","v":0},0,0,0,0,0,0,0,0]
[null,null,{"$f":"WINEP_Schemes!C168","v":0},{"$f":"WINEP_Schemes!D168","v":0},{"$f":"WINEP_Schemes!E168","v":0},{"$f":"WINEP_Schemes!F168","v":0},{"$f":"WINEP_Schemes!G168","v":0},{"$f":"WINEP_Schemes!H168","v":0},{"$f":"WINEP_Schemes!J168","v":0},{"$f":"WINEP_Schemes!I168","v":0},{"$f":"WINEP_Schemes!K168","v":0},{"$f":"WINEP_Schemes!L168","v":0},{"$f":"WINEP_Schemes!M168","v":0},{"$f":"WINEP_Schemes!N168","v":0},0,0,0,0,0,0,0,0]
[]
["EXPAND OR REDUCE THE BLOCK ABOVE TO INCLUDE ALL SCHEMES ON THE INPUT SHEET"]
[]
[null,null,null,null,null,null,null,null,null,null,null,null,null,null,null,null,{"$f":"SUM(Q11:Q169)","v":-37.268132934},{"$f":"R14+R15+R16+R31+R32","v":-2.3672207499999995},{"$f":"SUM(S11:S169)","v":0},-34.900912183999999,0,0]
[null,"Check the total WINEP reconciliation against the sum of the price control totals"]
[]
[null,null,null,null,"Total WINEP Reconciliation",{"$f":" Q173","v":-37.268132934},"£m"]
[null,null,null,null,"Sum of the WINEP Reconciliation by price control",{"$f":" SUM(R173:V173)","v":-37.268132934},"£m"]
[]
[null,null,null,null,"Price Control Reconciliation vs Total Reconciliation - check",{"$f":" IF( F177 - F176 > Chk_Tol, 1, 0)","v":0},"check"]
[]
[null,"Total WINEP reconciliation for each price control"]
[]
[null,null,null,null,"Total Final Reconciliation, water resources",{"$f":" R173","v":-2.3672207499999995},"£m"]
[null,null,null,null,"Total Final Reconciliation, water network",{"$f":" S173","v":0},"£m"]
[null,null,null,null,"Total Final Reconciliation, wastewater network",{"$f":" T173","v":-34.900912183999999},"£m"]
[null,null,null,null,"Total Final Reconciliation, bioresources",{"$f":" U173","v":0},"£m"]
[null,null,null,null,"Total Final Reconciliation, dummy",{"$f":" V173","v":0},"£m"]
[]
[]
["End of sheet"]

{"sheet":"Outputs >>","index":12,"n_rows":0,"n_cols":0,"rows_kept":0,"cut":false,"hidden":false,"merged":[]}

{"sheet":"Annual_Outputs","index":13,"n_rows":54,"n_cols":16,"rows_kept":54,"cut":false,"hidden":false,"merged":[]}
[{"$f":" RIGHT(CELL(\"filename\", $A$1), LEN(CELL(\"filename\", $A$1)) - SEARCH(\"]\", CELL(\"filename\", $A$1)))","v":"Annual_Outputs"}]
[null,null,null,null,{"$f":"Time!E25","v":"Model period ending"},{"$f":"Check!F2","v":0},"Checks",null,null,{"$f":" Time!J$25","v":"2019-03-31"},{"$f":" Time!K$25","v":"2020-03-31"},{"$f":" Time!L$25","v":"2021-03-31"},{"$f":" Time!M$25","v":"2022-03-31"},{"$f":" Time!N$25","v":"2023-03-31"},{"$f":" Time!O$25","v":"2024-03-31"},{"$f":" Time!P$25","v":"2025-03-31"}]
[null,null,null,null,{"$f":"Time!E107","v":"Timeline label"},{"$f":"Check!F3","v":5},"Track chgs",null,null,{"$f":" Time!J$107","v":"Pre-Fcst"},{"$f":" Time!K$107","v":"Pre-Fcst"},{"$f":" Time!L$107","v":"Forecast"},{"$f":" Time!M$107","v":"Forecast"},{"$f":" Time!N$107","v":"Forecast"},{"$f":" Time!O$107","v":"Forecast"},{"$f":" Time!P$107","v":"Forecast"}]
[null,null,null,null,{"$f":"Time!E130","v":"Financial year ending"},null,null,null,null,{"$f":" Time!J$130","v":2019},{"$f":" Time!K$130","v":2020},{"$f":" Time!L$130","v":2021},{"$f":" Time!M$130","v":2022},{"$f":" Time!N$130","v":2023},{"$f":" Time!O$130","v":2024},{"$f":" Time!P$130","v":2025}]
[null,null,null,null,{"$f":"Time!E5","v":"Model column counter"},"Total","Unit",null,null,{"$f":" Time!I$10","v":0},{"$f":" Time!J$10","v":1},{"$f":" Time!K$10","v":2},{"$f":" Time!L$10","v":3},{"$f":" Time!M$10","v":4},{"$f":" Time!N$10","v":5},{"$f":" Time!O$10","v":6}]
[]
["ANNUAL ALLOWED COST"]
[]
[null,"WINEP reconciliation profiled across final 3 years of period"]
[]
[null,null,null,null,{"$f":"WINEP_Allowance!E183","v":"Total Final Reconciliation, water resources"},{"$f":"WINEP_Allowance!F183","v":-2.3672207499999995},{"$f":"WINEP_Allowance!G183","v":"£m"}]
[null,null,null,null,{"$f":"WINEP_Allowance!E184","v":"Total Final Reconciliation, water network"},{"$f":"WINEP_Allowance!F184","v":0},{"$f":"WINEP_Allowance!G184","v":"£m"}]
[null,null,null,null,{"$f":"WINEP_Allowance!E185","v":"Total Final Reconciliation, wastewater network"},{"$f":"WINEP_Allowance!F185","v":-34.900912183999999},{"$f":"WINEP_Allowance!G185","v":"£m"}]
[null,null,null,null,{"$f":"WINEP_Allowance!E186","v":"Total Final Reconciliation, bioresources"},{"$f":"WINEP_Allowance!F186","v":0},{"$f":"WINEP_Allowance!G186","v":"£m"}]
[null,null,null,null,{"$f":"WINEP_Allowance!E187","v":"Total Final Reconciliation, dummy"},{"$f":"WINEP_Allowance!F187","v":0},{"$f":"WINEP_Allowance!G187","v":"£m"}]
[]
[null,null,null,null,{"$f":" Time!E$93","v":"Start of adjustment profiling flag"},{"$f":" Time!F$93","v":0},{"$f":" Time!G$93","v":"counter"},{"$f":" Time!H$93","v":3},{"$f":" Time!I$93","v":0},{"$f":" Time!J$93","v":0},{"$f":" Time!K$93","v":0},{"$f":" Time!L$93","v":0},{"$f":" Time!M$93","v":0},{"$f":" Time!N$93","v":1},{"$f":" Time!O$93","v":1},{"$f":" Time!P$93","v":1}]
[]
[null,null,null,null,"Total Final Reconciliation - profiled, water resources",null,"£m",{"$f":" SUM(J19:P19)","v":-2.3672207499999995},null,{"$f":" IF( J$17 = 1, $F11 / 3, 0)","v":0},0,0,0,{"$f":" IF( N$17 = 1, $F11 / 3, 0)","v":-0.78907358333333322},{"$f":" IF( O$17 = 1, $F11 / 3, 0)","v":-0.78907358333333322},-0.78907358333333322]
[null,null,null,null,"Total Final Reconciliation - profiled, water network",null,"£m",{"$f":" SUM(J20:P20)","v":0},null,{"$f":" IF( J$17 = 1, $F12 / 3, 0)","v":0},0,0,0,{"$f":" IF( N$17 = 1, $F12 / 3, 0)","v":0},0,0]
[null,null,null,null,"Total Final Reconciliation - profiled, wastewater network",null,"£m",-34.900912183999999,null,{"$f":" IF( J$17 = 1, $F13 / 3, 0)","v":0},0,0,0,{"$f":" IF( N$17 = 1, $F13 / 3, 0)","v":-11.633637394666666},-11.633637394666666,-11.633637394666666]
[null,null,null,null,"Total Final Reconciliation - profiled, bioresources",null,"£m",0,null,{"$f":" IF( J$17 = 1, $F14 / 3, 0)","v":0},0,0,0,{"$f":" IF( N$17 = 1, $F14 / 3, 0)","v":0},0,0]
[null,null,null,null,"Total Final Reconciliation - profiled, dummy",null,"£m",0,null,{"$f":" IF( J$17 = 1, $F15 / 3, 0)","v":0},0,0,0,{"$f":" IF( N$17 = 1, $F15 / 3, 0)","v":0},0,0]
[]
[null,null,"WINEP reconciliation for cost reconciliation model"]
[null,null,null,null,"WINEP Reconciliation, water resources - without adjustment for time value of money",{"$f":"F19","v":0},"£m",-2.3672207499999995,0,0,0,0,0,-0.78907358333333322,-0.78907358333333322,-0.78907358333333322]
[null,null,null,null,"WINEP Reconciliation, water network - without adjustment for time value of money",{"$f":"F20","v":0},"£m",0,0,0,0,0,0,0,0,0]
[null,null,null,null,"WINEP Reconciliation, wastewater network - without adjustment for time value of money",{"$f":"F21","v":0},"£m",-34.900912183999999,0,0,0,0,0,-11.633637394666666,-11.633637394666666,-11.633637394666666]
[null,null,null,null,"WINEP Reconciliation, bioresources - without adjustment for time value of money",{"$f":"F22","v":0},"£m",0,0,0,0,0,0,0,0,0]
[null,null,null,null,"WINEP Reconciliation, dummy - without adjustment for time value of money",{"$f":"F23","v":0},"£m",0,0,0,0,0,0,0,0,0]
[]
[null,"WINEP reconciliation adjusted for time value of money"]
[]
[null,null,null,null,{"$f":" InpActive!E$33","v":"Financing cost index"},{"$f":" InpActive!F$33","v":0},{"$f":" InpActive!G$33","v":"Index"},null,null,{"$f":" InpActive!J$33","v":0},{"$f":" InpActive!K$33","v":0},{"$f":" InpActive!L$33","v":4},{"$f":" InpActive!M$33","v":3},{"$f":" InpActive!N$33","v":2},{"$f":" InpActive!O$33","v":1},{"$f":" InpActive!P$33","v":0}]
[null,null,null,null,{"$f":" InpActive!E$35","v":"Financing Cost"},{"$f":" InpActive!F$35","v":2.92E-2},{"$f":" InpActive!G$35","v":"%"}]
[null,null,null,null,"Time value of money factor",null,"Factor",null,null,{"$f":"(1+$F35) ^ J$34","v":1},{"$f":"(1+$F35) ^ K$34","v":1},{"$f":"(1+$F35) ^ L$34","v":1.122016155346969},1.0901828170879997,{"$f":"(1+$F35) ^ N$34","v":1.0592526399999997},{"$f":"(1+$F35) ^ O$34","v":1.0291999999999999},{"$f":"(1+$F35) ^ P$34","v":1}]
[]
[null,null,null,null,{"$f":" E26","v":"WINEP Reconciliation, water resources - without adjustment for time value of money"},{"$f":" F26","v":0},{"$f":" G26","v":"£m"},{"$f":" H26","v":-2.3672207499999995},0,{"$f":" J26","v":0},0,0,0,-0.78907358333333322,-0.78907358333333322,{"$f":" P26","v":-0.78907358333333322}]
[null,null,null,null,{"$f":" E27","v":"WINEP Reconciliation, water network - without adjustment for time value of money"},0,"£m",{"$f":" H27","v":0},0,{"$f":" J27","v":0},0,0,0,0,0,{"$f":" P27","v":0}]
[null,null,null,null,"WINEP Reconciliation, wastewater network - without adjustment for time value of money",0,"£m",{"$f":" H28","v":-34.900912183999999},0,{"$f":" J28","v":0},0,0,0,-11.633637394666666,-11.633637394666666,{"$f":" P28","v":-11.633637394666666}]
[null,null,null,null,"WINEP Reconciliation, bioresources - without adjustment for time value of money",0,"£m",{"$f":" H29","v":0},0,{"$f":" J29","v":0},0,0,0,0,0,{"$f":" P29","v":0}]
[null,null,null,null,"WINEP Reconciliation, dummy - without adjustment for time value of money",0,"£m",{"$f":" H30","v":0},0,{"$f":" J30","v":0},0,0,0,0,0,{"$f":" P30","v":0}]
[]
[null,null,null,null,{"$f":" E$36","v":"Time value of money factor"},{"$f":" F$36","v":0},"Factor",0,0,1,1,1.122016155346969,1.0901828170879997,1.0592526399999997,1.0291999999999999,{"$f":" P$36","v":1}]
[]
[null,null,"WINEP reconciliation for PR24 RCV adjustment"]
[null,null,null,null,"WINEP Reconciliation, water resources - adjusted for time value of money",null,"£m",{"$f":" SUM(J47:P47)","v":-2.4370163916000926},null,{"$f":" J38 * J$44","v":0},0,0,0,-0.83582827630009304,-0.8121145319666665,-0.78907358333333322]
[null,null,null,null,"WINEP Reconciliation, water network - adjusted for time value of money",null,"£m",{"$f":" SUM(J48:P48)","v":0},null,{"$f":" J39 * J$44","v":0},0,0,0,{"$f":" N39 * N$44","v":0},0,{"$f":" P39 * P$44","v":0}]
[null,null,null,null,"WINEP Reconciliation, wastewater network - adjusted for time value of money",null,"£m",-35.92993812436098,null,{"$f":" J40 * J$44","v":0},0,0,0,{"$f":" N40 * N$44","v":-12.322961123103385},-11.973339606590931,{"$f":" P40 * P$44","v":-11.633637394666666}]
[null,null,null,null,"WINEP Reconciliation, bioresources - adjusted for time value of money",null,"£m",0,null,{"$f":" J41 * J$44","v":0},0,0,0,{"$f":" N41 * N$44","v":0},0,{"$f":" P41 * P$44","v":0}]
[null,null,null,null,"WINEP Reconciliation, dummy - adjusted for time value of money",null,"£m",0,null,{"$f":" J42 * J$44","v":0},0,0,0,{"$f":" N42 * N$44","v":0},0,{"$f":" P42 * P$44","v":0}]
[]
[]
["End of sheet"]

{"sheet":"F_Outputs","index":14,"n_rows":17,"n_cols":9,"rows_kept":17,"cut":false,"hidden":false,"merged":[]}
[null,null,"PR19FM007_WINEP_Out"]
["Acronym","Reference","Item description","Unit","Model","2022-23","2023-24","2024-25","2020-25"]
[]
["YKY","C__PR24PD11_PD11_12WR_PRETVM_PR24",{"$f":" Annual_Outputs!E26","v":"WINEP Reconciliation, water resources - without adjustment for time value of money"},"£m","Price Review 2019",{"$f":"Annual_Outputs!N26","v":-0.78907358333333322},{"$f":"Annual_Outputs!O26","v":-0.78907358333333322},{"$f":"Annual_Outputs!P26","v":-0.78907358333333322},{"$f":"Annual_Outputs!H26","v":-2.3672207499999995}]
["YKY","C__PR24PD11_PD11_12WN_PRETVM_PR24",{"$f":" Annual_Outputs!E27","v":"WINEP Reconciliation, water network - without adjustment for time value of money"},"£m","Price Review 2019",{"$f":"Annual_Outputs!N27","v":0},{"$f":"Annual_Outputs!O27","v":0},{"$f":"Annual_Outputs!P27","v":0},{"$f":"Annual_Outputs!H27","v":0}]
["YKY","C__PR24PD11_PD11_12WWN_PRETVM_PR24",{"$f":" Annual_Outputs!E28","v":"WINEP Reconciliation, wastewater network - without adjustment for time value of money"},"£m","Price Review 2019",{"$f":"Annual_Outputs!N28","v":-11.633637394666666},{"$f":"Annual_Outputs!O28","v":-11.633637394666666},{"$f":"Annual_Outputs!P28","v":-11.633637394666666},{"$f":"Annual_Outputs!H28","v":-34.900912183999999}]
["YKY","C__PR24PD11_PD11_12BIO_PRETVM_PR24",{"$f":" Annual_Outputs!E29","v":"WINEP Reconciliation, bioresources - without adjustment for time value of money"},"£m","Price Review 2019",{"$f":"Annual_Outputs!N29","v":0},{"$f":"Annual_Outputs!O29","v":0},{"$f":"Annual_Outputs!P29","v":0},{"$f":"Annual_Outputs!H29","v":0}]
["YKY","C__PR24PD11_PD11_12ADDN1_PRETVM_PR24",{"$f":" Annual_Outputs!E30","v":"WINEP Reconciliation, dummy - without adjustment for time value of money"},"£m","Price Review 2019",{"$f":"Annual_Outputs!N30","v":0},{"$f":"Annual_Outputs!O30","v":0},{"$f":"Annual_Outputs!P30","v":0},{"$f":"Annual_Outputs!H30","v":0}]
["YKY","C_PR24PD11_PD11_12WR_PR24",{"$f":"Annual_Outputs!E47","v":"WINEP Reconciliation, water resources - adjusted for time value of money"},"£m","Price Review 2019",{"$f":"Annual_Outputs!N47","v":-0.83582827630009304},{"$f":"Annual_Outputs!O47","v":-0.8121145319666665},{"$f":"Annual_Outputs!P47","v":-0.78907358333333322},{"$f":"Annual_Outputs!H47","v":-2.4370163916000926}]
["YKY","C_PR24PD11_PD11_12WN_PR24",{"$f":"Annual_Outputs!E48","v":"WINEP Reconciliation, water network - adjusted for time value of money"},"£m","Price Review 2019",{"$f":"Annual_Outputs!N48","v":0},{"$f":"Annual_Outputs!O48","v":0},{"$f":"Annual_Outputs!P48","v":0},{"$f":"Annual_Outputs!H48","v":0}]
["YKY","C_PR24PD11_PD11_12WWN_PR24",{"$f":"Annual_Outputs!E49","v":"WINEP Reconciliation, wastewater network - adjusted for time value of money"},"£m","Price Review 2019",{"$f":"Annual_Outputs!N49","v":-12.322961123103385},{"$f":"Annual_Outputs!O49","v":-11.973339606590931},{"$f":"Annual_Outputs!P49","v":-11.633637394666666},{"$f":"Annual_Outputs!H49","v":-35.92993812436098}]
["YKY","C_PR24PD11_PD11_12BIO_PR24",{"$f":"Annual_Outputs!E50","v":"WINEP Reconciliation, bioresources - adjusted for time value of money"},"£m","Price Review 2019",{"$f":"Annual_Outputs!N50","v":0},{"$f":"Annual_Outputs!O50","v":0},{"$f":"Annual_Outputs!P50","v":0},{"$f":"Annual_Outputs!H50","v":0}]
["YKY","C_PR24PD11_PD11_12ADDN1_PR24",{"$f":"Annual_Outputs!E51","v":"WINEP Reconciliation, dummy - adjusted for time value of money"},"£m","Price Review 2019",{"$f":"Annual_Outputs!N51","v":0},{"$f":"Annual_Outputs!O51","v":0},{"$f":"Annual_Outputs!P51","v":0},{"$f":"Annual_Outputs!H51","v":0}]
["YKY","PR24QA_PR24PD11_OUT1","Date & Time for Model - PR24PD11","Text","Price Review 2024",{"$f":"CONCATENATE(\"[…]\", TEXT(NOW(),\"dd/mm/yyy hh:mm:ss\"))","v":"[…]14/08/2024 13:57:18"},{"$f":"CONCATENATE(\"[…]\", TEXT(NOW(),\"dd/mm/yyy hh:mm:ss\"))","v":"[…]14/08/2024 13:57:18"},"[…]14/08/2024 13:57:18","[…]14/08/2024 13:57:18"]
["YKY","PR24QA_PR24PD11_OUT2","Name of Model - PR24PD11","Text","Price Review 2024",{"$f":"MID(CELL(\"filename\"),SEARCH(\"[\",CELL(\"filename\"))+1,SEARCH(\"]\",CELL(\"filename\"))-SEARCH(\"[\",CELL(\"filename\"))-1)","v":"PR24-DD-PR19-WINEP-recon-model-YKY_V_POST_DD YW Response_OFW-IBQ-YKY-020.xlsm"},{"$f":"MID(CELL(\"filename\"),SEARCH(\"[\",CELL(\"filename\"))+1,SEARCH(\"]\",CELL(\"filename\"))-SEARCH(\"[\",CELL(\"filename\"))-1)","v":"PR24-DD-PR19-WINEP-recon-model-YKY_V_POST_DD YW Response_OFW-IBQ-YKY-020.xlsm"},"PR24-DD-PR19-WINEP-recon-model-YKY_V_POST_DD YW Response_OFW-IBQ-YKY-020.xlsm","PR24-DD-PR19-WINEP-recon-model-YKY_V_POST_DD YW Response_OFW-IBQ-YKY-020.xlsm"]
["YKY","PR24QA_PR24PD11_OUT3","F_Inputs time stamp - PR24PD11","Text","Price Review 2024","N/A","N/A","N/A","N/A"]
["YKY","PR24QA_PR24PD11_OUT4","Model override switch for - PR24PD11","nr","Price Review 2024",0,0,0,0]

{"sheet":"QA >>","index":15,"n_rows":0,"n_cols":0,"rows_kept":0,"cut":false,"hidden":false,"merged":[]}

{"sheet":"Track","index":16,"n_rows":38,"n_cols":15,"rows_kept":38,"cut":false,"hidden":false,"merged":[]}
[{"$f":" RIGHT(CELL(\"filename\", $A$1), LEN(CELL(\"filename\", $A$1)) - SEARCH(\"]\", CELL(\"filename\", $A$1)))","v":"Track"},null,null,null,null,null,null,null,null,null,null,null,"do not del col",null,"do not del col"]
[null,null,null,null,null,{"$f":"Check!$F$2","v":0},"Checks",null,null,{"$f":" SUM(J7:J28)","v":5}]
[null,null,null,null,null,{"$f":"J2","v":5},"Track chgs"]
[]
[null,null,null,null,null,null,"Unit",null,null,{"$f":" MATCH($H$6, M6:O6, 0)","v":2},"Difference","Diff %"]
[null,null,null,null,"Comparison column label",null,null,"Nil inputs",null,null,null,null,null,"Nil inputs"]
[null,null,null,null,"[do not delete row]"]
["INPUTS"]
[null,null,null,null,null,null,null,null,null,{"$f":" IF(ABS(K9) > InpActive!$F$42, 1, 0)","v":0},{"$f":" H9 - INDEX(M9:O9, $J$5)","v":0},{"$f":" IF(ABS(K9) > InpActive!$F$42, IF(INDEX(M9:O9, $J$5) = 0, 0, H9 / INDEX(M9:O9, $J$5) - 1), 0)","v":0}]
[null,null,"Inputs",null,null,null,null,null,null,{"$f":" IF(ABS(K10) > InpActive!$F$42, 1, 0)","v":0},0,{"$f":" IF(ABS(K10) > InpActive!$F$42, IF(INDEX(M10:O10, $J$5) = 0, 0, H10 / INDEX(M10:O10, $J$5) - 1), 0)","v":0}]
[null,null,null,null,{"$f":" InpActive!E35","v":"Financing Cost"},null,{"$f":"InpActive!G35","v":"%"},{"$f":"InpActive!F35","v":2.92E-2},null,{"$f":" IF(ABS(K11) > InpActive!$F$42, 1, 0)","v":1},2.92E-2,{"$f":" IF(ABS(K11) > InpActive!$F$42, IF(INDEX(M11:O11, $J$5) = 0, 0, H11 / INDEX(M11:O11, $J$5) - 1), 0)","v":0},null,0]
[null,null,null,null,null,null,null,null,null,{"$f":" IF(ABS(K12) > InpActive!$F$42, 1, 0)","v":0},0,{"$f":" IF(ABS(K12) > InpActive!$F$42, IF(INDEX(M12:O12, $J$5) = 0, 0, H12 / INDEX(M12:O12, $J$5) - 1), 0)","v":0},null,0]
[null,null,null,null,null,null,null,null,null,{"$f":" IF(ABS(K13) > InpActive!$F$42, 1, 0)","v":0},0,{"$f":" IF(ABS(K13) > InpActive!$F$42, IF(INDEX(M13:O13, $J$5) = 0, 0, H13 / INDEX(M13:O13, $J$5) - 1), 0)","v":0},null,0]
[null,null,"Outputs",null,null,null,null,null,null,{"$f":" IF(ABS(K14) > InpActive!$F$42, 1, 0)","v":0},0,{"$f":" IF(ABS(K14) > InpActive!$F$42, IF(INDEX(M14:O14, $J$5) = 0, 0, H14 / INDEX(M14:O14, $J$5) - 1), 0)","v":0}]
[null,null,null,null,{"$f":" Annual_Outputs!E26","v":"WINEP Reconciliation, water resources - without adjustment for time value of money"},null,{"$f":" Annual_Outputs!G26","v":"£m"},{"$f":" Annual_Outputs!H26","v":-2.3672207499999995},null,{"$f":" IF(ABS(K15) > InpActive!$F$42, 1, 0)","v":1},-2.3672207499999995,{"$f":" IF(ABS(K15) > InpActive!$F$42, IF(INDEX(M15:O15, $J$5) = 0, 0, H15 / INDEX(M15:O15, $J$5) - 1), 0)","v":0},null,0]
[null,null,null,null,{"$f":" Annual_Outputs!E27","v":"WINEP Reconciliation, water network - without adjustment for time value of money"},null,{"$f":" Annual_Outputs!G27","v":"£m"},{"$f":" Annual_Outputs!H27","v":0},null,{"$f":" IF(ABS(K16) > InpActive!$F$42, 1, 0)","v":0},0,{"$f":" IF(ABS(K16) > InpActive!$F$42, IF(INDEX(M16:O16, $J$5) = 0, 0, H16 / INDEX(M16:O16, $J$5) - 1), 0)","v":0},null,0]
[null,null,null,null,{"$f":" Annual_Outputs!E28","v":"WINEP Reconciliation, wastewater network - without adjustment for time value of money"},null,{"$f":" Annual_Outputs!G28","v":"£m"},{"$f":" Annual_Outputs!H28","v":-34.900912183999999},null,{"$f":" IF(ABS(K17) > InpActive!$F$42, 1, 0)","v":1},{"$f":" H17 - INDEX(M17:O17, $J$5)","v":-34.900912183999999},{"$f":" IF(ABS(K17) > InpActive!$F$42, IF(INDEX(M17:O17, $J$5) = 0, 0, H17 / INDEX(M17:O17, $J$5) - 1), 0)","v":0},null,0]
[null,null,null,null,{"$f":" Annual_Outputs!E29","v":"WINEP Reconciliation, bioresources - without adjustment for time value of money"},null,{"$f":" Annual_Outputs!G29","v":"£m"},{"$f":" Annual_Outputs!H29","v":0},null,{"$f":" IF(ABS(K18) > InpActive!$F$42, 1, 0)","v":0},0,{"$f":" IF(ABS(K18) > InpActive!$F$42, IF(INDEX(M18:O18, $J$5) = 0, 0, H18 / INDEX(M18:O18, $J$5) - 1), 0)","v":0},null,0]
[null,null,null,null,{"$f":" Annual_Outputs!E30","v":"WINEP Reconciliation, dummy - without adjustment for time value of money"},null,{"$f":" Annual_Outputs!G30","v":"£m"},{"$f":" Annual_Outputs!H30","v":0},null,{"$f":" IF(ABS(K19) > InpActive!$F$42, 1, 0)","v":0},0,{"$f":" IF(ABS(K19) > InpActive!$F$42, IF(INDEX(M19:O19, $J$5) = 0, 0, H19 / INDEX(M19:O19, $J$5) - 1), 0)","v":0},null,0]
[null,null,null,null,{"$f":"Annual_Outputs!E47","v":"WINEP Reconciliation, water resources - adjusted for time value of money"},null,{"$f":"Annual_Outputs!G47","v":"£m"},{"$f":"Annual_Outputs!H47","v":-2.4370163916000926},null,{"$f":" IF(ABS(K20) > InpActive!$F$42, 1, 0)","v":1},{"$f":" H20 - INDEX(M20:O20, $J$5)","v":-2.4370163916000926},{"$f":" IF(ABS(K20) > InpActive!$F$42, IF(INDEX(M20:O20, $J$5) = 0, 0, H20 / INDEX(M20:O20, $J$5) - 1), 0)","v":0},null,0]
[null,null,null,null,{"$f":"Annual_Outputs!E48","v":"WINEP Reconciliation, water network - adjusted for time value of money"},null,{"$f":"Annual_Outputs!G48","v":"£m"},{"$f":"Annual_Outputs!H48","v":0},null,{"$f":" IF(ABS(K21) > InpActive!$F$42, 1, 0)","v":0},{"$f":" H21 - INDEX(M21:O21, $J$5)","v":0},{"$f":" IF(ABS(K21) > InpActive!$F$42, IF(INDEX(M21:O21, $J$5) = 0, 0, H21 / INDEX(M21:O21, $J$5) - 1), 0)","v":0},null,0]
[null,null,null,null,{"$f":"Annual_Outputs!E49","v":"WINEP Reconciliation, wastewater network - adjusted for time value of money"},null,{"$f":"Annual_Outputs!G49","v":"£m"},{"$f":"Annual_Outputs!H49","v":-35.92993812436098},null,{"$f":" IF(ABS(K22) > InpActive!$F$42, 1, 0)","v":1},-35.92993812436098,{"$f":" IF(ABS(K22) > InpActive!$F$42, IF(INDEX(M22:O22, $J$5) = 0, 0, H22 / INDEX(M22:O22, $J$5) - 1), 0)","v":0},null,0]
[null,null,null,null,{"$f":"Annual_Outputs!E50","v":"WINEP Reconciliation, bioresources - adjusted for time value of money"},null,{"$f":"Annual_Outputs!G50","v":"£m"},{"$f":"Annual_Outputs!H50","v":0},null,{"$f":" IF(ABS(K23) > InpActive!$F$42, 1, 0)","v":0},0,{"$f":" IF(ABS(K23) > InpActive!$F$42, IF(INDEX(M23:O23, $J$5) = 0, 0, H23 / INDEX(M23:O23, $J$5) - 1), 0)","v":0},null,0]
[null,null,null,null,{"$f":"Annual_Outputs!E51","v":"WINEP Reconciliation, dummy - adjusted for time value of money"},null,{"$f":"Annual_Outputs!G51","v":"£m"},{"$f":"Annual_Outputs!H51","v":0},null,{"$f":" IF(ABS(K24) > InpActive!$F$42, 1, 0)","v":0},0,{"$f":" IF(ABS(K24) > InpActive!$F$42, IF(INDEX(M24:O24, $J$5) = 0, 0, H24 / INDEX(M24:O24, $J$5) - 1), 0)","v":0},null,0]
[null,null,null,null,null,null,null,null,null,{"$f":" IF(ABS(K25) > InpActive!$F$42, 1, 0)","v":0},0,{"$f":" IF(ABS(K25) > InpActive!$F$42, IF(INDEX(M25:O25, $J$5) = 0, 0, H25 / INDEX(M25:O25, $J$5) - 1), 0)","v":0},null,0]
[null,null,null,null,null,null,null,null,null,{"$f":" IF(ABS(K26) > InpActive!$F$42, 1, 0)","v":0},0,{"$f":" IF(ABS(K26) > InpActive!$F$42, IF(INDEX(M26:O26, $J$5) = 0, 0, H26 / INDEX(M26:O26, $J$5) - 1), 0)","v":0},null,0]
[]
["INFO ONLY"]
[]
[null,null,null,null,"Date",null,null,{"$f":" TODAY()","v":"2024-08-14"}]
[null,null,null,null,"Time",null,null,{"$f":" NOW()","v":45518.58145416667}]
[null,null,null,null,"File",null,null,{"$f":" MID(CELL(\"filename\",$A$1), SEARCH(\"[\", CELL(\"filename\",$A$1)) + 1, SEARCH(\"]\", CELL(\"filename\",$A$1)) - SEARCH(\"[\", CELL(\"filename\",$A$1)) - 1)","v":"PR24-DD-PR19-WINEP-recon-model-YKY_V_POST_DD YW Response_OFW-IBQ-YKY-020.xlsm"}]
[null,null,null,null,"[do not delete row]",null,null,null,null,"range end"]
[]
[null,null,null,null,"Comment: Key input and logic changes",null,null,null,null,null,null,null,null,"Nil inputs"]
[null,null,null,null,"Comment: Key result changes"]
[]
["End of sheet"]

{"sheet":"Check","index":17,"n_rows":27,"n_cols":7,"rows_kept":27,"cut":false,"hidden":false,"merged":[]}
[{"$f":" RIGHT(CELL(\"filename\", $A$1), LEN(CELL(\"filename\", $A$1)) - SEARCH(\"]\", CELL(\"filename\", $A$1)))","v":"Check"}]
[null,null,null,null,null,{"$f":"F11","v":0},"Checks"]
[null,null,null,null,null,{"$f":"F24","v":5},"Track chgs"]
[]
[null,null,null,null,null,"Constant","Unit"]
[]
["CHECK SUMMARY"]
[]
["MODEL INTEGRITY CHECKS"]
[]
[null,null,null,null,"Total model integrity checks",{"$f":" SUM(F16:F21)","v":0}]
[]
[null,null,null,null,"[do not delete row]"]
[]
[null,"WINEP RECONCILIATION"]
[null,null,null,null,{"$f":"WINEP_Allowance!E179","v":"Price Control Reconciliation vs Total Reconciliation - check"},{"$f":"WINEP_Allowance!F179","v":0},{"$f":"WINEP_Allowance!G179","v":"check"}]
[]
[null,"TIME"]
[null,null,null,null,{"$f":"Time!E121","v":"Modelling period check"},{"$f":"Time!F121","v":0},{"$f":"Time!G121","v":"check"}]
[]
[]
[null,null,null,null,"[do not delete row]"]
[]
[null,null,null,null,"Total track changes",{"$f":"Track!J2","v":5}]
[]
[]
["End of sheet"]